Workbook

Sheet Map
A1: =RIGHT(CELL("filename", $A$1), LEN(CELL("filename", $A$1)) - SEARCH("]", CELL("filename", $A$1))) -> Map
A4: GENERIC MODEL DESIGN
B6: ABOVE BONNET - USER INTERFACE
D9: Inputs | M9: Output Summary
B14: BELOW BONNET - CALCULATION ENGINE
D20: Input Transition | H20: Calculations | M20: Detailed Outputs
B26: Note: FAST strictly applicable below the bonnet
A29: MODEL FLOW
B31: MODEL FLOW DIAGRAM | U31: DOCUMENTION AND QUALITY CONTROL
D33: INPUTS | G33: CALCULATIONS | P33: OUTPUTS | W33: DOCUMENTATION | AA33: QUALITY CONTROL
M37: ='DL - C3'!$A$1 -> DL - C3 | AA37: =Track!$A$1 -> 0
M38: Maximum regulated distribution revenue - DL | AA38: Model output changes
M40: ='DL - C4'!$A$1 -> DL - C4 | W40: =Key!$A$1 -> Key | AA40: =Check!$A$1 -> 0
M41: Regulatory asset bases - DL | W41: Sheet tabs colors, color coding, abbreviations, names | AA41: Error checks and alerts
M43: ='DL - C4 A'!$A$1 -> DL - C4 A | W43: =$A$1 -> Map
M44: Regulatory asset bases - Depreciation RP1 period - DL | W44: Sheet references and model flow
M46: ='DL - C4 B'!$A$1 -> DL - C4 B | W46: =HowTo!$A$1 -> HowTo
M47: Regulatory asset bases - Depreciation variance- DL | W47: Detailed guide on how to Use the model
M49: ='DL - C4 C'!$A$1 -> DL - C4 C
M50: Regulatory asset bases - Summary from RP1 period till last period- DL
M52: ='DL - C5'!$A$1 -> DL - C5
M53: Return amount - DL
M55: ='DL - C6'!$A$1 -> DL - C6 | Q55: =DL_RAB_Summary!$A$1 -> DL_RAB_Summary
M56: Opex amount - DL | Q56: DL individual RAB's summary
M58: ='DL - C7'!$A$1 -> DL - C7
M59: Pension deficit amount - DL
M61: ='DL - C8'!$A$1 -> DL - C8
M62: Cost of investigation amount - DL
M64: ='DL - C9'!$A$1 -> DL - C9
M65: Tax - DL
D67: ='Set Up'!$A$1 -> Set Up | M67: ='DL - C10'!$A$1 -> DL - C10 | Q67: =L1_Data!$A$1 -> L1_Data
D68: Technical assumptions | M68: Revenue protection service incentive amount - DL | Q68: Output line items
D70: ='Licence Inp'!$A$1 -> Licence Inp | H70: =Time!$A$1 -> Time | M70: ='DL - C11'!$A$1 -> DL - C11 | Q70: =Export!$A$1 -> Export
D71: Licence assumptions | H71: Timing & flags | M71: Correction factor amount - DL | Q71: Values to be exported.
D75: ='Actuals Inp'!$A$1 -> Actuals Inp | H75: =Index!$A$1 -> Index | M75: ='TL - C3'!$A$1 -> TL - C3
D76: Actual assumptions | H76: Indexation factors | M76: Maximum regulated distribution revenue - TL
D78: =Inp_Depreciation!$A$1 -> Inp_Depreciation | M78: ='TL - C4'!$A$1 -> TL - C4
D79: Depreciation inputs | M79: Regulatory asset bases - TL
M81: ='TL - C4 A'!$A$1 -> TL - C4 A
M82: Regulatory asset bases - Depreciation RP1 period - TL
M84: ='TL - C4 B'!$A$1 -> TL - C4 B
M85: Regulatory asset bases - Depreciation variance- TL
M87: ='TL - C4 C'!$A$1 -> TL - C4 C | Q87: =TL_RAB_Summary!$A$1 -> TL_RAB_Summary
M88: Regulatory asset bases - Summary from RP1 period till last period- TL | Q88: TL individual RAB's summary
M90: ='TL - C5'!$A$1 -> TL - C5
M91: Return amount - TL
M93: ='TL - C6'!$A$1 -> TL - C6
M94: Opex amount - TL
M96: ='TL - C7'!$A$1 -> TL - C7
M97: Pension deficit amount - TL
M99: ='TL - C8'!$A$1 -> TL - C8
M100: Cost of investigation amount - TL
M102: ='TL - C9'!$A$1 -> TL - C9
M103: Tax - TL
M105: ='TL - C11'!$A$1 -> TL - C11
M106: Correction factor amount - TL
A110: END

Sheet HowTo
A1: =RIGHT(CELL("filename", $A$1), LEN(CELL("filename", $A$1)) - SEARCH("]", CELL("filename", $A$1))) -> HowTo
D5: Introduction
F6: This model has been prepared for RP6 pricing project.
D8: Initial set up
F9: On first use of the model please ensure the following:
F10: 1 - Ensure Analysis Toolpak is enabled (go to Tools, Addins and tick "Analysis Toolpak")
F11: 2 - Disable in cell editing (go to Tools, Options, Edit and untick "Edit directly in cell")
D13: Navigation
F14: In order to navigate through the model the following key strokes will prove useful:
F15: - To go to a sheet or row select a blue font cell and then either press CTRL+ [ or double click
F16: - To return to the last position (e.g., this Table of Contents) press F5+Enter
F17: - In accordance with best practice, the model is saved with a "Manual Calculation" setting. To ensure a full recalculation press: Ctrl + Alt + F9
D19: To Run group / ungroup macros
F20: To expand the grouped block
F21: Go to first line of ungroup block and press CTRL + E for expand the block.
F23: To collapse the grouped block
F24: Go to the first line of grouped block and press SHIFT + CTRL + E for collapse the block.
D26: To Store Results in "Track" sheet
F27: Macro
F28: Go to the following button and press it to store the results in one go
F29: =Track!$E$3 -> 0
A32: END

Sheet Key
A1: =RIGHT(CELL("filename", $A$1), LEN(CELL("filename", $A$1)) - SEARCH("]", CELL("filename", $A$1))) -> Key
A4: SHEET TABS
E6: Light Yellow | G6: Input sheets
E8: Light Grey | G8: Calculation and documentation sheets
E10: Pale Blue | G10: Key output sheets
E12: Turquoise | G12: Quality control sheets
E14: Yellow | G14: To be completed, temporary, restructured, or deleted
A17: COLOUR
B19: Font colour only
E20: Blue font | G20: Imported from another sheet (except into Dashboard sheet)
E22: Red font | G22: Exported to another sheet (except from Input sheets)
E24: Black font | G24: Within sheet link or calculation
B26: Font + shade combinations
E27: Black font + Light Yellow shade | G27: Inputs
E29: Black font + Light Gray shade on entire row | G29: Within-worksheet counter-flow
E31: Blue font + Light Gray shade on entire row | G31: Between-worksheet counter-flow
E33: Empty Cell with Light Gray shade | G33: Empty cells being deliberately referenced
B35: Other
E36: Black font + Pale Blue shade on entire row | G36: Section separator
E38: Light Turquoise shade | G38: Stored/dead/hard coded outputs
E40: Tan shade | G40: Pre-model time line actuals
E42: Yellow shade | G42: Work in progress / temporary
E44: Lime shade | G44: Values or logic to be reviewed
B46: Error checks & alerts
E47: Green shade | G47: OK
E49: Red shade | G49: Error
E51: Gold shade | G51: Alert
A54: NAMES
E56: ACTIVE_CASE | F56: ='Set Up'!$H$9
E57: CHK_TOL | F57: ='Set Up'!$H$63
E58: EXPORT | F58: =Export!$A$6:$V$109
E59: LIVE_RESULTS | F59: =Track!$K$6:$K$290
E60: PCT_TOL | F60: ='Set Up'!$H$67
E61: TRACK_ACTIVE | F61: =Track!$K$5
E62: TRK_COMMENT | F62: =Track!$E$292
E63: TRK_TOL | F63: ='Set Up'!$H$65
A66: ABBREVIATIONS
E68: A/c | G68: Account
E69: AVWACC | G69: Average vanilla WACC
E70: BEG | G70: Beginning
E71: BS | G71: Balance sheet
E72: C | G72: Contract
E73: Calc. | G73: Calculation
E74: Cum. | G74: Cumulative
E75: CF | G75: Cashflow
E76: Dep. | G76: Depreciation
E77: Inst. | G77: Installation
E78: Distr. | G78: Distribution
E79: Excl. | G79: Excluding
E80: Freq. | G80: Frequency
E81: Gen. | G81: Generation
E82: Incl. | G82: Including
E83: Int. | G83: Interest
E84: No. | G84: Number
E85: Opex | G85: Operating expenditure
E86: Ops | G86: Operations
E87: p.m. | G87: Per month
E88: Pd | G88: Period
E89: PL | G89: Profit and Loss
E90: POS | G90: Positive
E91: PPF | G91: Partial period factor
E92: RAB | G92: Regulatory Asset Base
E93: S | G93: Schedule
E94: Sr | G94: Senior
E95: SQRT | G95: Square root
E96: TN | G96: Transmission
E97: Unesc | G97: Un-escalated
E98: VWACC | G98: Vanilla WACC
E99: WIP | G99: Work in progress
E100: WACC | G100: Weighted Average cost of caiptal
E101: Yr | G101: Year
A103: END

Sheet Set Up
A1: =RIGHT(CELL("filename", $A$1), LEN(CELL("filename", $A$1)) - SEARCH("]", CELL("filename", $A$1))) -> Set Up
H2: =Check!$H$9 -> 0 | I2: Error chks
H3: =Track!$M$2 -> 0 | I3: Track chgs
H4: =Check!$H$38 -> 0 | I4: Alerts
F5: Para references | G5: Defined Term | H5: Constant | I5: Unit | J5: Source
A7: FORECAST INPUTS
E9: Regulatory period | H9: RP5 | I9: text
A11: TIME INPUTS
E13: 1st model column start date | H13: 2011-04-01 | I13: date
E14: Months per model period | H14: 12 | I14: months
E16: First modelling column financial year number | H16: 2012 | I16: year #
E17: Financial year end month number | H17: 3 | I17: month #
E19: ="Pre " & ACTIVE_CASE & " period" -> Pre RP5 period | H19: RP4 | I19: label
E20: =H20 & " period label" -> RP4 / RP5 period label | H20: =H19 & " / " & H21 -> RP4 / RP5 | I20: label
E21: =ACTIVE_CASE & " period label" -> RP5 period label | H21: =ACTIVE_CASE -> RP5 | I21: label
E22: =H22 & " period label" -> RP5 / RP6 period label | H22: =H21 & " / " & H23 -> RP5 / RP6 | I22: label
E23: ="Post " & ACTIVE_CASE & " period" -> Post RP5 period | H23: RP6 | I23: label
E25: =ACTIVE_CASE & " period start date" -> RP5 period start date | H25: 2012-04-01 | I25: date
E26: ="Length of " & ACTIVE_CASE & " period" -> Length of RP5 period | H26: 66 | I26: months
A29: CAPEX
C31: Capex addition dates
H33: *Please enter the month start date
E34: Capex addition date during year 1993 - 1994 | H34: 1993-04-01 | I34: date
E35: Capex addition date during year 1994 - 1995 | H35: 1994-04-01 | I35: date
E36: Capex addition date during year 1995 - 1996 | H36: 1995-04-01 | I36: date
E37: Capex addition date during year 1996 - 1997 | H37: 1996-04-01 | I37: date
E38: Capex addition date during year 1997 - 1998 | H38: 1997-04-01 | I38: date
E39: Capex addition date during year 1998 - 1999 | H39: 1998-04-01 | I39: date
E40: Capex addition date during year 1999 - 2000 | H40: 1999-04-01 | I40: date
E41: Capex addition date during year 2000 - 2001 | H41: 2000-04-01 | I41: date
E42: Capex addition date during year 2001 - 2002 | H42: 2001-04-01 | I42: date
E43: Capex addition date during year 2002 - 2003 | H43: 2002-04-01 | I43: date
E44: Capex addition date during year 2003 - 2004 | H44: 2003-04-01 | I44: date
E45: Capex addition date during year 2004 - 2005 | H45: 2004-04-01 | I45: date
E46: Capex addition date during year 2005 - 2006 | H46: 2005-04-01 | I46: date
E47: Capex addition date during year 2006 - 2007 | H47: 2006-04-01 | I47: date
E48: Capex addition date during year 2007 - 2008 | H48: 2007-04-01 | I48: date
E49: Capex addition date during year 2008 - 2009 | H49: 2008-04-01 | I49: date
E50: Capex addition date during year 2009 - 2010 | H50: 2009-04-01 | I50: date
E51: Capex addition date during year 2010 - 2011 | H51: 2010-04-01 | I51: date
E52: Capex addition date during year 2011 - 2012 | H52: 2011-04-01 | I52: date
E53: Capex addition date during year 2012 - 2013 | H53: 2012-10-01 | I53: date
E54: Capex addition date during year 2013 - 2014 | H54: 2013-10-01 | I54: date
E55: Capex addition date during year 2014 - 2015 | H55: 2014-10-01 | I55: date
E56: Capex addition date during year 2015 - 2016 | H56: 2015-10-01 | I56: date
E57: Capex addition date during year 2016 - 2017 | H57: 2016-10-01 | I57: date
E58: Capex addition date during year 2017 - 2018 | H58: 2017-10-01 | I58: date
A61: NON - CHANGEABLE MODEL TECHNICAL INPUTS
E63: Check tolerance | H63: 0.001 | I63: tolerance
E65: Track tolerance | H65: 0.001 | I65: tolerance
E67: Percentage tolerance | H67: 1e-05 | I67: tolerance
E69: Months in a year | H69: 12 | I69: months
E71: Square root factor | F71: 5.1: | H71: 0.5 | I71: factor
E73: Units in a million | F73: 5.1: | H73: 1000000 | I73: unit
A75: END

Sheet Licence Inp
A1: =RIGHT(CELL("filename", $A$1), LEN(CELL("filename", $A$1)) - SEARCH("]", CELL("filename", $A$1))) -> Licence Inp
E2: =Time!E$23 -> Model period ending | H2: =Check!$H$9 -> 0 | I2: Error chks | M2: =Time!M$23 -> 2012-03-31 | N2: =Time!N$23 -> 2013-03-31 | O2: =Time!O$23 -> 2014-03-31 | P2: =Time!P$23 -> 2015-03-31 | Q2: =Time!Q$23 -> 2016-03-31 | R2: =Time!R$23 -> 2017-03-31 | S2: =Time!S$23 -> 2018-03-31 | T2: =Time!T$23 -> 2019-03-31 | U2: =Time!U$23 -> 2020-03-31
E3: =Time!E$153 -> Timeline label | H3: =Track!$M$2 -> 0 | I3: Track chgs | M3: =Time!M$153 -> RP4 | N3: =Time!N$153 -> RP5 | O3: =Time!O$153 -> RP5 | P3: =Time!P$153 -> RP5 | Q3: =Time!Q$153 -> RP5 | R3: =Time!R$153 -> RP5 | S3: =Time!S$153 -> RP5 / RP6 | T3: =Time!T$153 -> RP6 | U3: =Time!U$153 -> RP6
E4: =Time!E$36 -> Financial year ending | H4: =Check!$H$38 -> 0 | I4: Alerts | M4: =Time!M$36 -> 2012 | N4: =Time!N$36 -> 2013 | O4: =Time!O$36 -> 2014 | P4: =Time!P$36 -> 2015 | Q4: =Time!Q$36 -> 2016 | R4: =Time!R$36 -> 2017 | S4: =Time!S$36 -> 2018 | T4: =Time!T$36 -> 2019 | U4: =Time!U$36 -> 2020
E5: =Time!E$10 -> Model column counter | F5: Para references | G5: Defined Term | H5: Constant | I5: Unit | J5: Source | K5: Total | M5: =Time!M$10 -> 1 | N5: =Time!N$10 -> 2 | O5: =Time!O$10 -> 3 | P5: =Time!P$10 -> 4 | Q5: =Time!Q$10 -> 5 | R5: =Time!R$10 -> 6 | S5: =Time!S$10 -> 7 | T5: =Time!T$10 -> 8 | U5: =Time!U$10 -> 9
A7: DISTRIBUTION LICENCE
C9: 3.3 RP5Tt
E11: Max regulated Distribution revenue factor | F11: 3.3: | H11: 0.5 | I11: factor
C14: 4.1 Regulatory Asset Bases
C17: Table 1: Regulatory Asset Bases
E19: RAB Name | H19: RAB_X
E20: Distribution RAB | F20: Table 1 | H20: RAB_DN | I20: text
E21: Enduring solution RAB | F21: Table 1 | H21: RAB_ES | I21: text
E22: Metering RAB | F22: Table 1 | H22: RAB_MTRN | I22: text
E23: Rathlin RAB | F23: Table 1 | H23: RAB_RT | I23: text
E24: FEMO RAB | F24: Table 1 | H24: RAB_FE | I24: text
E25: NI2007 RAB | F25: Table 1 | H25: RAB_NI | I25: text
E26: 5 year D. RAB | F26: Table 1 | H26: RAB_D5Y | I26: text
E27: 5 year market operations RAB | F27: Table 1 | H27: RAB_MO5Y | I27: text
C30: Table 2: Opening value of existing assets
E32: RAB_X
E33: RAB_DN - base year 2010 | F33: Table 2 | G33: OE_2010_DN2013 | H33: 782.355 | I33: GBP m | J33: [Entitlement Model 28.11.16.xlsx]RP5 Distribution Inputs'!A$35
E34: RAB_ES - base year 2010 | F34: Table 2 | G34: OE_2010_ES2013 | H34: 21.212 | I34: GBP m | J34: [Entitlement Model 28.11.16.xlsx]RP5 Distribution Inputs'!A$65
E35: RAB_MTRN - base year 2010 | F35: Table 2 | G35: OE_2010_MTRN2013 | H35: 14.492 | I35: GBP m | J35: [Entitlement Model 28.11.16.xlsx]RP5 Distribution Inputs'!A$95
E36: RAB_RT - base year 2010 | F36: Table 2 | G36: OE_2010_RT2013 | H36: 3.957 | I36: GBP m | J36: [Entitlement Model 28.11.16.xlsx]RP5 Distribution Inputs'!A$147
E37: RAB_FE - base year 2010 | F37: Table 2 | G37: OE_2010_FE2013 | H37: 6.12 | I37: GBP m | J37: [Entitlement Model 28.11.16.xlsx]RP5 Distribution Inputs'!A$177
E38: RAB_NI - base year 2010 | F38: Table 2 | G38: OE_2010_NI2013 | H38: 19.211 | I38: GBP m | J38: [Entitlement Model 28.11.16.xlsx]RP5 Distribution Inputs'!A$207
E39: RAB_D5Y - base year 2010 | F39: Table 2 | G39: OE_2010_D5Y2013 | H39: 0 | I39: GBP m | J39: [Entitlement Model 28.11.16.xlsx]RP5 Distribution Inputs'!A$237
E40: RAB_MO5Y - base year 2010 | F40: Table 2 | G40: OE_2010_MO5Y2013 | H40: 0 | I40: GBP m
C42: Table 3: Fixed depreciation amount - FDEP_2010_X2013
E44: Fixed dep. - base yr 2010 calc. - RAB_DN | F44: Table 3 | G44: FDEP_2010_DNt | I44: GBP m | K44: =SUM(M44:U44) -> 205.5632935 | M44: ='DL - C4 A'!M$1468 -> 0 | N44: ='DL - C4 A'!N$1468 -> 40.4702706 | O44: ='DL - C4 A'!O$1468 -> 39.11279234 | P44: ='DL - C4 A'!P$1468 -> 37.63842218 | Q44: ='DL - C4 A'!Q$1468 -> 36.36933197 | R44: ='DL - C4 A'!R$1468 -> 34.94822391 | S44: ='DL - C4 A'!S$1468 -> 17.02425246 | T44: ='DL - C4 A'!T$1468 -> 0 | U44: ='DL - C4 A'!U$1468 -> 0
E45: Fixed dep. - base yr 2010 calc. - RAB_ES | F45: Table 3 | G45: FDEP_2010_ESt | I45: GBP m | K45: 11.66702867 | M45: ='DL - C4 A'!M$1652 -> 0 | N45: ='DL - C4 A'!N$1652 -> 2.12127794 | O45: ='DL - C4 A'!O$1652 -> 2.12127794 | P45: ='DL - C4 A'!P$1652 -> 2.12127794 | Q45: ='DL - C4 A'!Q$1652 -> 2.12127794 | R45: ='DL - C4 A'!R$1652 -> 2.12127794 | S45: ='DL - C4 A'!S$1652 -> 1.06063897 | T45: ='DL - C4 A'!T$1652 -> 0 | U45: ='DL - C4 A'!U$1652 -> 0
E46: Fixed dep. - base yr 2010 calc. - RAB_MTRN | F46: Table 3 | G46: FDEP_2010_MTRNt | I46: GBP m | K46: 8.97033893 | M46: ='DL - C4 A'!M$1836 -> 0 | N46: ='DL - C4 A'!N$1836 -> 1.630970715 | O46: ='DL - C4 A'!O$1836 -> 1.630970715 | P46: ='DL - C4 A'!P$1836 -> 1.630970715 | Q46: ='DL - C4 A'!Q$1836 -> 1.630970715 | R46: ='DL - C4 A'!R$1836 -> 1.630970715 | S46: ='DL - C4 A'!S$1836 -> 0.8154853573 | T46: ='DL - C4 A'!T$1836 -> 0 | U46: ='DL - C4 A'!U$1836 -> 0
E47: Fixed dep. - base yr 2010 calc. - RAB_RT | F47: Table 3 | G47: FDEP_2010_RTt | I47: GBP m | K47: 0.755825135 | M47: ='DL - C4 A'!M$2020 -> 0 | N47: ='DL - C4 A'!N$2020 -> 0.1374227518 | O47: ='DL - C4 A'!O$2020 -> 0.1374227518 | P47: ='DL - C4 A'!P$2020 -> 0.1374227518 | Q47: ='DL - C4 A'!Q$2020 -> 0.1374227518 | R47: ='DL - C4 A'!R$2020 -> 0.1374227518 | S47: ='DL - C4 A'!S$2020 -> 0.06871137591 | T47: ='DL - C4 A'!T$2020 -> 0 | U47: ='DL - C4 A'!U$2020 -> 0
E48: Fixed dep. - base yr 2010 calc. - RAB_FE | F48: Table 3 | G48: FDEP_2010_FEt | I48: GBP m | K48: 6.120522453 | M48: ='DL - C4 A'!M$2204 -> 0 | N48: ='DL - C4 A'!N$2204 -> 2.720232202 | O48: ='DL - C4 A'!O$2204 -> 2.720232202 | P48: ='DL - C4 A'!P$2204 -> 0.6800580504 | Q48: ='DL - C4 A'!Q$2204 -> 0 | R48: ='DL - C4 A'!R$2204 -> 0 | S48: ='DL - C4 A'!S$2204 -> 0 | T48: ='DL - C4 A'!T$2204 -> 0 | U48: ='DL - C4 A'!U$2204 -> 0
E49: Fixed dep. - base yr 2010 calc. - RAB_NI | F49: Table 3 | G49: FDEP_2010_NIt | I49: GBP m | K49: 19.21179126 | M49: ='DL - C4 A'!M$2388 -> 0 | N49: ='DL - C4 A'!N$2388 -> 6.826668333 | O49: ='DL - C4 A'!O$2388 -> 6.826668333 | P49: ='DL - C4 A'!P$2388 -> 3.490866217 | Q49: ='DL - C4 A'!Q$2388 -> 2.067588373 | R49: ='DL - C4 A'!R$2388 -> 0 | S49: ='DL - C4 A'!S$2388 -> 0 | T49: ='DL - C4 A'!T$2388 -> 0 | U49: ='DL - C4 A'!U$2388 -> 0
E50: Fixed dep. - base yr 2010 calc. - RAB_D5Y | F50: Table 3 | G50: FDEP_2010_D5Yt | I50: GBP m | K50: 0 | M50: ='DL - C4 A'!M$2572 -> 0 | N50: ='DL - C4 A'!N$2572 -> 0 | O50: ='DL - C4 A'!O$2572 -> 0 | P50: ='DL - C4 A'!P$2572 -> 0 | Q50: ='DL - C4 A'!Q$2572 -> 0 | R50: ='DL - C4 A'!R$2572 -> 0 | S50: ='DL - C4 A'!S$2572 -> 0 | T50: ='DL - C4 A'!T$2572 -> 0 | U50: ='DL - C4 A'!U$2572 -> 0
E51: Fixed dep. - base yr 2010 calc. - RAB_MO5Y | F51: Table 3 | G51: FDEP_2010_MO5Yt | I51: GBP m | K51: 0 | M51: ='DL - C4 A'!M$2756 -> 0 | N51: ='DL - C4 A'!N$2756 -> 0 | O51: ='DL - C4 A'!O$2756 -> 0 | P51: ='DL - C4 A'!P$2756 -> 0 | Q51: ='DL - C4 A'!Q$2756 -> 0 | R51: ='DL - C4 A'!R$2756 -> 0 | S51: ='DL - C4 A'!S$2756 -> 0 | T51: ='DL - C4 A'!T$2756 -> 0 | U51: ='DL - C4 A'!U$2756 -> 0
E53: Fixed dep. - base yr 2010 adj. - RAB_DN | F53: Table 3 | G53: FDEP_2010_DNt | I53: GBP m | J53: [Entitlement Model 28.11.16.xlsx]RP5 Distribution Inputs'!A$36 | K53: =SUM(M53:U53) -> 205.563293 | N53: =40.470271 -> 40.470271 | O53: 39.112792 | P53: =37.638422 -> 37.638422 | Q53: =36.369332 -> 36.369332 | R53: =34.948224 -> 34.948224 | S53: =17.024252 -> 17.024252 | T53: 0 | U53: 0
E54: Fixed dep. - base yr 2010 adj. - RAB_ES | F54: Table 3 | G54: FDEP_2010_ESt | I54: GBP m | J54: [Entitlement Model 28.11.16.xlsx]RP5 Distribution Inputs'!A$66 | K54: 11.668535 | N54: =2.121278 -> 2.121278 | O54: =2.121278 -> 2.121278 | P54: =2.12178 -> 2.12178 | Q54: =2.12178 -> 2.12178 | R54: =2.12178 -> 2.12178 | S54: =1.060639 -> 1.060639 | T54: 0 | U54: 0
E55: Fixed dep. - base yr 2010 adj. - RAB_MTRN | F55: Table 3 | G55: FDEP_2010_MTRNt | I55: GBP m | J55: [Entitlement Model 28.11.16.xlsx]RP5 Distribution Inputs'!A$96 | K55: 8.97034 | N55: =1.630971 -> 1.630971 | O55: =1.630971 -> 1.630971 | P55: =1.630971 -> 1.630971 | Q55: =1.630971 -> 1.630971 | R55: =1.630971 -> 1.630971 | S55: =0.815485 -> 0.815485 | T55: 0 | U55: 0
E56: Fixed dep. - base yr 2010 adj. - RAB_RT | F56: Table 3 | G56: FDEP_2010_RTt | I56: GBP m | J56: [Entitlement Model 28.11.16.xlsx]RP5 Distribution Inputs'!A$148 | K56: 0.755826 | N56: =0.137423 -> 0.137423 | O56: =0.137423 -> 0.137423 | P56: =0.137423 -> 0.137423 | Q56: =0.137423 -> 0.137423 | R56: =0.137423 -> 0.137423 | S56: =0.068711 -> 0.068711 | T56: 0 | U56: 0
E57: Fixed dep. - base yr 2010 adj. - RAB_FE | F57: Table 3 | G57: FDEP_2010_FEt | I57: GBP m | J57: [Entitlement Model 28.11.16.xlsx]RP5 Distribution Inputs'!A$178 | K57: 6.120522 | N57: =2.720232 -> 2.720232 | O57: =2.720232 -> 2.720232 | P57: =0.680058 -> 0.680058 | Q57: 0 | R57: 0 | S57: 0 | T57: 0 | U57: 0
E58: Fixed dep. - base yr 2010 adj. - RAB_NI | F58: Table 3 | G58: FDEP_2010_NIt | I58: GBP m | J58: [Entitlement Model 28.11.16.xlsx]RP5 Distribution Inputs'!A$208 | K58: 19.21179 | N58: =6.826668 -> 6.826668 | O58: =6.826668 -> 6.826668 | P58: =3.490866 -> 3.490866 | Q58: =2.067588 -> 2.067588 | R58: 0 | S58: 0 | T58: 0 | U58: 0
E59: Fixed dep. - base yr 2010 adj. - RAB_D5Y | F59: Table 3 | G59: FDEP_2010_D5Yt | I59: GBP m | J59: [Entitlement Model 28.11.16.xlsx]RP5 Distribution Inputs'!A$238 | K59: 0 | N59: 0 | O59: 0 | P59: 0 | Q59: 0 | R59: 0 | S59: 0 | T59: 0 | U59: 0
E60: Fixed dep. - base yr 2010 adj. - RAB_MO5Y | F60: Table 3 | G60: FDEP_2010_MO5Yt | I60: GBP m | K60: 0 | N60: 0 | O60: 0 | P60: 0 | Q60: 0 | R60: 0 | S60: 0 | T60: 0 | U60: 0
E62: Fixed depreciation - base year 2010 - RAB_DN | F62: Table 3 | G62: FDEP_2010_DNt | I62: GBP m | K62: =SUM(M62:U62) -> 205.563293 | M62: =IF( ISBLANK(M53), M44,M53) -> 0 | N62: 40.470271 | O62: 39.112792 | P62: 37.638422 | Q62: 36.369332 | R62: 34.948224 | S62: =IF( ISBLANK(S53), S44,S53) -> 17.024252 | T62: 0 | U62: 0
E63: Fixed depreciation - base year 2010 - RAB_ES | F63: Table 3 | G63: FDEP_2010_ESt | I63: GBP m | K63: =SUM(M63:U63) -> 11.668535 | M63: 0 | N63: 2.121278 | O63: 2.121278 | P63: 2.12178 | Q63: 2.12178 | R63: 2.12178 | S63: =IF( ISBLANK(S54), S45,S54) -> 1.060639 | T63: 0 | U63: 0
E64: Fixed depreciation - base year 2010 - RAB_MTRN | F64: Table 3 | G64: FDEP_2010_MTRNt | I64: GBP m | K64: 8.97034 | M64: 0 | N64: 1.630971 | O64: 1.630971 | P64: 1.630971 | Q64: 1.630971 | R64: 1.630971 | S64: =IF( ISBLANK(S55), S46,S55) -> 0.815485 | T64: 0 | U64: 0
E65: Fixed depreciation - base year 2010 - RAB_RT | F65: Table 3 | G65: FDEP_2010_RTt | I65: GBP m | K65: 0.755826 | M65: 0 | N65: 0.137423 | O65: 0.137423 | P65: 0.137423 | Q65: 0.137423 | R65: 0.137423 | S65: =IF( ISBLANK(S56), S47,S56) -> 0.068711 | T65: 0 | U65: 0
E66: Fixed depreciation - base year 2010 - RAB_FE | F66: Table 3 | G66: FDEP_2010_FEt | I66: GBP m | K66: 6.120522 | M66: 0 | N66: 2.720232 | O66: 2.720232 | P66: 0.680058 | Q66: 0 | R66: 0 | S66: =IF( ISBLANK(S57), S48,S57) -> 0 | T66: 0 | U66: 0
E67: Fixed depreciation - base year 2010 - RAB_NI | F67: Table 3 | G67: FDEP_2010_NIt | I67: GBP m | K67: 19.21179 | M67: 0 | N67: 6.826668 | O67: 6.826668 | P67: 3.490866 | Q67: 2.067588 | R67: 0 | S67: =IF( ISBLANK(S58), S49,S58) -> 0 | T67: 0 | U67: 0
E68: Fixed depreciation - base year 2010 - RAB_D5Y | F68: Table 3 | G68: FDEP_2010_D5Yt | I68: GBP m | K68: 0 | M68: 0 | N68: 0 | O68: 0 | P68: 0 | Q68: 0 | R68: 0 | S68: =IF( ISBLANK(S59), S50,S59) -> 0 | T68: 0 | U68: 0
E69: Fixed depreciation - base year 2010 - RAB_MO5Y | F69: Table 3 | G69: FDEP_2010_MO5Yt | I69: GBP m | K69: 0 | M69: 0 | N69: 0 | O69: 0 | P69: 0 | Q69: 0 | R69: 0 | S69: =IF( ISBLANK(S60), S51,S60) -> 0 | T69: 0 | U69: 0
C72: 4.13: Opening values of additional assets - OADD_X2013
E74: RAB_X
E75: Opening additional assets - RAB_DN | F75: 4.13a: | G75: OADD_DN2013 | H75: 0 | I75: GBP m
E76: Opening additional assets - RAB_ES | F76: 4.13a: | G76: OADD_ES2013 | H76: 0 | I76: GBP m
E77: Opening additional assets - RAB_MTRN | F77: 4.13a: | G77: OADD_MTRN2013 | H77: 0 | I77: GBP m
E78: Opening additional assets - RAB_RT | F78: 4.13a: | G78: OADD_RT2013 | H78: 0 | I78: GBP m
E79: Opening additional assets - RAB_FE | F79: 4.13a: | G79: OADD_FE2013 | H79: 0 | I79: GBP m
E80: Opening additional assets - RAB_NI | F80: 4.13a: | G80: OADD_NI2013 | H80: 0 | I80: GBP m
E81: Opening additional assets - RAB_D5Y | F81: 4.13a: | G81: OADD_D5Y2013 | H81: 0 | I81: GBP m
E82: Opening additional assets - RAB_MO5Y | F82: 4.13a: | G82: OADD_MO5Y2013 | H82: 0 | I82: GBP m
C85: Table 4: Capex lagacy Dt items - CLD_Xt
E87: RAB_X
E88: 33kV reinforcement | F88: Table 4 | H88: 1.9 | I88: GBP m
E89: Enduring solution project | F89: Table 4 | H89: 5.9 | I89: GBP m
E90: Legacy Dt maximum RP5 spend amount | F90: Table 4 | H90: =SUM(H88:H89) -> 7.8 | I90: GBP m
C93: 4.27 DEPADD_DNt
E95: Additional depreciation factor | F95: 4.27a: | H95: 0.5 | I95: factor
C98: Table 5: Depreciation rate
E100: RAB_X
E101: Depreciation rate - RAB_DN | F101: Table 5 | G101: DEPR_DN | H101: 0.03 | I101: % | J101: [Entitlement Model 28.11.16.xlsx]RP5 Distribution Inputs'!A23
E102: Depreciation rate - RAB_ES | F102: Table 5 | G102: DEPR_ES | H102: 0.1 | I102: % | J102: [Entitlement Model 28.11.16.xlsx]RP5 Distribution Inputs'!A24
E103: Depreciation rate - RAB_MTRN | F103: Table 5 | G103: DEPR_MTRN | H103: 0.0666667 | I103: % | J103: [Entitlement Model 28.11.16.xlsx]RP5 Distribution Inputs'!A25
E104: Depreciation rate - RAB_RT | F104: Table 5 | G104: DEPR_RT | H104: 0.03 | I104: % | J104: [Entitlement Model 28.11.16.xlsx]RP5 Distribution Inputs'!A26
E105: Depreciation rate - RAB_FE | F105: Table 5 | G105: DEPR_FE | H105: 0.2 | I105: % | J105: [Entitlement Model 28.11.16.xlsx]RP5 Distribution Inputs'!A27
E106: Depreciation rate - RAB_NI | F106: Table 5 | G106: DEPR_NI | H106: 0.2 | I106: % | J106: [Entitlement Model 28.11.16.xlsx]RP5 Distribution Inputs'!A28
E107: Depreciation rate - RAB_D5Y | F107: Table 5 | G107: DEPR_D5Y | H107: 0.2 | I107: % | J107: [Entitlement Model 28.11.16.xlsx]RP5 Distribution Inputs'!A29
E108: Depreciation rate - RAB_MO5Y | F108: Table 5 | G108: DEPR_MO5Y | H108: 0 | I108: %
C111: 4.32 CI_DNt
E113: Capex incentive licensee share % | F113: 4.32: | H113: 0.5 | I113: % | J113: [Entitlement Model 28.11.16.xlsx]RP5 Distribution Inputs'!$A$18
C116: Table 6: Allowed capex - AC_Xt
E118: Allowed capex - Base year 2010 - RAB_DN | F118: Table 6 | G118: AC_2010_DNt | I118: GBP m | J118: [Entitlement Model 28.11.16.xlsx]RP5 Distribution Inputs'!A$44 | K118: =SUM(M118:U118) -> 286.6515496 | M118: 0 | N118: 41.62331878 | O118: 44.09769481 | P118: 58.00747597 | Q118: 57.47535699 | R118: 57.13109258 | S118: 28.31661052 | T118: 0 | U118: 0
E119: Allowed capex - Base year 2010 - RAB_ES | F119: Table 6 | G119: AC_2010_ESt | I119: GBP m | J119: [Entitlement Model 28.11.16.xlsx]RP5 Distribution Inputs'!A$74 | K119: 0 | M119: 0 | N119: 0 | O119: 0 | P119: 0 | Q119: 0 | R119: 0 | S119: 0 | T119: 0 | U119: 0
E120: Allowed capex - Base year 2010 - RAB_RT | F120: Table 6 | G120: AC_2010_RTt | I120: GBP m | J120: [Entitlement Model 28.11.16.xlsx]RP5 Distribution Inputs'!A$156 | K120: 0 | M120: 0 | N120: 0 | O120: 0 | P120: 0 | Q120: 0 | R120: 0 | S120: 0 | T120: 0 | U120: 0
E121: Allowed capex - Base year 2010 - RAB_FE | F121: Table 6 | G121: AC_2010_FEt | I121: GBP m | J121: [Entitlement Model 28.11.16.xlsx]RP5 Distribution Inputs'!A$186 | K121: 0 | M121: 0 | N121: 0 | O121: 0 | P121: 0 | Q121: 0 | R121: 0 | S121: 0 | T121: 0 | U121: 0
E122: Allowed capex - Base year 2010 - RAB_NI | F122: Table 6 | G122: AC_2010_NIt | I122: GBP m | J122: [Entitlement Model 28.11.16.xlsx]RP5 Distribution Inputs'!A$216 | K122: 0 | M122: 0 | N122: 0 | O122: 0 | P122: 0 | Q122: 0 | R122: 0 | S122: 0 | T122: 0 | U122: 0
E123: Allowed capex - Base year 2010 - RAB_D5Y | F123: Table 6 | G123: AC_2010_D5Yt | I123: GBP m | J123: [Entitlement Model 28.11.16.xlsx]RP5 Distribution Inputs'!A$246 | K123: 42.57345967 | M123: 0 | N123: 7.026656432 | O123: 8.698416766 | P123: 6.937331471 | Q123: 6.873284359 | R123: 6.832138857 | S123: 6.205631785 | T123: 0 | U123: 0
E124: Allowed capex - Base year 2010 - RAB_MO5Y | F124: Table 6 | G124: AC_2010_MO5Yt | I124: GBP m | K124: 0 | M124: 0 | N124: 0 | O124: 0 | P124: 0 | Q124: 0 | R124: 0 | S124: 0 | T124: 0 | U124: 0
C127: 4.32 Allowed capex for injurious affection claims
E129: Allowed capex for injurious affection claims - DN | F129: 4.32: | G129: ACIA_2010_DNt | I129: GBP m | J129: [Entitlement Model 28.11.16.xlsx]RP5 Distribution Inputs'!$A$45 | K129: =SUM(M129:U129) -> 0 | M129: 0 | N129: 0 | O129: 0 | P129: 0 | Q129: 0 | R129: 0 | S129: 0 | T129: 0 | U129: 0
E130: Allowed capex for injurious affection claims - ES | F130: 4.32: | G130: ACIA_2010_ESt | I130: GBP m | J130: [Entitlement Model 28.11.16.xlsx]RP5 Distribution Inputs'!$A$75 | K130: 0 | M130: 0 | N130: 0 | O130: 0 | P130: 0 | Q130: 0 | R130: 0 | S130: 0 | T130: 0 | U130: 0
E131: Allowed capex for injurious affection claims - MTRN | F131: 4.32: | G131: ACIA_2010_MTRNt | I131: GBP m | K131: 0 | M131: 0 | N131: 0 | O131: 0 | P131: 0 | Q131: 0 | R131: 0 | S131: 0 | T131: 0 | U131: 0
E132: Allowed capex for injurious affection claims - RT | F132: 4.32: | G132: ACIA_2001_RTt | I132: GBP m | J132: [Entitlement Model 28.11.16.xlsx]RP5 Distribution Inputs'!$A$157 | K132: 0 | M132: 0 | N132: 0 | O132: 0 | P132: 0 | Q132: 0 | R132: 0 | S132: 0 | T132: 0 | U132: 0
E133: Allowed capex for injurious affection claims - FE | F133: 4.32: | G133: ACIA_2010_FEt | I133: GBP m | J133: [Entitlement Model 28.11.16.xlsx]RP5 Distribution Inputs'!$A$187 | K133: 0 | M133: 0 | N133: 0 | O133: 0 | P133: 0 | Q133: 0 | R133: 0 | S133: 0 | T133: 0 | U133: 0
E134: Allowed capex for injurious affection claims - NI | F134: 4.32: | G134: ACIA_2010_NIt | I134: GBP m | J134: [Entitlement Model 28.11.16.xlsx]RP5 Distribution Inputs'!A$217 | K134: 0 | M134: 0 | N134: 0 | O134: 0 | P134: 0 | Q134: 0 | R134: 0 | S134: 0 | T134: 0 | U134: 0
E135: Allowed capex for injurious affection claims - D5Y | F135: 4.32: | G135: ACIA_2010_D5Yt | I135: GBP m | J135: [Entitlement Model 28.11.16.xlsx]RP5 Distribution Inputs'!A$247 | K135: 0 | M135: 0 | N135: 0 | O135: 0 | P135: 0 | Q135: 0 | R135: 0 | S135: 0 | T135: 0 | U135: 0
E136: Allowed capex for injurious affection claims - MO5Y | F136: 4.32: | G136: ACIA_2010_MO5Yt | I136: GBP m | K136: 0 | M136: 0 | N136: 0 | O136: 0 | P136: 0 | Q136: 0 | R136: 0 | S136: 0 | T136: 0 | U136: 0
C139: 4.32 Allowed capex for enduring solution system
E141: Allowed capex for enduring solution system - DN | G141: ACES_2010_DNt | I141: GBP m | J141: [Entitlement Model 28.11.16.xlsx]RP5 Distribution Inputs'!$A$47 | K141: =SUM(M141:U141) -> 0 | M141: 0 | N141: 0 | O141: 0 | P141: 0 | Q141: 0 | R141: 0 | S141: 0 | T141: 0 | U141: 0
E142: Allowed capex for enduring solutions system - ES | G142: ACES_2010_ESt | I142: GBP m | J142: [Entitlement Model 28.11.16.xlsx]RP5 Distribution Inputs'!$A$77 | K142: 0 | M142: 0 | N142: 0 | O142: 0 | P142: 0 | Q142: 0 | R142: 0 | S142: 0 | T142: 0 | U142: 0
E143: Allowed capex for enduring solution system - MTRN | G143: ACES_2010_MTRNt | I143: GBP m | K143: 0 | M143: 0 | N143: 0 | O143: 0 | P143: 0 | Q143: 0 | R143: 0 | S143: 0 | T143: 0 | U143: 0
E144: Allowed capex for enduring solutions system - RT | G144: ACES_2010_RTt | I144: GBP m | J144: [Entitlement Model 28.11.16.xlsx]RP5 Distribution Inputs'!$A$159 | K144: 0 | M144: 0 | N144: 0 | O144: 0 | P144: 0 | Q144: 0 | R144: 0 | S144: 0 | T144: 0 | U144: 0
E145: Allowed capex for enduring solutions system - FE | G145: ACES_2010_FEt | I145: GBP m | J145: [Entitlement Model 28.11.16.xlsx]RP5 Distribution Inputs'!$A$189 | K145: 0 | M145: 0 | N145: 0 | O145: 0 | P145: 0 | Q145: 0 | R145: 0 | S145: 0 | T145: 0 | U145: 0
E146: Allowed capex for enduring solutions system - NI | G146: ACES_2010_NIt | I146: GBP m | J146: [Entitlement Model 28.11.16.xlsx]RP5 Distribution Inputs'!A$219 | K146: 0 | M146: 0 | N146: 0 | O146: 0 | P146: 0 | Q146: 0 | R146: 0 | S146: 0 | T146: 0 | U146: 0
E147: Allowed capex for enduring solutions system - D5Y | G147: ACES_2010_D5Yt | I147: GBP m | J147: [Entitlement Model 28.11.16.xlsx]RP5 Distribution Inputs'!A$249 | K147: 0 | M147: 0 | N147: 0 | O147: 0 | P147: 0 | Q147: 0 | R147: 0 | S147: 0 | T147: 0 | U147: 0
E148: Allowed capex for enduring solutions system - MO5Y | G148: ACES_2010_MO5Yt | I148: GBP m | K148: 0 | M148: 0 | N148: 0 | O148: 0 | P148: 0 | Q148: 0 | R148: 0 | S148: 0 | T148: 0 | U148: 0
C151: 4.45 Allowed capex for changes of law
E153: Allowed capex for changes of law - DN | F153: 4.45: | G153: ACCOL_2010_DNt | I153: GBP m | J153: [Entitlement Model 28.11.16.xlsx]RP5 Distribution Inputs'!$A$46 | K153: =SUM(M153:U153) -> 0 | M153: 0 | N153: 0 | O153: 0 | P153: 0 | Q153: 0 | R153: 0 | S153: 0 | T153: 0 | U153: 0
E154: Allowed capex for changes of law - ES | F154: 4.45: | G154: ACCOL_2010_ESt | I154: GBP m | J154: [Entitlement Model 28.11.16.xlsx]RP5 Distribution Inputs'!$A$76 | K154: 0 | M154: 0 | N154: 0 | O154: 0 | P154: 0 | Q154: 0 | R154: 0 | S154: 0 | T154: 0 | U154: 0
E155: Allowed capex for changes of law - MTRN | F155: 4.45: | G155: ACCOL_2010_MTRNt | I155: GBP m | K155: 0 | M155: 0 | N155: 0 | O155: 0 | P155: 0 | Q155: 0 | R155: 0 | S155: 0 | T155: 0 | U155: 0
E156: Allowed capex for changes of law - RT | F156: 4.45: | G156: ACCOL_2010_RTt | I156: GBP m | J156: [Entitlement Model 28.11.16.xlsx]RP5 Distribution Inputs'!$A$158 | K156: 0 | M156: 0 | N156: 0 | O156: 0 | P156: 0 | Q156: 0 | R156: 0 | S156: 0 | T156: 0 | U156: 0
E157: Allowed capex for changes of law - FE | F157: 4.45: | G157: ACCOL_2010_FEt | I157: GBP m | J157: [Entitlement Model 28.11.16.xlsx]RP5 Distribution Inputs'!$A$188 | K157: 0 | M157: 0 | N157: 0 | O157: 0 | P157: 0 | Q157: 0 | R157: 0 | S157: 0 | T157: 0 | U157: 0
E158: Allowed capex for changes of law - NI | F158: 4.45: | G158: ACCOL_2010_NIt | I158: GBP m | J158: [Entitlement Model 28.11.16.xlsx]RP5 Distribution Inputs'!A$218 | K158: 0 | M158: 0 | N158: 0 | O158: 0 | P158: 0 | Q158: 0 | R158: 0 | S158: 0 | T158: 0 | U158: 0
E159: Allowed capex for changes of law - D5Y | F159: 4.45: | G159: ACCOL_2010_D5Yt | I159: GBP m | J159: [Entitlement Model 28.11.16.xlsx]RP5 Distribution Inputs'!A$248 | K159: 0 | M159: 0 | N159: 0 | O159: 0 | P159: 0 | Q159: 0 | R159: 0 | S159: 0 | T159: 0 | U159: 0
E160: Allowed capex for changes of law - MO5Y | F160: 4.45: | G160: ACCOL_2010_MO5Yt | I160: GBP m | K160: 0 | M160: 0 | N160: 0 | O160: 0 | P160: 0 | Q160: 0 | R160: 0 | S160: 0 | T160: 0 | U160: 0
C163: Table 7: First metering fixed allowance - FMFAt
E165: First metering fixed allowance - FMFA_2010t | F165: Table 7 | G165: FMFA_2010t | I165: GBP m | J165: [Entitlement Model 28.11.16.xlsx]RP5 Distribution Inputs'!$A$106 | K165: =SUM(M165:U165) -> 4.611048035 | M165: 0 | N165: 0.622986 | O165: 0.61675614 | P165: 0.6112053347 | Q165: 0.6057044867 | R165: 0.6020702598 | S165: 1.552325814 | T165: 0 | U165: 0
C168: Table 8: First metering fixed allowance - FMFAt
E170: Second metering fixed allowance - SMFA_2010t | F170: Table 8 | G170: SMFA_2010t | I170: GBP m | J170: [Entitlement Model 28.11.16.xlsx]RP5 Distribution Inputs'!$A$107 | K170: =SUM(M170:U170) -> 2.005 | M170: 0 | N170: 0.25 | O170: 0.25 | P170: 0.68 | Q170: 0.33 | R170: 0.33 | S170: 0.165 | T170: 0 | U170: 0
C173: Table 9: Metering volume driven allowance - MVAt
E175: Certification - base year 2010 | F175: Table 9 | G175: MAU_2010_Ct | I175: GBP / meter | J175: [Entitlement Model 28.11.16.xlsx]RP5 Distribution Inputs'!A110 | K175: =SUM(M175:U175) -> 94.88 | M175: 0 | N175: 0 | O175: 0 | P175: 23.72 | Q175: 23.72 | R175: 23.72 | S175: 23.72 | T175: 0 | U175: 0
E176: Recertification - base year 2010 | F176: Table 9 | G176: MAU_2010_Ct | I176: GBP / meter | J176: [Entitlement Model 28.11.16.xlsx]RP5 Distribution Inputs'!A111 | K176: 94.88 | M176: 0 | N176: 0 | O176: 0 | P176: 23.72 | Q176: 23.72 | R176: 23.72 | S176: 23.72 | T176: 0 | U176: 0
E177: Commercial recertification - base year 2010 | F177: Table 9 | G177: MAU_2010_Ct | I177: GBP / meter | J177: [Entitlement Model 28.11.16.xlsx]RP5 Distribution Inputs'!A112 | K177: 968 | M177: 0 | N177: 0 | O177: 0 | P177: 242 | Q177: 242 | R177: 242 | S177: 242 | T177: 0 | U177: 0
E178: Keypad recertification - base year 2010 | F178: Table 9 | G178: MAU_2010_Ct | I178: GBP / meter | J178: [Entitlement Model 28.11.16.xlsx]RP5 Distribution Inputs'!A113 | K178: 306.04 | M178: 0 | N178: 0 | O178: 0 | P178: 76.51 | Q178: 76.51 | R178: 76.51 | S178: 76.51 | T178: 0 | U178: 0
E179: Keypad other - base year 2010 | F179: Table 9 | G179: MAU_2010_Ct | I179: GBP / meter | J179: [Entitlement Model 28.11.16.xlsx]RP5 Distribution Inputs'!A114 | K179: 432 | M179: 0 | N179: 72 | O179: 72 | P179: 72 | Q179: 72 | R179: 72 | S179: 72 | T179: 0 | U179: 0
E180: SOSA - base year 2010 | F180: Table 9 | G180: MAU_2010_Ct | I180: GBP / meter | J180: [Entitlement Model 28.11.16.xlsx]RP5 Distribution Inputs'!A115 | K180: 166.8 | M180: 0 | N180: 27.8 | O180: 27.8 | P180: 27.8 | Q180: 27.8 | R180: 27.8 | S180: 27.8 | T180: 0 | U180: 0
E181: Commercial - base year 2010 | F181: Table 9 | G181: MAU_2010_Ct | I181: GBP / meter | J181: [Entitlement Model 28.11.16.xlsx]RP5 Distribution Inputs'!A116 | K181: 1230 | M181: 0 | N181: 205 | O181: 205 | P181: 205 | Q181: 205 | R181: 205 | S181: 205 | T181: 0 | U181: 0
E182: Keypad meter (replacement for theft) - base year 2010 | F182: Table 9 | G182: MAU_2010_Ct | I182: GBP / meter | J182: [Entitlement Model 28.11.16.xlsx]RP5 Distribution Inputs'!A117 | K182: 289.5 | M182: 0 | N182: 0 | O182: 0 | P182: 0 | Q182: 96.5 | R182: 96.5 | S182: 96.5 | T182: 0 | U182: 0
C185: Table 10: Real price effect & productivity factor - RPEPFt
E187: Real price effect & productivity factor | F187: Table 10 | G187: RPEPFt | I187: factor | J187: [Entitlement Model 28.11.16.xlsx]RP5 Distribution Inputs'!$A$129 | M187: 0 | N187: 0.978 | O187: 0.96822 | P187: 0.95950602 | Q187: 0.9508704658 | R187: 0.945165243 | S187: 0.9366587558 | T187: 0 | U187: 0
C190: 5.1 Return amount - VWACCt
E192: Return amount factor | F192: 5.1: | H192: 2 | I192: factor | J192: [Entitlement Model 28.11.16.xlsx]RP5 Distribution Inputs'!$A$263
E194: WACC before applying r/SQRT(1+r) | F194: 5.1: | G194: VWACCt | H194: 0.041 | I194: % | J194: [Entitlement Model 28.11.16.xlsx]RP5 Distribution Inputs'!$A$264
C197: Table 11: Opex legacy Dt amount - Distribution owner business - 2010 price - OLDt
E199: Network management system | F199: Table 11 | H199: 3.3 | I199: GBP m
E200: Smart grid trial | F200: Table 11 | H200: 0.1 | I200: GBP m
E201: Market opening legacy systems cost | F201: Table 11 | H201: 0.5 | I201: GBP m
E202: Enduring solution – transitional costs | F202: Table 11 | H202: 0.7 | I202: GBP m
E203: Enduring solution project | F203: Table 11 | H203: 0.2 | I203: GBP m
E204: Legacy Dt maximum RP5 spend amount | F204: Table 11 | H204: =SUM(H199:H203) -> 4.8 | I204: GBP m
C207: 6.13 OIt
E209: Opex incentive licensee share % | F209: 6.13: | H209: 0.5 | I209: %
C212: Table 12: Allowed opex amount - AO_2010t
E214: Allowed opex - base year 2010 | F214: Table 12 | G214: AO_2010t | I214: GBP m | J214: [Entitlement Model 28.11.16.xlsx]RP5 Distribution Inputs'!$A$272 | K214: =SUM(M214:U214) -> 226.5744253 | M214: 0 | N214: 42.18990494 | O214: 42.60142499 | P214: 41.03681374 | Q214: 40.48079805 | R214: 40.24862972 | S214: 20.0168539 | T214: 0 | U214: 0
C217: Table 13: Pension deficit amount - P_2010t
E219: Historic deficit repair - DL | F219: Table 13 | I219: GBP m | J219: [Entitlement Model 28.11.16.xlsx]RP5 Distribution Inputs'!$A$291 | K219: =SUM(M219:U219) -> 69.322 | M219: 0 | N219: 12.604 | O219: 12.604 | P219: 12.604 | Q219: 12.604 | R219: 12.604 | S219: 6.302 | T219: 0 | U219: 0
E220: ERDC disallowance | F220: Table 13 | I220: GBP m | J220: [Entitlement Model 28.11.16.xlsx]RP5 Distribution Inputs'!$A$292 | K220: =SUM(M220:U220) -> -19.734 | M220: 0 | N220: -3.588 | O220: -3.588 | P220: -3.588 | Q220: -3.588 | R220: -3.588 | S220: -1.794 | T220: 0 | U220: 0
E221: Pension deficit amount - P_2010t | F221: Table 13 | G221: P_2010t | I221: GBP m | K221: =SUM(M221:U221) -> 49.588 | M221: =SUM(M219:M220) -> 0 | N221: =SUM(N219:N220) -> 9.016 | O221: 9.016 | P221: 9.016 | Q221: 9.016 | R221: 9.016 | S221: 4.508 | T221: =SUM(T219:T220) -> 0 | U221: 0
E223: Pension deficit amount - P_2010t | F223: Table 13 | G223: P_2010t | I223: GBP m | J223: [Entitlement Model 28.11.16.xlsx]RP5 Distribution Inputs'!$A$294 | K223: =SUM(M223:U223) -> 59.1161255 | M223: 0 | N223: ='DL - C7'!N21 -> 10.25152593 | O223: ='DL - C7'!O21 -> 10.51449259 | P223: ='DL - C7'!P21 -> 10.75658889 | Q223: ='DL - C7'!Q21 -> 10.83172222 | R223: ='DL - C7'!R21 -> 11.05294815 | S223: ='DL - C7'!S21 -> 5.708847719 | T223: 0 | U223: 0
C226: 8.1: Cost of the investigation amount - COIt
E228: Cost of investigation - base year 2010 | F228: 8.1: | G228: COI_2010t | I228: GBP m | J228: As per client email dated 3 January 2017 | K228: =SUM(M228:U228) -> 1.023115538 | M228: 0 | N228: 0 | O228: 1.023115538 | P228: 0 | Q228: 0 | R228: 0 | S228: 0 | T228: 0 | U228: 0
C231: 9.1: The tax rate - TRt
E233: Tax rate | F233: 9.1: | G233: TRt | I233: % | J233: [Entitlement Model 28.11.16.xlsx]RP5 Distribution Inputs'!$A$307 | M233: 0 | N233: 0.24 | O233: 0.23 | P233: 0.21 | Q233: 0.2 | R233: 0.2 | S233: 0.19 | T233: 0 | U233: 0
E235: Notional gearing | F235: 9.1: | G235: G | H235: 0.45 | I235: % | J235: [Entitlement Model 28.11.16.xlsx]RP5 Distribution Inputs'!$A$309
E236: Notional nominal cost of debt | F236: 9.1: | G236: NCOD | H236: 0.0645 | I236: % | J236: [Entitlement Model 28.11.16.xlsx]RP5 Distribution Inputs'!$A$310
C239: Table 14: Opening tax capital allowance values
E241: General pool - RP5 BEG balance - DL | F241: Table 11 | H241: 54.42496672 | I241: GBP m | J241: [Entitlement Model 28.11.16.xlsx]RP5 Distribution Inputs'!A313
E242: Long life asset pool - RP5 BEG balance - DL | F242: Table 11 | H242: 287.4207862 | I242: GBP m | J242: [Entitlement Model 28.11.16.xlsx]RP5 Distribution Inputs'!A314
E243: Deferred revenue - RP5 BEG balance - DL | F243: Table 11 | H243: 111.6101448 | I243: GBP m | J243: [Entitlement Model 28.11.16.xlsx]RP5 Distribution Inputs'!A315
C246: 11.1 K factor
E248: Closing K factor - year 2013 | F248: 11.1a: | G248: KRP4 | H248: -10.611 | I248: GBP m | J248: [Entitlement Model 28.11.16.xlsx]RP5 Distribution Inputs'!$A$328
E250: Licensee under capex efficiency incentive | F250: 11.1b: | G250: RP4CIt | I250: GBP m | J250: [Entitlement Model 28.11.16.xlsx]RP5 Distribution Inputs'!$A$329 | K250: =SUM(M250:U250) -> 1.326 | M250: 0 | N250: 0 | O250: 0 | P250: 1.326 | Q250: 0 | R250: 0 | S250: 0 | T250: 0 | U250: 0
E251: Actual regulated Distribution revenue recovered adjustment | F251: 11.1b: | I251: GBP m | K251: =SUM(M251:U251) -> 24 | M251: 0 | N251: 12 | O251: 12 | P251: 0 | Q251: 0 | R251: 0 | S251: 0 | T251: 0 | U251: 0
A254: TRANSMISSION LICENCE
C256: 3.3 RP5Tt
E258: Max regulated transmission revenue factor | F258: 3.3: | H258: 0.5 | I258: factor | J258: [Entitlement Model 28.11.16.xlsx]RP5 Transmission Inputs'!$A$205
C261: 4.1 Regulatory Asset Bases
C264: Table 1: Regulatory Asset Bases
E266: RAB Name | H266: RAB_X
E267: Transmission RAB | F267: Table 1 | H267: RAB_TN | I267: text
E268: Renewables RAB | F268: Table 1 | H268: RAB_RN | I268: text
E269: Old NS interconnector RAB | F269: Table 1 | H269: RAB_NSI | I269: text
E270: 5 year T.RAB | F270: Table 1 | H270: RAB_T5Y | I270: text
C273: Table 2: Opening value of existing assets
E275: RAB_X
E276: RAB_TN - base year 2010 | F276: Table 2 | G276: OE_2010_TN2013 | H276: 191.195 | I276: GBP m | J276: [Entitlement Model 28.11.16.xlsx]RP5 Transmission Inputs'!$A$30
E277: RAB_RN - base year 2010 | F277: Table 2 | G277: OE_2010_RN2013 | H277: 11.912 | I277: GBP m | J277: [Entitlement Model 28.11.16.xlsx]RP5 Transmission Inputs'!$A$62
E278: RAB_NSI - base year 2010 | F278: Table 2 | G278: OE_2010_NSI2013 | H278: 1.06 | I278: GBP m | J278: [Entitlement Model 28.11.16.xlsx]RP5 Transmission Inputs'!$A$94
E279: RAB_T5Y - base year 2010 | F279: Table 2 | G279: OE_2010_T5Y2013 | H279: 0 | I279: GBP m | J279: [Entitlement Model 28.11.16.xlsx]RP5 Transmission Inputs'!$A$126
C282: Table 3: Fixed depreciation amount - FDEP_2010_X2013
E284: Fixed dep. - base yr 2010 Calc. - RAB_TN | F284: Table 3 | G284: FDEP_2010_TNt | I284: GBP m | K284: =SUM(M284:U284) -> 47.76508981 | M284: ='TL - C4 A'!M$846 -> 0 | N284: ='TL - C4 A'!N$846 -> 9.363979761 | O284: ='TL - C4 A'!O$846 -> 9.065996727 | P284: ='TL - C4 A'!P$846 -> 8.742354496 | Q284: ='TL - C4 A'!Q$846 -> 8.463773719 | R284: ='TL - C4 A'!R$846 -> 8.15182317 | S284: ='TL - C4 A'!S$846 -> 3.977161939 | T284: ='TL - C4 A'!T$846 -> 0 | U284: ='TL - C4 A'!U$846 -> 0
E285: Fixed dep. - base yr 2010 Calc. - RAB_RN | F285: Table 3 | G285: FDEP_2010_RNt | I285: GBP m | K285: =SUM(M285:U285) -> 2.050696206 | M285: ='TL - C4 A'!M$1030 -> 0 | N285: ='TL - C4 A'!N$1030 -> 0.3728538556 | O285: ='TL - C4 A'!O$1030 -> 0.3728538556 | P285: ='TL - C4 A'!P$1030 -> 0.3728538556 | Q285: ='TL - C4 A'!Q$1030 -> 0.3728538556 | R285: ='TL - C4 A'!R$1030 -> 0.3728538556 | S285: ='TL - C4 A'!S$1030 -> 0.1864269278 | T285: ='TL - C4 A'!T$1030 -> 0 | U285: ='TL - C4 A'!U$1030 -> 0
E286: Fixed dep. - base yr 2010 Calc. - RAB_NSI | F286: Table 3 | G286: FDEP_2010_NSIt | I286: GBP m | K286: =SUM(M286:U286) -> 0.302746988 | M286: ='TL - C4 A'!M$1214 -> 0 | N286: ='TL - C4 A'!N$1214 -> 0.06487435456 | O286: ='TL - C4 A'!O$1214 -> 0.06487435456 | P286: ='TL - C4 A'!P$1214 -> 0.06487435456 | Q286: ='TL - C4 A'!Q$1214 -> 0.04324956971 | R286: ='TL - C4 A'!R$1214 -> 0.04324956971 | S286: ='TL - C4 A'!S$1214 -> 0.02162478485 | T286: ='TL - C4 A'!T$1214 -> 0 | U286: ='TL - C4 A'!U$1214 -> 0
E287: Fixed dep. - base yr 2010 Calc. - RAB_T5Y | F287: Table 3 | G287: FDEP_2010_T5Yt | I287: GBP m | K287: =SUM(M287:U287) -> 0 | M287: ='TL - C4 A'!M$1398 -> 0 | N287: ='TL - C4 A'!N$1398 -> 0 | O287: ='TL - C4 A'!O$1398 -> 0 | P287: ='TL - C4 A'!P$1398 -> 0 | Q287: ='TL - C4 A'!Q$1398 -> 0 | R287: ='TL - C4 A'!R$1398 -> 0 | S287: ='TL - C4 A'!S$1398 -> 0 | T287: ='TL - C4 A'!T$1398 -> 0 | U287: ='TL - C4 A'!U$1398 -> 0
E289: Fixed dep. - base yr 2010 adj. - RAB_TN | F289: Table 3 | G289: FDEP_2010_TNt | I289: GBP m | J289: [Entitlement Model 28.11.16.xlsx]RP5 Transmission Inputs'!$A$31 | K289: =SUM(M289:U289) -> 47.765 | M289: 0 | N289: 9.364 | O289: 9.066 | P289: 8.742 | Q289: 8.464 | R289: 8.152 | S289: 3.977 | T289: 0 | U289: 0
E290: Fixed dep. - base yr 2010 adj. - RAB_RN | F290: Table 3 | G290: FDEP_2010_RNt | I290: GBP m | J290: [Entitlement Model 28.11.16.xlsx]RP5 Transmission Inputs'!$A$63 | K290: =SUM(M290:U290) -> 2.051 | M290: 0 | N290: 0.373 | O290: 0.373 | P290: 0.373 | Q290: 0.373 | R290: 0.373 | S290: 0.186 | T290: 0 | U290: 0
E291: Fixed dep. - base yr 2010 adj. - RAB_NSI | F291: Table 3 | G291: FDEP_2010_NSIt | I291: GBP m | J291: [Entitlement Model 28.11.16.xlsx]RP5 Transmission Inputs'!$A$95 | K291: =SUM(M291:U291) -> 0.30273 | M291: 0 | N291: 0.06487 | O291: 0.06487 | P291: 0.06487 | Q291: 0.04325 | R291: 0.04325 | S291: 0.02162 | T291: 0 | U291: 0
E292: Fixed dep. - base yr 2010 adj. - RAB_T5Y | F292: Table 3 | G292: FDEP_2010_T5Yt | I292: GBP m | J292: [Entitlement Model 28.11.16.xlsx]RP5 Transmission Inputs'!$A$127 | K292: =SUM(M292:U292) -> 0 | M292: 0 | N292: 0 | O292: 0 | P292: 0 | Q292: 0 | R292: 0 | S292: 0 | T292: 0 | U292: 0
E294: Fixed depreciation - base year 2010 - RAB_TN | F294: Table 3 | G294: FDEP_2010_TNt | I294: GBP m | K294: =SUM(M294:U294) -> 47.765 | M294: =IF( ISBLANK(M289), M284, M289) -> 0 | N294: 9.364 | O294: 9.066 | P294: 8.742 | Q294: 8.464 | R294: 8.152 | S294: =IF( ISBLANK(S289), S284, S289) -> 3.977 | T294: 0 | U294: 0
E295: Fixed depreciation - base year 2010 - RAB_RN | F295: Table 3 | G295: FDEP_2010_RNt | I295: GBP m | K295: =SUM(M295:U295) -> 2.051 | M295: =IF( ISBLANK(M290), M285, M290) -> 0 | N295: 0.373 | O295: 0.373 | P295: 0.373 | Q295: 0.373 | R295: 0.373 | S295: =IF( ISBLANK(S290), S285, S290) -> 0.186 | T295: 0 | U295: 0
E296: Fixed depreciation - base year 2010 - RAB_NSI | F296: Table 3 | G296: FDEP_2010_NSIt | I296: GBP m | K296: =SUM(M296:U296) -> 0.30273 | M296: =IF( ISBLANK(M291), M286, M291) -> 0 | N296: 0.06487 | O296: 0.06487 | P296: 0.06487 | Q296: 0.04325 | R296: 0.04325 | S296: =IF( ISBLANK(S291), S286, S291) -> 0.02162 | T296: 0 | U296: 0
E297: Fixed depreciation - base year 2010 - RAB_T5Y | F297: Table 3 | G297: FDEP_2010_T5Yt | I297: GBP m | K297: =SUM(M297:U297) -> 0 | M297: =IF( ISBLANK(M292), M287, M292) -> 0 | N297: 0 | O297: 0 | P297: 0 | Q297: 0 | R297: 0 | S297: 0 | T297: =IF( ISBLANK(T292), T287, T292) -> 0 | U297: 0
C300: 4.13: Opening values of additional assets - OADD_X2013
E302: RAB_X
E303: Opening additional assets - RAB_TN | F303: 4.13a: | G303: OADD_TN2013 | H303: 0 | I303: GBP m
E304: Opening additional assets - RAB_RN | F304: 4.13a: | G304: OADD_RN2013 | H304: 0 | I304: GBP m
E305: Opening additional assets - RAB_NSI | F305: 4.13a: | G305: OADD_NSI2013 | H305: 0 | I305: GBP m
... 78 more rows

Sheet Actuals Inp
A1: =RIGHT(CELL("filename", $A$1), LEN(CELL("filename", $A$1)) - SEARCH("]", CELL("filename", $A$1))) -> Actuals Inp
E2: =Time!E$23 -> Model period ending | H2: =Check!$H$9 -> 0 | I2: Error chks | M2: =Time!M$23 -> 2012-03-31 | N2: =Time!N$23 -> 2013-03-31 | O2: =Time!O$23 -> 2014-03-31 | P2: =Time!P$23 -> 2015-03-31 | Q2: =Time!Q$23 -> 2016-03-31 | R2: =Time!R$23 -> 2017-03-31 | S2: =Time!S$23 -> 2018-03-31 | T2: =Time!T$23 -> 2019-03-31 | U2: =Time!U$23 -> 2020-03-31
E3: =Time!E$153 -> Timeline label | H3: =Track!$M$2 -> 0 | I3: Track chgs | M3: =Time!M$153 -> RP4 | N3: =Time!N$153 -> RP5 | O3: =Time!O$153 -> RP5 | P3: =Time!P$153 -> RP5 | Q3: =Time!Q$153 -> RP5 | R3: =Time!R$153 -> RP5 | S3: =Time!S$153 -> RP5 / RP6 | T3: =Time!T$153 -> RP6 | U3: =Time!U$153 -> RP6
E4: =Time!E$36 -> Financial year ending | H4: =Check!$H$38 -> 0 | I4: Alerts | M4: =Time!M$36 -> 2012 | N4: =Time!N$36 -> 2013 | O4: =Time!O$36 -> 2014 | P4: =Time!P$36 -> 2015 | Q4: =Time!Q$36 -> 2016 | R4: =Time!R$36 -> 2017 | S4: =Time!S$36 -> 2018 | T4: =Time!T$36 -> 2019 | U4: =Time!U$36 -> 2020
E5: =Time!E$10 -> Model column counter | F5: Para references | G5: Defined Term | H5: Constant | I5: Unit | J5: Source | K5: Total | M5: =Time!M$10 -> 1 | N5: =Time!N$10 -> 2 | O5: =Time!O$10 -> 3 | P5: =Time!P$10 -> 4 | Q5: =Time!Q$10 -> 5 | R5: =Time!R$10 -> 6 | S5: =Time!S$10 -> 7 | T5: =Time!T$10 -> 8 | U5: =Time!U$10 -> 9
A7: ESCALATION
E9: RPI switch | H9: 1 | I9: 0 = off, 1 = on
E10: RPI as on 2009/10 - (Base year 1993/94) | G10: RPI2010 | H10: 216 | I10: index
E11: RPI as on 2012/13 - (Base year 1993/94) | G11: RPI2010 | H11: 245.6 | I11: index
E14: Historic timeline | I14: date | M14: 2007 | N14: 2008 | O14: 2009 | P14: 2010 | Q14: 2011 | R14: 0 | S14: 0 | T14: 0 | U14: 0
E15: Historic RPI - as on March each year (Base year 1993/94) | I15: index | J15: [Entitlement Model 28.11.16.xlsx]Inflation'!$P$12 | M15: 200.4 | N15: 208.9 | O15: 217.7 | P15: 216 | Q15: 225.8 | R15: 0 | S15: 0 | T15: 0 | U15: 0
E18: =Time!E$36 -> Financial year ending | F18: =Time!F$36 -> 0 | G18: =Time!G$36 -> 0 | H18: =Time!H$36 -> 0 | I18: =Time!I$36 -> year # | J18: =Time!J$36 -> 0 | K18: =Time!K$36 -> 0 | L18: =Time!L$36 -> 0 | M18: =Time!M$36 -> 2012 | N18: =Time!N$36 -> 2013 | O18: =Time!O$36 -> 2014 | P18: =Time!P$36 -> 2015 | Q18: =Time!Q$36 -> 2016 | R18: =Time!R$36 -> 2017 | S18: =Time!S$36 -> 2018 | T18: =Time!T$36 -> 2019 | U18: =Time!U$36 -> 2020
E19: Base RPI - as on March each year (Base year 1993/94) | I19: index | J19: [Entitlement Model 28.11.16.xlsx]Inflation'!$U$12 | M19: 238 | N19: 245.6 | O19: 251.9 | P19: 257.7 | Q19: 259.5 | R19: 264.8 | S19: 273.5384 | T19: 0 | U19: 0
E20: Indexation rate - Installation | I20: % | M20: 0 | N20: 0 | O20: 0 | P20: 0 | Q20: 0 | R20: 0 | S20: 0.033 | T20: 0 | U20: 0
A23: DISTRIBUTION LICENCE
C25: 3.4 Maximum regulated distribution revenue for the regulatory reporting year - RP5Rt
E27: Allowed opex amount - uncollected revenue - DL | F27: 3.4: | G27: BDt | I27: GBP m | K27: =SUM(M27:U27) -> 0 | M27: 0 | N27: 0 | O27: 0 | P27: 0 | Q27: 0 | R27: 0 | S27: 0 | T27: 0 | U27: 0
C30: 4.17 Qualifying capex amount
E32: Qualifying capex amount - DN | F32: 4.17: | G32: QCE_DNt | I32: GBP m | J32: [Entitlement Model 28.11.16.xlsx]RP5 Distribution Inputs'!$A$41 | K32: =SUM(M32:U32) -> 338.3561192 | M32: 0 | N32: 47.94187306 | O32: 46.8620909 | P32: 50.4357024 | Q32: 66.5368674 | R32: 79.18501168 | S32: 47.39457374 | T32: 0 | U32: 0
E33: Qualifying capex amount - ES | F33: 4.17: | G33: QCE_ESt | I33: GBP m | J33: [Entitlement Model 28.11.16.xlsx]RP5 Distribution Inputs'!$A$71 | K33: 0 | M33: 0 | N33: 0 | O33: 0 | P33: 0 | Q33: 0 | R33: 0 | S33: 0 | T33: 0 | U33: 0
E34: Qualifying capex amount - MTRN | F34: 4.17: | G34: QCE_MTRNt | I34: GBP m | J34: [Entitlement Model 28.11.16.xlsx]RP5 Distribution Inputs'!$A$101 | K34: 41.74216727 | M34: 0 | N34: 5.559432112 | O34: 5.215133273 | P34: 5.108590731 | Q34: 6.466708506 | R34: 11.58853175 | S34: 7.803770896 | T34: 0 | U34: 0
E35: Qualifying capex amount - RT | F35: 4.17: | G35: QCE_RTt | I35: GBP m | J35: [Entitlement Model 28.11.16.xlsx]RP5 Distribution Inputs'!$A$153 | K35: 0 | M35: 0 | N35: 0 | O35: 0 | P35: 0 | Q35: 0 | R35: 0 | S35: 0 | T35: 0 | U35: 0
E36: Qualifying capex amount - FE | F36: 4.17: | G36: QCE_FEt | I36: GBP m | J36: [Entitlement Model 28.11.16.xlsx]RP5 Distribution Inputs'!$A$183 | K36: 0 | M36: 0 | N36: 0 | O36: 0 | P36: 0 | Q36: 0 | R36: 0 | S36: 0 | T36: 0 | U36: 0
E37: Qualifying capex amount - NI | F37: 4.17: | G37: QCE_NIt | I37: GBP m | J37: [Entitlement Model 28.11.16.xlsx]RP5 Distribution Inputs'!A$213 | K37: 0 | M37: 0 | N37: 0 | O37: 0 | P37: 0 | Q37: 0 | R37: 0 | S37: 0 | T37: 0 | U37: 0
E38: Qualifying capex amount - D5Y | F38: 4.17: | G38: QCE_D5Yt | I38: GBP m | J38: [Entitlement Model 28.11.16.xlsx]RP5 Distribution Inputs'!A$243 | K38: 43.99093449 | M38: 0 | N38: 6.249647767 | O38: 7.176070126 | P38: 5.573407172 | Q38: 7.848252701 | R38: 9.565956723 | S38: 7.5776 | T38: 0 | U38: 0
E39: Qualifying capex amount - MO5Y | F39: 4.17: | G39: QCE_MO5Yt | I39: GBP m | K39: 0 | M39: 0 | N39: 0 | O39: 0 | P39: 0 | Q39: 0 | R39: 0 | S39: 0 | T39: 0 | U39: 0
C42: 4.19 Non-operational capex
E44: Demonstrably inefficient qualifying capex - DN | F44: 4.19: | G44: DIQCE_DNt | I44: GBP m | J44: [Entitlement Model 28.11.16.xlsx]RP5 Distribution Inputs'!$A$42 | K44: =SUM(M44:U44) -> 0 | M44: 0 | N44: 0 | O44: 0 | P44: 0 | Q44: 0 | R44: 0 | S44: 0 | T44: 0 | U44: 0
E45: Demonstrably inefficient qualifying capex - ES | F45: 4.19: | G45: DIQCE_ESt | I45: GBP m | J45: [Entitlement Model 28.11.16.xlsx]RP5 Distribution Inputs'!$A$72 | K45: 0 | M45: 0 | N45: 0 | O45: 0 | P45: 0 | Q45: 0 | R45: 0 | S45: 0 | T45: 0 | U45: 0
E46: Demonstrably inefficient qualifying capex - MTRN | F46: 4.19: | G46: DIQCE_MTRNt | I46: GBP m | J46: [Entitlement Model 28.11.16.xlsx]RP5 Distribution Inputs'!$A$102 | K46: 0 | M46: 0 | N46: 0 | O46: 0 | P46: 0 | Q46: 0 | R46: 0 | S46: 0 | T46: 0 | U46: 0
E47: Demonstrably inefficient qualifying capex - RT | F47: 4.19: | G47: DIQCE_RTt | I47: GBP m | J47: [Entitlement Model 28.11.16.xlsx]RP5 Distribution Inputs'!$A$154 | K47: 0 | M47: 0 | N47: 0 | O47: 0 | P47: 0 | Q47: 0 | R47: 0 | S47: 0 | T47: 0 | U47: 0
E48: Demonstrably inefficient qualifying capex - FE | F48: 4.19: | G48: DIQCE_FEt | I48: GBP m | J48: [Entitlement Model 28.11.16.xlsx]RP5 Distribution Inputs'!$A$184 | K48: 0 | M48: 0 | N48: 0 | O48: 0 | P48: 0 | Q48: 0 | R48: 0 | S48: 0 | T48: 0 | U48: 0
E49: Demonstrably inefficient qualifying capex - NI | F49: 4.19: | G49: DIQCE_NIt | I49: GBP m | J49: [Entitlement Model 28.11.16.xlsx]RP5 Distribution Inputs'!A$214 | K49: 0 | M49: 0 | N49: 0 | O49: 0 | P49: 0 | Q49: 0 | R49: 0 | S49: 0 | T49: 0 | U49: 0
E50: Demonstrably inefficient qualifying capex - D5Y | F50: 4.19: | G50: DIQCE_D5Yt | I50: GBP m | J50: [Entitlement Model 28.11.16.xlsx]RP5 Distribution Inputs'!A$244 | K50: 0 | M50: 0 | N50: 0 | O50: 0 | P50: 0 | Q50: 0 | R50: 0 | S50: 0 | T50: 0 | U50: 0
E51: Demonstrably inefficient qualifying capex - MO5Y | F51: 4.19: | G51: DIQCE_MO5Yt | I51: GBP m | K51: 0 | M51: 0 | N51: 0 | O51: 0 | P51: 0 | Q51: 0 | R51: 0 | S51: 0 | T51: 0 | U51: 0
C54: 4.21 Capex connection amount
E56: Capex connection amount - DN | F56: 4.21: | G56: CC_DNt | I56: GBP m | J56: [Entitlement Model 28.11.16.xlsx]RP5 Distribution Inputs'!$A$51 | K56: =SUM(M56:U56) -> -16.07148255 | M56: 0 | N56: 0.2485356738 | O56: 0.3705804787 | P56: -2.637729812 | Q56: -3.22572021 | R56: -9.580903926 | S56: -1.24624475 | T56: 0 | U56: 0
E57: Capex connection amount - ES | F57: 4.21: | G57: CC_ESt | I57: GBP m | J57: [Entitlement Model 28.11.16.xlsx]RP5 Distribution Inputs'!$A$81 | K57: 0 | M57: 0 | N57: 0 | O57: 0 | P57: 0 | Q57: 0 | R57: 0 | S57: 0 | T57: 0 | U57: 0
E58: Capex connection amount - MTRN | F58: 4.21: | G58: CC_NISt | I58: GBP m | J58: [Entitlement Model 28.11.16.xlsx]RP5 Distribution Inputs'!$A$133 | K58: 0 | M58: 0 | N58: 0 | O58: 0 | P58: 0 | Q58: 0 | R58: 0 | S58: 0 | T58: 0 | U58: 0
E59: Capex connection amount - RT | F59: 4.21: | G59: CC_RTt | I59: GBP m | J59: [Entitlement Model 28.11.16.xlsx]RP5 Distribution Inputs'!$A$163 | K59: 0 | M59: 0 | N59: 0 | O59: 0 | P59: 0 | Q59: 0 | R59: 0 | S59: 0 | T59: 0 | U59: 0
E60: Capex connection amount - FE | F60: 4.21: | G60: CC_FEt | I60: GBP m | J60: [Entitlement Model 28.11.16.xlsx]RP5 Distribution Inputs'!$A$193 | K60: 0 | M60: 0 | N60: 0 | O60: 0 | P60: 0 | Q60: 0 | R60: 0 | S60: 0 | T60: 0 | U60: 0
E61: Capex connection amount - NI | F61: 4.21: | G61: CC_NIt | I61: GBP m | J61: [Entitlement Model 28.11.16.xlsx]RP5 Distribution Inputs'!A$223 | K61: 0 | M61: 0 | N61: 0 | O61: 0 | P61: 0 | Q61: 0 | R61: 0 | S61: 0 | T61: 0 | U61: 0
E62: Capex connection amount - D5Y | F62: 4.21: | G62: CC_D5Yt | I62: GBP m | J62: [Entitlement Model 28.11.16.xlsx]RP5 Distribution Inputs'!A$253 | K62: 0 | M62: 0 | N62: 0 | O62: 0 | P62: 0 | Q62: 0 | R62: 0 | S62: 0 | T62: 0 | U62: 0
E63: Capex connection amount - MO5Y | F63: 4.21: | G63: CC_MO5Yt | I63: GBP m | K63: 0 | M63: 0 | N63: 0 | O63: 0 | P63: 0 | Q63: 0 | R63: 0 | S63: 0 | T63: 0 | U63: 0
C66: 4.23 Distribution split for legacy Dt capex
E68: Distribution split for legacy Dt capex - DN | F68: 4.23: | G68: CLD_DNt | I68: GBP m | J68: [Entitlement Model 28.11.16.xlsx]RP5 Distribution Inputs'!$A$50 | K68: =SUM(M68:U68) -> 1.92885831 | M68: 0 | N68: 0 | O68: 0.02673786 | P68: 0.4840851 | Q68: 1.41803535 | R68: 0 | S68: 0 | T68: 0 | U68: 0
E69: Distribution split for legacy Dt capex - ES | F69: 4.23: | G69: CLD_ESt | I69: GBP m | J69: [Entitlement Model 28.11.16.xlsx]RP5 Distribution Inputs'!$A$80 | K69: 6.723455051 | M69: 0 | N69: 6.723455051 | O69: 0 | P69: 0 | Q69: 0 | R69: 0 | S69: 0 | T69: 0 | U69: 0
E70: Distribution split for legacy Dt capex - MTRN | F70: 4.23: | G70: CLD_MTRNt | I70: GBP m | J70: [Entitlement Model 28.11.16.xlsx]RP5 Distribution Inputs'!$A$132 | K70: 0 | M70: 0 | N70: 0 | O70: 0 | P70: 0 | Q70: 0 | R70: 0 | S70: 0 | T70: 0 | U70: 0
E71: Distribution split for legacy Dt capex - RT | F71: 4.23: | G71: CLD_RTt | I71: GBP m | J71: [Entitlement Model 28.11.16.xlsx]RP5 Distribution Inputs'!$A$162 | K71: 0 | M71: 0 | N71: 0 | O71: 0 | P71: 0 | Q71: 0 | R71: 0 | S71: 0 | T71: 0 | U71: 0
E72: Distribution split for legacy Dt capex - FE | F72: 4.23: | G72: CLD_FEt | I72: GBP m | J72: [Entitlement Model 28.11.16.xlsx]RP5 Distribution Inputs'!$A$192 | K72: 0 | M72: 0 | N72: 0 | O72: 0 | P72: 0 | Q72: 0 | R72: 0 | S72: 0 | T72: 0 | U72: 0
E73: Distribution split for legacy Dt capex - NI | F73: 4.23: | G73: CLD_NIt | I73: GBP m | J73: [Entitlement Model 28.11.16.xlsx]RP5 Distribution Inputs'!A$222 | K73: 0 | M73: 0 | N73: 0 | O73: 0 | P73: 0 | Q73: 0 | R73: 0 | S73: 0 | T73: 0 | U73: 0
E74: Distribution split for legacy Dt capex - D5Y | F74: 4.23: | G74: CLD_D5Yt | I74: GBP m | J74: [Entitlement Model 28.11.16.xlsx]RP5 Distribution Inputs'!A$252 | K74: 0 | M74: 0 | N74: 0 | O74: 0 | P74: 0 | Q74: 0 | R74: 0 | S74: 0 | T74: 0 | U74: 0
E75: Distribution split for legacy Dt capex - MO5Y | F75: 4.23: | G75: CLD_MO5Yt | I75: GBP m | K75: 0 | M75: 0 | N75: 0 | O75: 0 | P75: 0 | Q75: 0 | R75: 0 | S75: 0 | T75: 0 | U75: 0
E76: Distribution split for legacy Dt capex | I76: GBP m | K76: 8.652313361 | M76: =SUM(M68:M75) -> 0 | N76: 6.723455051 | O76: 0.02673786 | P76: 0.4840851 | Q76: 1.41803535 | R76: 0 | S76: 0 | T76: 0 | U76: 0
E78: ='Licence Inp'!E$90 -> Legacy Dt maximum RP5 spend amount | F78: ='Licence Inp'!F$90 -> Table 4 | G78: ='Licence Inp'!G$90 -> 0 | H78: ='Licence Inp'!H$90 -> 7.8 | I78: ='Licence Inp'!I$90 -> GBP m
E79: =E$76 -> Distribution split for legacy Dt capex | F79: 0 | G79: 0 | H79: 0 | I79: GBP m | J79: 0 | K79: 8.652313361 | L79: 0 | M79: 0 | N79: 6.723455051 | O79: 0.02673786 | P79: 0.4840851 | Q79: 1.41803535 | R79: 0 | S79: 0 | T79: 0 | U79: 0
E80: =Time!E$91 -> RP5 period flag | F80: =Time!F$91 -> 0 | G80: =Time!G$91 -> 0 | H80: =Time!H$91 -> 0 | I80: =Time!I$91 -> flag | J80: =Time!J$91 -> 0 | K80: =Time!K$91 -> 6 | L80: =Time!L$91 -> 0 | M80: =Time!M$91 -> 0 | N80: =Time!N$91 -> 1 | O80: =Time!O$91 -> 1 | P80: =Time!P$91 -> 1 | Q80: =Time!Q$91 -> 1 | R80: =Time!R$91 -> 1 | S80: =Time!S$91 -> 1 | T80: =Time!T$91 -> 0 | U80: =Time!U$91 -> 0
E81: Distribution split for legacy Dt capex - alert | H81: =IF( SUM(M81:U81) > 0, 1, 0) -> 1 | I81: alert | M81: =IF(($H78 - SUMIF($L80:M80, 1, $L79:M79)) >= 0, 0, 1) -> 0 | N81: =IF(($H78 - SUMIF($L80:N80, 1, $L79:N79)) >= 0, 0, 1) -> 0 | O81: =IF(($H78 - SUMIF($L80:O80, 1, $L79:O79)) >= 0, 0, 1) -> 0 | P81: =IF(($H78 - SUMIF($L80:P80, 1, $L79:P79)) >= 0, 0, 1) -> 0 | Q81: =IF(($H78 - SUMIF($L80:Q80, 1, $L79:Q79)) >= 0, 0, 1) -> 1 | R81: =IF(($H78 - SUMIF($L80:R80, 1, $L79:R79)) >= 0, 0, 1) -> 1 | S81: =IF(($H78 - SUMIF($L80:S80, 1, $L79:S79)) >= 0, 0, 1) -> 1 | T81: =IF(($H78 - SUMIF($L80:T80, 1, $L79:T79)) >= 0, 0, 1) -> 1 | U81: =IF(($H78 - SUMIF($L80:U80, 1, $L79:U79)) >= 0, 0, 1) -> 1
C84: 4.25 Demonstrably inefficient pass through capex exp.
E86: Demonstrably inefficient pass through capex exp. - DN | F86: 4.25: | G86: DIPTCE_DNt | I86: GBP m | J86: [Entitlement Model 28.11.16.xlsx]RP5 Distribution Inputs'!$A$52 | K86: =SUM(M86:U86) -> 0 | M86: 0 | N86: 0 | O86: 0 | P86: 0 | Q86: 0 | R86: 0 | S86: 0 | T86: 0 | U86: 0
E87: Demonstrably inefficient pass through capex exp. - ES | F87: 4.25: | G87: DIPTCE_ESt | I87: GBP m | J87: [Entitlement Model 28.11.16.xlsx]RP5 Distribution Inputs'!$A$82 | K87: 0 | M87: 0 | N87: 0 | O87: 0 | P87: 0 | Q87: 0 | R87: 0 | S87: 0 | T87: 0 | U87: 0
E88: Demonstrably inefficient pass through capex exp. - MTRN | F88: 4.25: | G88: DIPTCE_MTRNt | I88: GBP m | J88: [Entitlement Model 28.11.16.xlsx]RP5 Distribution Inputs'!$A$134 | K88: 0 | M88: 0 | N88: 0 | O88: 0 | P88: 0 | Q88: 0 | R88: 0 | S88: 0 | T88: 0 | U88: 0
E89: Demonstrably inefficient pass through capex exp. - RT | F89: 4.25: | G89: DIPTCE_RTt | I89: GBP m | J89: [Entitlement Model 28.11.16.xlsx]RP5 Distribution Inputs'!$A$164 | K89: 0 | M89: 0 | N89: 0 | O89: 0 | P89: 0 | Q89: 0 | R89: 0 | S89: 0 | T89: 0 | U89: 0
E90: Demonstrably inefficient pass through capex exp. - FE | F90: 4.25: | G90: DIPTCE_FEt | I90: GBP m | J90: [Entitlement Model 28.11.16.xlsx]RP5 Distribution Inputs'!$A$194 | K90: 0 | M90: 0 | N90: 0 | O90: 0 | P90: 0 | Q90: 0 | R90: 0 | S90: 0 | T90: 0 | U90: 0
E91: Demonstrably inefficient pass through capex exp. - NI | F91: 4.25: | G91: DIPTCE_NIt | I91: GBP m | J91: [Entitlement Model 28.11.16.xlsx]RP5 Distribution Inputs'!A$224 | K91: 0 | M91: 0 | N91: 0 | O91: 0 | P91: 0 | Q91: 0 | R91: 0 | S91: 0 | T91: 0 | U91: 0
E92: Demonstrably inefficient pass through capex exp. - D5Y | F92: 4.25: | G92: DIPTCE_D5Yt | I92: GBP m | J92: [Entitlement Model 28.11.16.xlsx]RP5 Distribution Inputs'!A$254 | K92: 0 | M92: 0 | N92: 0 | O92: 0 | P92: 0 | Q92: 0 | R92: 0 | S92: 0 | T92: 0 | U92: 0
E93: Demonstrably inefficient pass through capex exp. - MO5Y | F93: 4.25: | G93: DIPTCE_MO5Yt | I93: GBP m | K93: 0 | M93: 0 | N93: 0 | O93: 0 | P93: 0 | Q93: 0 | R93: 0 | S93: 0 | T93: 0 | U93: 0
C96: 4.30 Asset disposals
E98: Asset disposal lookback periods | H98: 5 | I98: years
E100: Historic timeline | I100: date | M100: 2008 | N100: 2009 | O100: 2010 | P100: 2011 | Q100: 0 | R100: 0 | S100: 0 | T100: 0 | U100: 0
E101: Historic - asset disposals - DN | F101: 4.30: | G101: OCD_DNt | I101: GBP m | K101: =SUM(M101:U101) -> 0.065105 | M101: 0.00708 | N101: 0.015 | O101: 0.0185 | P101: 0.024525 | Q101: 0 | R101: 0 | S101: 0 | T101: 0 | U101: 0
E102: Historic - asset disposals - ES | F102: 4.30: | G102: OCD_ESt | I102: GBP m | K102: 0 | M102: 0 | N102: 0 | O102: 0 | P102: 0 | Q102: 0 | R102: 0 | S102: 0 | T102: 0 | U102: 0
E103: Historic - asset disposals - MTRN | F103: 4.30: | G103: OCD_MTRNt | I103: GBP m | K103: 0 | M103: 0 | N103: 0 | O103: 0 | P103: 0 | Q103: 0 | R103: 0 | S103: 0 | T103: 0 | U103: 0
E104: Historic - asset disposals - RT | F104: 4.30: | G104: OCD_RTt | I104: GBP m | K104: 0 | M104: 0 | N104: 0 | O104: 0 | P104: 0 | Q104: 0 | R104: 0 | S104: 0 | T104: 0 | U104: 0
E105: Historic - asset disposals - FE | F105: 4.30: | G105: OCD_FEt | I105: GBP m | K105: 0 | M105: 0 | N105: 0 | O105: 0 | P105: 0 | Q105: 0 | R105: 0 | S105: 0 | T105: 0 | U105: 0
E106: Historic - asset disposals - NI | F106: 4.30: | G106: OCD_NIt | I106: GBP m | K106: 0 | M106: 0 | N106: 0 | O106: 0 | P106: 0 | Q106: 0 | R106: 0 | S106: 0 | T106: 0 | U106: 0
E107: Historic - asset disposals - D5Y | F107: 4.30: | G107: OCD_D5Yt | I107: GBP m | K107: 0 | M107: 0 | N107: 0 | O107: 0 | P107: 0 | Q107: 0 | R107: 0 | S107: 0 | T107: 0 | U107: 0
E108: Historic - asset disposals - MO5Y | F108: 4.30: | G108: OCD_MO5Yt | I108: GBP m | K108: 0 | M108: 0 | N108: 0 | O108: 0 | P108: 0 | Q108: 0 | R108: 0 | S108: 0 | T108: 0 | U108: 0
E111: Asset disposals - DN | F111: 4.30: | G111: OCD_DNt | I111: GBP m | J111: [Entitlement Model 28.11.16.xlsx]RP5 Distribution Inputs'!$A$55 | K111: =SUM(M111:U111) -> 0.0805 | M111: 0 | N111: 0.0315 | O111: 0 | P111: 0.049 | Q111: 0 | R111: 0 | S111: 0 | T111: 0 | U111: 0
E112: Asset disposals - ES | F112: 4.30: | G112: OCD_ESt | I112: GBP m | J112: [Entitlement Model 28.11.16.xlsx]RP5 Distribution Inputs'!$A$85 | K112: 0 | M112: 0 | N112: 0 | O112: 0 | P112: 0 | Q112: 0 | R112: 0 | S112: 0 | T112: 0 | U112: 0
E113: Asset disposals - MTRN | F113: 4.30: | G113: OCD_MTRNt | I113: GBP m | J113: [Entitlement Model 28.11.16.xlsx]RP5 Distribution Inputs'!$A$137 | K113: 0 | M113: 0 | N113: 0 | O113: 0 | P113: 0 | Q113: 0 | R113: 0 | S113: 0 | T113: 0 | U113: 0
E114: Asset disposals - RT | F114: 4.30: | G114: OCD_RTt | I114: GBP m | J114: [Entitlement Model 28.11.16.xlsx]RP5 Distribution Inputs'!$A$167 | K114: 0 | M114: 0 | N114: 0 | O114: 0 | P114: 0 | Q114: 0 | R114: 0 | S114: 0 | T114: 0 | U114: 0
E115: Asset disposals - FE | F115: 4.30: | G115: OCD_FEt | I115: GBP m | J115: [Entitlement Model 28.11.16.xlsx]RP5 Distribution Inputs'!$A$197 | K115: 0 | M115: 0 | N115: 0 | O115: 0 | P115: 0 | Q115: 0 | R115: 0 | S115: 0 | T115: 0 | U115: 0
E116: Asset disposals - NI | F116: 4.30: | G116: OCD_NIt | I116: GBP m | J116: [Entitlement Model 28.11.16.xlsx]RP5 Distribution Inputs'!A$227 | K116: 0 | M116: 0 | N116: 0 | O116: 0 | P116: 0 | Q116: 0 | R116: 0 | S116: 0 | T116: 0 | U116: 0
E117: Asset disposals - D5Y | F117: 4.30: | G117: OCD_D5Yt | I117: GBP m | J117: [Entitlement Model 28.11.16.xlsx]RP5 Distribution Inputs'!A$257 | K117: 0 | M117: 0 | N117: 0 | O117: 0 | P117: 0 | Q117: 0 | R117: 0 | S117: 0 | T117: 0 | U117: 0
E118: Asset disposals - MO5Y | F118: 4.30: | G118: OCD_MO5Yt | I118: GBP m | K118: 0 | M118: 0 | N118: 0 | O118: 0 | P118: 0 | Q118: 0 | R118: 0 | S118: 0 | T118: 0 | U118: 0
C121: 4.42 Metering unit category - MV_Ct
E123: Certification unit | F123: 4.42: | G123: MV_Ct | I123: meter | J123: [Entitlement Model 28.11.16.xlsx]RP5 Distribution Inputs'!A120 | K123: =SUM(M123:U123) -> 122525 | M123: 0 | N123: 0 | O123: 0 | P123: 0 | Q123: 32525 | R123: 72000 | S123: 18000 | T123: 0 | U123: 0
E124: Recertification unit | F124: 4.42: | G124: MV_Ct | I124: meter | J124: [Entitlement Model 28.11.16.xlsx]RP5 Distribution Inputs'!A121 | K124: 18000 | M124: 0 | N124: 0 | O124: 0 | P124: 0 | Q124: 0 | R124: 0 | S124: 18000 | T124: 0 | U124: 0
E125: Commercial recertification unit | F125: 4.42: | G125: MV_Ct | I125: meter | J125: [Entitlement Model 28.11.16.xlsx]RP5 Distribution Inputs'!A122 | K125: 4535 | M125: 0 | N125: 0 | O125: 0 | P125: 0 | Q125: 535 | R125: 2000 | S125: 2000 | T125: 0 | U125: 0
E126: Keypad recertification unit | F126: 4.42: | G126: MV_Ct | I126: meter | J126: [Entitlement Model 28.11.16.xlsx]RP5 Distribution Inputs'!A123 | K126: 62578 | M126: 0 | N126: 0 | O126: 0 | P126: 0 | Q126: 8578 | R126: 36000 | S126: 18000 | T126: 0 | U126: 0
E127: Keypad other unit | F127: 4.42: | G127: MV_Ct | I127: meter | J127: [Entitlement Model 28.11.16.xlsx]RP5 Distribution Inputs'!A124 | K127: 131476 | M127: 0 | N127: 24130 | O127: 27921 | P127: 25665 | Q127: 17116 | R127: 24429 | S127: 12215 | T127: 0 | U127: 0
E128: SOSA unit | F128: 4.42: | G128: MV_Ct | I128: meter | J128: [Entitlement Model 28.11.16.xlsx]RP5 Distribution Inputs'!A125 | K128: 190314 | M128: 0 | N128: 36308 | O128: 34820 | P128: 33593 | Q128: 36392 | R128: 32801 | S128: 16400 | T128: 0 | U128: 0
E129: Commercial unit | F129: 4.42: | G129: MV_Ct | I129: meter | J129: [Entitlement Model 28.11.16.xlsx]RP5 Distribution Inputs'!A126 | K129: 22370 | M129: 0 | N129: 4880 | O129: 4115 | P129: 4211 | Q129: 3001 | R129: 4109 | S129: 2054 | T129: 0 | U129: 0
E130: RPU keypads (meter replacement for theft) | F130: 4.42: | G130: MV_Ct | I130: meter | J130: [Entitlement Model 28.11.16.xlsx]RP5 Distribution Inputs'!$A$127 | K130: 12300 | M130: 0 | N130: 0 | O130: 0 | P130: 0 | Q130: 1620 | R130: 7680 | S130: 3000 | T130: 0 | U130: 0
C133: 6.3 Opex incurred by the licensee - excl. PTOEt
E135: Opex incurred by the licensee - excl. PTOEt | F135: 6.3: | G135: QOEt | I135: GBP m | J135: [RP5 08p Naoimh edited version 20.12.16 (2).xlsm]Actuals Inp'!$E$170 | K135: =SUM(M135:U135) -> 303.5417897 | M135: 0 | N135: 53.7176154 | O135: 54.19395382 | P135: 55.28841793 | Q135: 52.84243502 | R135: 58.01182853 | S135: 29.48753897 | T135: 0 | U135: 0
C138: 6.5 Demonstrably inefficient or wasteful expenditure - DIQOEt
E140: Demonstrably inefficient or wasteful expenditure | F140: 6.5: | G140: DIQOEt | I140: GBP m | K140: =SUM(M140:U140) -> 0 | M140: 0 | N140: 0 | O140: 0 | P140: 0 | Q140: 0 | R140: 0 | S140: 0 | T140: 0 | U140: 0
C143: 6.7 Pass through opex expenditure
E145: Opex licence fee | F145: 6.7a: | G145: OLFt | I145: GBP m | J145: [Entitlement Model 28.11.16.xlsx]RP5 Distribution Inputs'!$A$278 | K145: =SUM(M145:U145) -> 7.81719032 | M145: 0 | N145: 0.86001135 | O145: 2.64651366 | P145: 0.95276055 | Q145: 1.318131725 | R145: 1.345053106 | S145: 0.694719929 | T145: 0 | U145: 0
E146: Opex connection amount | F146: 6.7: | G146: OCt | I146: GBP m | J146: [Entitlement Model 28.11.16.xlsx]RP5 Distribution Inputs'!$A$280 | K146: =SUM(M146:U146) -> 34.00634027 | M146: 0 | N146: 3.376181523 | O146: 4.602885124 | P146: 6.427511394 | Q146: 7.1290277 | R146: 8.450941267 | S146: 4.019793259 | T146: 0 | U146: 0
C149: 6.9 Opex legacy amount
E151: Opex legacy Dt amount | F151: 6.9: | G151: OLDt | I151: GBP m | J151: [Entitlement Model 28.11.16.xlsx]RP5 Distribution Inputs'!$A$279 | K151: =SUM(M151:U151) -> 5.325696946 | M151: 0 | N151: 3.42903403 | O151: 1.738446467 | P151: 0.1582164496 | Q151: 0 | R151: 0 | S151: 0 | T151: 0 | U151: 0
C154: 6.10 Demonstrably inefficient or wasteful expenditure - DIPTOEt
E156: Demonstrably inefficient or wasteful expenditure | F156: 6.11: | G156: DIPTOEt | I156: GBP m | J156: [Entitlement Model 28.11.16.xlsx]RP5 Distribution Inputs'!$A$282 | K156: =SUM(M156:U156) -> 0 | M156: 0 | N156: 0 | O156: 0 | P156: 0 | Q156: 0 | R156: 0 | S156: 0 | T156: 0 | U156: 0
C159: 6.17 Allowed opex
E161: Allowed opex - enduring solution | F161: 6.17: | G161: ESt | I161: GBP m | J161: [Entitlement Model 28.11.16.xlsx]RP5 Distribution Inputs'!$A$275 | K161: =SUM(M161:U161) -> 0 | M161: 0 | N161: 0 | O161: 0 | P161: 0 | Q161: 0 | R161: 0 | S161: 0 | T161: 0 | U161: 0
E162: Allowed opex - injurious affectation | F162: 6.17: | G162: IAt | I162: GBP m | J162: [Entitlement Model 28.11.16.xlsx]RP5 Distribution Inputs'!$A$274 | K162: =SUM(M162:U162) -> 0 | M162: 0 | N162: 0 | O162: 0 | P162: 0 | Q162: 0 | R162: 0 | S162: 0 | T162: 0 | U162: 0
E163: Allowed opex - regulatory reporting | F163: 6.17: | G163: RRt | I163: GBP m | J163: [Entitlement Model 28.11.16.xlsx]RP5 Distribution Inputs'!$A$273 | K163: =SUM(M163:U163) -> 0 | M163: 0 | N163: 0 | O163: 0 | P163: 0 | Q163: 0 | R163: 0 | S163: 0 | T163: 0 | U163: 0
E164: Allowed opex - changes of law | F164: 6.18: | G164: COLt | I164: GBP m | J164: [Entitlement Model 28.11.16.xlsx]RP5 Distribution Inputs'!$A$276 | K164: =SUM(M164:U164) -> 0 | M164: 0 | N164: 0 | O164: 0 | P164: 0 | Q164: 0 | R164: 0 | S164: 0 | T164: 0 | U164: 0
C167: 9.1: The tax rate - TRt
E169: Capital allowances - CAt - DL - calculated | F169: 9.1: | G169: CAt | I169: GBP m | K169: =SUM(M169:U169) -> 244.7371671 | M169: ='DL - C9'!M$239 -> 0 | N169: ='DL - C9'!N$239 -> 41.55942824 | O169: ='DL - C9'!O$239 -> 41.89889543 | P169: ='DL - C9'!P$239 -> 42.66619972 | Q169: ='DL - C9'!Q$239 -> 44.62578651 | R169: ='DL - C9'!R$239 -> 47.47464648 | S169: ='DL - C9'!S$239 -> 26.51221071 | T169: ='DL - C9'!T$239 -> 0 | U169: ='DL - C9'!U$239 -> 0
E170: Capital allowances - CAt - DL - manual adjustment | F170: 9.1: | G170: CAt | I170: GBP m | K170: =SUM(M170:U170) -> 0
E171: Capital allowances - CAt - DL | F171: 9.1: | G171: CAt | I171: GBP m | K171: =SUM(M171:U171) -> 244.7371671 | M171: =IF(ISBLANK(M170), M169, M170) -> 0 | N171: 41.55942824 | O171: 41.89889543 | P171: 42.66619972 | Q171: 44.62578651 | R171: 47.47464648 | S171: 26.51221071 | T171: 0 | U171: 0
C174: 10.1: revenue protection service revenue - RPSRt
E176: Revenue proection service incentive share % | F176: 10.1: | H176: 0.5 | I176: % | J176: [Entitlement Model 28.11.16.xlsx]RP5 Distribution Inputs'!$A$319
E178: Revenue protection service revenue (POS or Zero) | F178: 10.1: | G178: RPSRt | I178: GBP m | J178: [Entitlement Model 28.11.16.xlsx]RP5 Distribution Inputs'!$A$321 | K178: =SUM(M178:U178) -> 1.837033639 | M178: 0 | N178: 0.365 | O178: 0.28940959 | P178: 0.35173038 | Q178: 0.3261638979 | R178: 0.3328254341 | S178: 0.1719043367 | T178: 0 | U178: 0
C181: 11 Correction factor amount - Kt
E183: Average specified rate | F183: 11.1a: | G183: It | I183: % | J183: As per client email on 3 Jan 2017 | M183: 0 | N183: 0.005 | O183: 0.005 | P183: 0.005 | Q183: 0.0033 | R183: 0.0025 | S183: 0.0025 | T183: 0
E184: Actual regulated Distribution revenue recovered | F184: 11.1b: | G184: ARP5t | I184: GBP m | J184: As per client email on 3 Jan 2017 and 12 Jan 2017 | K184: =SUM(M184:U184) -> 968.9135555 | M184: 0 | N184: 176.2500008 | O184: 175.7834124 | P184: 173.786639 | Q184: 178.0661793 | R184: 186.544499 | S184: 78.48282497 | T184: 0 | U184: 0
A187: TRANSMISSION LICENCE
C189: 3.4 Maximum regulated transmission revenue for the regulatory reporting year
E191: Allowed opex amount - uncollected revenue - TL | F191: 3.4: | G191: BDt | I191: GBP m | K191: =SUM(M191:U191) -> 0 | M191: 0 | N191: 0 | O191: 0 | P191: 0 | Q191: 0 | R191: 0 | S191: 0 | T191: 0 | U191: 0
C194: 4.17 Qualifying capex amount
E196: Qualifying capex amount - TN | F196: 4.17: | G196: QCE_TNt | I196: GBP m | J196: [Entitlement Model 28.11.16.xlsx]RP5 Transmission Inputs'!$A$36 | K196: =SUM(M196:U196) -> 90.87937539 | M196: 0 | N196: 8.724457146 | O196: 10.35695509 | P196: 10.70624235 | Q196: 19.13042338 | R196: 23.65368114 | S196: 18.30761628 | T196: 0 | U196: 0
E197: Qualifying capex amount - RN | F197: 4.17: | G197: QCE_RNt | I197: GBP m | J197: [Entitlement Model 28.11.16.xlsx]RP5 Transmission Inputs'!$A$75 - as per email dated 20 Dec from client. | K197: =SUM(M197:U197) -> 25.75366667 | M197: 0 | N197: 0 | O197: 0 | P197: 0 | Q197: 1.701 | R197: 15.35635915 | S197: 8.696307514 | T197: 0 | U197: 0
E198: Qualifying capex amount - NSI | F198: 4.17: | G198: QCE_NSIt | I198: GBP m | J198: [Entitlement Model 28.11.16.xlsx]RP5 Transmission Inputs'!$A$100 | K198: =SUM(M198:U198) -> 0 | M198: 0 | N198: 0 | O198: 0 | P198: 0 | Q198: 0 | R198: 0 | S198: 0 | T198: 0 | U198: 0
E199: Qualifying capex amount - T5Y | F199: 4.17: | G199: QCE_T5Yt | I199: GBP m | J199: [Entitlement Model 28.11.16.xlsx]RP5 Transmission Inputs'!$A$132 | K199: =SUM(M199:U199) -> 1.248137298 | M199: 0 | N199: 0.1668744826 | O199: 0.3738792465 | P199: 0.1284629122 | Q199: 0.2103592993 | R199: 0.2783457739 | S199: 0.09021558356 | T199: 0 | U199: 0
C202: 4.19 Demostrably inefficient qualifying capex
E204: Demonstrably inefficient qualifying capex - TN | F204: 4.19: | G204: DIQCE_TNt | I204: GBP m | J204: [Entitlement Model 28.11.16.xlsx]RP5 Transmission Inputs'!$A$37 | K204: =SUM(M204:U204) -> 0 | M204: 0 | N204: 0 | O204: 0 | P204: 0 | Q204: 0 | R204: 0 | S204: 0 | T204: 0 | U204: 0
E205: Demonstrably inefficient qualifying capex - RN | F205: 4.19: | G205: DIQCE_RNt | I205: GBP m | J205: [Entitlement Model 28.11.16.xlsx]RP5 Transmission Inputs'!$A$69 | K205: =SUM(M205:U205) -> 0 | M205: 0 | N205: 0 | O205: 0 | P205: 0 | Q205: 0 | R205: 0 | S205: 0 | T205: 0 | U205: 0
E206: Demonstrably inefficient qualifying capex - NSI | F206: 4.19: | G206: DIQCE_NSIt | I206: GBP m | J206: [Entitlement Model 28.11.16.xlsx]RP5 Transmission Inputs'!$A$101 | K206: =SUM(M206:U206) -> 0 | M206: 0 | N206: 0 | O206: 0 | P206: 0 | Q206: 0 | R206: 0 | S206: 0 | T206: 0 | U206: 0
E207: Demonstrably inefficient qualifying capex - T5Y | F207: 4.19: | G207: DIQCE_T5Yt | I207: GBP m | J207: [Entitlement Model 28.11.16.xlsx]RP5 Transmission Inputs'!$A$133 | K207: =SUM(M207:U207) -> 0 | M207: 0 | N207: 0 | O207: 0 | P207: 0 | Q207: 0 | R207: 0 | S207: 0 | T207: 0 | U207: 0
C210: 4.21 Capex connection amount
E212: Capex connection amount - TN | F212: 4.21: | G212: CC_TNt | I212: GBP m | J212: [Entitlement Model 28.11.16.xlsx]RP5 Transmission Inputs'!$A$46 | K212: =SUM(M212:U212) -> 0 | M212: 0 | N212: 0 | O212: 0 | P212: 0 | Q212: 0 | R212: 0 | S212: 0 | T212: 0 | U212: 0
E213: Capex connection amount - RN | F213: 4.21: | G213: CC_RNt | I213: GBP m | J213: [Entitlement Model 28.11.16.xlsx]RP5 Transmission Inputs'!$A$78 | K213: =SUM(M213:U213) -> 4.539280297 | M213: 0 | N213: 0 | O213: 0 | P213: 0.977985705 | Q213: 1.812 | R213: 1.034147741 | S213: 0.715146851 | T213: 0 | U213: 0
E214: Capex connection amount - NSI | F214: 4.21: | G214: CC_NISt | I214: GBP m | J214: [Entitlement Model 28.11.16.xlsx]RP5 Transmission Inputs'!$A$110 | K214: =SUM(M214:U214) -> 0 | M214: 0 | N214: 0 | O214: 0 | P214: 0 | Q214: 0 | R214: 0 | S214: 0 | T214: 0 | U214: 0
E215: Capex connection amount - T5Y | F215: 4.21: | G215: CC_T5Yt | I215: GBP m | J215: [Entitlement Model 28.11.16.xlsx]RP5 Transmission Inputs'!$A$142 | K215: =SUM(M215:U215) -> 0 | M215: 0 | N215: 0 | O215: 0 | P215: 0 | Q215: 0 | R215: 0 | S215: 0 | T215: 0 | U215: 0
C218: 4.23 Transmission split for legacy Dt capex
E220: Transmission split for legacy Dt capex - TN | F220: 4.23: | G220: CLD_TNt | I220: GBP m | J220: [Entitlement Model 28.11.16.xlsx]RP5 Transmission Inputs'!$A$45 | K220: =SUM(M220:U220) -> 0 | M220: 0 | N220: 0 | O220: 0 | P220: 0 | Q220: 0 | R220: 0 | S220: 0 | T220: 0 | U220: 0
E221: Transmission split for legacy Dt capex - RN | F221: 4.23: | G221: CLD_RNt | I221: GBP m | J221: [Entitlement Model 28.11.16.xlsx]RP5 Transmission Inputs'!$A$77 | K221: =SUM(M221:U221) -> 24.74896834 | M221: 0 | N221: 3.711926141 | O221: 15.02284609 | P221: 5.615033403 | Q221: 0.456 | R221: -0.05683729662 | S221: 0 | T221: 0 | U221: 0
E222: Transmission split for legacy Dt capex - NSI | F222: 4.23: | G222: CLD_NSIt | I222: GBP m | J222: [Entitlement Model 28.11.16.xlsx]RP5 Transmission Inputs'!$A$109 | K222: =SUM(M222:U222) -> 0 | M222: 0 | N222: 0 | O222: 0 | P222: 0 | Q222: 0 | R222: 0 | S222: 0 | T222: 0 | U222: 0
E223: Transmission split for legacy Dt capex - T5Y | F223: 4.23: | G223: CLD_T5Yt | I223: GBP m | J223: [Entitlement Model 28.11.16.xlsx]RP5 Transmission Inputs'!$A$141 | K223: =SUM(M223:U223) -> 0 | M223: 0 | N223: 0 | O223: 0 | P223: 0 | Q223: 0 | R223: 0 | S223: 0 | T223: 0 | U223: 0
E224: Transmission split for legacy Dt capex | I224: GBP m | K224: =SUM(M224:U224) -> 24.74896834 | M224: =SUM(M220:M223) -> 0 | N224: 3.711926141 | O224: 15.02284609 | P224: 5.615033403 | Q224: 0.456 | R224: -0.05683729662 | S224: 0 | T224: 0 | U224: 0
E226: ='Licence Inp'!E$315 -> Legacy Dt maximum RP5 spend amount | F226: ='Licence Inp'!F$315 -> Table 4 | G226: ='Licence Inp'!G$315 -> 0 | H226: ='Licence Inp'!H$315 -> 29.5 | I226: ='Licence Inp'!I$315 -> GBP m
E227: =E$224 -> Transmission split for legacy Dt capex | F227: 0 | G227: 0 | H227: 0 | I227: GBP m | J227: 0 | K227: 24.74896834 | L227: 0 | M227: 0 | N227: 3.711926141 | O227: 15.02284609 | P227: 5.615033403 | Q227: 0.456 | R227: -0.05683729662 | S227: 0 | T227: 0 | U227: 0
E228: =Time!E$91 -> RP5 period flag | F228: =Time!F$91 -> 0 | G228: =Time!G$91 -> 0 | H228: =Time!H$91 -> 0 | I228: =Time!I$91 -> flag | J228: =Time!J$91 -> 0 | K228: =Time!K$91 -> 6 | L228: =Time!L$91 -> 0 | M228: =Time!M$91 -> 0 | N228: =Time!N$91 -> 1 | O228: =Time!O$91 -> 1 | P228: =Time!P$91 -> 1 | Q228: =Time!Q$91 -> 1 | R228: =Time!R$91 -> 1 | S228: =Time!S$91 -> 1 | T228: =Time!T$91 -> 0 | U228: =Time!U$91 -> 0
E229: Transmission split for legacy Dt capex - alert | H229: =IF( SUM(M229:U229) > 0, 1, 0) -> 0 | I229: alert | M229: =IF(($H226 - SUMIF($L228:M228, 1, $L227:M227)) >= 0, 0, 1) -> 0 | N229: =IF(($H226 - SUMIF($L228:N228, 1, $L227:N227)) >= 0, 0, 1) -> 0 | O229: =IF(($H226 - SUMIF($L228:O228, 1, $L227:O227)) >= 0, 0, 1) -> 0 | P229: =IF(($H226 - SUMIF($L228:P228, 1, $L227:P227)) >= 0, 0, 1) -> 0 | Q229: =IF(($H226 - SUMIF($L228:Q228, 1, $L227:Q227)) >= 0, 0, 1) -> 0 | R229: =IF(($H226 - SUMIF($L228:R228, 1, $L227:R227)) >= 0, 0, 1) -> 0 | S229: =IF(($H226 - SUMIF($L228:S228, 1, $L227:S227)) >= 0, 0, 1) -> 0 | T229: =IF(($H226 - SUMIF($L228:T228, 1, $L227:T227)) >= 0, 0, 1) -> 0 | U229: =IF(($H226 - SUMIF($L228:U228, 1, $L227:U227)) >= 0, 0, 1) -> 0
C232: 4.25 Demonstrably inefficient pass through capex exp.
E234: Demonstrably inefficient pass through capex exp. - TN | F234: 4.25: | G234: DIPTCE_TNt | I234: GBP m | J234: [Entitlement Model 28.11.16.xlsx]RP5 Transmission Inputs'!$A$47 | K234: =SUM(M234:U234) -> 0 | M234: 0 | N234: 0 | O234: 0 | P234: 0 | Q234: 0 | R234: 0 | S234: 0 | T234: 0 | U234: 0
E235: Demonstrably inefficient pass through capex exp. - RN | F235: 4.25: | G235: DIPTCE_RNt | I235: GBP m | J235: [Entitlement Model 28.11.16.xlsx]RP5 Transmission Inputs'!$A$79 | K235: =SUM(M235:U235) -> 0 | M235: 0 | N235: 0 | O235: 0 | P235: 0 | Q235: 0 | R235: 0 | S235: 0 | T235: 0 | U235: 0
E236: Demonstrably inefficient pass through capex exp. - NSI | F236: 4.25: | G236: DIPTCE_NSIt | I236: GBP m | J236: [Entitlement Model 28.11.16.xlsx]RP5 Transmission Inputs'!$A$111 | K236: =SUM(M236:U236) -> 0 | M236: 0 | N236: 0 | O236: 0 | P236: 0 | Q236: 0 | R236: 0 | S236: 0 | T236: 0 | U236: 0
E237: Demonstrably inefficient pass through capex exp. - T5Y | F237: 4.25: | G237: DIPTCE_T5Yt | I237: GBP m | J237: [Entitlement Model 28.11.16.xlsx]RP5 Transmission Inputs'!$A$143 | K237: =SUM(M237:U237) -> 0 | M237: 0 | N237: 0 | O237: 0 | P237: 0 | Q237: 0 | R237: 0 | S237: 0 | T237: 0 | U237: 0
C240: 4.30 Asset disposals
E242: Historic timeline | I242: date | M242: 2008 | N242: 2009 | O242: 2010 | P242: 2011 | Q242: 0 | R242: 0 | S242: 0 | T242: 0 | U242: 0
E243: Historic - asset disposals - TN | F243: 4.30: | G243: OCD_TNt | I243: GBP m | K243: =SUM(M243:U243) -> 0 | M243: 0 | N243: 0 | O243: 0 | P243: 0 | Q243: 0 | R243: 0 | S243: 0 | T243: 0 | U243: 0
E244: Historic - asset disposals - RN | F244: 4.30: | G244: OCD_RNt | I244: GBP m | K244: =SUM(M244:U244) -> 0 | M244: 0 | N244: 0 | O244: 0 | P244: 0 | Q244: 0 | R244: 0 | S244: 0 | T244: 0 | U244: 0
E245: Historic - asset disposals - NSI | F245: 4.30: | G245: OCD_NSIt | I245: GBP m | K245: =SUM(M245:U245) -> 0 | M245: 0 | N245: 0 | O245: 0 | P245: 0 | Q245: 0 | R245: 0 | S245: 0 | T245: 0 | U245: 0
E246: Historic - asset disposals - T5Y | F246: 4.30: | G246: OCD_T5Yt | I246: GBP m | K246: =SUM(M246:U246) -> 0 | M246: 0 | N246: 0 | O246: 0 | P246: 0 | Q246: 0 | R246: 0 | S246: 0 | T246: 0 | U246: 0
E249: Asset disposals - TN | F249: 4.30: | G249: OCD_TNt | I249: GBP m | J249: [Entitlement Model 28.11.16.xlsx]RP5 Transmission Inputs'!$A$50 | K249: =SUM(M249:U249) -> 0 | M249: 0 | N249: 0 | O249: 0 | P249: 0 | Q249: 0 | R249: 0 | S249: 0 | T249: 0 | U249: 0
E250: Asset disposals - RN | F250: 4.30: | G250: OCD_RNt | I250: GBP m | J250: [Entitlement Model 28.11.16.xlsx]RP5 Transmission Inputs'!$A$82 | K250: =SUM(M250:U250) -> 0 | M250: 0 | N250: 0 | O250: 0 | P250: 0 | Q250: 0 | R250: 0 | S250: 0 | T250: 0 | U250: 0
E251: Asset disposals - NSI | F251: 4.30: | G251: OCD_NSIt | I251: GBP m | J251: [Entitlement Model 28.11.16.xlsx]RP5 Transmission Inputs'!$A$114 | K251: =SUM(M251:U251) -> 0 | M251: 0 | N251: 0 | O251: 0 | P251: 0 | Q251: 0 | R251: 0 | S251: 0 | T251: 0 | U251: 0
E252: Asset disposals - T5Y | F252: 4.30: | G252: OCD_T5Yt | I252: GBP m | J252: [Entitlement Model 28.11.16.xlsx]RP5 Transmission Inputs'!$A$146 | K252: =SUM(M252:U252) -> 0 | M252: 0 | N252: 0 | O252: 0 | P252: 0 | Q252: 0 | R252: 0 | S252: 0 | T252: 0 | U252: 0
C255: 6.3 Opex incurred by the licensee - excl. PTOEt
E257: Opex incurred by the licensee - excl. PTOEt | F257: 6.3: | G257: QOEt | I257: GBP m | J257: [Entitlement Model 28.11.16.xlsx]RP5 Transmission Inputs'!$A$160 | K257: =SUM(M257:U257) -> 41.82780801 | M257: 0 | N257: 8.281240781 | O257: 8.381858576 | P257: 7.899089827 | Q257: 6.256330907 | R257: 7.114794879 | S257: 3.894493035 | T257: 0 | U257: 0
C260: 6.5 Demonstrably inefficient or wasteful expenditure - DIQOEt
E262: Demonstrably inefficient or wasteful expenditure | F262: 6.5: | G262: DIQOEt | I262: GBP m | J262: [Entitlement Model 28.11.16.xlsx]RP5 Transmission Inputs'!$A$161 | K262: =SUM(M262:U262) -> 0 | M262: 0 | N262: 0 | O262: 0 | P262: 0 | Q262: 0 | R262: 0 | S262: 0 | T262: 0 | U262: 0
C265: 6.7 Pass through opex expenditure
E267: Opex licence fee | F267: 6.7: | G267: OLFt | I267: GBP m | J267: [Entitlement Model 28.11.16.xlsx]RP5 Transmission Inputs'!$A$168 | K267: =SUM(M267:U267) -> 1.118717268 | M267: 0 | N267: 0.12850568 | O267: 0.39545065 | P267: 0.13145645 | Q267: 0.1818682745 | R267: 0.1855827325 | S267: 0.09585348136 | T267: 0 | U267: 0
E268: Opex connection amount | F268: 6.7: | G268: OCt | I268: GBP m | J268: [Entitlement Model 28.11.16.xlsx]RP5 Transmission Inputs'!$A$170 | K268: =SUM(M268:U268) -> 0.01983 | M268: 0 | N268: 0 | O268: 0.01833 | P268: 0.0605 | Q268: -0.059 | R268: 0 | S268: 0 | T268: 0 | U268: 0
C271: 6.9 Opex legacy amount
E273: Opex legacy Dt amount | F273: 6.9: | G273: OLDt | I273: GBP m | J273: [Entitlement Model 28.11.16.xlsx]RP5 Transmission Inputs'!$A$169 | M273: 0 | N273: 3.830431719 | O273: 3.385154689 | P273: 1.19212525 | Q273: 0 | R273: 0 | S273: 0 | T273: 0 | U273: 0
C276: 6.10 Demonstrably inefficient or wasteful expenditure - DIPTOEt
E278: Demonstrably inefficient or wasteful expenditure | F278: 6.11: | G278: DIPTOEt | I278: GBP m | J278: [Entitlement Model 28.11.16.xlsx]RP5 Transmission Inputs'!$A$172 | K278: =SUM(M278:U278) -> 0 | M278: 0 | N278: 0 | O278: 0 | P278: 0 | Q278: 0 | R278: 0 | S278: 0 | T278: 0 | U278: 0
C281: 6.17 Allowed opex other
E283: Allowed opex - injurious affectation | F283: 6.17: | G283: IAt | I283: GBP m | J283: [Entitlement Model 28.11.16.xlsx]RP5 Transmission Inputs'!$A$165 | K283: =SUM(M283:U283) -> 0 | M283: 0 | N283: 0 | O283: 0 | P283: 0 | Q283: 0 | R283: 0 | S283: 0 | T283: 0 | U283: 0
E284: Allowed opex - regulatory reporting | F284: 6.17: | G284: RRt | I284: GBP m | J284: [Entitlement Model 28.11.16.xlsx]RP5 Transmission Inputs'!$A$164 | K284: =SUM(M284:U284) -> 0 | M284: 0 | N284: 0 | O284: 0 | P284: 0 | Q284: 0 | R284: 0 | S284: 0 | T284: 0 | U284: 0
E285: Allowed opex - changes of law | F285: 6.18: | G285: COLt | I285: GBP m | J285: [Entitlement Model 28.11.16.xlsx]RP5 Transmission Inputs'!$A$166 | K285: =SUM(M285:U285) -> -1.172681044 | M285: 0 | N285: 0 | O285: 0 | P285: -0.1706069444 | Q285: -0.410875 | R285: -0.3898444444 | S285: -0.2013546556 | T285: 0 | U285: 0
C288: 9.1: The tax rate - TRt
E290: Capital allowances - CAt - TL - Calculated | F290: 9.1: | G290: CAt | I290: GBP m | K290: =SUM(M290:U290) -> 56.32019521 | M290: ='TL - C9'!M$176 -> 0 | N290: ='TL - C9'!N$176 -> 6.639676006 | O290: ='TL - C9'!O$176 -> 8.12938282 | P290: ='TL - C9'!P$176 -> 9.468426866 | Q290: ='TL - C9'!Q$176 -> 10.84163247 | R290: ='TL - C9'!R$176 -> 13.19257521 | S290: ='TL - C9'!S$176 -> 8.048501842 | T290: ='TL - C9'!T$176 -> 0 | U290: ='TL - C9'!U$176 -> 0
E291: Capital allowances - CAt - TL - manual adjustment | F291: 9.1: | G291: CAt | I291: GBP m | K291: =SUM(M291:U291) -> 0
E292: Capital allowances - CAt - TL | F292: 9.1: | G292: CAt | I292: GBP m | K292: =SUM(M292:U292) -> 56.32019521 | M292: =IF(ISBLANK(M291), M290, M291) -> 0 | N292: 6.639676006 | O292: 8.12938282 | P292: 9.468426866 | Q292: 10.84163247 | R292: 13.19257521 | S292: 8.048501842 | T292: =IF(ISBLANK(T291), T290, T291) -> 0 | U292: 0
C295: 11 Correction factor amount - Kt
E297: Actual regulated transmission revenue recovered | F297: 11.1a: | G297: ARP5t | I297: GBP m | J297: As per client email on 3 Jan 2017 | K297: =SUM(M297:U297) -> 208.719482 | M297: 0 | N297: 41.62157022 | O297: 53.59158168 | P297: 34.39833012 | Q297: 30.75 | R297: 33.30400002 | S297: 15.054 | T297: 0 | U297: 0
E298: Average specified rate | F298: 11.1b: | G298: It | I298: % | J298: As per client email on 3 Jan 2017 | M298: 0 | N298: 0.005 | O298: 0.005 | P298: 0.005 | Q298: 0.0033 | R298: 0.0025 | S298: 0.0025 | T298: 0 | U298: 0
A301: CAPITAL ALLOWANCES
E303: Deferred revenue pool additions | I303: GBP m | J303: [Entitlement Model 28.11.16.xlsx]Tax Cap All'!$B$43 | K303: =SUM(M303:U303) -> 138.229 | M303: 0 | N303: 25.729 | O303: 25 | P303: 25 | Q303: 25 | R303: 25 | S303: 12.5 | T303: 0 | U303: 0
E305: Non- allowable capex per period | I305: GBP m | J305: [Entitlement Model 28.11.16.xlsx]Tax Cap All'!$B$35 | K305: =SUM(M305:U305) -> -10.699 | M305: 0 | N305: -1.699 | O305: -2 | P305: -2 | Q305: -2 | R305: -2 | S305: -1 | T305: 0 | U305: 0
E307: Domestic contributions - DL | I307: GBP m | J307: [Entitlement Model 28.11.16.xlsx]Tax Cap All'!$B$33 | K307: =SUM(M307:U307) -> 3.993 | M307: 0 | N307: 3.993 | O307: 0 | P307: 0 | Q307: 0 | R307: 0 | S307: 0 | T307: 0 | U307: 0
C310: Capital allowance rates
E312: Capital allowance rate - Main rate pool | H312: 0.18 | I312: % | J312: [Entitlement Model 28.11.16.xlsx]Input6'!$A$128
E313: Capital allowance rate - Special rate pool | H313: 0.08 | I313: % | J313: [Entitlement Model 28.11.16.xlsx]Input6'!$A$127
E314: Capital allowance rate - Deferred revenue pool | H314: 0.025 | I314: % | J314: [Entitlement Model 28.11.16.xlsx]Input6'!$A$129
C317: Non-network IT
E319: Non-network IT - per period - DL | I319: GBP m | J319: [Entitlement Model 28.11.16.xlsx]Tax Cap All'!$B$25 | K319: =SUM(M319:U319) -> 18.33782452 | M319: 0 | N319: 1.485291697 | O319: 3.465034673 | P319: 1.604132028 | Q319: 3.513252701 | R319: 3.86790971 | S319: 4.402203709 | T319: 0 | U319: 0
E320: Non-network IT - per period - TL | I320: GBP m | J320: [Entitlement Model 28.11.16.xlsx]Tax Cap All'!$B$26 | K320: =SUM(M320:U320) -> 1.24767027 | M320: 0 | N320: 0.1668744826 | O320: 0.3738792465 | P320: 0.1284629122 | Q320: 0.2103592993 | R320: 0.2779573723 | S320: 0.09013695696 | T320: 0 | U320: 0
C323: Tax entitlement
E325: Deferred revenue pool split - TL | H325: 0.12 | I325: % | J325: [Entitlement Model 28.11.16.xlsx]Input6'!$P$102
E326: Non Qualifying Capex Split - TL | H326: 0.1 | I326: % | J326: [Entitlement Model 28.11.16.xlsx]Input6'!$P$103
... 59 more rows

Sheet Inp_Depreciation
A1: =RIGHT(CELL("filename", $A$1), LEN(CELL("filename", $A$1)) - SEARCH("]", CELL("filename", $A$1))) -> Inp_Depreciation
E2: ='DL - C4 A'!E$22 -> Model period ending - RP1 | H2: =Check!$H$9 -> 0 | I2: Error chks | M2: ='DL - C4 A'!M$22 -> 1994-03-31 | N2: ='DL - C4 A'!N$22 -> 1995-03-31 | O2: ='DL - C4 A'!O$22 -> 1996-03-31 | P2: ='DL - C4 A'!P$22 -> 1997-03-31 | Q2: ='DL - C4 A'!Q$22 -> 1998-03-31 | R2: ='DL - C4 A'!R$22 -> 1999-03-31 | S2: ='DL - C4 A'!S$22 -> 2000-03-31 | T2: ='DL - C4 A'!T$22 -> 2001-03-31 | U2: ='DL - C4 A'!U$22 -> 2002-03-31 | V2: ='DL - C4 A'!V$22 -> 2003-03-31 | W2: ='DL - C4 A'!W$22 -> 2004-03-31 | X2: ='DL - C4 A'!X$22 -> 2005-03-31 | Y2: ='DL - C4 A'!Y$22 -> 2006-03-31 | Z2: ='DL - C4 A'!Z$22 -> 2007-03-31 | AA2: ='DL - C4 A'!AA$22 -> 2008-03-31 | AB2: ='DL - C4 A'!AB$22 -> 2009-03-31 | AC2: ='DL - C4 A'!AC$22 -> 2010-03-31 | AD2: ='DL - C4 A'!AD$22 -> 2011-03-31 | AE2: ='DL - C4 A'!AE$22 -> 2012-03-31 | AF2: ='DL - C4 A'!AF$22 -> 2013-03-31 | AG2: ='DL - C4 A'!AG$22 -> 2014-03-31 | AH2: ='DL - C4 A'!AH$22 -> 2015-03-31 | AI2: ='DL - C4 A'!AI$22 -> 2016-03-31 | AJ2: ='DL - C4 A'!AJ$22 -> 2017-03-31 | AK2: ='DL - C4 A'!AK$22 -> 2018-03-31 | AL2: ='DL - C4 A'!AL$22 -> 2019-03-31 | AM2: ='DL - C4 A'!AM$22 -> 2020-03-31 | AN2: ='DL - C4 A'!AN$22 -> 2021-03-31 | AO2: ='DL - C4 A'!AO$22 -> 2022-03-31 | AP2: ='DL - C4 A'!AP$22 -> 2023-03-31 | AQ2: ='DL - C4 A'!AQ$22 -> 2024-03-31 | AR2: ='DL - C4 A'!AR$22 -> 2025-03-31 | AS2: ='DL - C4 A'!AS$22 -> 2026-03-31 | AT2: ='DL - C4 A'!AT$22 -> 2027-03-31 | AU2: ='DL - C4 A'!AU$22 -> 2028-03-31 | AV2: ='DL - C4 A'!AV$22 -> 2029-03-31 | AW2: ='DL - C4 A'!AW$22 -> 2030-03-31 | AX2: ='DL - C4 A'!AX$22 -> 2031-03-31 | AY2: ='DL - C4 A'!AY$22 -> 2032-03-31 | AZ2: ='DL - C4 A'!AZ$22 -> 2033-03-31 | BA2: ='DL - C4 A'!BA$22 -> 2034-03-31 | BB2: ='DL - C4 A'!BB$22 -> 2035-03-31 | BC2: ='DL - C4 A'!BC$22 -> 2036-03-31 | BD2: ='DL - C4 A'!BD$22 -> 2037-03-31 | BE2: ='DL - C4 A'!BE$22 -> 2038-03-31 | BF2: ='DL - C4 A'!BF$22 -> 2039-03-31 | BG2: ='DL - C4 A'!BG$22 -> 2040-03-31 | BH2: ='DL - C4 A'!BH$22 -> 2041-03-31 | BI2: ='DL - C4 A'!BI$22 -> 2042-03-31 | BJ2: ='DL - C4 A'!BJ$22 -> 2043-03-31 | BK2: ='DL - C4 A'!BK$22 -> 2044-03-31 | BL2: ='DL - C4 A'!BL$22 -> 2045-03-31 | BM2: ='DL - C4 A'!BM$22 -> 2046-03-31 | BN2: ='DL - C4 A'!BN$22 -> 2047-03-31 | BO2: ='DL - C4 A'!BO$22 -> 2048-03-31 | BP2: ='DL - C4 A'!BP$22 -> 2049-03-31 | BQ2: ='DL - C4 A'!BQ$22 -> 2050-03-31 | BR2: ='DL - C4 A'!BR$22 -> 2051-03-31 | BS2: ='DL - C4 A'!BS$22 -> 2052-03-31 | BT2: ='DL - C4 A'!BT$22 -> 2053-03-31 | BU2: ='DL - C4 A'!BU$22 -> 2054-03-31 | BV2: ='DL - C4 A'!BV$22 -> 2055-03-31 | BW2: ='DL - C4 A'!BW$22 -> 2056-03-31 | BX2: ='DL - C4 A'!BX$22 -> 2057-03-31 | BY2: ='DL - C4 A'!BY$22 -> 2058-03-31 | BZ2: ='DL - C4 A'!BZ$22 -> 2059-03-31 | CA2: ='DL - C4 A'!CA$22 -> 2060-03-31
E3: Timeline label - RP1 | H3: =Track!$M$2 -> 0 | I3: Track chgs | M3: RP1 | N3: RP1 | O3: RP1 | P3: RP1 | Q3: RP2 | R3: RP2 | S3: RP2 | T3: RP2 | U3: RP2 | V3: RP3 | W3: RP3 | X3: RP3 | Y3: RP3 | Z3: RP3 | AA3: RP4 | AB3: RP4 | AC3: RP4 | AD3: RP4 | AE3: RP4 | AF3: RP5 | AG3: RP5 | AH3: RP5 | AI3: RP5 | AJ3: RP5 | AK3: RP5 / RP6 | AL3: RP6 | AM3: RP6 | AN3: RP6 | AO3: RP6 | AP3: RP6 | AQ3: RP6 | AR3: Post RP6 | AS3: Post RP6 | AT3: Post RP6 | AU3: Post RP6 | AV3: Post RP6 | AW3: Post RP6 | AX3: Post RP6 | AY3: Post RP6 | AZ3: Post RP6 | BA3: Post RP6 | BB3: Post RP6 | BC3: Post RP6 | BD3: Post RP6 | BE3: Post RP6 | BF3: Post RP6 | BG3: Post RP6 | BH3: Post RP6 | BI3: Post RP6 | BJ3: Post RP6 | BK3: Post RP6 | BL3: Post RP6 | BM3: Post RP6 | BN3: Post RP6 | BO3: Post RP6 | BP3: Post RP6 | BQ3: Post RP6 | BR3: Post RP6 | BS3: Post RP6 | BT3: Post RP6 | BU3: Post RP6 | BV3: Post RP6 | BW3: Post RP6 | BX3: Post RP6 | BY3: Post RP6 | BZ3: Post RP6 | CA3: Post RP6
E4: ='DL - C4 A'!E$29 -> Financial year ending - RP1 | H4: =Check!$H$38 -> 0 | I4: Alerts | M4: ='DL - C4 A'!M$29 -> 1994 | N4: ='DL - C4 A'!N$29 -> 1995 | O4: ='DL - C4 A'!O$29 -> 1996 | P4: ='DL - C4 A'!P$29 -> 1997 | Q4: ='DL - C4 A'!Q$29 -> 1998 | R4: ='DL - C4 A'!R$29 -> 1999 | S4: ='DL - C4 A'!S$29 -> 2000 | T4: ='DL - C4 A'!T$29 -> 2001 | U4: ='DL - C4 A'!U$29 -> 2002 | V4: ='DL - C4 A'!V$29 -> 2003 | W4: ='DL - C4 A'!W$29 -> 2004 | X4: ='DL - C4 A'!X$29 -> 2005 | Y4: ='DL - C4 A'!Y$29 -> 2006 | Z4: ='DL - C4 A'!Z$29 -> 2007 | AA4: ='DL - C4 A'!AA$29 -> 2008 | AB4: ='DL - C4 A'!AB$29 -> 2009 | AC4: ='DL - C4 A'!AC$29 -> 2010 | AD4: ='DL - C4 A'!AD$29 -> 2011 | AE4: ='DL - C4 A'!AE$29 -> 2012 | AF4: ='DL - C4 A'!AF$29 -> 2013 | AG4: ='DL - C4 A'!AG$29 -> 2014 | AH4: ='DL - C4 A'!AH$29 -> 2015 | AI4: ='DL - C4 A'!AI$29 -> 2016 | AJ4: ='DL - C4 A'!AJ$29 -> 2017 | AK4: ='DL - C4 A'!AK$29 -> 2018 | AL4: ='DL - C4 A'!AL$29 -> 2019 | AM4: ='DL - C4 A'!AM$29 -> 2020 | AN4: ='DL - C4 A'!AN$29 -> 2021 | AO4: ='DL - C4 A'!AO$29 -> 2022 | AP4: ='DL - C4 A'!AP$29 -> 2023 | AQ4: ='DL - C4 A'!AQ$29 -> 2024 | AR4: ='DL - C4 A'!AR$29 -> 2025 | AS4: ='DL - C4 A'!AS$29 -> 2026 | AT4: ='DL - C4 A'!AT$29 -> 2027 | AU4: ='DL - C4 A'!AU$29 -> 2028 | AV4: ='DL - C4 A'!AV$29 -> 2029 | AW4: ='DL - C4 A'!AW$29 -> 2030 | AX4: ='DL - C4 A'!AX$29 -> 2031 | AY4: ='DL - C4 A'!AY$29 -> 2032 | AZ4: ='DL - C4 A'!AZ$29 -> 2033 | BA4: ='DL - C4 A'!BA$29 -> 2034 | BB4: ='DL - C4 A'!BB$29 -> 2035 | BC4: ='DL - C4 A'!BC$29 -> 2036 | BD4: ='DL - C4 A'!BD$29 -> 2037 | BE4: ='DL - C4 A'!BE$29 -> 2038 | BF4: ='DL - C4 A'!BF$29 -> 2039 | BG4: ='DL - C4 A'!BG$29 -> 2040 | BH4: ='DL - C4 A'!BH$29 -> 2041 | BI4: ='DL - C4 A'!BI$29 -> 2042 | BJ4: ='DL - C4 A'!BJ$29 -> 2043 | BK4: ='DL - C4 A'!BK$29 -> 2044 | BL4: ='DL - C4 A'!BL$29 -> 2045 | BM4: ='DL - C4 A'!BM$29 -> 2046 | BN4: ='DL - C4 A'!BN$29 -> 2047 | BO4: ='DL - C4 A'!BO$29 -> 2048 | BP4: ='DL - C4 A'!BP$29 -> 2049 | BQ4: ='DL - C4 A'!BQ$29 -> 2050 | BR4: ='DL - C4 A'!BR$29 -> 2051 | BS4: ='DL - C4 A'!BS$29 -> 2052 | BT4: ='DL - C4 A'!BT$29 -> 2053 | BU4: ='DL - C4 A'!BU$29 -> 2054 | BV4: ='DL - C4 A'!BV$29 -> 2055 | BW4: ='DL - C4 A'!BW$29 -> 2056 | BX4: ='DL - C4 A'!BX$29 -> 2057 | BY4: ='DL - C4 A'!BY$29 -> 2058 | BZ4: ='DL - C4 A'!BZ$29 -> 2059 | CA4: ='DL - C4 A'!CA$29 -> 2060
E5: ='DL - C4 A'!E$10 -> Model column counter - RP1 | F5: Para references | G5: Defined Term | H5: Constant | I5: Unit | K5: Total | M5: ='DL - C4 A'!M$10 -> 1 | N5: ='DL - C4 A'!N$10 -> 2 | O5: ='DL - C4 A'!O$10 -> 3 | P5: ='DL - C4 A'!P$10 -> 4 | Q5: ='DL - C4 A'!Q$10 -> 5 | R5: ='DL - C4 A'!R$10 -> 6 | S5: ='DL - C4 A'!S$10 -> 7 | T5: ='DL - C4 A'!T$10 -> 8 | U5: ='DL - C4 A'!U$10 -> 9 | V5: ='DL - C4 A'!V$10 -> 10 | W5: ='DL - C4 A'!W$10 -> 11 | X5: ='DL - C4 A'!X$10 -> 12 | Y5: ='DL - C4 A'!Y$10 -> 13 | Z5: ='DL - C4 A'!Z$10 -> 14 | AA5: ='DL - C4 A'!AA$10 -> 15 | AB5: ='DL - C4 A'!AB$10 -> 16 | AC5: ='DL - C4 A'!AC$10 -> 17 | AD5: ='DL - C4 A'!AD$10 -> 18 | AE5: ='DL - C4 A'!AE$10 -> 19 | AF5: ='DL - C4 A'!AF$10 -> 20 | AG5: ='DL - C4 A'!AG$10 -> 21 | AH5: ='DL - C4 A'!AH$10 -> 22 | AI5: ='DL - C4 A'!AI$10 -> 23 | AJ5: ='DL - C4 A'!AJ$10 -> 24 | AK5: ='DL - C4 A'!AK$10 -> 25 | AL5: ='DL - C4 A'!AL$10 -> 26 | AM5: ='DL - C4 A'!AM$10 -> 27 | AN5: ='DL - C4 A'!AN$10 -> 28 | AO5: ='DL - C4 A'!AO$10 -> 29 | AP5: ='DL - C4 A'!AP$10 -> 30 | AQ5: ='DL - C4 A'!AQ$10 -> 31 | AR5: ='DL - C4 A'!AR$10 -> 32 | AS5: ='DL - C4 A'!AS$10 -> 33 | AT5: ='DL - C4 A'!AT$10 -> 34 | AU5: ='DL - C4 A'!AU$10 -> 35 | AV5: ='DL - C4 A'!AV$10 -> 36 | AW5: ='DL - C4 A'!AW$10 -> 37 | AX5: ='DL - C4 A'!AX$10 -> 38 | AY5: ='DL - C4 A'!AY$10 -> 39 | AZ5: ='DL - C4 A'!AZ$10 -> 40 | BA5: ='DL - C4 A'!BA$10 -> 41 | BB5: ='DL - C4 A'!BB$10 -> 42 | BC5: ='DL - C4 A'!BC$10 -> 43 | BD5: ='DL - C4 A'!BD$10 -> 44 | BE5: ='DL - C4 A'!BE$10 -> 45 | BF5: ='DL - C4 A'!BF$10 -> 46 | BG5: ='DL - C4 A'!BG$10 -> 47 | BH5: ='DL - C4 A'!BH$10 -> 48 | BI5: ='DL - C4 A'!BI$10 -> 49 | BJ5: ='DL - C4 A'!BJ$10 -> 50 | BK5: ='DL - C4 A'!BK$10 -> 51 | BL5: ='DL - C4 A'!BL$10 -> 52 | BM5: ='DL - C4 A'!BM$10 -> 53 | BN5: ='DL - C4 A'!BN$10 -> 54 | BO5: ='DL - C4 A'!BO$10 -> 55 | BP5: ='DL - C4 A'!BP$10 -> 56 | BQ5: ='DL - C4 A'!BQ$10 -> 57 | BR5: ='DL - C4 A'!BR$10 -> 58 | BS5: ='DL - C4 A'!BS$10 -> 59 | BT5: ='DL - C4 A'!BT$10 -> 60 | BU5: ='DL - C4 A'!BU$10 -> 61 | BV5: ='DL - C4 A'!BV$10 -> 62 | BW5: ='DL - C4 A'!BW$10 -> 63 | BX5: ='DL - C4 A'!BX$10 -> 64 | BY5: ='DL - C4 A'!BY$10 -> 65 | BZ5: ='DL - C4 A'!BZ$10 -> 66 | CA5: ='DL - C4 A'!CA$10 -> 67
A7: TIME
E9: 1st model column start date - RP1 | H9: 1993-04-01 | I9: date
E11: First modelling column financial year number - RP1 | H11: 1994 | I11: year #
E13: Actuals override switch | H13: 1 | I13: 0 = off, 1 = on
E14: =Time!E$56 -> Pre - RP5 full period year end date | F14: =Time!F$56 -> 0 | G14: =Time!G$56 -> 0 | H14: =Time!H$56 -> 2012-03-31 | I14: =Time!I$56 -> date
E15: =Time!E$79 -> RP5 year end period date | F15: =Time!F$79 -> 0 | G15: =Time!G$79 -> 0 | H15: =Time!H$79 -> 2018-03-31 | I15: =Time!I$79 -> date
E16: Actuals override period end date | F16: =Time!F$66 -> 00:00:00 | G16: =Time!G$66 -> 00:00:00 | H16: =IF(H13 = 1, H15, H14 ) -> 2018-03-31 | I16: date | J16: =Time!J$66 -> 0
A19: DISTRIBUTION RAB
C21: Network depreciation rate
E23: Depreciation rate - first 20 years - DN | H23: 0.03 | I23: % | J23: [Entitlement Model 28.11.16.xlsx]Distribution D.'!E3
E24: Depreciation rate - last 20 years - DN | H24: 0.02 | I24: % | J24: [Entitlement Model 28.11.16.xlsx]Distribution D.'!E4
E25: Depreciation term for first rate - DN | H25: 20 | I25: years | J25: [Entitlement Model 28.11.16.xlsx]Distribution D.'!D3
E26: Depreciation term for last rate - DN | H26: 20 | I26: years | J26: [Entitlement Model 28.11.16.xlsx]Distribution D.'!D4
E28: Depreciation rate - first 20 years - ES | H28: 0.1 | I28: % | J28: [Entitlement Model 28.11.16.xlsx]Enduring Solution D.'!$D$2
E29: Depreciation rate - last 20 years - ES | H29: 0 | I29: %
E30: Depreciation term for first rate - ES | H30: 10 | I30: years | J30: [Entitlement Model 28.11.16.xlsx]Enduring Solution D.'!$C$2
E31: Depreciation term for last rate - ES | H31: 0 | I31: years
E32: Depreciation start grace period - ES | H32: 2 | I32: years | J32: [Entitlement Model 28.11.16.xlsx]Enduring Solution D.'!$Y$13
E34: Depreciation rate - first 20 years - MTRN | H34: 0.06666666667 | I34: % | J34: [140321 model.xlsx]Keypad D.'!$E$3
E35: Depreciation rate - last 20 years - MTRN | H35: 0 | I35: %
E36: Depreciation term for first rate - MTRN | H36: 15 | I36: years
E37: Depreciation term for last rate - MTRN | H37: 0 | I37: years
E39: Depreciation rate - first 20 years - RT | H39: 0.03 | I39: % | J39: [140321 model.xlsx]Rathlin D.'!E3
E40: Depreciation rate - last 20 years - RT | H40: 0.02 | I40: % | J40: [140321 model.xlsx]Rathlin D.'!E4
E41: Depreciation term for first rate - RT | H41: 20 | I41: years
E42: Depreciation term for last rate - RT | H42: 20 | I42: years
E44: Depreciation rate - first 20 years - FE | H44: 0.1 | I44: % | J44: [140321 model.xlsx]FEMO D.'!E3
E45: Depreciation rate - last 20 years - FE | H45: 0.2 | I45: % | J45: [140321 model.xlsx]FEMO D.'!E4
E46: Depreciation term for first rate - FE | H46: 10 | I46: years
E47: First depreciation term applicable till - FE | H47: 2012-03-31 | I47: date
E48: Depreciation term for last rate - FE | H48: 5 | I48: years
E50: Depreciation rate - first 20 years - NI | H50: 0.1 | I50: % | J50: [140321 model.xlsx]NI2007 D.'!E3
E51: Depreciation rate - last 20 years - NI | H51: 0.2 | I51: % | J51: [140321 model.xlsx]NI2007 D.'!E4
E52: Depreciation term for first rate - NI | H52: 10 | I52: years
E53: First depreciation term applicable till - NI | H53: 2012-03-31 | I53: date
E54: Depreciation term for last rate - NI | H54: 5 | I54: years
E56: Depreciation rate - first 20 years - D5Y | H56: 0.2 | I56: % | J56: [140321 model.xlsx]5 Year D.RAB D.'!$E$3
E57: Depreciation rate - last 20 years - D5Y | H57: 0 | I57: %
E58: Depreciation term for first rate - D5Y | H58: 5 | I58: years
E59: Depreciation term for last rate - D5Y | H59: 0 | I59: years
E61: Depreciation rate - first 20 years - MO5Y | H61: 0.2 | I61: % | J61: [Entitlement Model 28.11.16.xlsx]5 Year MO Dep '!$E$3
E62: Depreciation rate - last 20 years - MO5Y | H62: 0 | I62: %
E63: Depreciation term for first rate - MO5Y | H63: 5 | I63: years | J63: [Entitlement Model 28.11.16.xlsx]5 Year MO Dep '!$D$3
E64: Depreciation term for last rate - MO5Y | H64: 0 | I64: years
C67: Network capex addition override date
E69: ="Network capex addition override date - " & TEXT('Set Up'!H$34, "dd mmm yy") & " - MTRN" -> Network capex addition override date - 01 Apr 93 - MTRN | H69: 00:00:00 | I69: date
E70: ="Network capex addition override date - " & TEXT('Set Up'!H$35, "dd mmm yy") & " - MTRN" -> Network capex addition override date - 01 Apr 94 - MTRN | H70: 00:00:00 | I70: date
E71: ="Network capex addition override date - " & TEXT('Set Up'!H$36, "dd mmm yy") & " - MTRN" -> Network capex addition override date - 01 Apr 95 - MTRN | H71: 00:00:00 | I71: date
E72: ="Network capex addition override date - " & TEXT('Set Up'!H$37, "dd mmm yy") & " - MTRN" -> Network capex addition override date - 01 Apr 96 - MTRN | H72: 00:00:00 | I72: date
E73: ="Network capex addition override date - " & TEXT('Set Up'!H$38, "dd mmm yy") & " - MTRN" -> Network capex addition override date - 01 Apr 97 - MTRN | H73: 00:00:00 | I73: date
E74: ="Network capex addition override date - " & TEXT('Set Up'!H$39, "dd mmm yy") & " - MTRN" -> Network capex addition override date - 01 Apr 98 - MTRN | H74: 00:00:00 | I74: date
E75: ="Network capex addition override date - " & TEXT('Set Up'!H$40, "dd mmm yy") & " - MTRN" -> Network capex addition override date - 01 Apr 99 - MTRN | H75: 00:00:00 | I75: date
E76: ="Network capex addition override date - " & TEXT('Set Up'!H$41, "dd mmm yy") & " - MTRN" -> Network capex addition override date - 01 Apr 00 - MTRN | H76: 00:00:00 | I76: date
E77: ="Network capex addition override date - " & TEXT('Set Up'!H$42, "dd mmm yy") & " - MTRN" -> Network capex addition override date - 01 Apr 01 - MTRN | H77: 00:00:00 | I77: date
E78: ="Network capex addition override date - " & TEXT('Set Up'!H$43, "dd mmm yy") & " - MTRN" -> Network capex addition override date - 01 Apr 02 - MTRN | H78: 00:00:00 | I78: date
E79: ="Network capex addition override date - " & TEXT('Set Up'!H$44, "dd mmm yy") & " - MTRN" -> Network capex addition override date - 01 Apr 03 - MTRN | H79: 2018-11-30 | I79: date
E80: ="Network capex addition override date - " & TEXT('Set Up'!H$45, "dd mmm yy") & " - MTRN" -> Network capex addition override date - 01 Apr 04 - MTRN | H80: 00:00:00 | I80: date
E81: ="Network capex addition override date - " & TEXT('Set Up'!H$46, "dd mmm yy") & " - MTRN" -> Network capex addition override date - 01 Apr 05 - MTRN | H81: 00:00:00 | I81: date
E82: ="Network capex addition override date - " & TEXT('Set Up'!H$47, "dd mmm yy") & " - MTRN" -> Network capex addition override date - 01 Apr 06 - MTRN | H82: 00:00:00 | I82: date
E83: ="Network capex addition override date - " & TEXT('Set Up'!H$48, "dd mmm yy") & " - MTRN" -> Network capex addition override date - 01 Apr 07 - MTRN | H83: 00:00:00 | I83: date
E84: ="Network capex addition override date - " & TEXT('Set Up'!H$49, "dd mmm yy") & " - MTRN" -> Network capex addition override date - 01 Apr 08 - MTRN | H84: 00:00:00 | I84: date
E85: ="Network capex addition override date - " & TEXT('Set Up'!H$50, "dd mmm yy") & " - MTRN" -> Network capex addition override date - 01 Apr 09 - MTRN | H85: 00:00:00 | I85: date
E86: ="Network capex addition override date - " & TEXT('Set Up'!H$51, "dd mmm yy") & " - MTRN" -> Network capex addition override date - 01 Apr 10 - MTRN | H86: 00:00:00 | I86: date
E87: ="Network capex addition override date - " & TEXT('Set Up'!H$52, "dd mmm yy") & " - MTRN" -> Network capex addition override date - 01 Apr 11 - MTRN | H87: 00:00:00 | I87: date
E88: ="Network capex addition override date - " & TEXT('Set Up'!H$53, "dd mmm yy") & " - MTRN" -> Network capex addition override date - 01 Oct 12 - MTRN | H88: 00:00:00 | I88: date
E89: ="Network capex addition override date - " & TEXT('Set Up'!H$54, "dd mmm yy") & " - MTRN" -> Network capex addition override date - 01 Oct 13 - MTRN | H89: 00:00:00 | I89: date
E90: ="Network capex addition override date - " & TEXT('Set Up'!H$55, "dd mmm yy") & " - MTRN" -> Network capex addition override date - 01 Oct 14 - MTRN | H90: 00:00:00 | I90: date
E91: ="Network capex addition override date - " & TEXT('Set Up'!H$56, "dd mmm yy") & " - MTRN" -> Network capex addition override date - 01 Oct 15 - MTRN | H91: 00:00:00 | I91: date
E92: ="Network capex addition override date - " & TEXT('Set Up'!H$57, "dd mmm yy") & " - MTRN" -> Network capex addition override date - 01 Oct 16 - MTRN | H92: 00:00:00 | I92: date
E93: ="Network capex addition override date - " & TEXT('Set Up'!H$58, "dd mmm yy") & " - MTRN" -> Network capex addition override date - 01 Oct 17 - MTRN | H93: 00:00:00 | I93: date
C96: Network capex depreciation
E98: ="Network capex add - " & TEXT('Set Up'!H$34, "dd mmm yy") & " - price base 2010 - DN" -> Network capex add - 01 Apr 93 - price base 2010 - DN | H98: 25.45092065 | I98: GBP m | J98: [140321 model.xlsx]Distribution RAB'!$A$19
E99: ="Network capex add - " & TEXT('Set Up'!H$35, "dd mmm yy") & " - price base 2010 - DN" -> Network capex add - 01 Apr 94 - price base 2010 - DN | H99: 44.68306768 | I99: GBP m
E100: ="Network capex add - " & TEXT('Set Up'!H$36, "dd mmm yy") & " - price base 2010 - DN" -> Network capex add - 01 Apr 95 - price base 2010 - DN | H100: 52.05349362 | I100: GBP m
E101: ="Network capex add - " & TEXT('Set Up'!H$37, "dd mmm yy") & " - price base 2010 - DN" -> Network capex add - 01 Apr 96 - price base 2010 - DN | H101: 56.89030573 | I101: GBP m
E102: ="Network capex add - " & TEXT('Set Up'!H$38, "dd mmm yy") & " - price base 2010 - DN" -> Network capex add - 01 Apr 97 - price base 2010 - DN | H102: 55.42313514 | I102: GBP m
E103: ="Network capex add - " & TEXT('Set Up'!H$39, "dd mmm yy") & " - price base 2010 - DN" -> Network capex add - 01 Apr 98 - price base 2010 - DN | H103: 56.27416216 | I103: GBP m
E104: ="Network capex add - " & TEXT('Set Up'!H$40, "dd mmm yy") & " - price base 2010 - DN" -> Network capex add - 01 Apr 99 - price base 2010 - DN | H104: 77.33708108 | I104: GBP m
E105: ="Network capex add - " & TEXT('Set Up'!H$41, "dd mmm yy") & " - price base 2010 - DN" -> Network capex add - 01 Apr 00 - price base 2010 - DN | H105: 77.65621622 | I105: GBP m
E106: ="Network capex add - " & TEXT('Set Up'!H$42, "dd mmm yy") & " - price base 2010 - DN" -> Network capex add - 01 Apr 01 - price base 2010 - DN | H106: 61.06118919 | I106: GBP m
E107: ="Network capex add - " & TEXT('Set Up'!H$43, "dd mmm yy") & " - price base 2010 - DN" -> Network capex add - 01 Apr 02 - price base 2010 - DN | H107: 47.21201728 | I107: GBP m
E108: ="Network capex add - " & TEXT('Set Up'!H$44, "dd mmm yy") & " - price base 2010 - DN" -> Network capex add - 01 Apr 03 - price base 2010 - DN | H108: 48.18920858 | I108: GBP m
E109: ="Network capex add - " & TEXT('Set Up'!H$45, "dd mmm yy") & " - price base 2010 - DN" -> Network capex add - 01 Apr 04 - price base 2010 - DN | H109: 39.38347906 | I109: GBP m
E110: ="Network capex add - " & TEXT('Set Up'!H$46, "dd mmm yy") & " - price base 2010 - DN" -> Network capex add - 01 Apr 05 - price base 2010 - DN | H110: 44.22136308 | I110: GBP m
E111: ="Network capex add - " & TEXT('Set Up'!H$47, "dd mmm yy") & " - price base 2010 - DN" -> Network capex add - 01 Apr 06 - price base 2010 - DN | H111: 49.73837425 | I111: GBP m
E112: ="Network capex add - " & TEXT('Set Up'!H$48, "dd mmm yy") & " - price base 2010 - DN" -> Network capex add - 01 Apr 07 - price base 2010 - DN | H112: 52.06878411 | I112: GBP m
E113: ="Network capex add - " & TEXT('Set Up'!H$49, "dd mmm yy") & " - price base 2010 - DN" -> Network capex add - 01 Apr 08 - price base 2010 - DN | H113: 58.04423234 | I113: GBP m
E114: ="Network capex add - " & TEXT('Set Up'!H$50, "dd mmm yy") & " - price base 2010 - DN" -> Network capex add - 01 Apr 09 - price base 2010 - DN | H114: 58.74097935 | I114: GBP m
E115: ="Network capex add - " & TEXT('Set Up'!H$51, "dd mmm yy") & " - price base 2010 - DN" -> Network capex add - 01 Apr 10 - price base 2010 - DN | H115: 58.62173294 | I115: GBP m
E116: ="Network capex add - " & TEXT('Set Up'!H$52, "dd mmm yy") & " - price base 2010 - DN" -> Network capex add - 01 Apr 11 - price base 2010 - DN | H116: 54.29106274 | I116: GBP m
E117: ="Network capex add - " & TEXT('Set Up'!H$53, "dd mmm yy") & " - price base 2010 - DN" -> Network capex add - 01 Oct 12 - price base 2010 - DN | H117: 0 | I117: GBP m
E118: ="Network capex add - " & TEXT('Set Up'!H$54, "dd mmm yy") & " - price base 2010 - DN" -> Network capex add - 01 Oct 13 - price base 2010 - DN | H118: 0 | I118: GBP m
E119: ="Network capex add - " & TEXT('Set Up'!H$55, "dd mmm yy") & " - price base 2010 - DN" -> Network capex add - 01 Oct 14 - price base 2010 - DN | H119: 0 | I119: GBP m
E120: ="Network capex add - " & TEXT('Set Up'!H$56, "dd mmm yy") & " - price base 2010 - DN" -> Network capex add - 01 Oct 15 - price base 2010 - DN | H120: 0 | I120: GBP m
E121: ="Network capex add - " & TEXT('Set Up'!H$57, "dd mmm yy") & " - price base 2010 - DN" -> Network capex add - 01 Oct 16 - price base 2010 - DN | H121: 0 | I121: GBP m
E122: ="Network capex add - " & TEXT('Set Up'!H$58, "dd mmm yy") & " - price base 2010 - DN" -> Network capex add - 01 Oct 17 - price base 2010 - DN | H122: 0 | I122: GBP m
E124: ="Network capex add - " & TEXT('Set Up'!H$34, "dd mmm yy") & " - price base 2010 - ES" -> Network capex add - 01 Apr 93 - price base 2010 - ES | H124: 0 | I124: GBP m | J124: [140321 model.xlsx]Enduring Solution RAB'!$A$12
E125: ="Network capex add - " & TEXT('Set Up'!H$35, "dd mmm yy") & " - price base 2010 - ES" -> Network capex add - 01 Apr 94 - price base 2010 - ES | H125: 0 | I125: GBP m
E126: ="Network capex add - " & TEXT('Set Up'!H$36, "dd mmm yy") & " - price base 2010 - ES" -> Network capex add - 01 Apr 95 - price base 2010 - ES | H126: 0 | I126: GBP m
E127: ="Network capex add - " & TEXT('Set Up'!H$37, "dd mmm yy") & " - price base 2010 - ES" -> Network capex add - 01 Apr 96 - price base 2010 - ES | H127: 0 | I127: GBP m
E128: ="Network capex add - " & TEXT('Set Up'!H$38, "dd mmm yy") & " - price base 2010 - ES" -> Network capex add - 01 Apr 97 - price base 2010 - ES | H128: 0 | I128: GBP m
E129: ="Network capex add - " & TEXT('Set Up'!H$39, "dd mmm yy") & " - price base 2010 - ES" -> Network capex add - 01 Apr 98 - price base 2010 - ES | H129: 0 | I129: GBP m
E130: ="Network capex add - " & TEXT('Set Up'!H$40, "dd mmm yy") & " - price base 2010 - ES" -> Network capex add - 01 Apr 99 - price base 2010 - ES | H130: 0 | I130: GBP m
E131: ="Network capex add - " & TEXT('Set Up'!H$41, "dd mmm yy") & " - price base 2010 - ES" -> Network capex add - 01 Apr 00 - price base 2010 - ES | H131: 0 | I131: GBP m
E132: ="Network capex add - " & TEXT('Set Up'!H$42, "dd mmm yy") & " - price base 2010 - ES" -> Network capex add - 01 Apr 01 - price base 2010 - ES | H132: 0 | I132: GBP m
E133: ="Network capex add - " & TEXT('Set Up'!H$43, "dd mmm yy") & " - price base 2010 - ES" -> Network capex add - 01 Apr 02 - price base 2010 - ES | H133: 0 | I133: GBP m
E134: ="Network capex add - " & TEXT('Set Up'!H$44, "dd mmm yy") & " - price base 2010 - ES" -> Network capex add - 01 Apr 03 - price base 2010 - ES | H134: 0 | I134: GBP m
E135: ="Network capex add - " & TEXT('Set Up'!H$45, "dd mmm yy") & " - price base 2010 - ES" -> Network capex add - 01 Apr 04 - price base 2010 - ES | H135: 0 | I135: GBP m
E136: ="Network capex add - " & TEXT('Set Up'!H$46, "dd mmm yy") & " - price base 2010 - ES" -> Network capex add - 01 Apr 05 - price base 2010 - ES | H136: 0 | I136: GBP m
E137: ="Network capex add - " & TEXT('Set Up'!H$47, "dd mmm yy") & " - price base 2010 - ES" -> Network capex add - 01 Apr 06 - price base 2010 - ES | H137: 0 | I137: GBP m
E138: ="Network capex add - " & TEXT('Set Up'!H$48, "dd mmm yy") & " - price base 2010 - ES" -> Network capex add - 01 Apr 07 - price base 2010 - ES | H138: 0 | I138: GBP m
E139: ="Network capex add - " & TEXT('Set Up'!H$49, "dd mmm yy") & " - price base 2010 - ES" -> Network capex add - 01 Apr 08 - price base 2010 - ES | H139: 0 | I139: GBP m
E140: ="Network capex add - " & TEXT('Set Up'!H$50, "dd mmm yy") & " - price base 2010 - ES" -> Network capex add - 01 Apr 09 - price base 2010 - ES | H140: 0 | I140: GBP m
E141: ="Network capex add - " & TEXT('Set Up'!H$51, "dd mmm yy") & " - price base 2010 - ES" -> Network capex add - 01 Apr 10 - price base 2010 - ES | H141: 10.18703624 | I141: GBP m
E142: ="Network capex add - " & TEXT('Set Up'!H$52, "dd mmm yy") & " - price base 2010 - ES" -> Network capex add - 01 Apr 11 - price base 2010 - ES | H142: 11.02574316 | I142: GBP m
E143: ="Network capex add - " & TEXT('Set Up'!H$53, "dd mmm yy") & " - price base 2010 - ES" -> Network capex add - 01 Oct 12 - price base 2010 - ES | H143: 0 | I143: GBP m
E144: ="Network capex add - " & TEXT('Set Up'!H$54, "dd mmm yy") & " - price base 2010 - ES" -> Network capex add - 01 Oct 13 - price base 2010 - ES | H144: 0 | I144: GBP m
E145: ="Network capex add - " & TEXT('Set Up'!H$55, "dd mmm yy") & " - price base 2010 - ES" -> Network capex add - 01 Oct 14 - price base 2010 - ES | H145: 0 | I145: GBP m
E146: ="Network capex add - " & TEXT('Set Up'!H$56, "dd mmm yy") & " - price base 2010 - ES" -> Network capex add - 01 Oct 15 - price base 2010 - ES | H146: 0 | I146: GBP m
E147: ="Network capex add - " & TEXT('Set Up'!H$57, "dd mmm yy") & " - price base 2010 - ES" -> Network capex add - 01 Oct 16 - price base 2010 - ES | H147: 0 | I147: GBP m
E148: ="Network capex add - " & TEXT('Set Up'!H$58, "dd mmm yy") & " - price base 2010 - ES" -> Network capex add - 01 Oct 17 - price base 2010 - ES | H148: 0 | I148: GBP m
E150: ="Network capex add - " & TEXT('Set Up'!H$34, "dd mmm yy") & " - price base 2010 - MTRN" -> Network capex add - 01 Apr 93 - price base 2010 - MTRN | H150: 0 | I150: GBP m | J150: [140321 model.xlsx]Keypad RAB'!$A$11 + '[140321 model.xlsx]Keypad RAB'!$A$18
E151: ="Network capex add - " & TEXT('Set Up'!H$35, "dd mmm yy") & " - price base 2010 - MTRN" -> Network capex add - 01 Apr 94 - price base 2010 - MTRN | H151: 0 | I151: GBP m
E152: ="Network capex add - " & TEXT('Set Up'!H$36, "dd mmm yy") & " - price base 2010 - MTRN" -> Network capex add - 01 Apr 95 - price base 2010 - MTRN | H152: 0 | I152: GBP m
E153: ="Network capex add - " & TEXT('Set Up'!H$37, "dd mmm yy") & " - price base 2010 - MTRN" -> Network capex add - 01 Apr 96 - price base 2010 - MTRN | H153: 0 | I153: GBP m
E154: ="Network capex add - " & TEXT('Set Up'!H$38, "dd mmm yy") & " - price base 2010 - MTRN" -> Network capex add - 01 Apr 97 - price base 2010 - MTRN | H154: 0 | I154: GBP m
E155: ="Network capex add - " & TEXT('Set Up'!H$39, "dd mmm yy") & " - price base 2010 - MTRN" -> Network capex add - 01 Apr 98 - price base 2010 - MTRN | H155: 0 | I155: GBP m
E156: ="Network capex add - " & TEXT('Set Up'!H$40, "dd mmm yy") & " - price base 2010 - MTRN" -> Network capex add - 01 Apr 99 - price base 2010 - MTRN | H156: 0 | I156: GBP m
E157: ="Network capex add - " & TEXT('Set Up'!H$41, "dd mmm yy") & " - price base 2010 - MTRN" -> Network capex add - 01 Apr 00 - price base 2010 - MTRN | H157: 0 | I157: GBP m
E158: ="Network capex add - " & TEXT('Set Up'!H$42, "dd mmm yy") & " - price base 2010 - MTRN" -> Network capex add - 01 Apr 01 - price base 2010 - MTRN | H158: 0 | I158: GBP m
E159: ="Network capex add - " & TEXT('Set Up'!H$43, "dd mmm yy") & " - price base 2010 - MTRN" -> Network capex add - 01 Apr 02 - price base 2010 - MTRN | H159: 0 | I159: GBP m
E160: ="Network capex add - " & TEXT('Set Up'!H$44, "dd mmm yy") & " - price base 2010 - MTRN" -> Network capex add - 01 Apr 03 - price base 2010 - MTRN | H160: 15.18203925 | I160: GBP m
E161: ="Network capex add - " & TEXT('Set Up'!H$45, "dd mmm yy") & " - price base 2010 - MTRN" -> Network capex add - 01 Apr 04 - price base 2010 - MTRN | H161: 0 | I161: GBP m
E162: ="Network capex add - " & TEXT('Set Up'!H$46, "dd mmm yy") & " - price base 2010 - MTRN" -> Network capex add - 01 Apr 05 - price base 2010 - MTRN | H162: 0 | I162: GBP m
E163: ="Network capex add - " & TEXT('Set Up'!H$47, "dd mmm yy") & " - price base 2010 - MTRN" -> Network capex add - 01 Apr 06 - price base 2010 - MTRN | H163: 0 | I163: GBP m
E164: ="Network capex add - " & TEXT('Set Up'!H$48, "dd mmm yy") & " - price base 2010 - MTRN" -> Network capex add - 01 Apr 07 - price base 2010 - MTRN | H164: 1.307398193 | I164: GBP m | J164: ('[140321 model.xlsx]Keypad RAB'!$P$12)
E165: ="Network capex add - " & TEXT('Set Up'!H$49, "dd mmm yy") & " - price base 2010 - MTRN" -> Network capex add - 01 Apr 08 - price base 2010 - MTRN | H165: 2.328915522 | I165: GBP m
E166: ="Network capex add - " & TEXT('Set Up'!H$50, "dd mmm yy") & " - price base 2010 - MTRN" -> Network capex add - 01 Apr 09 - price base 2010 - MTRN | H166: 1.90728402 | I166: GBP m
E167: ="Network capex add - " & TEXT('Set Up'!H$51, "dd mmm yy") & " - price base 2010 - MTRN" -> Network capex add - 01 Apr 10 - price base 2010 - MTRN | H167: 1.870765477 | I167: GBP m
E168: ="Network capex add - " & TEXT('Set Up'!H$52, "dd mmm yy") & " - price base 2010 - MTRN" -> Network capex add - 01 Apr 11 - price base 2010 - MTRN | H168: 1.868158252 | I168: GBP m
E169: ="Network capex add - " & TEXT('Set Up'!H$53, "dd mmm yy") & " - price base 2010 - MTRN" -> Network capex add - 01 Oct 12 - price base 2010 - MTRN | H169: 0 | I169: GBP m
E170: ="Network capex add - " & TEXT('Set Up'!H$54, "dd mmm yy") & " - price base 2010 - MTRN" -> Network capex add - 01 Oct 13 - price base 2010 - MTRN | H170: 0 | I170: GBP m
E171: ="Network capex add - " & TEXT('Set Up'!H$55, "dd mmm yy") & " - price base 2010 - MTRN" -> Network capex add - 01 Oct 14 - price base 2010 - MTRN | H171: 0 | I171: GBP m
E172: ="Network capex add - " & TEXT('Set Up'!H$56, "dd mmm yy") & " - price base 2010 - MTRN" -> Network capex add - 01 Oct 15 - price base 2010 - MTRN | H172: 0 | I172: GBP m
E173: ="Network capex add - " & TEXT('Set Up'!H$57, "dd mmm yy") & " - price base 2010 - MTRN" -> Network capex add - 01 Oct 16 - price base 2010 - MTRN | H173: 0 | I173: GBP m
E174: ="Network capex add - " & TEXT('Set Up'!H$58, "dd mmm yy") & " - price base 2010 - MTRN" -> Network capex add - 01 Oct 17 - price base 2010 - MTRN | H174: 0 | I174: GBP m
E176: ="Network capex add - " & TEXT('Set Up'!H$34, "dd mmm yy") & " - price base 2010 - RT" -> Network capex add - 01 Apr 93 - price base 2010 - RT | H176: 0 | I176: GBP m | J176: [140321 model.xlsx]Rathlin RAB'!$A$12
E177: ="Network capex add - " & TEXT('Set Up'!H$35, "dd mmm yy") & " - price base 2010 - RT" -> Network capex add - 01 Apr 94 - price base 2010 - RT | H177: 0 | I177: GBP m
E178: ="Network capex add - " & TEXT('Set Up'!H$36, "dd mmm yy") & " - price base 2010 - RT" -> Network capex add - 01 Apr 95 - price base 2010 - RT | H178: 0 | I178: GBP m
E179: ="Network capex add - " & TEXT('Set Up'!H$37, "dd mmm yy") & " - price base 2010 - RT" -> Network capex add - 01 Apr 96 - price base 2010 - RT | H179: 0 | I179: GBP m
E180: ="Network capex add - " & TEXT('Set Up'!H$38, "dd mmm yy") & " - price base 2010 - RT" -> Network capex add - 01 Apr 97 - price base 2010 - RT | H180: 0 | I180: GBP m
E181: ="Network capex add - " & TEXT('Set Up'!H$39, "dd mmm yy") & " - price base 2010 - RT" -> Network capex add - 01 Apr 98 - price base 2010 - RT | H181: 0 | I181: GBP m
E182: ="Network capex add - " & TEXT('Set Up'!H$40, "dd mmm yy") & " - price base 2010 - RT" -> Network capex add - 01 Apr 99 - price base 2010 - RT | H182: 0 | I182: GBP m
E183: ="Network capex add - " & TEXT('Set Up'!H$41, "dd mmm yy") & " - price base 2010 - RT" -> Network capex add - 01 Apr 00 - price base 2010 - RT | H183: 0 | I183: GBP m
E184: ="Network capex add - " & TEXT('Set Up'!H$42, "dd mmm yy") & " - price base 2010 - RT" -> Network capex add - 01 Apr 01 - price base 2010 - RT | H184: 0 | I184: GBP m
E185: ="Network capex add - " & TEXT('Set Up'!H$43, "dd mmm yy") & " - price base 2010 - RT" -> Network capex add - 01 Apr 02 - price base 2010 - RT | H185: 0 | I185: GBP m
E186: ="Network capex add - " & TEXT('Set Up'!H$44, "dd mmm yy") & " - price base 2010 - RT" -> Network capex add - 01 Apr 03 - price base 2010 - RT | H186: 0 | I186: GBP m
E187: ="Network capex add - " & TEXT('Set Up'!H$45, "dd mmm yy") & " - price base 2010 - RT" -> Network capex add - 01 Apr 04 - price base 2010 - RT | H187: 0 | I187: GBP m
E188: ="Network capex add - " & TEXT('Set Up'!H$46, "dd mmm yy") & " - price base 2010 - RT" -> Network capex add - 01 Apr 05 - price base 2010 - RT | H188: 0 | I188: GBP m
E189: ="Network capex add - " & TEXT('Set Up'!H$47, "dd mmm yy") & " - price base 2010 - RT" -> Network capex add - 01 Apr 06 - price base 2010 - RT | H189: 0 | I189: GBP m
E190: ="Network capex add - " & TEXT('Set Up'!H$48, "dd mmm yy") & " - price base 2010 - RT" -> Network capex add - 01 Apr 07 - price base 2010 - RT | H190: 4.510854656 | I190: GBP m
E191: ="Network capex add - " & TEXT('Set Up'!H$49, "dd mmm yy") & " - price base 2010 - RT" -> Network capex add - 01 Apr 08 - price base 2010 - RT | H191: 0.05938114837 | I191: GBP m
E192: ="Network capex add - " & TEXT('Set Up'!H$50, "dd mmm yy") & " - price base 2010 - RT" -> Network capex add - 01 Apr 09 - price base 2010 - RT | H192: 0 | I192: GBP m
E193: ="Network capex add - " & TEXT('Set Up'!H$51, "dd mmm yy") & " - price base 2010 - RT" -> Network capex add - 01 Apr 10 - price base 2010 - RT | H193: 0.01052259 | I193: GBP m
E194: ="Network capex add - " & TEXT('Set Up'!H$52, "dd mmm yy") & " - price base 2010 - RT" -> Network capex add - 01 Apr 11 - price base 2010 - RT | H194: 0 | I194: GBP m
E195: ="Network capex add - " & TEXT('Set Up'!H$53, "dd mmm yy") & " - price base 2010 - RT" -> Network capex add - 01 Oct 12 - price base 2010 - RT | H195: 0 | I195: GBP m
E196: ="Network capex add - " & TEXT('Set Up'!H$54, "dd mmm yy") & " - price base 2010 - RT" -> Network capex add - 01 Oct 13 - price base 2010 - RT | H196: 0 | I196: GBP m
E197: ="Network capex add - " & TEXT('Set Up'!H$55, "dd mmm yy") & " - price base 2010 - RT" -> Network capex add - 01 Oct 14 - price base 2010 - RT | H197: 0 | I197: GBP m
E198: ="Network capex add - " & TEXT('Set Up'!H$56, "dd mmm yy") & " - price base 2010 - RT" -> Network capex add - 01 Oct 15 - price base 2010 - RT | H198: 0 | I198: GBP m
E199: ="Network capex add - " & TEXT('Set Up'!H$57, "dd mmm yy") & " - price base 2010 - RT" -> Network capex add - 01 Oct 16 - price base 2010 - RT | H199: 0 | I199: GBP m
E200: ="Network capex add - " & TEXT('Set Up'!H$58, "dd mmm yy") & " - price base 2010 - RT" -> Network capex add - 01 Oct 17 - price base 2010 - RT | H200: 0 | I200: GBP m
E202: ="Network capex add - " & TEXT('Set Up'!H$34, "dd mmm yy") & " - price base 2010 - FE" -> Network capex add - 01 Apr 93 - price base 2010 - FE | H202: 0 | I202: GBP m | J202: [140321 model.xlsx]FEMO RAB'!$A$12:A13
E203: ="Network capex add - " & TEXT('Set Up'!H$35, "dd mmm yy") & " - price base 2010 - FE" -> Network capex add - 01 Apr 94 - price base 2010 - FE | H203: 0 | I203: GBP m
E204: ="Network capex add - " & TEXT('Set Up'!H$36, "dd mmm yy") & " - price base 2010 - FE" -> Network capex add - 01 Apr 95 - price base 2010 - FE | H204: 0 | I204: GBP m
E205: ="Network capex add - " & TEXT('Set Up'!H$37, "dd mmm yy") & " - price base 2010 - FE" -> Network capex add - 01 Apr 96 - price base 2010 - FE | H205: 0 | I205: GBP m
E206: ="Network capex add - " & TEXT('Set Up'!H$38, "dd mmm yy") & " - price base 2010 - FE" -> Network capex add - 01 Apr 97 - price base 2010 - FE | H206: 0 | I206: GBP m
E207: ="Network capex add - " & TEXT('Set Up'!H$39, "dd mmm yy") & " - price base 2010 - FE" -> Network capex add - 01 Apr 98 - price base 2010 - FE | H207: 0 | I207: GBP m
E208: ="Network capex add - " & TEXT('Set Up'!H$40, "dd mmm yy") & " - price base 2010 - FE" -> Network capex add - 01 Apr 99 - price base 2010 - FE | H208: 0 | I208: GBP m
E209: ="Network capex add - " & TEXT('Set Up'!H$41, "dd mmm yy") & " - price base 2010 - FE" -> Network capex add - 01 Apr 00 - price base 2010 - FE | H209: 0 | I209: GBP m
E210: ="Network capex add - " & TEXT('Set Up'!H$42, "dd mmm yy") & " - price base 2010 - FE" -> Network capex add - 01 Apr 01 - price base 2010 - FE | H210: 0 | I210: GBP m
E211: ="Network capex add - " & TEXT('Set Up'!H$43, "dd mmm yy") & " - price base 2010 - FE" -> Network capex add - 01 Apr 02 - price base 2010 - FE | H211: 0 | I211: GBP m
E212: ="Network capex add - " & TEXT('Set Up'!H$44, "dd mmm yy") & " - price base 2010 - FE" -> Network capex add - 01 Apr 03 - price base 2010 - FE | H212: 0 | I212: GBP m
E213: ="Network capex add - " & TEXT('Set Up'!H$45, "dd mmm yy") & " - price base 2010 - FE" -> Network capex add - 01 Apr 04 - price base 2010 - FE | H213: 6.870299933 | I213: GBP m
E214: ="Network capex add - " & TEXT('Set Up'!H$46, "dd mmm yy") & " - price base 2010 - FE" -> Network capex add - 01 Apr 05 - price base 2010 - FE | H214: 4.354976378 | I214: GBP m
E215: ="Network capex add - " & TEXT('Set Up'!H$47, "dd mmm yy") & " - price base 2010 - FE" -> Network capex add - 01 Apr 06 - price base 2010 - FE | H215: 2.375884696 | I215: GBP m
E216: ="Network capex add - " & TEXT('Set Up'!H$48, "dd mmm yy") & " - price base 2010 - FE" -> Network capex add - 01 Apr 07 - price base 2010 - FE | H216: 0 | I216: GBP m
E217: ="Network capex add - " & TEXT('Set Up'!H$49, "dd mmm yy") & " - price base 2010 - FE" -> Network capex add - 01 Apr 08 - price base 2010 - FE | H217: 0 | I217: GBP m
E218: ="Network capex add - " & TEXT('Set Up'!H$50, "dd mmm yy") & " - price base 2010 - FE" -> Network capex add - 01 Apr 09 - price base 2010 - FE | H218: 0 | I218: GBP m
E219: ="Network capex add - " & TEXT('Set Up'!H$51, "dd mmm yy") & " - price base 2010 - FE" -> Network capex add - 01 Apr 10 - price base 2010 - FE | H219: 0 | I219: GBP m
E220: ="Network capex add - " & TEXT('Set Up'!H$52, "dd mmm yy") & " - price base 2010 - FE" -> Network capex add - 01 Apr 11 - price base 2010 - FE | H220: 0 | I220: GBP m
E221: ="Network capex add - " & TEXT('Set Up'!H$53, "dd mmm yy") & " - price base 2010 - FE" -> Network capex add - 01 Oct 12 - price base 2010 - FE | H221: 0 | I221: GBP m
E222: ="Network capex add - " & TEXT('Set Up'!H$54, "dd mmm yy") & " - price base 2010 - FE" -> Network capex add - 01 Oct 13 - price base 2010 - FE | H222: 0 | I222: GBP m
E223: ="Network capex add - " & TEXT('Set Up'!H$55, "dd mmm yy") & " - price base 2010 - FE" -> Network capex add - 01 Oct 14 - price base 2010 - FE | H223: 0 | I223: GBP m
E224: ="Network capex add - " & TEXT('Set Up'!H$56, "dd mmm yy") & " - price base 2010 - FE" -> Network capex add - 01 Oct 15 - price base 2010 - FE | H224: 0 | I224: GBP m
E225: ="Network capex add - " & TEXT('Set Up'!H$57, "dd mmm yy") & " - price base 2010 - FE" -> Network capex add - 01 Oct 16 - price base 2010 - FE | H225: 0 | I225: GBP m
... 680 more rows

Sheet Time
A1: =RIGHT(CELL("filename", $A$1), LEN(CELL("filename", $A$1)) - SEARCH("]", CELL("filename", $A$1))) -> Time
E2: =Time!E$23 -> Model period ending | H2: =Check!$H$9 -> 0 | I2: Error chks | M2: =Time!M$23 -> 2012-03-31 | N2: =Time!N$23 -> 2013-03-31 | O2: =Time!O$23 -> 2014-03-31 | P2: =Time!P$23 -> 2015-03-31 | Q2: =Time!Q$23 -> 2016-03-31 | R2: =Time!R$23 -> 2017-03-31 | S2: =Time!S$23 -> 2018-03-31 | T2: =Time!T$23 -> 2019-03-31 | U2: =Time!U$23 -> 2020-03-31
E3: =Time!E$153 -> Timeline label | H3: =Track!$M$2 -> 0 | I3: Track chgs | M3: =Time!M$153 -> RP4 | N3: =Time!N$153 -> RP5 | O3: =Time!O$153 -> RP5 | P3: =Time!P$153 -> RP5 | Q3: =Time!Q$153 -> RP5 | R3: =Time!R$153 -> RP5 | S3: =Time!S$153 -> RP5 / RP6 | T3: =Time!T$153 -> RP6 | U3: =Time!U$153 -> RP6
E4: =Time!E$36 -> Financial year ending | H4: =Check!$H$38 -> 0 | I4: Alerts | M4: =Time!M$36 -> 2012 | N4: =Time!N$36 -> 2013 | O4: =Time!O$36 -> 2014 | P4: =Time!P$36 -> 2015 | Q4: =Time!Q$36 -> 2016 | R4: =Time!R$36 -> 2017 | S4: =Time!S$36 -> 2018 | T4: =Time!T$36 -> 2019 | U4: =Time!U$36 -> 2020
E5: =Time!E$10 -> Model column counter | F5: Para references | G5: Defined Term | H5: Constant | I5: Unit | K5: Total | M5: =Time!M$10 -> 1 | N5: =Time!N$10 -> 2 | O5: =Time!O$10 -> 3 | P5: =Time!P$10 -> 4 | Q5: =Time!Q$10 -> 5 | R5: =Time!R$10 -> 6 | S5: =Time!S$10 -> 7 | T5: =Time!T$10 -> 8 | U5: =Time!U$10 -> 9
A7: MODEL PERIOD
B9: Model column counter
E10: Model column counter | I10: counter | M10: =L10 + 1 -> 1 | N10: 2 | O10: 3 | P10: 4 | Q10: 5 | R10: =Q10 + 1 -> 6 | S10: 7 | T10: 8 | U10: 9
E11: Model column total | H11: =MAX(M10:U10) -> 9 | I11: columns
E13: =E$10 -> Model column counter | F13: 0 | G13: 0 | H13: 0 | I13: counter | J13: 0 | K13: 0 | L13: 0 | M13: 1 | N13: 2 | O13: 3 | P13: 4 | Q13: 5 | R13: =R$10 -> 6 | S13: 7 | T13: 8 | U13: 9
E14: 1st Model column flag | I14: flag | K14: =SUM(M14:U14) -> 1 | M14: =IF(M13 = 1, 1, 0) -> 1 | N14: 0 | O14: 0 | P14: 0 | Q14: 0 | R14: =IF(R13 = 1, 1, 0) -> 0 | S14: 0 | T14: 0 | U14: 0
E16: ='Set Up'!E$13 -> 1st model column start date | F16: ='Set Up'!F$13 -> 00:00:00 | G16: ='Set Up'!G$13 -> 00:00:00 | H16: ='Set Up'!H$13 -> 2011-04-01 | I16: ='Set Up'!I$13 -> date
E17: ='Set Up'!E$14 -> Months per model period | F17: ='Set Up'!F$14 -> 0 | G17: ='Set Up'!G$14 -> 0 | H17: ='Set Up'!H$14 -> 12 | I17: ='Set Up'!I$14 -> months
E18: =E$14 -> 1st Model column flag | F18: 0 | G18: 0 | H18: 0 | I18: flag | J18: 0 | K18: 1 | L18: 0 | M18: 1 | N18: 0 | O18: 0 | P18: 0 | Q18: 0 | R18: =R$14 -> 0 | S18: 0 | T18: 0 | U18: 0
E19: Model period beginning | I19: date | M19: =IF(M18 = 1, $H16, DATE(YEAR(L19), MONTH(L19) + $H17, DAY(1))) -> 2011-04-01 | N19: 2012-04-01 | O19: 2013-04-01 | P19: 2014-04-01 | Q19: 2015-04-01 | R19: =IF(R18 = 1, $H16, DATE(YEAR(Q19), MONTH(Q19) + $H17, DAY(1))) -> 2016-04-01 | S19: 2017-04-01 | T19: 2018-04-01 | U19: 2019-04-01
E21: ='Set Up'!E$14 -> Months per model period | F21: ='Set Up'!F$14 -> 0 | G21: ='Set Up'!G$14 -> 0 | H21: ='Set Up'!H$14 -> 12 | I21: ='Set Up'!I$14 -> months
E22: =E$19 -> Model period beginning | F22: 00:00:00 | G22: 00:00:00 | H22: 00:00:00 | I22: date | J22: 00:00:00 | K22: 00:00:00 | L22: 00:00:00 | M22: 2011-04-01 | N22: 2012-04-01 | O22: 2013-04-01 | P22: 2014-04-01 | Q22: 2015-04-01 | R22: =R$19 -> 2016-04-01 | S22: 2017-04-01 | T22: 2018-04-01 | U22: 2019-04-01
E23: Model period ending | I23: date | M23: =DATE(YEAR(M22), MONTH(M22) + $H21, DAY(M22) -1) -> 2012-03-31 | N23: 2013-03-31 | O23: 2014-03-31 | P23: 2015-03-31 | Q23: 2016-03-31 | R23: =DATE(YEAR(R22), MONTH(R22) + $H21, DAY(R22) -1) -> 2017-03-31 | S23: 2018-03-31 | T23: 2019-03-31 | U23: 2020-03-31
E25: =E$23 -> Model period ending | F25: 00:00:00 | G25: 00:00:00 | H25: 00:00:00 | I25: date | J25: 00:00:00 | K25: 00:00:00 | L25: 00:00:00 | M25: 2012-03-31 | N25: 2013-03-31 | O25: 2014-03-31 | P25: 2015-03-31 | Q25: 2016-03-31 | R25: =R$23 -> 2017-03-31 | S25: 2018-03-31 | T25: 2019-03-31 | U25: 2020-03-31
D26: less | E26: =E$19 -> Model period beginning | F26: 00:00:00 | G26: 00:00:00 | H26: 00:00:00 | I26: date | J26: 00:00:00 | K26: 00:00:00 | L26: 00:00:00 | M26: 2011-04-01 | N26: 2012-04-01 | O26: 2013-04-01 | P26: 2014-04-01 | Q26: 2015-04-01 | R26: =R$19 -> 2016-04-01 | S26: 2017-04-01 | T26: 2018-04-01 | U26: 2019-04-01
E27: Days in model period | I27: days | K27: =SUM(M27:U27) -> 3288 | M27: =M25 - M26 + 1 -> 366 | N27: 365 | O27: 365 | P27: 365 | Q27: 366 | R27: =R25 - R26 + 1 -> 365 | S27: 365 | T27: 365 | U27: 366
A30: FINANCIAL YEAR
E32: ='Set Up'!E$16 -> First modelling column financial year number | F32: ='Set Up'!F$16 -> 0 | G32: ='Set Up'!G$16 -> 0 | H32: ='Set Up'!H$16 -> 2012 | I32: ='Set Up'!I$16 -> year #
E33: ='Set Up'!E$17 -> Financial year end month number | F33: ='Set Up'!F$17 -> 0 | G33: ='Set Up'!G$17 -> 0 | H33: ='Set Up'!H$17 -> 3 | I33: ='Set Up'!I$17 -> month #
E34: =E$23 -> Model period ending | F34: 00:00:00 | G34: 00:00:00 | H34: 00:00:00 | I34: date | J34: 00:00:00 | K34: 00:00:00 | L34: 00:00:00 | M34: 2012-03-31 | N34: 2013-03-31 | O34: 2014-03-31 | P34: 2015-03-31 | Q34: 2016-03-31 | R34: =R$23 -> 2017-03-31 | S34: 2018-03-31 | T34: 2019-03-31 | U34: 2020-03-31
E35: =E$14 -> 1st Model column flag | F35: 0 | G35: 0 | H35: 0 | I35: flag | J35: 0 | K35: 1 | L35: 0 | M35: 1 | N35: 0 | O35: 0 | P35: 0 | Q35: 0 | R35: =R$14 -> 0 | S35: 0 | T35: 0 | U35: 0
E36: Financial year ending | I36: year # | M36: =IF(M35 = 1, $H32, IF(M34 > (DATE(L36, $H33 + 1, 1) - 1), L36 + 1, L36)) -> 2012 | N36: 2013 | O36: 2014 | P36: 2015 | Q36: 2016 | R36: =IF(R35 = 1, $H32, IF(R34 > (DATE(Q36, $H33 + 1, 1) - 1), Q36 + 1, Q36)) -> 2017 | S36: 2018 | T36: 2019 | U36: 2020
A39: =ACTIVE_CASE & " PERIOD FLAGS" -> RP5 PERIOD FLAGS
B41: =$E$47 -> Pre - RP5 period flag
E42: ='Set Up'!E$25 -> RP5 period start date | F42: ='Set Up'!F$25 -> 00:00:00 | G42: ='Set Up'!G$25 -> 00:00:00 | H42: ='Set Up'!H$25 -> 2012-04-01 | I42: ='Set Up'!I$25 -> date
E43: ="Pre " & ACTIVE_CASE & " period end date" -> Pre RP5 period end date | H43: =H42 - 1 -> 2012-03-31 | I43: date
E45: =E$43 -> Pre RP5 period end date | F45: =F$43 -> 00:00:00 | G45: =G$43 -> 00:00:00 | H45: =H$43 -> 2012-03-31 | I45: =I$43 -> date
E46: =E$23 -> Model period ending | F46: 00:00:00 | G46: 00:00:00 | H46: 00:00:00 | I46: date | J46: 00:00:00 | K46: 00:00:00 | L46: 00:00:00 | M46: 2012-03-31 | N46: 2013-03-31 | O46: 2014-03-31 | P46: 2015-03-31 | Q46: 2016-03-31 | R46: =R$23 -> 2017-03-31 | S46: 2018-03-31 | T46: 2019-03-31 | U46: 2020-03-31
E47: ="Pre - " & ACTIVE_CASE & " period flag" -> Pre - RP5 period flag | I47: flag | K47: =SUM(M47:U47) -> 1 | M47: =IF($H45 > L46, 1, 0 ) -> 1 | N47: 0 | O47: 0 | P47: 0 | Q47: 0 | R47: 0 | S47: 0 | T47: 0 | U47: 0
E48: =E47 & " total" -> Pre - RP5 period flag total | H48: =SUM(M47:U47) -> 1 | I48: columns
E50: =E$43 -> Pre RP5 period end date | F50: =F$43 -> 00:00:00 | G50: =G$43 -> 00:00:00 | H50: =H$43 -> 2012-03-31 | I50: =I$43 -> date
E51: =E$23 -> Model period ending | F51: 00:00:00 | G51: 00:00:00 | H51: 00:00:00 | I51: date | J51: 00:00:00 | K51: 00:00:00 | L51: 00:00:00 | M51: 2012-03-31 | N51: 2013-03-31 | O51: 2014-03-31 | P51: 2015-03-31 | Q51: 2016-03-31 | R51: 2017-03-31 | S51: 2018-03-31 | T51: 2019-03-31 | U51: 2020-03-31
E52: ="Pre - " & ACTIVE_CASE & " full period flag" -> Pre - RP5 full period flag | I52: flag | K52: =SUM(M52:U52) -> 1 | M52: =IF( M51 <= $H50, 1, 0 ) -> 1 | N52: 0 | O52: 0 | P52: 0 | Q52: 0 | R52: 0 | S52: 0 | T52: 0 | U52: 0
E54: =E$23 -> Model period ending | F54: 00:00:00 | G54: 00:00:00 | H54: 00:00:00 | I54: date | J54: 00:00:00 | K54: 00:00:00 | L54: 00:00:00 | M54: 2012-03-31 | N54: 2013-03-31 | O54: 2014-03-31 | P54: 2015-03-31 | Q54: 2016-03-31 | R54: 2017-03-31 | S54: 2018-03-31 | T54: 2019-03-31 | U54: 2020-03-31
E55: =E$52 -> Pre - RP5 full period flag | F55: 0 | G55: 0 | H55: 0 | I55: flag | J55: 0 | K55: 1 | L55: 0 | M55: 1 | N55: 0 | O55: 0 | P55: 0 | Q55: 0 | R55: 0 | S55: 0 | T55: 0 | U55: 0
E56: ="Pre - " & ACTIVE_CASE & " full period year end date" -> Pre - RP5 full period year end date | H56: =SUMPRODUCT(M54:U54, M55:U55) -> 2012-03-31 | I56: date
B58: =$E$61 -> Pre - RP5 end period flag
E59: =E$43 -> Pre RP5 period end date | F59: =F$43 -> 00:00:00 | G59: =G$43 -> 00:00:00 | H59: =H$43 -> 2012-03-31 | I59: =I$43 -> date
E60: =E$23 -> Model period ending | F60: 00:00:00 | G60: 00:00:00 | H60: 00:00:00 | I60: date | J60: 00:00:00 | K60: 00:00:00 | L60: 00:00:00 | M60: 2012-03-31 | N60: 2013-03-31 | O60: 2014-03-31 | P60: 2015-03-31 | Q60: 2016-03-31 | R60: 2017-03-31 | S60: 2018-03-31 | T60: 2019-03-31 | U60: 2020-03-31
E61: ="Pre - " & ACTIVE_CASE & " end period flag" -> Pre - RP5 end period flag | I61: flag | K61: =SUM(M61:U61) -> 1 | M61: =IF(AND(L60 < $H59, M60 >= $H59), 1, 0) -> 1 | N61: 0 | O61: 0 | P61: 0 | Q61: 0 | R61: 0 | S61: 0 | T61: 0 | U61: 0
B63: =$E$66 -> RP5 end period date
E64: ='Set Up'!E$25 -> RP5 period start date | F64: ='Set Up'!F$25 -> 00:00:00 | G64: ='Set Up'!G$25 -> 00:00:00 | H64: ='Set Up'!H$25 -> 2012-04-01 | I64: ='Set Up'!I$25 -> date
E65: ='Set Up'!E$26 -> Length of RP5 period | F65: ='Set Up'!F$26 -> 0 | G65: ='Set Up'!G$26 -> 0 | H65: ='Set Up'!H$26 -> 66 | I65: ='Set Up'!I$26 -> months
E66: =ACTIVE_CASE & " end period date" -> RP5 end period date | H66: =DATE(YEAR(H64), MONTH(H64) + H65, DAY(H64) - 1) -> 2017-09-30 | I66: date
B68: =$E$70 -> RP5 start period flag
E69: =E$52 -> Pre - RP5 full period flag | F69: 0 | G69: 0 | H69: 0 | I69: flag | J69: 0 | K69: 1 | L69: 0 | M69: 1 | N69: 0 | O69: 0 | P69: 0 | Q69: 0 | R69: 0 | S69: 0 | T69: 0 | U69: 0
E70: =ACTIVE_CASE & " start period flag" -> RP5 start period flag | I70: flag | K70: =SUM(M70:U70) -> 1 | M70: =L69 -> 0 | N70: =M69 -> 1 | O70: 0 | P70: 0 | Q70: 0 | R70: =Q69 -> 0 | S70: 0 | T70: 0 | U70: 0
B72: =$E$75 -> RP5 end period flag
E73: =E$66 -> RP5 end period date | F73: =F$66 -> 00:00:00 | G73: 00:00:00 | H73: 2017-09-30 | I73: =I$66 -> date
E74: =E$23 -> Model period ending | F74: =F$23 -> 00:00:00 | G74: 0 | H74: 00:00:00 | I74: date | J74: 0 | K74: 00:00:00 | L74: 00:00:00 | M74: 2012-03-31 | N74: 2013-03-31 | O74: 2014-03-31 | P74: 2015-03-31 | Q74: 2016-03-31 | R74: =R$23 -> 2017-03-31 | S74: 2018-03-31 | T74: 2019-03-31 | U74: 2020-03-31
E75: =ACTIVE_CASE & " end period flag" -> RP5 end period flag | I75: flag | K75: =SUM(M75:U75) -> 1 | M75: =IF(AND(L74 < $H73, M74 >= $H73), 1, 0) -> 0 | N75: =IF(AND(M74 < $H73, N74 >= $H73), 1, 0) -> 0 | O75: =IF(AND(N74 < $H73, O74 >= $H73), 1, 0) -> 0 | P75: =IF(AND(O74 < $H73, P74 >= $H73), 1, 0) -> 0 | Q75: =IF(AND(P74 < $H73, Q74 >= $H73), 1, 0) -> 0 | R75: =IF(AND(Q74 < $H73, R74 >= $H73), 1, 0) -> 0 | S75: 1 | T75: 0 | U75: 0
E77: =E$23 -> Model period ending | F77: =F$23 -> 00:00:00 | G77: 0 | H77: 00:00:00 | I77: date | J77: 0 | K77: 00:00:00 | L77: 00:00:00 | M77: 2012-03-31 | N77: 2013-03-31 | O77: 2014-03-31 | P77: 2015-03-31 | Q77: 2016-03-31 | R77: 2017-03-31 | S77: 2018-03-31 | T77: 2019-03-31 | U77: 2020-03-31
E78: =E$75 -> RP5 end period flag | F78: 0 | G78: 0 | H78: 0 | I78: flag | J78: 0 | K78: 1 | L78: 0 | M78: 0 | N78: 0 | O78: 0 | P78: 0 | Q78: 0 | R78: 0 | S78: 1 | T78: 0 | U78: 0
E79: =ACTIVE_CASE & " year end period date" -> RP5 year end period date | H79: =SUMPRODUCT(M77:U77, M78:U78) -> 2018-03-31 | I79: date
B81: =$E$86 -> Days in RP5 periods
E82: ='Set Up'!E$25 -> RP5 period start date | F82: ='Set Up'!F$25 -> 00:00:00 | G82: ='Set Up'!G$25 -> 00:00:00 | H82: ='Set Up'!H$25 -> 2012-04-01 | I82: ='Set Up'!I$25 -> date
E83: =E$66 -> RP5 end period date | F83: =F$66 -> 00:00:00 | G83: 00:00:00 | H83: 2017-09-30 | I83: =I$66 -> date
E84: =E$19 -> Model period beginning | F84: 00:00:00 | G84: 00:00:00 | H84: 00:00:00 | I84: date | J84: 00:00:00 | K84: 00:00:00 | L84: 00:00:00 | M84: 2011-04-01 | N84: 2012-04-01 | O84: 2013-04-01 | P84: 2014-04-01 | Q84: 2015-04-01 | R84: =R$19 -> 2016-04-01 | S84: 2017-04-01 | T84: 2018-04-01 | U84: 2019-04-01
E85: =E$23 -> Model period ending | F85: =F$23 -> 00:00:00 | G85: 00:00:00 | H85: 00:00:00 | I85: date | J85: 00:00:00 | K85: 00:00:00 | L85: 00:00:00 | M85: 2012-03-31 | N85: 2013-03-31 | O85: 2014-03-31 | P85: 2015-03-31 | Q85: 2016-03-31 | R85: =R$23 -> 2017-03-31 | S85: 2018-03-31 | T85: 2019-03-31 | U85: 2020-03-31
E86: ="Days in " & ACTIVE_CASE & " periods" -> Days in RP5 periods | I86: days | K86: =SUM(M86:U86) -> 2009 | M86: =MAX(0, (MIN($H83, M85) - MAX($H82, M84) + 1)) -> 0 | N86: =MAX(0, (MIN($H83, N85) - MAX($H82, N84) + 1)) -> 365 | O86: =MAX(0, (MIN($H83, O85) - MAX($H82, O84) + 1)) -> 365 | P86: 365 | Q86: 366 | R86: =MAX(0, (MIN($H83, R85) - MAX($H82, R84) + 1)) -> 365 | S86: 183 | T86: 0 | U86: 0
B88: =$E$91 -> RP5 period flag
E89: =E$70 -> RP5 start period flag | F89: =F$70 -> 0 | G89: 0 | H89: 0 | I89: flag | J89: 0 | K89: 1 | L89: 0 | M89: 0 | N89: 1 | O89: 0 | P89: 0 | Q89: 0 | R89: =R$70 -> 0 | S89: 0 | T89: 0 | U89: 0
E90: =E$75 -> RP5 end period flag | F90: =F$75 -> 0 | G90: 0 | H90: 0 | I90: flag | J90: 0 | K90: 1 | L90: 0 | M90: 0 | N90: 0 | O90: 0 | P90: 0 | Q90: 0 | R90: =R$75 -> 0 | S90: 1 | T90: 0 | U90: 0
E91: =ACTIVE_CASE & " period flag" -> RP5 period flag | I91: =I$75 -> flag | K91: =SUM(M91:U91) -> 6 | M91: =M89 + L91 - L90 -> 0 | N91: =N89 + M91 - M90 -> 1 | O91: 1 | P91: 1 | Q91: 1 | R91: =R89 + Q91 - Q90 -> 1 | S91: 1 | T91: 0 | U91: 0
E92: =ACTIVE_CASE & " period total" -> RP5 period total | H92: =SUM(M91:U91) -> 6 | I92: columns
B94: =$E$97 -> RP5 PPF- actual / actual
E95: =E$86 -> Days in RP5 periods | F95: =F$86 -> 0 | G95: 0 | H95: 0 | I95: days | J95: 0 | K95: 2009 | L95: 0 | M95: 0 | N95: 365 | O95: 365 | P95: 365 | Q95: 366 | R95: =R$86 -> 365 | S95: 183 | T95: 0 | U95: 0
E96: =E$27 -> Days in model period | F96: 0 | G96: 0 | H96: 0 | I96: days | J96: 0 | K96: 3288 | L96: 0 | M96: 366 | N96: 365 | O96: 365 | P96: 365 | Q96: 366 | R96: =R$27 -> 365 | S96: 365 | T96: 365 | U96: 366
E97: =ACTIVE_CASE & " PPF- actual / actual" -> RP5 PPF- actual / actual | I97: factor | K97: =SUM(M97:U97) -> 5.5 | M97: =ROUND(M95 / M96, 2) -> 0 | N97: 1 | O97: 1 | P97: 1 | Q97: 1 | R97: =ROUND(R95 / R96, 2) -> 1 | S97: 0.5 | T97: 0 | U97: 0
A100: ="POST " & ACTIVE_CASE & " FLAGS" -> POST RP5 FLAGS
B102: Post RP6 start period date
E103: =E$66 -> RP5 end period date | F103: =F$66 -> 00:00:00 | G103: 00:00:00 | H103: 2017-09-30 | I103: date
E104: ="Post " & ACTIVE_CASE & " start period date" -> Post RP5 start period date | H104: =H103 + 1 -> 2017-10-01 | I104: date
B106: Post RP6 start period flag
E107: =E$104 -> Post RP5 start period date | F107: =F$104 -> 00:00:00 | G107: 00:00:00 | H107: 2017-10-01 | I107: =I$104 -> date
E108: =E$23 -> Model period ending | F108: =F$23 -> 00:00:00 | G108: 0 | H108: 00:00:00 | I108: date | J108: 0 | K108: 00:00:00 | L108: 00:00:00 | M108: 2012-03-31 | N108: 2013-03-31 | O108: 2014-03-31 | P108: 2015-03-31 | Q108: 2016-03-31 | R108: =R$23 -> 2017-03-31 | S108: 2018-03-31 | T108: 2019-03-31 | U108: 2020-03-31
E109: ="Post " & ACTIVE_CASE & " start period flag" -> Post RP5 start period flag | I109: flag | K109: =SUM(M109:U109) -> 1 | M109: =IF(AND(L108 < $H107, M108 >= $H107), 1, 0) -> 0 | N109: =IF(AND(M108 < $H107, N108 >= $H107), 1, 0) -> 0 | O109: =IF(AND(N108 < $H107, O108 >= $H107), 1, 0) -> 0 | P109: =IF(AND(O108 < $H107, P108 >= $H107), 1, 0) -> 0 | Q109: =IF(AND(P108 < $H107, Q108 >= $H107), 1, 0) -> 0 | R109: =IF(AND(Q108 < $H107, R108 >= $H107), 1, 0) -> 0 | S109: 1 | T109: 0 | U109: 0
B111: =$E$113 -> Post RP5 period flag
E112: =E$109 -> Post RP5 start period flag | F112: =F$109 -> 0 | G112: 0 | H112: 0 | I112: flag | J112: 0 | K112: 1 | L112: 0 | M112: 0 | N112: 0 | O112: 0 | P112: 0 | Q112: 0 | R112: =R$109 -> 0 | S112: 1 | T112: 0 | U112: 0
E113: ="Post " & ACTIVE_CASE & " period flag" -> Post RP5 period flag | I113: flag | K113: =SUM(M113:U113) -> 3 | M113: =L113 + M112 -> 0 | N113: =M113 + N112 -> 0 | O113: =N113 + O112 -> 0 | P113: =O113 + P112 -> 0 | Q113: =P113 + Q112 -> 0 | R113: =Q113 + R112 -> 0 | S113: 1 | T113: 1 | U113: 1
E114: ="Post " & ACTIVE_CASE & " period total" -> Post RP5 period total | H114: =SUM(M113:U113) -> 3 | I114: columns
B116: =$E$118 -> First full RP5 start period flag
E117: =E$61 -> Pre - RP5 end period flag | F117: 0 | G117: 0 | H117: 0 | I117: flag | J117: 0 | K117: 1 | L117: 0 | M117: 1 | N117: 0 | O117: 0 | P117: 0 | Q117: 0 | R117: 0 | S117: 0 | T117: 0 | U117: 0
E118: ="First full " & ACTIVE_CASE & " start period flag" -> First full RP5 start period flag | I118: flag | K118: =SUM(M118:U118) -> 1 | M118: =L117 -> 0 | N118: =M117 -> 1 | O118: =N117 -> 0 | P118: =O117 -> 0 | Q118: =P117 -> 0 | R118: =Q117 -> 0 | S118: =R117 -> 0 | T118: =S117 -> 0 | U118: =T117 -> 0
B120: =$E$122 -> First full post RP5 start period flag
E121: =E$75 -> RP5 end period flag | F121: 0 | G121: 0 | H121: 0 | I121: flag | J121: 0 | K121: 1 | L121: 0 | M121: 0 | N121: 0 | O121: 0 | P121: 0 | Q121: 0 | R121: 0 | S121: 1 | T121: 0 | U121: 0
E122: ="First full post " & ACTIVE_CASE & " start period flag" -> First full post RP5 start period flag | I122: flag | K122: =SUM(M122:U122) -> 1 | M122: =L121 -> 0 | N122: =M121 -> 0 | O122: =N121 -> 0 | P122: =O121 -> 0 | Q122: =P121 -> 0 | R122: =Q121 -> 0 | S122: 0 | T122: 1 | U122: 0
B124: Model period check
E125: =E$47 -> Pre - RP5 period flag | F125: 0 | G125: 0 | H125: 0 | I125: flag | J125: 0 | K125: 1 | L125: 0 | M125: 1 | N125: 0 | O125: 0 | P125: 0 | Q125: 0 | R125: =R$47 -> 0 | S125: 0 | T125: 0 | U125: 0
E126: =E$91 -> RP5 period flag | F126: =F$91 -> 0 | G126: 0 | H126: 0 | I126: flag | J126: 0 | K126: 6 | L126: 0 | M126: 0 | N126: 1 | O126: 1 | P126: 1 | Q126: 1 | R126: =R$91 -> 1 | S126: 1 | T126: 0 | U126: 0
E127: =E$113 -> Post RP5 period flag | F127: =F$113 -> 0 | G127: 0 | H127: 0 | I127: flag | J127: 0 | K127: 3 | L127: 0 | M127: 0 | N127: 0 | O127: 0 | P127: 0 | Q127: 0 | R127: =R$113 -> 0 | S127: 1 | T127: 1 | U127: 1
E128: End of regulatory part period flag | I128: flag | K128: =SUM(M128:U128) -> 1 | M128: =SUM(M125:M127) - 1 -> 0 | N128: 0 | O128: 0 | P128: 0 | Q128: 0 | R128: =SUM(R125:R127) - 1 -> 0 | S128: 1 | T128: 0 | U128: 0
E129: Overlapping flags - total | H129: =SUM(M128:U128) -> 1 | I129: #
E131: =E$11 -> Model column total | F131: =F$11 -> 0 | G131: 0 | H131: 9 | I131: =I$11 -> columns
E132: =E$48 -> Pre - RP5 period flag total | F132: =F$48 -> 0 | G132: 0 | H132: 1 | I132: =I$48 -> columns
E133: =E$92 -> RP5 period total | F133: =F$92 -> 0 | G133: 0 | H133: 6 | I133: =I$92 -> columns
E134: =E$114 -> Post RP5 period total | F134: =F$114 -> 0 | G134: 0 | H134: 3 | I134: =I$114 -> columns
E135: =E$129 -> Overlapping flags - total | F135: =F$129 -> 0 | G135: =G$129 -> 0 | H135: =H$129 -> 1 | I135: =I$129 -> #
E136: Modelling period check | H136: =IF(H131 - (SUM(H132:H134) - H135) <> 0, 1, 0) -> 0 | I136: check
B138: Timeline label counter
E139: =E$14 -> 1st Model column flag | F139: 0 | G139: 0 | H139: 0 | I139: flag | J139: 0 | K139: 1 | L139: =L$14 -> 0 | M139: 1 | N139: 0 | O139: 0 | P139: 0 | Q139: 0 | R139: 0 | S139: 0 | T139: 0 | U139: 0
E140: =E$70 -> RP5 start period flag | F140: =F$70 -> 0 | G140: 0 | H140: 0 | I140: flag | J140: 0 | K140: 1 | L140: =L$70 -> 0 | M140: 0 | N140: 1 | O140: 0 | P140: 0 | Q140: 0 | R140: 0 | S140: 0 | T140: 0 | U140: 0
E141: =E$118 -> First full RP5 start period flag | F141: 0 | G141: 0 | H141: 0 | I141: flag | J141: 0 | K141: 1 | L141: =L$118 -> 0 | M141: 0 | N141: 1 | O141: 0 | P141: 0 | Q141: 0 | R141: 0 | S141: 0 | T141: 0 | U141: 0
E142: =E$109 -> Post RP5 start period flag | F142: 0 | G142: 0 | H142: 0 | I142: flag | J142: 0 | K142: 1 | L142: =L$109 -> 0 | M142: 0 | N142: 0 | O142: 0 | P142: 0 | Q142: 0 | R142: 0 | S142: 1 | T142: 0 | U142: 0
E143: =E$122 -> First full post RP5 start period flag | F143: 0 | G143: 0 | H143: 0 | I143: flag | J143: 0 | K143: 1 | L143: =L$122 -> 0 | M143: 0 | N143: 0 | O143: 0 | P143: 0 | Q143: 0 | R143: 0 | S143: 0 | T143: 1 | U143: 0
E144: Timeline label counter | I144: counter | M144: =L144 + SUM(M139:M143) -> 1 | N144: 3 | O144: 3 | P144: 3 | Q144: 3 | R144: 3 | S144: 4 | T144: 5 | U144: 5
C146: Timeline label
E147: ='Set Up'!E$19 -> Pre RP5 period | F147: ='Set Up'!F$19 -> 0 | G147: ='Set Up'!G$19 -> 0 | H147: ='Set Up'!H$19 -> RP4 | I147: ='Set Up'!I$19 -> label
E148: ='Set Up'!E$20 -> RP4 / RP5 period label | F148: ='Set Up'!F$20 -> 0 | G148: ='Set Up'!G$20 -> 0 | H148: ='Set Up'!H$20 -> RP4 / RP5 | I148: ='Set Up'!I$20 -> label
E149: ='Set Up'!E$21 -> RP5 period label | F149: ='Set Up'!F$21 -> 0 | G149: ='Set Up'!G$21 -> 0 | H149: ='Set Up'!H$21 -> RP5 | I149: ='Set Up'!I$21 -> label
E150: ='Set Up'!E$22 -> RP5 / RP6 period label | F150: ='Set Up'!F$22 -> 0 | G150: ='Set Up'!G$22 -> 0 | H150: ='Set Up'!H$22 -> RP5 / RP6 | I150: ='Set Up'!I$22 -> label
E151: ='Set Up'!E$23 -> Post RP5 period | F151: ='Set Up'!F$23 -> 0 | G151: ='Set Up'!G$23 -> 0 | H151: ='Set Up'!H$23 -> RP6 | I151: ='Set Up'!I$23 -> label
E152: =E$144 -> Timeline label counter | F152: 0 | G152: 0 | H152: 0 | I152: counter | J152: 0 | K152: 0 | L152: 0 | M152: 1 | N152: 3 | O152: 3 | P152: 3 | Q152: 3 | R152: =R$144 -> 3 | S152: 4 | T152: 5 | U152: 5
E153: Timeline label | I153: label | M153: =INDEX($H147:$H151, M152) -> RP4 | N153: RP5 | O153: RP5 | P153: RP5 | Q153: RP5 | R153: =INDEX($H147:$H151, R152) -> RP5 | S153: RP5 / RP6 | T153: =INDEX($H147:$H151, T152) -> RP6 | U153: =INDEX($H147:$H151, U152) -> RP6

Sheet Index
A1: =RIGHT(CELL("filename", $A$1), LEN(CELL("filename", $A$1)) - SEARCH("]", CELL("filename", $A$1))) -> Index
E2: =Time!E$23 -> Model period ending | H2: =Check!$H$9 -> 0 | I2: Error chks | M2: =Time!M$23 -> 2012-03-31 | N2: =Time!N$23 -> 2013-03-31 | O2: =Time!O$23 -> 2014-03-31 | P2: =Time!P$23 -> 2015-03-31 | Q2: =Time!Q$23 -> 2016-03-31 | R2: =Time!R$23 -> 2017-03-31 | S2: =Time!S$23 -> 2018-03-31 | T2: =Time!T$23 -> 2019-03-31 | U2: =Time!U$23 -> 2020-03-31
E3: =Time!E$153 -> Timeline label | H3: =Track!$M$2 -> 0 | I3: Track chgs | M3: =Time!M$153 -> RP4 | N3: =Time!N$153 -> RP5 | O3: =Time!O$153 -> RP5 | P3: =Time!P$153 -> RP5 | Q3: =Time!Q$153 -> RP5 | R3: =Time!R$153 -> RP5 | S3: =Time!S$153 -> RP5 / RP6 | T3: =Time!T$153 -> RP6 | U3: =Time!U$153 -> RP6
E4: =Time!E$36 -> Financial year ending | H4: =Check!$H$38 -> 0 | I4: Alerts | M4: =Time!M$36 -> 2012 | N4: =Time!N$36 -> 2013 | O4: =Time!O$36 -> 2014 | P4: =Time!P$36 -> 2015 | Q4: =Time!Q$36 -> 2016 | R4: =Time!R$36 -> 2017 | S4: =Time!S$36 -> 2018 | T4: =Time!T$36 -> 2019 | U4: =Time!U$36 -> 2020
E5: =Time!E$10 -> Model column counter | F5: Para references | G5: Defined Term | H5: Constant | I5: Unit | K5: Total | M5: =Time!M$10 -> 1 | N5: =Time!N$10 -> 2 | O5: =Time!O$10 -> 3 | P5: =Time!P$10 -> 4 | Q5: =Time!Q$10 -> 5 | R5: =Time!R$10 -> 6 | S5: =Time!S$10 -> 7 | T5: =Time!T$10 -> 8 | U5: =Time!U$10 -> 9
A7: INDEXATION FACTOR
B9: Indexation factor
E11: ='Actuals Inp'!E$9 -> RPI switch | F11: ='Actuals Inp'!F$9 -> 0 | G11: ='Actuals Inp'!G$9 -> 0 | H11: ='Actuals Inp'!H$9 -> 1 | I11: ='Actuals Inp'!I$9 -> 0 = off, 1 = on
E12: ='Actuals Inp'!E$10 -> RPI as on 2009/10 - (Base year 1993/94) | F12: ='Actuals Inp'!F$10 -> 0 | G12: ='Actuals Inp'!G$10 -> RPI2010 | H12: ='Actuals Inp'!H$10 -> 216 | I12: ='Actuals Inp'!I$10 -> index
E13: ='Actuals Inp'!E$19 -> Base RPI - as on March each year (Base year 1993/94) | F13: ='Actuals Inp'!F$19 -> 0 | G13: ='Actuals Inp'!G$19 -> 0 | H13: ='Actuals Inp'!H$19 -> 0 | I13: ='Actuals Inp'!I$19 -> index | J13: ='Actuals Inp'!J$19 -> [Entitlement Model 28.11.16.xlsx]Inflation'!$U$12 | K13: ='Actuals Inp'!K$19 -> 0 | L13: ='Actuals Inp'!L$19 -> 0 | M13: ='Actuals Inp'!M$19 -> 238 | N13: ='Actuals Inp'!N$19 -> 245.6 | O13: ='Actuals Inp'!O$19 -> 251.9 | P13: ='Actuals Inp'!P$19 -> 257.7 | Q13: ='Actuals Inp'!Q$19 -> 259.5 | R13: ='Actuals Inp'!R$19 -> 264.8 | S13: ='Actuals Inp'!S$19 -> 273.5384 | T13: ='Actuals Inp'!T$19 -> 0 | U13: ='Actuals Inp'!U$19 -> 0
E14: ='Actuals Inp'!E$20 -> Indexation rate - Installation | F14: ='Actuals Inp'!F$20 -> 0 | G14: ='Actuals Inp'!G$20 -> 0 | H14: ='Actuals Inp'!H$20 -> 0 | I14: ='Actuals Inp'!I$20 -> % | J14: ='Actuals Inp'!J$20 -> 0 | K14: ='Actuals Inp'!K$20 -> 0 | L14: ='Actuals Inp'!L$20 -> 0 | M14: ='Actuals Inp'!M$20 -> 0 | N14: ='Actuals Inp'!N$20 -> 0 | O14: ='Actuals Inp'!O$20 -> 0 | P14: ='Actuals Inp'!P$20 -> 0 | Q14: ='Actuals Inp'!Q$20 -> 0 | R14: ='Actuals Inp'!R$20 -> 0 | S14: ='Actuals Inp'!S$20 -> 0.033 | T14: ='Actuals Inp'!T$20 -> 0 | U14: ='Actuals Inp'!U$20 -> 0
E15: =Time!E$47 -> Pre - RP5 period flag | F15: =Time!F$47 -> 0 | G15: =Time!G$47 -> 0 | H15: =Time!H$47 -> 0 | I15: =Time!I$47 -> flag | J15: =Time!J$47 -> 0 | K15: =Time!K$47 -> 1 | L15: =Time!L$47 -> 0 | M15: =Time!M$47 -> 1 | N15: =Time!N$47 -> 0 | O15: =Time!O$47 -> 0 | P15: =Time!P$47 -> 0 | Q15: =Time!Q$47 -> 0 | R15: =Time!R$47 -> 0 | S15: =Time!S$47 -> 0 | T15: =Time!T$47 -> 0 | U15: =Time!U$47 -> 0
E16: RPI index (Base year 1993/94) | G16: RPIt | I16: index | M16: =IF($H11 = 1, IF(M15 = 1, M13, IF(M13 <> 0, M13, L16 * (1 + M14))), $H12) -> 238 | N16: 245.6 | O16: 251.9 | P16: 257.7 | Q16: 259.5 | R16: =IF($H11 = 1, IF(R15 = 1, R13, IF(R13 <> 0, R13, Q16 * (1 + R14))), $H12) -> 264.8 | S16: 273.5384 | T16: 273.5384 | U16: 273.5384
C19: RPI index (Base year 1993/94) - t-5
E21: ='Actuals Inp'!E$98 -> Asset disposal lookback periods | F21: ='Actuals Inp'!F$98 -> 0 | G21: ='Actuals Inp'!G$98 -> 0 | H21: ='Actuals Inp'!H$98 -> 5 | I21: ='Actuals Inp'!I$98 -> years
E23: ='Actuals Inp'!E$14 -> Historic timeline | F23: ='Actuals Inp'!F$14 -> 0 | G23: ='Actuals Inp'!G$14 -> 0 | H23: ='Actuals Inp'!H$14 -> 0 | I23: ='Actuals Inp'!I$14 -> date | J23: ='Actuals Inp'!J$14 -> 0 | K23: ='Actuals Inp'!K$14 -> 0 | L23: ='Actuals Inp'!L$14 -> 0 | M23: ='Actuals Inp'!M$14 -> 2007 | N23: ='Actuals Inp'!N$14 -> 2008 | O23: ='Actuals Inp'!O$14 -> 2009 | P23: ='Actuals Inp'!P$14 -> 2010 | Q23: ='Actuals Inp'!Q$14 -> 2011 | R23: ='Actuals Inp'!R$14 -> 0 | S23: ='Actuals Inp'!S$14 -> 0 | T23: ='Actuals Inp'!T$14 -> 0 | U23: ='Actuals Inp'!U$14 -> 0
E24: =Time!E$36 -> Financial year ending | F24: =Time!F$36 -> 0 | G24: =Time!G$36 -> 0 | H24: =Time!H$36 -> 0 | I24: =Time!I$36 -> year # | J24: =Time!J$36 -> 0 | K24: =Time!K$36 -> 0 | L24: =Time!L$36 -> 0 | M24: =Time!M$36 -> 2012 | N24: =Time!N$36 -> 2013 | O24: =Time!O$36 -> 2014 | P24: =Time!P$36 -> 2015 | Q24: =Time!Q$36 -> 2016 | R24: =Time!R$36 -> 2017 | S24: =Time!S$36 -> 2018 | T24: =Time!T$36 -> 2019 | U24: =Time!U$36 -> 2020
E26: ='Actuals Inp'!E$15 -> Historic RPI - as on March each year (Base year 1993/94) | F26: ='Actuals Inp'!F$15 -> 0 | G26: ='Actuals Inp'!G$15 -> 0 | H26: ='Actuals Inp'!H$15 -> 0 | I26: ='Actuals Inp'!I$15 -> index | J26: ='Actuals Inp'!J$15 -> [Entitlement Model 28.11.16.xlsx]Inflation'!$P$12 | K26: ='Actuals Inp'!K$15 -> 0 | L26: ='Actuals Inp'!L$15 -> 0 | M26: ='Actuals Inp'!M$15 -> 200.4 | N26: ='Actuals Inp'!N$15 -> 208.9 | O26: ='Actuals Inp'!O$15 -> 217.7 | P26: ='Actuals Inp'!P$15 -> 216 | Q26: ='Actuals Inp'!Q$15 -> 225.8 | R26: ='Actuals Inp'!R$15 -> 0 | S26: ='Actuals Inp'!S$15 -> 0 | T26: ='Actuals Inp'!T$15 -> 0 | U26: ='Actuals Inp'!U$15 -> 0
E27: =E$16 -> RPI index (Base year 1993/94) | F27: 0 | G27: RPIt | H27: 0 | I27: index | J27: 0 | K27: 0 | L27: 0 | M27: 238 | N27: 245.6 | O27: 251.9 | P27: 257.7 | Q27: 259.5 | R27: =R$16 -> 264.8 | S27: 273.5384 | T27: 273.5384 | U27: 273.5384
E29: RPI index (Base year 1993/94) - t-5 | G29: RPIt-5 | I29: index | M29: =SUMPRODUCT(($M23:$U24 = M24 - $H21) * $M26:$U27) -> 200.4 | N29: 208.9 | O29: 217.7 | P29: 216 | Q29: 225.8 | R29: =SUMPRODUCT(($M23:$U24 = R24 - $H21) * $M26:$U27) -> 238 | S29: 245.6 | T29: 251.9 | U29: 257.7

Sheet DL - C3
A1: =RIGHT(CELL("filename", $A$1), LEN(CELL("filename", $A$1)) - SEARCH("]", CELL("filename", $A$1))) -> DL - C3
E2: =Time!E$23 -> Model period ending | H2: =Check!$H$9 -> 0 | I2: Error chks | M2: =Time!M$23 -> 2012-03-31 | N2: =Time!N$23 -> 2013-03-31 | O2: =Time!O$23 -> 2014-03-31 | P2: =Time!P$23 -> 2015-03-31 | Q2: =Time!Q$23 -> 2016-03-31 | R2: =Time!R$23 -> 2017-03-31 | S2: =Time!S$23 -> 2018-03-31 | T2: =Time!T$23 -> 2019-03-31 | U2: =Time!U$23 -> 2020-03-31
E3: =Time!E$153 -> Timeline label | H3: =Track!$M$2 -> 0 | I3: Track chgs | M3: =Time!M$153 -> RP4 | N3: =Time!N$153 -> RP5 | O3: =Time!O$153 -> RP5 | P3: =Time!P$153 -> RP5 | Q3: =Time!Q$153 -> RP5 | R3: =Time!R$153 -> RP5 | S3: =Time!S$153 -> RP5 / RP6 | T3: =Time!T$153 -> RP6 | U3: =Time!U$153 -> RP6
E4: =Time!E$36 -> Financial year ending | H4: =Check!$H$38 -> 0 | I4: Alerts | M4: =Time!M$36 -> 2012 | N4: =Time!N$36 -> 2013 | O4: =Time!O$36 -> 2014 | P4: =Time!P$36 -> 2015 | Q4: =Time!Q$36 -> 2016 | R4: =Time!R$36 -> 2017 | S4: =Time!S$36 -> 2018 | T4: =Time!T$36 -> 2019 | U4: =Time!U$36 -> 2020
E5: =Time!E$10 -> Model column counter | F5: Para references | G5: Defined Term | H5: Constant | I5: Unit | K5: Total | M5: =Time!M$10 -> 1 | N5: =Time!N$10 -> 2 | O5: =Time!O$10 -> 3 | P5: =Time!P$10 -> 4 | Q5: =Time!Q$10 -> 5 | R5: =Time!R$10 -> 6 | S5: =Time!S$10 -> 7 | T5: =Time!T$10 -> 8 | U5: =Time!U$10 -> 9
A7: 3. THE MAXIMUM REGULATED DISTRIBUTION REVENUE- RP5Tt
C9: 3.1 Regulated transmission revenue
C12: 3.2 Maximum regulated distribution revenue for the regulatory tariff year - RP5Tt
C15: 3.3 RP5Tt | F15: RP5Tt = (RP5Rt + RP5Rt+1) * 0.5
E17: ='Licence Inp'!E$11 -> Max regulated Distribution revenue factor | F17: ='Licence Inp'!F$11 -> 3.3: | G17: ='Licence Inp'!G$11 -> 0 | H17: ='Licence Inp'!H$11 -> 0.5 | I17: ='Licence Inp'!I$11 -> factor
E18: =E$38 -> Maximum regulated distribution revenue - DL | F18: =F$38 -> 3.5: | G18: RP5Rt | H18: 0 | I18: GBP m | J18: 0 | K18: 983.2897528 | L18: 0 | M18: 0 | N18: =N$38 -> 170.2482874 | O18: 172.0649869 | P18: 169.1979747 | Q18: 178.6352459 | R18: =R$38 -> 190.988344 | S18: 102.1549138 | T18: 0 | U18: 0
E19: =Time!E$91 -> RP5 period flag | F19: =Time!F$91 -> 0 | G19: =Time!G$91 -> 0 | H19: =Time!H$91 -> 0 | I19: =Time!I$91 -> flag | J19: =Time!J$91 -> 0 | K19: =Time!K$91 -> 6 | L19: =Time!L$91 -> 0 | M19: =Time!M$91 -> 0 | N19: =Time!N$91 -> 1 | O19: =Time!O$91 -> 1 | P19: =Time!P$91 -> 1 | Q19: =Time!Q$91 -> 1 | R19: =Time!R$91 -> 1 | S19: =Time!S$91 -> 1 | T19: =Time!T$91 -> 0 | U19: =Time!U$91 -> 0
E20: Max regulated distribution revenue - DL | F20: 3.3: | G20: RP5Tt | I20: GBP m | K20: =SUM(M20:U20) -> 898.1656091 | M20: =(M18 + N18) * $H17 * M19 -> 0 | N20: =(N18 + O18) * $H17 * N19 -> 171.1566372 | O20: 170.6314808 | P20: 173.9166103 | Q20: =(Q18 + R18) * $H17 * Q19 -> 184.8117949 | R20: =(R18 + S18) * $H17 * R19 -> 146.5716289 | S20: 51.07745692 | T20: 0 | U20: 0
C23: 3.4 Maximum regulated distribution revenue for the regulatory reporting year - RP5Rt
C26: 3.5 RP5Rt | F26: RP5Rt = DEPt + RETt + BDt + Ot + Pt + COIt + TAXt - RPSIt + Kt
E28: ='DL - C4'!E$27 -> Depreciation amount - DL | F28: ='DL - C4'!F$27 -> 4.51: | G28: ='DL - C4'!G$27 -> DEPt | H28: ='DL - C4'!H$27 -> 0 | I28: ='DL - C4'!I$27 -> GBP m | J28: ='DL - C4'!J$27 -> 0 | K28: ='DL - C4'!K$27 -> 357.9450511 | L28: ='DL - C4'!L$27 -> 0 | M28: ='DL - C4'!M$27 -> 0 | N28: ='DL - C4'!N$27 -> 63.23887699 | O28: ='DL - C4'!O$27 -> 67.05704897 | P28: ='DL - C4'!P$27 -> 63.99128559 | Q28: ='DL - C4'!Q$27 -> 64.14369371 | R28: ='DL - C4'!R$27 -> 65.48782848 | S28: ='DL - C4'!S$27 -> 34.02631732 | T28: ='DL - C4'!T$27 -> 0 | U28: ='DL - C4'!U$27 -> 0
D29: plus | E29: ='DL - C5'!E$33 -> WACC return - DL | F29: ='DL - C5'!F$33 -> 5.1: | G29: ='DL - C5'!G$33 -> RETt | H29: ='DL - C5'!H$33 -> 0 | I29: ='DL - C5'!I$33 -> GBP m | J29: ='DL - C5'!J$33 -> 0 | K29: ='DL - C5'!K$33 -> 0 | L29: ='DL - C5'!L$33 -> 0 | M29: ='DL - C5'!M$33 -> 0 | N29: ='DL - C5'!N$33 -> 38.79340913 | O29: ='DL - C5'!O$33 -> 39.79509216 | P29: ='DL - C5'!P$33 -> 40.75726287 | Q29: ='DL - C5'!Q$33 -> 41.48959336 | R29: ='DL - C5'!R$33 -> 43.07627237 | S29: ='DL - C5'!S$33 -> 22.67813232 | T29: ='DL - C5'!T$33 -> 0 | U29: ='DL - C5'!U$33 -> 0
D30: plus | E30: ='Actuals Inp'!E$27 -> Allowed opex amount - uncollected revenue - DL | F30: ='Actuals Inp'!F$27 -> 3.4: | G30: ='Actuals Inp'!G$27 -> BDt | H30: ='Actuals Inp'!H$27 -> 0 | I30: ='Actuals Inp'!I$27 -> GBP m | J30: ='Actuals Inp'!J$27 -> 0 | K30: ='Actuals Inp'!K$27 -> 0 | L30: ='Actuals Inp'!L$27 -> 0 | M30: ='Actuals Inp'!M$27 -> 0 | N30: ='Actuals Inp'!N$27 -> 0 | O30: ='Actuals Inp'!O$27 -> 0 | P30: ='Actuals Inp'!P$27 -> 0 | Q30: ='Actuals Inp'!Q$27 -> 0 | R30: ='Actuals Inp'!R$27 -> 0 | S30: ='Actuals Inp'!S$27 -> 0 | T30: ='Actuals Inp'!T$27 -> 0 | U30: ='Actuals Inp'!U$27 -> 0
D31: plus | E31: ='DL - C6'!E$16 -> Opex amount - DL | F31: ='DL - C6'!F$16 -> 6.1: | G31: ='DL - C6'!G$16 -> Ot | H31: ='DL - C6'!H$16 -> 0 | I31: ='DL - C6'!I$16 -> GBP m | J31: ='DL - C6'!J$16 -> 0 | K31: ='DL - C6'!K$16 -> 333.8884301 | L31: ='DL - C6'!L$16 -> 0 | M31: ='DL - C6'!M$16 -> 0 | N31: ='DL - C6'!N$16 -> 58.50977685 | O31: ='DL - C6'!O$16 -> 60.92579197 | P31: ='DL - C6'!P$16 -> 59.66229667 | Q31: ='DL - C6'!Q$16 -> 59.18496743 | R31: ='DL - C6'!R$16 -> 63.47282797 | S31: ='DL - C6'!S$16 -> 32.13276923 | T31: ='DL - C6'!T$16 -> 0 | U31: ='DL - C6'!U$16 -> 0
D32: plus | E32: ='DL - C7'!E$21 -> Pension deficit amount - DL | F32: ='DL - C7'!F$21 -> 7.1: | G32: ='DL - C7'!G$21 -> Pt | H32: ='DL - C7'!H$21 -> 0 | I32: ='DL - C7'!I$21 -> GBP m | J32: ='DL - C7'!J$21 -> 0 | K32: ='DL - C7'!K$21 -> 59.1161255 | L32: ='DL - C7'!L$21 -> 0 | M32: ='DL - C7'!M$21 -> 0 | N32: ='DL - C7'!N$21 -> 10.25152593 | O32: ='DL - C7'!O$21 -> 10.51449259 | P32: ='DL - C7'!P$21 -> 10.75658889 | Q32: ='DL - C7'!Q$21 -> 10.83172222 | R32: ='DL - C7'!R$21 -> 11.05294815 | S32: ='DL - C7'!S$21 -> 5.708847719 | T32: ='DL - C7'!T$21 -> 0 | U32: ='DL - C7'!U$21 -> 0
D33: plus | E33: ='DL - C8'!E$14 -> Cost of investigation amount - DL | F33: ='DL - C8'!F$14 -> 8.1: | G33: ='DL - C8'!G$14 -> COIt | H33: ='DL - C8'!H$14 -> 0 | I33: ='DL - C8'!I$14 -> GBP m | J33: ='DL - C8'!J$14 -> 0 | K33: ='DL - C8'!K$14 -> 1.19316113 | L33: ='DL - C8'!L$14 -> 0 | M33: ='DL - C8'!M$14 -> 0 | N33: ='DL - C8'!N$14 -> 0 | O33: ='DL - C8'!O$14 -> 1.19316113 | P33: ='DL - C8'!P$14 -> 0 | Q33: ='DL - C8'!Q$14 -> 0 | R33: ='DL - C8'!R$14 -> 0 | S33: ='DL - C8'!S$14 -> 0 | T33: ='DL - C8'!T$14 -> 0 | U33: ='DL - C8'!U$14 -> 0
D34: plus | E34: ='DL - C9'!E$16 -> Tax - DL | F34: ='DL - C9'!F$16 -> 9.1: | G34: ='DL - C9'!G$16 -> TAXt | H34: ='DL - C9'!H$16 -> 0 | I34: ='DL - C9'!I$16 -> GBP m | J34: ='DL - C9'!J$16 -> 0 | K34: ='DL - C9'!K$16 -> 48.23518764 | L34: ='DL - C9'!L$16 -> 0 | M34: ='DL - C9'!M$16 -> 0 | N34: ='DL - C9'!N$16 -> 10.24819854 | O34: ='DL - C9'!O$16 -> 10.81582686 | P34: ='DL - C9'!P$16 -> 8.677423468 | Q34: ='DL - C9'!Q$16 -> 7.759958724 | R34: ='DL - C9'!R$16 -> 7.493935173 | S34: ='DL - C9'!S$16 -> 3.239844872 | T34: ='DL - C9'!T$16 -> 0 | U34: ='DL - C9'!U$16 -> 0
D35: less | E35: ='DL - C10'!E$13 -> Revenue protection services incentive - DL | F35: ='DL - C10'!F$13 -> 10.1: | G35: ='DL - C10'!G$13 -> RPSIt | H35: ='DL - C10'!H$13 -> 0 | I35: ='DL - C10'!I$13 -> GBP m | J35: ='DL - C10'!J$13 -> 0 | K35: ='DL - C10'!K$13 -> 0.9185168194 | L35: ='DL - C10'!L$13 -> 0 | M35: ='DL - C10'!M$13 -> 0 | N35: ='DL - C10'!N$13 -> 0.1825 | O35: ='DL - C10'!O$13 -> 0.144704795 | P35: ='DL - C10'!P$13 -> 0.17586519 | Q35: ='DL - C10'!Q$13 -> 0.1630819489 | R35: ='DL - C10'!R$13 -> 0.1664127171 | S35: ='DL - C10'!S$13 -> 0.08595216837 | T35: ='DL - C10'!T$13 -> 0 | U35: ='DL - C10'!U$13 -> 0
D36: plus | E36: ='DL - C11'!E$13 -> Correction factor amount - DL | F36: ='DL - C11'!F$13 -> 11.1: | G36: ='DL - C11'!G$13 -> Kt | H36: ='DL - C11'!H$13 -> 0 | I36: ='DL - C11'!I$13 -> GBP m | J36: ='DL - C11'!J$13 -> 0 | K36: ='DL - C11'!K$13 -> -19.08735912 | L36: ='DL - C11'!L$13 -> 0 | M36: ='DL - C11'!M$13 -> 0 | N36: ='DL - C11'!N$13 -> -10.611 | O36: ='DL - C11'!O$13 -> -18.09172197 | P36: ='DL - C11'!P$13 -> -14.47101757 | Q36: ='DL - C11'!Q$13 -> -4.611607579 | R36: ='DL - C11'!R$13 -> 0.5709445633 | S36: ='DL - C11'!S$13 -> 4.454954555 | T36: ='DL - C11'!T$13 -> 23.67208887 | U36: ='DL - C11'!U$13 -> 0
E37: =Time!E$91 -> RP5 period flag | F37: =Time!F$91 -> 0 | G37: =Time!G$91 -> 0 | H37: =Time!H$91 -> 0 | I37: =Time!I$91 -> flag | J37: =Time!J$91 -> 0 | K37: =Time!K$91 -> 6 | L37: =Time!L$91 -> 0 | M37: =Time!M$91 -> 0 | N37: =Time!N$91 -> 1 | O37: =Time!O$91 -> 1 | P37: =Time!P$91 -> 1 | Q37: =Time!Q$91 -> 1 | R37: =Time!R$91 -> 1 | S37: =Time!S$91 -> 1 | T37: =Time!T$91 -> 0 | U37: =Time!U$91 -> 0
E38: Maximum regulated distribution revenue - DL | F38: 3.5: | G38: RP5Rt | I38: GBP m | K38: =SUM(M38:U38) -> 983.2897528 | M38: =(M28 + M29 + M30 + M31 + M32 + M33 + M34 - M35 + M36) * M37 -> 0 | N38: 170.2482874 | O38: 172.0649869 | P38: 169.1979747 | Q38: 178.6352459 | R38: 190.988344 | S38: 102.1549138 | T38: 0 | U38: 0
E42: Comparison to NIE Figures as per entitlement model:
E44: DEPt | N44: 63.23892618 | O44: 67.05715117 | P44: 63.99079053 | Q44: 64.14319487 | R44: 65.48731862 | S44: 33.99671826
E45: RETt | N45: 38.79361138 | O45: 39.79532731 | P45: 40.75751129 | Q45: 41.48986355 | R45: 43.07656855 | S45: 22.65856256
E46: Ot | N46: 58.50980737 | O46: 60.92579197 | P46: 59.66229667 | Q46: 59.18496918 | R46: 63.47282964 | S46: 32.10469955
E47: Pt | N47: 10.25152593 | O47: 10.51449259 | P47: 10.75658889 | Q47: 10.83172222 | R47: 11.05294815 | S47: 5.703872222
E48: COIt | N48: 0 | O48: 1.19316113 | P48: 0 | Q48: 0 | R48: 0 | S48: 0
E49: TAXt | N49: 10.24801765 | O49: 10.81568878 | P49: 8.677153352 | Q49: 7.759713389 | R49: 7.49369556 | S49: 3.232570778
E50: RPSIt | N50: 0.1825 | O50: 0.144704795 | P50: 0.17586519 | Q50: 0.1630819489 | R50: 0.1664127171 | S50: 0.08587725751
E51: Kt | N51: -10.611 | O51: -18.09162039 | P51: -14.47071522 | Q51: -4.611823067 | R51: 0.5712208162 | S51: 4.465887929
E52: RP5Rt (Nominal prices) | N52: 170.2483885 | O52: 172.0652878 | P52: 169.1977603 | Q52: 178.6345582 | R52: 190.9881686 | S52: 102.0865368
E54: Differences:
E56: DEPt | N56: =N28-N44 -> -4.918425403e-05 | O56: =O28-O44 -> -0.0001021942896 | P56: 0.0004950585759 | Q56: 0.0004988391141 | R56: 0.0005098555239 | S56: 0.02959906648
E57: RETt | N57: =N29-N45 -> -0.0002022494229 | O57: =O29-O45 -> -0.0002351531016 | P57: -0.0002484137526 | Q57: -0.000270188004 | R57: -0.0002961779405 | S57: 0.01956975993
E58: Ot | N58: =N31-N46 -> -3.052020843e-05 | O58: =O31-O46 -> 0 | P58: 0 | Q58: -1.752894924e-06 | R58: -1.676858474e-06 | S58: 0.02806967818
E59: Pt | N59: 0 | O59: =O32-O47 -> 0 | P59: 0 | Q59: 0 | R59: 0 | S59: 0.004975496296
E60: COIt | N60: 0 | O60: =O33-O48 -> 0 | P60: 0 | Q60: 0 | R60: 0 | S60: 0
E61: TAXt | N61: 0.0001808873683 | O61: =O34-O49 -> 0.0001380791713 | P61: 0.0002701156961 | Q61: 0.0002453352086 | R61: 0.0002396137305 | S61: 0.0072740935
E62: RPSIt | N62: 0 | O62: =O35-O50 -> 0 | P62: 0 | Q62: 0 | R62: 0 | S62: 7.491086055e-05
E63: Kt | N63: 0 | O63: =O36-O51 -> -0.0001015718496 | P63: -0.0003023442698 | Q63: 0.0002154883308 | R63: -0.0002762529303 | S63: -0.01093337402
E64: RP5Rt (Nominal prices) | N64: =N38-N52 -> -0.000101066517 | O64: =O38-O52 -> -0.0003008400695 | P64: 0.0002144162496 | Q64: =Q38-Q52 -> 0.0006877217546 | R64: 0.0001753615253 | S64: 0.06837708997

Sheet DL - C4
A1: =RIGHT(CELL("filename", $A$1), LEN(CELL("filename", $A$1)) - SEARCH("]", CELL("filename", $A$1))) -> DL - C4
E2: =Time!E$23 -> Model period ending | H2: =Check!$H$9 -> 0 | I2: Error chks | M2: =Time!M$23 -> 2012-03-31 | N2: =Time!N$23 -> 2013-03-31 | O2: =Time!O$23 -> 2014-03-31 | P2: =Time!P$23 -> 2015-03-31 | Q2: =Time!Q$23 -> 2016-03-31 | R2: =Time!R$23 -> 2017-03-31 | S2: =Time!S$23 -> 2018-03-31 | T2: =Time!T$23 -> 2019-03-31 | U2: =Time!U$23 -> 2020-03-31
E3: =Time!E$153 -> Timeline label | H3: =Track!$M$2 -> 0 | I3: Track chgs | M3: =Time!M$153 -> RP4 | N3: =Time!N$153 -> RP5 | O3: =Time!O$153 -> RP5 | P3: =Time!P$153 -> RP5 | Q3: =Time!Q$153 -> RP5 | R3: =Time!R$153 -> RP5 | S3: =Time!S$153 -> RP5 / RP6 | T3: =Time!T$153 -> RP6 | U3: =Time!U$153 -> RP6
E4: =Time!E$36 -> Financial year ending | H4: =Check!$H$38 -> 0 | I4: Alerts | M4: =Time!M$36 -> 2012 | N4: =Time!N$36 -> 2013 | O4: =Time!O$36 -> 2014 | P4: =Time!P$36 -> 2015 | Q4: =Time!Q$36 -> 2016 | R4: =Time!R$36 -> 2017 | S4: =Time!S$36 -> 2018 | T4: =Time!T$36 -> 2019 | U4: =Time!U$36 -> 2020
E5: =Time!E$10 -> Model column counter | F5: Para references | G5: Defined Term | H5: Constant | I5: Unit | K5: Total | M5: =Time!M$10 -> 1 | N5: =Time!N$10 -> 2 | O5: =Time!O$10 -> 3 | P5: =Time!P$10 -> 4 | Q5: =Time!Q$10 -> 5 | R5: =Time!R$10 -> 6 | S5: =Time!S$10 -> 7 | T5: =Time!T$10 -> 8 | U5: =Time!U$10 -> 9
A7: 4.51. THE DEPRECIATION AMOUNT - DEPt
C9: 4.52 DEPt | F9: DEPt = ∑ (DEPADD_Xt + FDEP_Xt)
E11: =E$186 -> Depreciation amount for additional asset - t - DN | F11: 4.26: | G11: DEPADD_DNt | H11: 0 | I11: GBP m | J11: 0 | K11: 25.06139189 | L11: 0 | M11: 0 | N11: 0.7181216386 | O11: 2.215951845 | P11: 3.891623582 | Q11: 5.778889166 | R11: =R$186 -> 7.88195132 | S11: 4.574854334 | T11: 0 | U11: 0
E12: =E$85 -> Fixed depreciation amount - existing RAB - DN | F12: 4.11: | G12: FDEP_DNt | H12: 0 | I12: GBP m | J12: 0 | K12: 244.6312511 | L12: 0 | M12: 0 | N12: 46.01619703 | O12: 45.61348289 | P12: 44.90472847 | Q12: 43.69371136 | R12: =R$85 -> 42.84393387 | S12: 21.55919747 | T12: 0 | U12: 0
E13: =E$440 -> Depreciation amount for additional asset - t - ES | F13: 4.26: | G13: DEPADD_ESt | H13: 0 | I13: GBP m | J13: 0 | K13: 3.540953594 | L13: 0 | M13: 0 | N13: 0.3361727525 | O13: 0.6895921528 | P13: 0.705470019 | Q13: 0.7103976326 | R13: =R$440 -> 0.7249067172 | S13: 0.3744143194 | T13: 0 | U13: 0
E14: =E$339 -> Fixed depreciation amount - existing RAB - ES | F14: 4.11: | G14: FDEP_ESt | H14: 0 | I14: GBP m | J14: 0 | K14: 13.91061694 | L14: 0 | M14: 0 | N14: 2.411971652 | O14: 2.47384226 | P14: 2.531401417 | Q14: 2.549082917 | R14: =R$339 -> 2.601145111 | S14: 1.343173588 | T14: 0 | U14: 0
E15: =E$692 -> Depreciation amount for additional asset - t - MTRN | F15: 4.26: | G15: DEPADD_MTRNt | H15: 0 | I15: GBP m | J15: 0 | K15: 6.10411185 | L15: 0 | M15: 0 | N15: 0.1785447426 | O15: 0.5417849361 | P15: 0.9136508161 | Q15: 1.314356628 | R15: =R$692 -> 1.948303175 | S15: 1.207471553 | T15: 0 | U15: 0
E16: =E$591 -> Fixed depreciation amount - existing RAB - MTRN | F16: 4.11: | G16: FDEP_MTRNt | H16: 0 | I16: GBP m | J16: 0 | K16: 10.69395304 | L16: 0 | M16: 0 | N16: 1.854474433 | O16: 1.902044421 | P16: 1.945839012 | Q16: 1.959430437 | R16: =R$591 -> 1.999449633 | S16: 1.032715102 | T16: 0 | U16: 0
E17: =E$1008 -> Depreciation amount for additional asset - t - RT | F17: 4.26: | G17: DEPADD_RTt | H17: 0 | I17: GBP m | J17: 0 | K17: 0 | L17: 0 | M17: 0 | N17: 0 | O17: 0 | P17: 0 | Q17: 0 | R17: =R$1008 -> 0 | S17: 0 | T17: 0 | U17: 0
E18: =E$908 -> Fixed depreciation amount - existing RAB - RT | F18: 4.11: | G18: FDEP_RTt | H18: 0 | I18: GBP m | J18: 0 | K18: 0.9010547477 | L18: 0 | M18: 0 | N18: 0.1562550407 | O18: 0.1602632116 | P18: 0.1639532736 | Q18: 0.1650984653 | R18: =R$908 -> 0.1684704185 | S18: 0.08701433797 | T18: 0 | U18: 0
E19: ='DL - C4'!E$1261 -> Depreciation amount for additional asset - t - FE | F19: ='DL - C4'!F$1261 -> 4.26: | G19: ='DL - C4'!G$1261 -> DEPADD_FEt | H19: ='DL - C4'!H$1261 -> 0 | I19: ='DL - C4'!I$1261 -> GBP m | J19: ='DL - C4'!J$1261 -> 0 | K19: ='DL - C4'!K$1261 -> 0 | L19: ='DL - C4'!L$1261 -> 0 | M19: ='DL - C4'!M$1261 -> 0 | N19: ='DL - C4'!N$1261 -> 0 | O19: ='DL - C4'!O$1261 -> 0 | P19: ='DL - C4'!P$1261 -> 0 | Q19: ='DL - C4'!Q$1261 -> 0 | R19: ='DL - C4'!R$1261 -> 0 | S19: ='DL - C4'!S$1261 -> 0 | T19: ='DL - C4'!T$1261 -> 0 | U19: ='DL - C4'!U$1261 -> 0
E20: ='DL - C4'!E$1160 -> Fixed depreciation amount - existing RAB - FE | F20: ='DL - C4'!F$1160 -> 4.11: | G20: ='DL - C4'!G$1160 -> FDEP_FEt | H20: ='DL - C4'!H$1160 -> 0 | I20: ='DL - C4'!I$1160 -> GBP m | J20: ='DL - C4'!J$1160 -> 0 | K20: ='DL - C4'!K$1160 -> 7.076696142 | L20: ='DL - C4'!L$1160 -> 0 | M20: ='DL - C4'!M$1160 -> 0 | N20: ='DL - C4'!N$1160 -> 3.093004533 | O20: ='DL - C4'!O$1160 -> 3.172344633 | P20: ='DL - C4'!P$1160 -> 0.811346975 | Q20: ='DL - C4'!Q$1160 -> 0 | R20: ='DL - C4'!R$1160 -> 0 | S20: ='DL - C4'!S$1160 -> 0 | T20: ='DL - C4'!T$1160 -> 0 | U20: ='DL - C4'!U$1160 -> 0
E21: ='DL - C4'!E$1513 -> Depreciation amount for additional asset - t - NI | F21: ='DL - C4'!F$1513 -> 4.26: | G21: ='DL - C4'!G$1513 -> DEPADD_NIt | H21: ='DL - C4'!H$1513 -> 0 | I21: ='DL - C4'!I$1513 -> GBP m | J21: ='DL - C4'!J$1513 -> 0 | K21: ='DL - C4'!K$1513 -> 0 | L21: ='DL - C4'!L$1513 -> 0 | M21: ='DL - C4'!M$1513 -> 0 | N21: ='DL - C4'!N$1513 -> 0 | O21: ='DL - C4'!O$1513 -> 0 | P21: ='DL - C4'!P$1513 -> 0 | Q21: ='DL - C4'!Q$1513 -> 0 | R21: ='DL - C4'!R$1513 -> 0 | S21: ='DL - C4'!S$1513 -> 0 | T21: ='DL - C4'!T$1513 -> 0 | U21: ='DL - C4'!U$1513 -> 0
E22: ='DL - C4'!E$1412 -> Fixed depreciation amount - existing RAB - NI | F22: ='DL - C4'!F$1412 -> 4.11: | G22: ='DL - C4'!G$1412 -> FDEP_NIt | H22: ='DL - C4'!H$1412 -> 0 | I22: ='DL - C4'!I$1412 -> GBP m | J22: ='DL - C4'!J$1412 -> 0 | K22: ='DL - C4'!K$1412 -> 22.37223419 | L22: ='DL - C4'!L$1412 -> 0 | M22: ='DL - C4'!M$1412 -> 0 | N22: ='DL - C4'!N$1412 -> 7.762174356 | O22: ='DL - C4'!O$1412 -> 7.961285506 | P22: ='DL - C4'!P$1412 -> 4.164797075 | Q22: ='DL - C4'!Q$1412 -> 2.48397725 | R22: ='DL - C4'!R$1412 -> 0 | S22: ='DL - C4'!S$1412 -> 0 | T22: ='DL - C4'!T$1412 -> 0 | U22: ='DL - C4'!U$1412 -> 0
E23: ='DL - C4'!E$1765 -> Depreciation amount for additional asset - t - D5Y | F23: ='DL - C4'!F$1765 -> 4.26: | G23: ='DL - C4'!G$1765 -> DEPADD_D5Yt | H23: ='DL - C4'!H$1765 -> 0 | I23: ='DL - C4'!I$1765 -> GBP m | J23: ='DL - C4'!J$1765 -> 0 | K23: ='DL - C4'!K$1765 -> 23.65278758 | L23: ='DL - C4'!L$1765 -> 0 | M23: ='DL - C4'!M$1765 -> 0 | N23: ='DL - C4'!N$1765 -> 0.7119608188 | O23: ='DL - C4'!O$1765 -> 2.326457114 | P23: ='DL - C4'!P$1765 -> 3.958474946 | Q23: ='DL - C4'!Q$1765 -> 5.488749852 | R23: ='DL - C4'!R$1765 -> 7.319668234 | S23: ='DL - C4'!S$1765 -> 3.847476618 | T23: ='DL - C4'!T$1765 -> 0 | U23: ='DL - C4'!U$1765 -> 0
E24: ='DL - C4'!E$1664 -> Fixed depreciation amount - existing RAB - D5Y | F24: ='DL - C4'!F$1664 -> 4.11: | G24: ='DL - C4'!G$1664 -> FDEP_D5Yt | H24: ='DL - C4'!H$1664 -> 0 | I24: ='DL - C4'!I$1664 -> GBP m | J24: ='DL - C4'!J$1664 -> 0 | K24: ='DL - C4'!K$1664 -> 0 | L24: ='DL - C4'!L$1664 -> 0 | M24: ='DL - C4'!M$1664 -> 0 | N24: ='DL - C4'!N$1664 -> 0 | O24: ='DL - C4'!O$1664 -> 0 | P24: ='DL - C4'!P$1664 -> 0 | Q24: ='DL - C4'!Q$1664 -> 0 | R24: ='DL - C4'!R$1664 -> 0 | S24: ='DL - C4'!S$1664 -> 0 | T24: ='DL - C4'!T$1664 -> 0 | U24: ='DL - C4'!U$1664 -> 0
E25: ='DL - C4'!E$2017 -> Depreciation amount for additional asset - t - MO5Y | F25: ='DL - C4'!F$2017 -> 4.26: | G25: ='DL - C4'!G$2017 -> DEPADD_MO5Yt | H25: ='DL - C4'!H$2017 -> 0 | I25: ='DL - C4'!I$2017 -> GBP m | J25: ='DL - C4'!J$2017 -> 0 | K25: ='DL - C4'!K$2017 -> 0 | L25: ='DL - C4'!L$2017 -> 0 | M25: ='DL - C4'!M$2017 -> 0 | N25: ='DL - C4'!N$2017 -> 0 | O25: ='DL - C4'!O$2017 -> 0 | P25: ='DL - C4'!P$2017 -> 0 | Q25: ='DL - C4'!Q$2017 -> 0 | R25: ='DL - C4'!R$2017 -> 0 | S25: ='DL - C4'!S$2017 -> 0 | T25: ='DL - C4'!T$2017 -> 0 | U25: ='DL - C4'!U$2017 -> 0
E26: ='DL - C4'!E$1916 -> Fixed depreciation amount - existing RAB - MO5Y | F26: ='DL - C4'!F$1916 -> 4.11: | G26: ='DL - C4'!G$1916 -> FDEP_MO5Yt | H26: ='DL - C4'!H$1916 -> 0 | I26: ='DL - C4'!I$1916 -> GBP m | J26: ='DL - C4'!J$1916 -> 0 | K26: ='DL - C4'!K$1916 -> 0 | L26: ='DL - C4'!L$1916 -> 0 | M26: ='DL - C4'!M$1916 -> 0 | N26: ='DL - C4'!N$1916 -> 0 | O26: ='DL - C4'!O$1916 -> 0 | P26: ='DL - C4'!P$1916 -> 0 | Q26: ='DL - C4'!Q$1916 -> 0 | R26: ='DL - C4'!R$1916 -> 0 | S26: ='DL - C4'!S$1916 -> 0 | T26: ='DL - C4'!T$1916 -> 0 | U26: ='DL - C4'!U$1916 -> 0
E27: Depreciation amount - DL | F27: 4.51: | G27: DEPt | I27: GBP m | K27: =SUM(M27:U27) -> 357.9450511 | M27: =SUM(M11:M26) -> 0 | N27: 63.23887699 | O27: 67.05704897 | P27: 63.99128559 | Q27: 64.14369371 | R27: =SUM(R11:R26) -> 65.48782848 | S27: 34.02631732 | T27: 0 | U27: 0
A30: 4. REGULATORY ASSET BASES - DISTRIBUTION - RAB_DN
C32: 4.3 The opening regulatory asset base - ORAB_DNt
C35: 4.4 ORAB_DNt | F35: ORAB_DNt = OE_DNt + OADD_DNt
E37: =E$46 -> Existing RAB - BEG bal. - DN | F37: 4.5: | G37: OE_DNt | H37: 0 | I37: GBP m | J37: 0 | K37: 0 | L37: 0 | M37: 0 | N37: 889.5666111 | O37: 865.1887187 | P37: 838.4459637 | Q37: 799.0840145 | R37: =R$46 -> 770.8183132 | S37: 751.9975339 | T37: 0 | U37: 0
E38: =E$95 -> Additional RAB - BEG bal. - DN | F38: 4.13: | G38: OADD_DNt | H38: 0 | I38: GBP m | J38: 0 | K38: 0 | L38: 0 | M38: 0 | N38: 0 | O38: 48.36629157 | P38: 97.87770766 | Q38: 152.690414 | R38: =R$95 -> 217.216834 | S38: 283.4197974 | T38: 0 | U38: 0
E39: Distribution RAB - BEG bal. - DN | F39: 4.4: | G39: ORAB_DNt | I39: GBP m | M39: =SUM(M37:M38) -> 0 | N39: 889.5666111 | O39: 913.5550103 | P39: 936.3236714 | Q39: 951.7744286 | R39: =SUM(R37:R38) -> 988.0351472 | S39: 1035.417331 | T39: 0 | U39: 0
C42: 4.5 Opening value of existing assets - OE_DNt
E44: =E$55 -> Existing RAB - BEG bal. - 2013 - DN | F44: 4.6: | G44: OE_DN2013 | H44: 0 | I44: GBP m | J44: 0 | K44: 0 | L44: 0 | M44: 0 | N44: 889.5666111 | O44: 0 | P44: 0 | Q44: 0 | R44: =R$55 -> 0 | S44: 0 | T44: 0 | U44: 0
E45: =E$64 -> Existing RAB - BEG bal. - (Except 2013) - DN | F45: 4.7: | G45: OE_DNt | H45: 0 | I45: GBP m | J45: 0 | K45: 0 | L45: 0 | M45: 0 | N45: 0 | O45: 865.1887187 | P45: 838.4459637 | Q45: 799.0840145 | R45: =R$64 -> 770.8183132 | S45: 751.9975339 | T45: 0 | U45: 0
E46: Existing RAB - BEG bal. - DN | F46: 4.5: | G46: OE_DNt | I46: GBP m | M46: =SUM(M44:M45) -> 0 | N46: 889.5666111 | O46: 865.1887187 | P46: 838.4459637 | Q46: 799.0840145 | R46: =SUM(R44:R45) -> 770.8183132 | S46: 751.9975339 | T46: 0 | U46: 0
C49: 4.6 Opening balance of existing assets - 2013 | F49: OE_DN2013 = OE_2010_DN2013 * RPI2013 / RPI2010
E51: ='Licence Inp'!E$33 -> RAB_DN - base year 2010 | F51: ='Licence Inp'!F$33 -> Table 2 | G51: ='Licence Inp'!G$33 -> OE_2010_DN2013 | H51: ='Licence Inp'!H$33 -> 782.355 | I51: ='Licence Inp'!I$33 -> GBP m
E52: ='Actuals Inp'!E$10 -> RPI as on 2009/10 - (Base year 1993/94) | F52: ='Actuals Inp'!F$10 -> 0 | G52: ='Actuals Inp'!G$10 -> RPI2010 | H52: ='Actuals Inp'!H$10 -> 216 | I52: ='Actuals Inp'!I$10 -> index
E53: =Index!E$16 -> RPI index (Base year 1993/94) | F53: =Index!F$16 -> 0 | G53: =Index!G$16 -> RPIt | H53: =Index!H$16 -> 0 | I53: =Index!I$16 -> index | J53: =Index!J$16 -> 0 | K53: =Index!K$16 -> 0 | L53: =Index!L$16 -> 0 | M53: =Index!M$16 -> 238 | N53: =Index!N$16 -> 245.6 | O53: =Index!O$16 -> 251.9 | P53: =Index!P$16 -> 257.7 | Q53: =Index!Q$16 -> 259.5 | R53: =Index!R$16 -> 264.8 | S53: =Index!S$16 -> 273.5384 | T53: =Index!T$16 -> 273.5384 | U53: =Index!U$16 -> 273.5384
E54: =Time!E$70 -> RP5 start period flag | F54: =Time!F$70 -> 0 | G54: =Time!G$70 -> 0 | H54: =Time!H$70 -> 0 | I54: =Time!I$70 -> flag | J54: =Time!J$70 -> 0 | K54: =Time!K$70 -> 1 | L54: =Time!L$70 -> 0 | M54: =Time!M$70 -> 0 | N54: =Time!N$70 -> 1 | O54: =Time!O$70 -> 0 | P54: =Time!P$70 -> 0 | Q54: =Time!Q$70 -> 0 | R54: =Time!R$70 -> 0 | S54: =Time!S$70 -> 0 | T54: =Time!T$70 -> 0 | U54: =Time!U$70 -> 0
E55: Existing RAB - BEG bal. - 2013 - DN | F55: 4.6: | G55: OE_DN2013 | I55: GBP m | M55: =$H51 * M53 / $H52 * M54 -> 0 | N55: =$H51 * N53 / $H52 * N54 -> 889.5666111 | O55: 0 | P55: =$H51 * P53 / $H52 * P54 -> 0 | Q55: 0 | R55: =$H51 * R53 / $H52 * R54 -> 0 | S55: 0 | T55: 0 | U55: 0
C58: 4.7 Opening balance of existing assets - t | F58: OE_DNt = (CE_DNt-1) * RPIt / RPIt-1
E60: =E$74 -> Closing balance of existing RAB - DN | F60: 4.9: | G60: CE_DNt | H60: 0 | I60: GBP m | J60: 0 | K60: 0 | L60: 0 | M60: 0 | N60: 843.5504141 | O60: 819.5752358 | P60: 793.5412353 | Q60: 755.3903032 | R60: =R$74 -> 727.9743794 | S60: 730.4383364 | T60: 0 | U60: 0
E61: =Index!E$16 -> RPI index (Base year 1993/94) | F61: =Index!F$16 -> 0 | G61: =Index!G$16 -> RPIt | H61: =Index!H$16 -> 0 | I61: =Index!I$16 -> index | J61: =Index!J$16 -> 0 | K61: =Index!K$16 -> 0 | L61: =Index!L$16 -> 0 | M61: =Index!M$16 -> 238 | N61: =Index!N$16 -> 245.6 | O61: =Index!O$16 -> 251.9 | P61: =Index!P$16 -> 257.7 | Q61: =Index!Q$16 -> 259.5 | R61: =Index!R$16 -> 264.8 | S61: =Index!S$16 -> 273.5384 | T61: =Index!T$16 -> 273.5384 | U61: =Index!U$16 -> 273.5384
E62: =Time!E$91 -> RP5 period flag | F62: =Time!F$91 -> 0 | G62: =Time!G$91 -> 0 | H62: =Time!H$91 -> 0 | I62: =Time!I$91 -> flag | J62: =Time!J$91 -> 0 | K62: =Time!K$91 -> 6 | L62: =Time!L$91 -> 0 | M62: =Time!M$91 -> 0 | N62: =Time!N$91 -> 1 | O62: =Time!O$91 -> 1 | P62: =Time!P$91 -> 1 | Q62: =Time!Q$91 -> 1 | R62: =Time!R$91 -> 1 | S62: =Time!S$91 -> 1 | T62: =Time!T$91 -> 0 | U62: =Time!U$91 -> 0
E63: =Time!E$70 -> RP5 start period flag | F63: =Time!F$70 -> 0 | G63: =Time!G$70 -> 0 | H63: =Time!H$70 -> 0 | I63: =Time!I$70 -> flag | J63: =Time!J$70 -> 0 | K63: =Time!K$70 -> 1 | L63: =Time!L$70 -> 0 | M63: =Time!M$70 -> 0 | N63: =Time!N$70 -> 1 | O63: =Time!O$70 -> 0 | P63: =Time!P$70 -> 0 | Q63: =Time!Q$70 -> 0 | R63: =Time!R$70 -> 0 | S63: =Time!S$70 -> 0 | T63: =Time!T$70 -> 0 | U63: =Time!U$70 -> 0
E64: Existing RAB - BEG bal. - (Except 2013) - DN | F64: 4.7: | G64: OE_DNt | I64: GBP m | M64: =IF( OR(M63 = 1, L61 = 0), 0, L60 * M61 / L61) * M62 -> 0 | N64: =IF( OR(N63 = 1, M61 = 0), 0, M60 * N61 / M61) * N62 -> 0 | O64: 865.1887187 | P64: 838.4459637 | Q64: 799.0840145 | R64: =IF( OR(R63 = 1, Q61 = 0), 0, Q60 * R61 / Q61) * R62 -> 770.8183132 | S64: 751.9975339 | T64: 0 | U64: 0
C67: 4.8 Closing balance of existing RAB - CE_DNt
C70: 4.9 CE_DNt | F70: CE_DNt = OE_DNt - FDEP_DNt
E72: =E$46 -> Existing RAB - BEG bal. - DN | F72: 4.5: | G72: OE_DNt | H72: 0 | I72: GBP m | J72: 0 | K72: 0 | L72: 0 | M72: 0 | N72: 889.5666111 | O72: 865.1887187 | P72: 838.4459637 | Q72: 799.0840145 | R72: =R$46 -> 770.8183132 | S72: 751.9975339 | T72: 0 | U72: 0
D73: less | E73: =E$85 -> Fixed depreciation amount - existing RAB - DN | F73: 4.11: | G73: FDEP_DNt | H73: 0 | I73: GBP m | J73: 0 | K73: 244.6312511 | L73: 0 | M73: 0 | N73: 46.01619703 | O73: 45.61348289 | P73: 44.90472847 | Q73: 43.69371136 | R73: =R$85 -> 42.84393387 | S73: 21.55919747 | T73: 0 | U73: 0
E74: Closing balance of existing RAB - DN | F74: 4.9: | G74: CE_DNt | I74: GBP m | M74: =M72 - M73 -> 0 | N74: 843.5504141 | O74: 819.5752358 | P74: 793.5412353 | Q74: 755.3903032 | R74: =R72 - R73 -> 727.9743794 | S74: 730.4383364 | T74: 0 | U74: 0
C77: 4.10 Fixed depreciation amount - FDEP_DNt
C80: 4.11 FDEP_DNt | F80: FDEP_DNt = FDEP_2010_DNt * RPIt / RPI2010
E82: ='Actuals Inp'!E$10 -> RPI as on 2009/10 - (Base year 1993/94) | F82: ='Actuals Inp'!F$10 -> 0 | G82: ='Actuals Inp'!G$10 -> RPI2010 | H82: ='Actuals Inp'!H$10 -> 216 | I82: ='Actuals Inp'!I$10 -> index
E83: ='Licence Inp'!E$62 -> Fixed depreciation - base year 2010 - RAB_DN | F83: ='Licence Inp'!F$62 -> Table 3 | G83: ='Licence Inp'!G$62 -> FDEP_2010_DNt | H83: ='Licence Inp'!H$62 -> 0 | I83: ='Licence Inp'!I$62 -> GBP m | J83: ='Licence Inp'!J$62 -> 0 | K83: ='Licence Inp'!K$62 -> 205.563293 | L83: ='Licence Inp'!L$62 -> 0 | M83: ='Licence Inp'!M$62 -> 0 | N83: ='Licence Inp'!N$62 -> 40.470271 | O83: ='Licence Inp'!O$62 -> 39.112792 | P83: ='Licence Inp'!P$62 -> 37.638422 | Q83: ='Licence Inp'!Q$62 -> 36.369332 | R83: ='Licence Inp'!R$62 -> 34.948224 | S83: ='Licence Inp'!S$62 -> 17.024252 | T83: ='Licence Inp'!T$62 -> 0 | U83: ='Licence Inp'!U$62 -> 0
E84: =Index!E$16 -> RPI index (Base year 1993/94) | F84: =Index!F$16 -> 0 | G84: =Index!G$16 -> RPIt | H84: =Index!H$16 -> 0 | I84: =Index!I$16 -> index | J84: =Index!J$16 -> 0 | K84: =Index!K$16 -> 0 | L84: =Index!L$16 -> 0 | M84: =Index!M$16 -> 238 | N84: =Index!N$16 -> 245.6 | O84: =Index!O$16 -> 251.9 | P84: =Index!P$16 -> 257.7 | Q84: =Index!Q$16 -> 259.5 | R84: =Index!R$16 -> 264.8 | S84: =Index!S$16 -> 273.5384 | T84: =Index!T$16 -> 273.5384 | U84: =Index!U$16 -> 273.5384
E85: Fixed depreciation amount - existing RAB - DN | F85: 4.11: | G85: FDEP_DNt | I85: GBP m | K85: =SUM(M85:U85) -> 244.6312511 | M85: =M83 * M84 / $H82 -> 0 | N85: 46.01619703 | O85: 45.61348289 | P85: 44.90472847 | Q85: 43.69371136 | R85: =R83 * R84 / $H82 -> 42.84393387 | S85: 21.55919747 | T85: 0 | U85: 0
C88: 4.12 Opening balance of additional assets
C91: 4.13 OADD_DNt
E93: =E$100 -> Additional RAB - BEG bal. - 2013 - DN | F93: =F$100 -> 4.13a: | G93: OADD_DN2013 | H93: 0 | I93: GBP m | J93: 0 | K93: 0 | L93: 0 | M93: 0 | N93: 0 | O93: 0 | P93: 0 | Q93: 0 | R93: =R$100 -> 0 | S93: 0 | T93: 0 | U93: 0
E94: =E$107 -> Additional RAB - BEG bal. - except 2013 - DN | F94: =F$107 -> 4.13b: | G94: OADD_DNt | H94: 0 | I94: GBP m | J94: 0 | K94: 0 | L94: 0 | M94: 0 | N94: 0 | O94: 48.36629157 | P94: 97.87770766 | Q94: 152.690414 | R94: =R$107 -> 217.216834 | S94: 283.4197974 | T94: 0 | U94: 0
E95: Additional RAB - BEG bal. - DN | F95: 4.13: | G95: OADD_DNt | I95: GBP m | M95: =SUM(M93:M94) -> 0 | N95: =SUM(N93:N94) -> 0 | O95: 48.36629157 | P95: 97.87770766 | Q95: 152.690414 | R95: =SUM(R93:R94) -> 217.216834 | S95: 283.4197974 | T95: 0 | U95: 0
D97: 4.13a OADD_DN2013
E98: ='Licence Inp'!E$75 -> Opening additional assets - RAB_DN | F98: ='Licence Inp'!F$75 -> 4.13a: | G98: ='Licence Inp'!G$75 -> OADD_DN2013 | H98: ='Licence Inp'!H$75 -> 0 | I98: ='Licence Inp'!I$75 -> GBP m
E99: =Time!E$70 -> RP5 start period flag | F99: =Time!F$70 -> 0 | G99: =Time!G$70 -> 0 | H99: =Time!H$70 -> 0 | I99: =Time!I$70 -> flag | J99: =Time!J$70 -> 0 | K99: =Time!K$70 -> 1 | L99: =Time!L$70 -> 0 | M99: =Time!M$70 -> 0 | N99: =Time!N$70 -> 1 | O99: =Time!O$70 -> 0 | P99: =Time!P$70 -> 0 | Q99: =Time!Q$70 -> 0 | R99: =Time!R$70 -> 0 | S99: =Time!S$70 -> 0 | T99: =Time!T$70 -> 0 | U99: =Time!U$70 -> 0
E100: Additional RAB - BEG bal. - 2013 - DN | F100: 4.13a: | G100: OADD_DN2013 | I100: GBP m | M100: =M99 * $H98 -> 0 | N100: =N99 * $H98 -> 0 | O100: 0 | P100: 0 | Q100: 0 | R100: =R99 * $H98 -> 0 | S100: 0 | T100: 0 | U100: 0
D102: 4.13b OADD_DNt | F102: OADD_DNt = (CADD_DNt-1) * RPIt / RPIt-1
E103: =E$123 -> Closing balance of additional RAB - DN | F103: 4.15: | G103: CADD_DNt | H103: 0 | I103: GBP m | J103: 0 | K103: 0 | L103: 0 | M103: 0 | N103: 47.15665427 | O103: 95.67479457 | P103: 151.6312898 | Q103: 212.8692161 | R103: =R$123 -> 274.3657283 | S103: 319.2082591 | T103: 0 | U103: 0
E104: =Index!E$16 -> RPI index (Base year 1993/94) | F104: =Index!F$16 -> 0 | G104: =Index!G$16 -> RPIt | H104: =Index!H$16 -> 0 | I104: =Index!I$16 -> index | J104: =Index!J$16 -> 0 | K104: =Index!K$16 -> 0 | L104: =Index!L$16 -> 0 | M104: =Index!M$16 -> 238 | N104: =Index!N$16 -> 245.6 | O104: =Index!O$16 -> 251.9 | P104: =Index!P$16 -> 257.7 | Q104: =Index!Q$16 -> 259.5 | R104: =Index!R$16 -> 264.8 | S104: =Index!S$16 -> 273.5384 | T104: =Index!T$16 -> 273.5384 | U104: =Index!U$16 -> 273.5384
E105: =Time!E$91 -> RP5 period flag | F105: =Time!F$91 -> 0 | G105: =Time!G$91 -> 0 | H105: =Time!H$91 -> 0 | I105: =Time!I$91 -> flag | J105: =Time!J$91 -> 0 | K105: =Time!K$91 -> 6 | L105: =Time!L$91 -> 0 | M105: =Time!M$91 -> 0 | N105: =Time!N$91 -> 1 | O105: =Time!O$91 -> 1 | P105: =Time!P$91 -> 1 | Q105: =Time!Q$91 -> 1 | R105: =Time!R$91 -> 1 | S105: =Time!S$91 -> 1 | T105: =Time!T$91 -> 0 | U105: =Time!U$91 -> 0
E106: =Time!E$70 -> RP5 start period flag | F106: =Time!F$70 -> 0 | G106: =Time!G$70 -> 0 | H106: =Time!H$70 -> 0 | I106: =Time!I$70 -> flag | J106: =Time!J$70 -> 0 | K106: =Time!K$70 -> 1 | L106: =Time!L$70 -> 0 | M106: =Time!M$70 -> 0 | N106: =Time!N$70 -> 1 | O106: =Time!O$70 -> 0 | P106: =Time!P$70 -> 0 | Q106: =Time!Q$70 -> 0 | R106: =Time!R$70 -> 0 | S106: =Time!S$70 -> 0 | T106: =Time!T$70 -> 0 | U106: =Time!U$70 -> 0
E107: Additional RAB - BEG bal. - except 2013 - DN | F107: 4.13b: | G107: OADD_DNt | I107: GBP m | M107: =IF(OR(M106 =1, L104 = 0), 0, L103 * M104 / L104) * M105 -> 0 | N107: =IF(OR(N106 =1, M104 = 0), 0, M103 * N104 / M104) * N105 -> 0 | O107: 48.36629157 | P107: 97.87770766 | Q107: 152.690414 | R107: =IF(OR(R106 =1, Q104 = 0), 0, Q103 * R104 / Q104) * R105 -> 217.216834 | S107: 283.4197974 | T107: 0 | U107: 0
C110: 4.14 The closing value of additional assets - CADD_DNt
C113: 4.15 Closing balance of additional RAB | F113: CADD_DNt = OADD_DNt + QCE_DNt - DIQCE_DNt + PTCE_DNt - DIPTCE_DNt - DEPADD_DNt - CD_DNt + CI_DNt
E115: =E$95 -> Additional RAB - BEG bal. - DN | F115: 4.13: | G115: OADD_DNt | H115: 0 | I115: GBP m | J115: 0 | K115: 0 | L115: 0 | M115: 0 | N115: 0 | O115: 48.36629157 | P115: 97.87770766 | Q115: 152.690414 | R115: =R$95 -> 217.216834 | S115: 283.4197974 | T115: 0 | U115: 0
D116: plus | E116: =E$132 -> Qualifying capex amount - DN | F116: 4.17: | G116: QCE_DNt | H116: 0 | I116: GBP m | J116: 0 | K116: 338.3561192 | L116: 0 | M116: =M$132 -> 0 | N116: 47.94187306 | O116: 46.8620909 | P116: 50.4357024 | Q116: 66.5368674 | R116: =R$132 -> 79.18501168 | S116: 47.39457374 | T116: 0 | U116: 0
D117: less | E117: =E$141 -> Demonstrably inefficient qualifying capex exp. - DN | F117: 4.19: | G117: DIQCE_DNt | H117: 0 | I117: GBP m | J117: 0 | K117: 0 | L117: 0 | M117: =M$141 -> 0 | N117: 0 | O117: 0 | P117: 0 | Q117: 0 | R117: =R$141 -> 0 | S117: 0 | T117: 0 | U117: 0
D118: plus | E118: =E$151 -> Pass through capex expenditure - DN | F118: 4.21: | G118: PTCE_DNt | H118: 0 | I118: GBP m | J118: 0 | K118: -14.14262424 | L118: 0 | M118: =M$151 -> 0 | N118: 0.2485356738 | O118: 0.3973183387 | P118: -2.153644712 | Q118: -1.80768486 | R118: =R$151 -> -9.580903926 | S118: -1.24624475 | T118: 0 | U118: 0
D119: less | E119: =E$170 -> Demonstrably inefficient pass through capex exp. - DN | F119: 4.25: | G119: DIPTCE_DNt | H119: 0 | I119: GBP m | J119: 0 | K119: 0 | L119: 0 | M119: =M$170 -> 0 | N119: 0 | O119: 0 | P119: 0 | Q119: 0 | R119: =R$170 -> 0 | S119: 0 | T119: 0 | U119: 0
D120: less | E120: =E$186 -> Depreciation amount for additional asset - t - DN | F120: 4.26: | G120: DEPADD_DNt | H120: 0 | I120: GBP m | J120: 0 | K120: 25.06139189 | L120: 0 | M120: =M$186 -> 0 | N120: 0.7181216386 | O120: 2.215951845 | P120: 3.891623582 | Q120: 5.778889166 | R120: =R$186 -> 7.88195132 | S120: 4.574854334 | T120: 0 | U120: 0
D121: less | E121: =E$219 -> Capex disposals - DN | F121: 4.30: | G121: CD_DNt | H121: 0 | I121: GBP m | J121: 0 | K121: 0.09347874913 | L121: 0 | M121: =M$219 -> 0 | N121: 0.008323829584 | O121: 0.01735645384 | P121: 0.02207152778 | Q121: 0.02818528565 | R121: =R$219 -> 0 | S121: 0.01754165228 | T121: 0 | U121: 0
D122: plus | E122: =E$247 -> Capex incentive amount - DN | F122: 4.32: | G122: CI_DNt | H122: 0 | I122: GBP m | J122: 0 | K122: 2.276273182 | L122: 0 | M122: =M$247 -> 0 | N122: -0.3073090002 | O122: 2.282402056 | P122: 9.385219532 | Q122: 1.256693934 | R122: =R$247 -> -4.573262058 | S122: -5.767471281 | T122: 0 | U122: 0
E123: Closing balance of additional RAB - DN | F123: 4.15: | G123: CADD_DNt | I123: GBP m | M123: =M115 + M116 - M117 + M118 - M119 - M120 - M121 + M122 -> 0 | N123: 47.15665427 | O123: 95.67479457 | P123: 151.6312898 | Q123: 212.8692161 | R123: =R115 + R116 - R117 + R118 - R119 - R120 - R121 + R122 -> 274.3657283 | S123: 319.2082591 | T123: 0 | U123: 0
C126: 4.16 Qualifying capex expenditure - QCE_DNt
C129: 4.17 Capex incurred by the licensee - allocated to TN
E131: ='Actuals Inp'!E$32 -> Qualifying capex amount - DN | F131: ='Actuals Inp'!F$32 -> 4.17: | G131: ='Actuals Inp'!G$32 -> QCE_DNt | H131: ='Actuals Inp'!H$32 -> 0 | I131: ='Actuals Inp'!I$32 -> GBP m | J131: ='Actuals Inp'!J$32 -> [Entitlement Model 28.11.16.xlsx]RP5 Distribution Inputs'!$A$41 | K131: ='Actuals Inp'!K$32 -> 338.3561192 | L131: ='Actuals Inp'!L$32 -> 0 | M131: ='Actuals Inp'!M$32 -> 0 | N131: ='Actuals Inp'!N$32 -> 47.94187306 | O131: ='Actuals Inp'!O$32 -> 46.8620909 | P131: ='Actuals Inp'!P$32 -> 50.4357024 | Q131: ='Actuals Inp'!Q$32 -> 66.5368674 | R131: ='Actuals Inp'!R$32 -> 79.18501168 | S131: ='Actuals Inp'!S$32 -> 47.39457374 | T131: ='Actuals Inp'!T$32 -> 0 | U131: ='Actuals Inp'!U$32 -> 0
E132: Qualifying capex amount - DN | F132: 4.17: | G132: QCE_DNt | I132: GBP m | K132: =SUM(M132:U132) -> 338.3561192 | M132: =M131 -> 0 | N132: 47.94187306 | O132: 46.8620909 | P132: 50.4357024 | Q132: 66.5368674 | R132: =R131 -> 79.18501168 | S132: 47.39457374 | T132: 0 | U132: 0
C135: 4.18 Demonstrably inefficient qualifying capex expenditure - DIQCE_DNt
C138: 4.19 DIQCE_DNt
E140: ='Actuals Inp'!E$44 -> Demonstrably inefficient qualifying capex - DN | F140: ='Actuals Inp'!F$44 -> 4.19: | G140: ='Actuals Inp'!G$44 -> DIQCE_DNt | H140: ='Actuals Inp'!H$44 -> 0 | I140: ='Actuals Inp'!I$44 -> GBP m | J140: ='Actuals Inp'!J$44 -> [Entitlement Model 28.11.16.xlsx]RP5 Distribution Inputs'!$A$42 | K140: ='Actuals Inp'!K$44 -> 0 | L140: ='Actuals Inp'!L$44 -> 0 | M140: ='Actuals Inp'!M$44 -> 0 | N140: ='Actuals Inp'!N$44 -> 0 | O140: ='Actuals Inp'!O$44 -> 0 | P140: ='Actuals Inp'!P$44 -> 0 | Q140: ='Actuals Inp'!Q$44 -> 0 | R140: ='Actuals Inp'!R$44 -> 0 | S140: ='Actuals Inp'!S$44 -> 0 | T140: ='Actuals Inp'!T$44 -> 0 | U140: ='Actuals Inp'!U$44 -> 0
E141: Demonstrably inefficient qualifying capex exp. - DN | F141: 4.19: | G141: DIQCE_DNt | I141: GBP m | K141: =SUM(M141:U141) -> 0 | M141: =M140 -> 0 | N141: 0 | O141: 0 | P141: 0 | Q141: 0 | R141: =R140 -> 0 | S141: 0 | T141: 0 | U141: 0
C144: 4.20 Pass through capex expenditure amount - PTCE_DNt
C147: 4.21 PTCE_DNt | F147: PTCE_DNt = CLD_DNt + CC_DNt
E149: =E$161 -> Capex legacy Dt amount - DN | F149: 4.23: | G149: CLD_DNt | H149: 0 | I149: GBP m | J149: 0 | K149: 1.92885831 | L149: 0 | M149: 0 | N149: 0 | O149: 0.02673786 | P149: 0.4840851 | Q149: 1.41803535 | R149: =R$161 -> 0 | S149: 0 | T149: 0 | U149: 0
E150: ='Actuals Inp'!E$56 -> Capex connection amount - DN | F150: ='Actuals Inp'!F$56 -> 4.21: | G150: ='Actuals Inp'!G$56 -> CC_DNt | H150: ='Actuals Inp'!H$56 -> 0 | I150: ='Actuals Inp'!I$56 -> GBP m | J150: ='Actuals Inp'!J$56 -> [Entitlement Model 28.11.16.xlsx]RP5 Distribution Inputs'!$A$51 | K150: ='Actuals Inp'!K$56 -> -16.07148255 | L150: ='Actuals Inp'!L$56 -> 0 | M150: ='Actuals Inp'!M$56 -> 0 | N150: ='Actuals Inp'!N$56 -> 0.2485356738 | O150: ='Actuals Inp'!O$56 -> 0.3705804787 | P150: ='Actuals Inp'!P$56 -> -2.637729812 | Q150: ='Actuals Inp'!Q$56 -> -3.22572021 | R150: ='Actuals Inp'!R$56 -> -9.580903926 | S150: ='Actuals Inp'!S$56 -> -1.24624475 | T150: ='Actuals Inp'!T$56 -> 0 | U150: ='Actuals Inp'!U$56 -> 0
E151: Pass through capex expenditure - DN | F151: 4.21: | G151: PTCE_DNt | I151: GBP m | K151: =SUM(M151:U151) -> -14.14262424 | M151: =SUM(M149:M150) -> 0 | N151: 0.2485356738 | O151: 0.3973183387 | P151: -2.153644712 | Q151: -1.80768486 | R151: =SUM(R149:R150) -> -9.580903926 | S151: -1.24624475 | T151: 0 | U151: 0
C154: 4.22 Capex legacy Dt amount - CLD_DNt
C157: 4.23 CLD_DNt
E159: ='Actuals Inp'!E$68 -> Distribution split for legacy Dt capex - DN | F159: ='Actuals Inp'!F$68 -> 4.23: | G159: ='Actuals Inp'!G$68 -> CLD_DNt | H159: ='Actuals Inp'!H$68 -> 0 | I159: ='Actuals Inp'!I$68 -> GBP m | J159: ='Actuals Inp'!J$68 -> [Entitlement Model 28.11.16.xlsx]RP5 Distribution Inputs'!$A$50 | K159: ='Actuals Inp'!K$68 -> 1.92885831 | L159: ='Actuals Inp'!L$68 -> 0 | M159: ='Actuals Inp'!M$68 -> 0 | N159: ='Actuals Inp'!N$68 -> 0 | O159: ='Actuals Inp'!O$68 -> 0.02673786 | P159: ='Actuals Inp'!P$68 -> 0.4840851 | Q159: ='Actuals Inp'!Q$68 -> 1.41803535 | R159: ='Actuals Inp'!R$68 -> 0 | S159: ='Actuals Inp'!S$68 -> 0 | T159: ='Actuals Inp'!T$68 -> 0 | U159: ='Actuals Inp'!U$68 -> 0
E160: =Time!E$91 -> RP5 period flag | F160: =Time!F$91 -> 0 | G160: =Time!G$91 -> 0 | H160: =Time!H$91 -> 0 | I160: =Time!I$91 -> flag | J160: =Time!J$91 -> 0 | K160: =Time!K$91 -> 6 | L160: =Time!L$91 -> 0 | M160: =Time!M$91 -> 0 | N160: =Time!N$91 -> 1 | O160: =Time!O$91 -> 1 | P160: =Time!P$91 -> 1 | Q160: =Time!Q$91 -> 1 | R160: =Time!R$91 -> 1 | S160: =Time!S$91 -> 1 | T160: =Time!T$91 -> 0 | U160: =Time!U$91 -> 0
E161: Capex legacy Dt amount - DN | F161: 4.23: | G161: CLD_DNt | I161: GBP m | K161: =SUM(M161:U161) -> 1.92885831 | M161: =M159 * M160 -> 0 | N161: 0 | O161: 0.02673786 | P161: 0.4840851 | Q161: 1.41803535 | R161: =R159 * R160 -> 0 | S161: 0 | T161: 0 | U161: 0
C164: 4.24 Demonstrably inefficient pass through capex expenditure - DIPTCE_DNt
C167: 4.25 DIPTCE_DNt - part of PTCE_DNt
E169: ='Actuals Inp'!E$86 -> Demonstrably inefficient pass through capex exp. - DN | F169: ='Actuals Inp'!F$86 -> 4.25: | G169: ='Actuals Inp'!G$86 -> DIPTCE_DNt | H169: ='Actuals Inp'!H$86 -> 0 | I169: ='Actuals Inp'!I$86 -> GBP m | J169: ='Actuals Inp'!J$86 -> [Entitlement Model 28.11.16.xlsx]RP5 Distribution Inputs'!$A$52 | K169: ='Actuals Inp'!K$86 -> 0 | L169: ='Actuals Inp'!L$86 -> 0 | M169: ='Actuals Inp'!M$86 -> 0 | N169: ='Actuals Inp'!N$86 -> 0 | O169: ='Actuals Inp'!O$86 -> 0 | P169: ='Actuals Inp'!P$86 -> 0 | Q169: ='Actuals Inp'!Q$86 -> 0 | R169: ='Actuals Inp'!R$86 -> 0 | S169: ='Actuals Inp'!S$86 -> 0 | T169: ='Actuals Inp'!T$86 -> 0 | U169: ='Actuals Inp'!U$86 -> 0
E170: Demonstrably inefficient pass through capex exp. - DN | F170: 4.25: | G170: DIPTCE_DNt | I170: GBP m | K170: =SUM(M170:U170) -> 0 | M170: =M169 -> 0 | N170: 0 | O170: 0 | P170: 0 | Q170: 0 | R170: =R169 -> 0 | S170: 0 | T170: 0 | U170: 0
C173: 4.26 Depreciation amount of additional assets - DEPADD_DNt
C176: 4.27 DEPADD_DNt
C179: 4.27b In reporting year except 2013 | F179: DEPADD_DNt = 0.5 * DEPN_DNt + (DEPADD_DNt-1 + 0.5 * DEPN_DNt-1 ) * RPIt / RPIt-1
E181: ='Licence Inp'!E$95 -> Additional depreciation factor | F181: ='Licence Inp'!F$95 -> 4.27a: | G181: ='Licence Inp'!G$95 -> 0 | H181: ='Licence Inp'!H$95 -> 0.5 | I181: ='Licence Inp'!I$95 -> factor
E182: =E$208 -> Full period depreciation - DN | F182: 4.28: | G182: DEPN_DNt | H182: 0 | I182: GBP m | J182: 0 | K182: 8.5809892 | L182: 0 | M182: 0 | N182: 1.436243277 | O182: 1.485733645 | P182: 1.729356171 | Q182: 1.978730736 | R182: =R$208 -> 1.950925371 | S182: 0 | T182: 0 | U182: 0
E183: =Index!E$16 -> RPI index (Base year 1993/94) | F183: =Index!F$16 -> 0 | G183: =Index!G$16 -> RPIt | H183: =Index!H$16 -> 0 | I183: =Index!I$16 -> index | J183: =Index!J$16 -> 0 | K183: =Index!K$16 -> 0 | L183: =Index!L$16 -> 0 | M183: =Index!M$16 -> 238 | N183: =Index!N$16 -> 245.6 | O183: =Index!O$16 -> 251.9 | P183: =Index!P$16 -> 257.7 | Q183: =Index!Q$16 -> 259.5 | R183: =Index!R$16 -> 264.8 | S183: =Index!S$16 -> 273.5384 | T183: =Index!T$16 -> 273.5384 | U183: =Index!U$16 -> 273.5384
E184: =Time!E$97 -> RP5 PPF- actual / actual | F184: =Time!F$97 -> 0 | G184: =Time!G$97 -> 0 | H184: =Time!H$97 -> 0 | I184: =Time!I$97 -> factor | J184: =Time!J$97 -> 0 | K184: =Time!K$97 -> 5.5 | L184: =Time!L$97 -> 0 | M184: =Time!M$97 -> 0 | N184: =Time!N$97 -> 1 | O184: =Time!O$97 -> 1 | P184: =Time!P$97 -> 1 | Q184: =Time!Q$97 -> 1 | R184: =Time!R$97 -> 1 | S184: =Time!S$97 -> 0.5 | T184: =Time!T$97 -> 0 | U184: =Time!U$97 -> 0
E185: =E$194 -> Depreciation amount for additional asset adj. - DN | F185: 0 | G185: 0 | H185: n PD LK BCK | I185: GBP m | J185: 0 | K185: 0 | L185: 0 | M185: 0 | N185: 0 | O185: 0 | P185: 0 | Q185: 0 | R185: 0 | S185: 0 | T185: 0 | U185: 0
E186: Depreciation amount for additional asset - t - DN | F186: 4.26: | G186: DEPADD_DNt | I186: GBP m | K186: =SUM(M186:U186) -> 25.06139189 | M186: =$H181 * M182 + IF(L183 = 0, 0, (L186 + $H181 * L182) * M184 * M183 / L183) - M185 -> 0 | N186: 0.7181216386 | O186: 2.215951845 | P186: 3.891623582 | Q186: 5.778889166 | R186: 7.88195132 | S186: 4.574854334 | T186: 0 | U186: 0
E189: ='Licence Inp'!E$101 -> Depreciation rate - RAB_DN | F189: ='Licence Inp'!F$101 -> Table 5 | G189: ='Licence Inp'!G$101 -> DEPR_DN | H189: ='Licence Inp'!H$101 -> 0.03 | I189: ='Licence Inp'!I$101 -> %
E190: =Index!E$16 -> RPI index (Base year 1993/94) | F190: =Index!F$16 -> 0 | G190: =Index!G$16 -> RPIt | H190: =Index!H$16 -> 0 | I190: =Index!I$16 -> index | J190: =Index!J$16 -> 0 | K190: =Index!K$16 -> 0 | L190: =Index!L$16 -> 0 | M190: =Index!M$16 -> 238 | N190: =Index!N$16 -> 245.6 | O190: =Index!O$16 -> 251.9 | P190: =Index!P$16 -> 257.7 | Q190: =Index!Q$16 -> 259.5 | R190: =Index!R$16 -> 264.8 | S190: =Index!S$16 -> 273.5384 | T190: =Index!T$16 -> 273.5384 | U190: =Index!U$16 -> 273.5384
E191: =Time!E$97 -> RP5 PPF- actual / actual | F191: =Time!F$97 -> 0 | G191: =Time!G$97 -> 0 | H191: =Time!H$97 -> 0 | I191: =Time!I$97 -> factor | J191: =Time!J$97 -> 0 | K191: =Time!K$97 -> 5.5 | L191: =Time!L$97 -> 0 | M191: =Time!M$97 -> 0 | N191: =Time!N$97 -> 1 | O191: =Time!O$97 -> 1 | P191: =Time!P$97 -> 1 | Q191: =Time!Q$97 -> 1 | R191: =Time!R$97 -> 1 | S191: =Time!S$97 -> 0.5 | T191: =Time!T$97 -> 0 | U191: =Time!U$97 -> 0
E192: =Time!E$10 -> Model column counter | F192: =Time!F$10 -> 0 | G192: =Time!G$10 -> 0 | H192: =Time!H$10 -> 0 | I192: =Time!I$10 -> counter | J192: =Time!J$10 -> 0 | K192: =Time!K$10 -> 0 | L192: =Time!L$10 -> 0 | M192: =Time!M$10 -> 1 | N192: =Time!N$10 -> 2 | O192: =Time!O$10 -> 3 | P192: =Time!P$10 -> 4 | Q192: =Time!Q$10 -> 5 | R192: =Time!R$10 -> 6 | S192: =Time!S$10 -> 7 | T192: =Time!T$10 -> 8 | U192: =Time!U$10 -> 9
E193: =E$186 -> Depreciation amount for additional asset - t - DN | F193: 4.26: | G193: DEPADD_DNt | H193: 0 | I193: GBP m | J193: 0 | K193: 25.06139189 | L193: 0 | M193: 0 | N193: 0.7181216386 | O193: 2.215951845 | P193: 3.891623582 | Q193: 5.778889166 | R193: 7.88195132 | S193: 4.574854334 | T193: 0 | U193: 0
E194: Depreciation amount for additional asset adj. - DN | H194: n PD LK BCK | I194: GBP m | K194: =SUM(M194:U194) -> 0 | M194: =IF(OR($H189 = 0, L190 = 0), 0, SUMPRODUCT(L193:$M193, (1 / L190:$M190), 1 * (L192:$M192 = (M192 - ROUNDDOWN(1 / $H189, 0))) * M190 * M191)) -> 0 | N194: =IF(OR($H189 = 0, M190 = 0), 0, SUMPRODUCT(M193:$M193, (1 / M190:$M190), 1 * (M192:$M192 = (N192 - ROUNDDOWN(1 / $H189, 0))) * N190 * N191)) -> 0 | O194: =IF(OR($H189 = 0, N190 = 0), 0, SUMPRODUCT($M193:N193, (1 / $M190:N190), 1 * ($M192:N192 = (O192 - ROUNDDOWN(1 / $H189, 0))) * O190 * O191)) -> 0 | P194: =IF(OR($H189 = 0, O190 = 0), 0, SUMPRODUCT($M193:O193, (1 / $M190:O190), 1 * ($M192:O192 = (P192 - ROUNDDOWN(1 / $H189, 0))) * P190 * P191)) -> 0 | Q194: =IF(OR($H189 = 0, P190 = 0), 0, SUMPRODUCT($M193:P193, (1 / $M190:P190), 1 * ($M192:P192 = (Q192 - ROUNDDOWN(1 / $H189, 0))) * Q190 * Q191)) -> 0 | R194: =IF(OR($H189 = 0, Q190 = 0), 0, SUMPRODUCT($M193:Q193, (1 / $M190:Q190), 1 * ($M192:Q192 = (R192 - ROUNDDOWN(1 / $H189, 0))) * R190 * R191)) -> 0 | S194: =IF(OR($H189 = 0, R190 = 0), 0, SUMPRODUCT($M193:R193, (1 / $M190:R190), 1 * ($M192:R192 = (S192 - ROUNDDOWN(1 / $H189, 0))) * S190 * S191)) -> 0 | T194: =IF(OR($H189 = 0, S190 = 0), 0, SUMPRODUCT($M193:S193, (1 / $M190:S190), 1 * ($M192:S192 = (T192 - ROUNDDOWN(1 / $H189, 0))) * T190 * T191)) -> 0 | U194: =IF(OR($H189 = 0, T190 = 0), 0, SUMPRODUCT($M193:T193, (1 / $M190:T190), 1 * ($M192:T192 = (U192 - ROUNDDOWN(1 / $H189, 0))) * U190 * U191)) -> 0
C197: 4.28 DEPN_DNt | F197: DEPN_DNt = (QCE_DNt - DIQCE_DNt + PTCE_DNt - DIPTCE_DNt - CD_DNt + CI_DNt) * DEPR_DN
E199: ='Licence Inp'!E$101 -> Depreciation rate - RAB_DN | F199: ='Licence Inp'!F$101 -> Table 5 | G199: ='Licence Inp'!G$101 -> DEPR_DN | H199: ='Licence Inp'!H$101 -> 0.03 | I199: ='Licence Inp'!I$101 -> %
E200: =E$132 -> Qualifying capex amount - DN | F200: 4.17: | G200: QCE_DNt | H200: 0 | I200: GBP m | J200: 0 | K200: 338.3561192 | L200: 0 | M200: 0 | N200: 47.94187306 | O200: 46.8620909 | P200: 50.4357024 | Q200: 66.5368674 | R200: =R$132 -> 79.18501168 | S200: 47.39457374 | T200: 0 | U200: 0
E201: =E$141 -> Demonstrably inefficient qualifying capex exp. - DN | F201: 4.19: | G201: DIQCE_DNt | H201: 0 | I201: GBP m | J201: 0 | K201: 0 | L201: 0 | M201: 0 | N201: 0 | O201: 0 | P201: 0 | Q201: 0 | R201: =R$141 -> 0 | S201: 0 | T201: 0 | U201: 0
E202: =E$151 -> Pass through capex expenditure - DN | F202: 4.21: | G202: PTCE_DNt | H202: 0 | I202: GBP m | J202: 0 | K202: -14.14262424 | L202: 0 | M202: 0 | N202: 0.2485356738 | O202: 0.3973183387 | P202: -2.153644712 | Q202: -1.80768486 | R202: =R$151 -> -9.580903926 | S202: -1.24624475 | T202: 0 | U202: 0
E203: =E$170 -> Demonstrably inefficient pass through capex exp. - DN | F203: 4.25: | G203: DIPTCE_DNt | H203: 0 | I203: GBP m | J203: 0 | K203: 0 | L203: 0 | M203: 0 | N203: 0 | O203: 0 | P203: 0 | Q203: 0 | R203: =R$170 -> 0 | S203: 0 | T203: 0 | U203: 0
E204: =E$219 -> Capex disposals - DN | F204: 4.30: | G204: CD_DNt | H204: 0 | I204: GBP m | J204: 0 | K204: 0.09347874913 | L204: 0 | M204: 0 | N204: 0.008323829584 | O204: 0.01735645384 | P204: 0.02207152778 | Q204: 0.02818528565 | R204: =R$219 -> 0 | S204: 0.01754165228 | T204: 0 | U204: 0
E205: =E$247 -> Capex incentive amount - DN | F205: 4.32: | G205: CI_DNt | H205: 0 | I205: GBP m | J205: 0 | K205: 2.276273182 | L205: 0 | M205: 0 | N205: -0.3073090002 | O205: 2.282402056 | P205: 9.385219532 | Q205: 1.256693934 | R205: =R$247 -> -4.573262058 | S205: -5.767471281 | T205: 0 | U205: 0
E206: =Time!E$47 -> Pre - RP5 period flag | F206: =Time!F$47 -> 0 | G206: =Time!G$47 -> 0 | H206: =Time!H$47 -> 0 | I206: =Time!I$47 -> flag | J206: =Time!J$47 -> 0 | K206: =Time!K$47 -> 1 | L206: =Time!L$47 -> 0 | M206: =Time!M$47 -> 1 | N206: =Time!N$47 -> 0 | O206: =Time!O$47 -> 0 | P206: =Time!P$47 -> 0 | Q206: =Time!Q$47 -> 0 | R206: =Time!R$47 -> 0 | S206: =Time!S$47 -> 0 | T206: =Time!T$47 -> 0 | U206: =Time!U$47 -> 0
E207: =Time!E$128 -> End of regulatory part period flag | F207: =Time!F$128 -> 0 | G207: =Time!G$128 -> 0 | H207: =Time!H$128 -> 0 | I207: =Time!I$128 -> flag | J207: =Time!J$128 -> 0 | K207: =Time!K$128 -> 1 | L207: =Time!L$128 -> 0 | M207: =Time!M$128 -> 0 | N207: =Time!N$128 -> 0 | O207: =Time!O$128 -> 0 | P207: =Time!P$128 -> 0 | Q207: =Time!Q$128 -> 0 | R207: =Time!R$128 -> 0 | S207: =Time!S$128 -> 1 | T207: =Time!T$128 -> 0 | U207: =Time!U$128 -> 0
E208: Full period depreciation - DN | F208: 4.28: | G208: DEPN_DNt | I208: GBP m | K208: =SUM(M208:U208) -> 8.5809892 | M208: =(M200 - M201 + M202 - M203 - M204 + M205) * $H199 * (1 - M206) * (1- M207) -> 0 | N208: 1.436243277 | O208: 1.485733645 | P208: 1.729356171 | Q208: 1.978730736 | R208: 1.950925371 | S208: 0 | T208: 0 | U208: 0
C211: 4.29 Capex disposal amount - CD_DNt | F211: CD_DNt = (OCD_DNt-5) * RPIt / RPIt-5
C214: 4.30 CD_DNt
E216: =E232 -> Asset disposals - t-5 - DN | F216: 0 | G216: OCD_DNt-5 | H216: 0 | I216: GBP m | J216: 0 | K216: 0.080855 | L216: 0 | M216: 0 | N216: 0.00708 | O216: 0.015 | P216: 0.0185 | Q216: 0.024525 | R216: =R232 -> 0 | S216: 0.01575 | T216: 0 | U216: 0
E217: =Index!E$29 -> RPI index (Base year 1993/94) - t-5 | F217: =Index!F$29 -> 0 | G217: =Index!G$29 -> RPIt-5 | H217: =Index!H$29 -> 0 | I217: =Index!I$29 -> index | J217: =Index!J$29 -> 0 | K217: =Index!K$29 -> 0 | L217: =Index!L$29 -> 0 | M217: =Index!M$29 -> 200.4 | N217: =Index!N$29 -> 208.9 | O217: =Index!O$29 -> 217.7 | P217: =Index!P$29 -> 216 | Q217: =Index!Q$29 -> 225.8 | R217: =Index!R$29 -> 238 | S217: =Index!S$29 -> 245.6 | T217: =Index!T$29 -> 251.9 | U217: =Index!U$29 -> 257.7
E218: =Index!E$16 -> RPI index (Base year 1993/94) | F218: =Index!F$16 -> 0 | G218: =Index!G$16 -> RPIt | H218: =Index!H$16 -> 0 | I218: =Index!I$16 -> index | J218: =Index!J$16 -> 0 | K218: =Index!K$16 -> 0 | L218: =Index!L$16 -> 0 | M218: =Index!M$16 -> 238 | N218: =Index!N$16 -> 245.6 | O218: =Index!O$16 -> 251.9 | P218: =Index!P$16 -> 257.7 | Q218: =Index!Q$16 -> 259.5 | R218: =Index!R$16 -> 264.8 | S218: =Index!S$16 -> 273.5384 | T218: =Index!T$16 -> 273.5384 | U218: =Index!U$16 -> 273.5384
E219: Capex disposals - DN | F219: 4.30: | G219: CD_DNt | I219: GBP m | K219: =SUM(M219:U219) -> 0.09347874913 | M219: =M216 * M218 / M217 -> 0 | N219: 0.008323829584 | O219: 0.01735645384 | P219: 0.02207152778 | Q219: 0.02818528565 | R219: =R216 * R218 / R217 -> 0 | S219: 0.01754165228 | T219: 0 | U219: 0
D221: Asset disposals - t-5
E222: ='Actuals Inp'!E$98 -> Asset disposal lookback periods | F222: ='Actuals Inp'!F$98 -> 0 | G222: ='Actuals Inp'!G$98 -> 0 | H222: ='Actuals Inp'!H$98 -> 5 | I222: ='Actuals Inp'!I$98 -> years
E224: ='Actuals Inp'!E$100 -> Historic timeline | F224: ='Actuals Inp'!F$100 -> 0 | G224: ='Actuals Inp'!G$100 -> 0 | H224: ='Actuals Inp'!H$100 -> 0 | I224: ='Actuals Inp'!I$100 -> date | J224: ='Actuals Inp'!J$100 -> 0 | K224: ='Actuals Inp'!K$100 -> 0 | L224: ='Actuals Inp'!L$100 -> 0 | M224: ='Actuals Inp'!M$100 -> 2008 | N224: ='Actuals Inp'!N$100 -> 2009 | O224: ='Actuals Inp'!O$100 -> 2010 | P224: ='Actuals Inp'!P$100 -> 2011 | Q224: ='Actuals Inp'!Q$100 -> 0 | R224: ='Actuals Inp'!R$100 -> 0 | S224: ='Actuals Inp'!S$100 -> 0 | T224: ='Actuals Inp'!T$100 -> 0 | U224: ='Actuals Inp'!U$100 -> 0
E225: =Time!E$36 -> Financial year ending | F225: =Time!F$36 -> 0 | G225: =Time!G$36 -> 0 | H225: =Time!H$36 -> 0 | I225: =Time!I$36 -> year # | J225: =Time!J$36 -> 0 | K225: =Time!K$36 -> 0 | L225: =Time!L$36 -> 0 | M225: =Time!M$36 -> 2012 | N225: =Time!N$36 -> 2013 | O225: =Time!O$36 -> 2014 | P225: =Time!P$36 -> 2015 | Q225: =Time!Q$36 -> 2016 | R225: =Time!R$36 -> 2017 | S225: =Time!S$36 -> 2018 | T225: =Time!T$36 -> 2019 | U225: =Time!U$36 -> 2020
E227: ='Actuals Inp'!E$101 -> Historic - asset disposals - DN | F227: ='Actuals Inp'!F$101 -> 4.30: | G227: ='Actuals Inp'!G$101 -> OCD_DNt | H227: ='Actuals Inp'!H$101 -> 0 | I227: ='Actuals Inp'!I$101 -> GBP m | J227: ='Actuals Inp'!J$101 -> 0 | K227: ='Actuals Inp'!K$101 -> 0.065105 | L227: ='Actuals Inp'!L$101 -> 0 | M227: ='Actuals Inp'!M$101 -> 0.00708 | N227: ='Actuals Inp'!N$101 -> 0.015 | O227: ='Actuals Inp'!O$101 -> 0.0185 | P227: ='Actuals Inp'!P$101 -> 0.024525 | Q227: ='Actuals Inp'!Q$101 -> 0 | R227: ='Actuals Inp'!R$101 -> 0 | S227: ='Actuals Inp'!S$101 -> 0 | T227: ='Actuals Inp'!T$101 -> 0 | U227: ='Actuals Inp'!U$101 -> 0
E228: ='Actuals Inp'!E$111 -> Asset disposals - DN | F228: ='Actuals Inp'!F$111 -> 4.30: | G228: ='Actuals Inp'!G$111 -> OCD_DNt | H228: ='Actuals Inp'!H$111 -> 0 | I228: ='Actuals Inp'!I$111 -> GBP m | J228: ='Actuals Inp'!J$111 -> [Entitlement Model 28.11.16.xlsx]RP5 Distribution Inputs'!$A$55 | K228: ='Actuals Inp'!K$111 -> 0.0805 | L228: ='Actuals Inp'!L$111 -> 0 | M228: ='Actuals Inp'!M$111 -> 0 | N228: ='Actuals Inp'!N$111 -> 0.0315 | O228: ='Actuals Inp'!O$111 -> 0 | P228: ='Actuals Inp'!P$111 -> 0.049 | Q228: ='Actuals Inp'!Q$111 -> 0 | R228: ='Actuals Inp'!R$111 -> 0 | S228: ='Actuals Inp'!S$111 -> 0 | T228: ='Actuals Inp'!T$111 -> 0 | U228: ='Actuals Inp'!U$111 -> 0
E230: =Time!E$97 -> RP5 PPF- actual / actual | F230: =Time!F$97 -> 0 | G230: =Time!G$97 -> 0 | H230: =Time!H$97 -> 0 | I230: =Time!I$97 -> factor | J230: =Time!J$97 -> 0 | K230: =Time!K$97 -> 5.5 | L230: =Time!L$97 -> 0 | M230: =Time!M$97 -> 0 | N230: =Time!N$97 -> 1 | O230: =Time!O$97 -> 1 | P230: =Time!P$97 -> 1 | Q230: =Time!Q$97 -> 1 | R230: =Time!R$97 -> 1 | S230: =Time!S$97 -> 0.5 | T230: =Time!T$97 -> 0 | U230: =Time!U$97 -> 0
E232: Asset disposals - t-5 - DN | G232: OCD_DNt-5 | I232: GBP m | K232: =SUM(M232:U232) -> 0.080855 | M232: =SUMPRODUCT(($M224:$U225 = M225 - $H222) * $M227:$U228) * M230 -> 0 | N232: =SUMPRODUCT(($M224:$U225 = N225 - $H222) * $M227:$U228) * N230 -> 0.00708 | O232: =SUMPRODUCT(($M224:$U225 = O225 - $H222) * $M227:$U228) * O230 -> 0.015 | P232: =SUMPRODUCT(($M224:$U225 = P225 - $H222) * $M227:$U228) * P230 -> 0.0185 | Q232: =SUMPRODUCT(($M224:$U225 = Q225 - $H222) * $M227:$U228) * Q230 -> 0.024525 | R232: =SUMPRODUCT(($M224:$U225 = R225 - $H222) * $M227:$U228) * R230 -> 0 | S232: 0.01575 | T232: 0 | U232: 0
C235: 4.31 Capex incentive amount - CI_DNt
C238: 4.32 CI_DNt | F238: CI_DNt = ( AC_DNt + ACIA_DNt + ACES_DNt + ACCOL_DNt – ( QCE_DNt – DIQCE_DNt ) ) * 50%
E240: ='Licence Inp'!E$113 -> Capex incentive licensee share % | F240: ='Licence Inp'!F$113 -> 4.32: | G240: ='Licence Inp'!G$113 -> 0 | H240: ='Licence Inp'!H$113 -> 0.5 | I240: ='Licence Inp'!I$113 -> %
E241: =E$274 -> Allowed capex - DN | F241: 4.34: | G241: AC_DNt | H241: 0 | I241: GBP m | J241: 0 | K241: 342.9086656 | L241: 0 | M241: 0 | N241: 47.32725506 | O241: 51.42689501 | P241: 69.20614147 | Q241: 69.05025527 | R241: =R$274 -> 70.03848757 | S241: 35.85963118 | T241: 0 | U241: 0
D242: plus | E242: =E$255 -> Allowed capex for injurious affection claims - DN | F242: 4.32: | G242: ACIA_DNt | H242: 0 | I242: GBP m | J242: 0 | K242: 0 | L242: 0 | M242: 0 | N242: 0 | O242: 0 | P242: 0 | Q242: 0 | R242: 0 | S242: 0 | T242: 0 | U242: 0
D243: plus | E243: =E$263 -> Allowed capex for enduring solution system - DN | F243: 4.32: | G243: ACES_DNt | H243: 0 | I243: GBP m | J243: 0 | K243: 0 | L243: 0 | M243: 0 | N243: 0 | O243: 0 | P243: 0 | Q243: 0 | R243: 0 | S243: 0 | T243: 0 | U243: 0
D244: plus | E244: =E$282 -> Allowed capex for changes of law - DN | F244: 4.45: | G244: ACCOL_DNt | H244: 0 | I244: GBP m | J244: 0 | K244: 0 | L244: 0 | M244: 0 | N244: 0 | O244: 0 | P244: 0 | Q244: 0 | R244: 0 | S244: 0 | T244: 0 | U244: 0
D245: less | E245: =E$132 -> Qualifying capex amount - DN | F245: 4.17: | G245: QCE_DNt | H245: 0 | I245: GBP m | J245: 0 | K245: 338.3561192 | L245: 0 | M245: 0 | N245: 47.94187306 | O245: 46.8620909 | P245: 50.4357024 | Q245: 66.5368674 | R245: =R$132 -> 79.18501168 | S245: 47.39457374 | T245: 0 | U245: 0
D246: plus | E246: =E$141 -> Demonstrably inefficient qualifying capex exp. - DN | F246: 4.19: | G246: DIQCE_DNt | H246: 0 | I246: GBP m | J246: 0 | K246: 0 | L246: 0 | M246: 0 | N246: 0 | O246: 0 | P246: 0 | Q246: 0 | R246: =R$141 -> 0 | S246: 0 | T246: 0 | U246: 0
E247: Capex incentive amount - DN | F247: 4.32: | G247: CI_DNt | I247: GBP m | K247: =SUM(M247:U247) -> 2.276273182 | M247: =(M241 + M242 + M243 + M244 - (M245 - M246)) * $H240 -> 0 | N247: -0.3073090002 | O247: 2.282402056 | P247: 9.385219532 | Q247: 1.256693934 | R247: =(R241 + R242 + R243 + R244 - (R245 - R246)) * $H240 -> -4.573262058 | S247: -5.767471281 | T247: 0 | U247: 0
C250: 4.32 ACIA_DNt
E252: ='Actuals Inp'!E$10 -> RPI as on 2009/10 - (Base year 1993/94) | F252: ='Actuals Inp'!F$10 -> 0 | G252: ='Actuals Inp'!G$10 -> RPI2010 | H252: ='Actuals Inp'!H$10 -> 216 | I252: ='Actuals Inp'!I$10 -> index
E253: ='Licence Inp'!E$129 -> Allowed capex for injurious affection claims - DN | F253: ='Licence Inp'!F$129 -> 4.32: | G253: ='Licence Inp'!G$129 -> ACIA_2010_DNt | H253: ='Licence Inp'!H$129 -> 0 | I253: ='Licence Inp'!I$129 -> GBP m | J253: ='Licence Inp'!J$129 -> [Entitlement Model 28.11.16.xlsx]RP5 Distribution Inputs'!$A$45 | K253: ='Licence Inp'!K$129 -> 0 | L253: ='Licence Inp'!L$129 -> 0 | M253: ='Licence Inp'!M$129 -> 0 | N253: ='Licence Inp'!N$129 -> 0 | O253: ='Licence Inp'!O$129 -> 0 | P253: ='Licence Inp'!P$129 -> 0 | Q253: ='Licence Inp'!Q$129 -> 0 | R253: ='Licence Inp'!R$129 -> 0 | S253: ='Licence Inp'!S$129 -> 0 | T253: ='Licence Inp'!T$129 -> 0 | U253: ='Licence Inp'!U$129 -> 0
E254: =Index!E$16 -> RPI index (Base year 1993/94) | F254: =Index!F$16 -> 0 | G254: =Index!G$16 -> RPIt | H254: =Index!H$16 -> 0 | I254: =Index!I$16 -> index | J254: =Index!J$16 -> 0 | K254: =Index!K$16 -> 0 | L254: =Index!L$16 -> 0 | M254: =Index!M$16 -> 238 | N254: =Index!N$16 -> 245.6 | O254: =Index!O$16 -> 251.9 | P254: =Index!P$16 -> 257.7 | Q254: =Index!Q$16 -> 259.5 | R254: =Index!R$16 -> 264.8 | S254: =Index!S$16 -> 273.5384 | T254: =Index!T$16 -> 273.5384 | U254: =Index!U$16 -> 273.5384
E255: Allowed capex for injurious affection claims - DN | F255: 4.32: | G255: ACIA_DNt | I255: GBP m | K255: =SUM(M255:U255) -> 0 | M255: =M253 * M254 / $H252 -> 0 | N255: 0 | O255: 0 | P255: 0 | Q255: 0 | R255: 0 | S255: 0 | T255: 0 | U255: 0
C258: 4.32 ACES_DNt
E260: ='Actuals Inp'!E$10 -> RPI as on 2009/10 - (Base year 1993/94) | F260: ='Actuals Inp'!F$10 -> 0 | G260: ='Actuals Inp'!G$10 -> RPI2010 | H260: ='Actuals Inp'!H$10 -> 216 | I260: ='Actuals Inp'!I$10 -> index
E261: ='Licence Inp'!E$141 -> Allowed capex for enduring solution system - DN | F261: ='Licence Inp'!F$141 -> 0 | G261: ='Licence Inp'!G$141 -> ACES_2010_DNt | H261: ='Licence Inp'!H$141 -> 0 | I261: ='Licence Inp'!I$141 -> GBP m | J261: ='Licence Inp'!J$141 -> [Entitlement Model 28.11.16.xlsx]RP5 Distribution Inputs'!$A$47 | K261: ='Licence Inp'!K$141 -> 0 | L261: ='Licence Inp'!L$141 -> 0 | M261: ='Licence Inp'!M$141 -> 0 | N261: ='Licence Inp'!N$141 -> 0 | O261: ='Licence Inp'!O$141 -> 0 | P261: ='Licence Inp'!P$141 -> 0 | Q261: ='Licence Inp'!Q$141 -> 0 | R261: ='Licence Inp'!R$141 -> 0 | S261: ='Licence Inp'!S$141 -> 0 | T261: ='Licence Inp'!T$141 -> 0 | U261: ='Licence Inp'!U$141 -> 0
E262: =Index!E$16 -> RPI index (Base year 1993/94) | F262: =Index!F$16 -> 0 | G262: =Index!G$16 -> RPIt | H262: =Index!H$16 -> 0 | I262: =Index!I$16 -> index | J262: =Index!J$16 -> 0 | K262: =Index!K$16 -> 0 | L262: =Index!L$16 -> 0 | M262: =Index!M$16 -> 238 | N262: =Index!N$16 -> 245.6 | O262: =Index!O$16 -> 251.9 | P262: =Index!P$16 -> 257.7 | Q262: =Index!Q$16 -> 259.5 | R262: =Index!R$16 -> 264.8 | S262: =Index!S$16 -> 273.5384 | T262: =Index!T$16 -> 273.5384 | U262: =Index!U$16 -> 273.5384
E263: Allowed capex for enduring solution system - DN | F263: 4.32: | G263: ACES_DNt | I263: GBP m | K263: =SUM(M263:U263) -> 0 | M263: =M261 * M262 / $H260 -> 0 | N263: 0 | O263: 0 | P263: 0 | Q263: 0 | R263: 0 | S263: 0 | T263: 0 | U263: 0
C266: 4.33 Allowed capex - AC_DNt
C269: 4.34 AC_DNt | F269: AC_DNt = AC_2010_DNt * RPIt / RPI2010
E271: ='Actuals Inp'!E$10 -> RPI as on 2009/10 - (Base year 1993/94) | F271: ='Actuals Inp'!F$10 -> 0 | G271: ='Actuals Inp'!G$10 -> RPI2010 | H271: ='Actuals Inp'!H$10 -> 216 | I271: ='Actuals Inp'!I$10 -> index
E272: ='Licence Inp'!E$118 -> Allowed capex - Base year 2010 - RAB_DN | F272: ='Licence Inp'!F$118 -> Table 6 | G272: ='Licence Inp'!G$118 -> AC_2010_DNt | H272: ='Licence Inp'!H$118 -> 0 | I272: ='Licence Inp'!I$118 -> GBP m | J272: ='Licence Inp'!J$118 -> [Entitlement Model 28.11.16.xlsx]RP5 Distribution Inputs'!A$44 | K272: ='Licence Inp'!K$118 -> 286.6515496 | L272: ='Licence Inp'!L$118 -> 0 | M272: ='Licence Inp'!M$118 -> 0 | N272: ='Licence Inp'!N$118 -> 41.62331878 | O272: ='Licence Inp'!O$118 -> 44.09769481 | P272: ='Licence Inp'!P$118 -> 58.00747597 | Q272: ='Licence Inp'!Q$118 -> 57.47535699 | R272: ='Licence Inp'!R$118 -> 57.13109258 | S272: ='Licence Inp'!S$118 -> 28.31661052 | T272: ='Licence Inp'!T$118 -> 0 | U272: ='Licence Inp'!U$118 -> 0
E273: =Index!E$16 -> RPI index (Base year 1993/94) | F273: =Index!F$16 -> 0 | G273: =Index!G$16 -> RPIt | H273: =Index!H$16 -> 0 | I273: =Index!I$16 -> index | J273: =Index!J$16 -> 0 | K273: =Index!K$16 -> 0 | L273: =Index!L$16 -> 0 | M273: =Index!M$16 -> 238 | N273: =Index!N$16 -> 245.6 | O273: =Index!O$16 -> 251.9 | P273: =Index!P$16 -> 257.7 | Q273: =Index!Q$16 -> 259.5 | R273: =Index!R$16 -> 264.8 | S273: =Index!S$16 -> 273.5384 | T273: =Index!T$16 -> 273.5384 | U273: =Index!U$16 -> 273.5384
E274: Allowed capex - DN | F274: 4.34: | G274: AC_DNt | I274: GBP m | K274: =SUM(M274:U274) -> 342.9086656 | M274: =M272 * M273 / $H271 -> 0 | N274: 47.32725506 | O274: 51.42689501 | P274: 69.20614147 | Q274: 69.05025527 | R274: =R272 * R273 / $H271 -> 70.03848757 | S274: 35.85963118 | T274: 0 | U274: 0
C277: 4.38 ACCOL_DNt
E279: ='Actuals Inp'!E$10 -> RPI as on 2009/10 - (Base year 1993/94) | F279: ='Actuals Inp'!F$10 -> 0 | G279: ='Actuals Inp'!G$10 -> RPI2010 | H279: ='Actuals Inp'!H$10 -> 216 | I279: ='Actuals Inp'!I$10 -> index
E280: ='Licence Inp'!E$153 -> Allowed capex for changes of law - DN | F280: ='Licence Inp'!F$153 -> 4.45: | G280: ='Licence Inp'!G$153 -> ACCOL_2010_DNt | H280: ='Licence Inp'!H$153 -> 0 | I280: ='Licence Inp'!I$153 -> GBP m | J280: ='Licence Inp'!J$153 -> [Entitlement Model 28.11.16.xlsx]RP5 Distribution Inputs'!$A$46 | K280: ='Licence Inp'!K$153 -> 0 | L280: ='Licence Inp'!L$153 -> 0 | M280: ='Licence Inp'!M$153 -> 0 | N280: ='Licence Inp'!N$153 -> 0 | O280: ='Licence Inp'!O$153 -> 0 | P280: ='Licence Inp'!P$153 -> 0 | Q280: ='Licence Inp'!Q$153 -> 0 | R280: ='Licence Inp'!R$153 -> 0 | S280: ='Licence Inp'!S$153 -> 0 | T280: ='Licence Inp'!T$153 -> 0 | U280: ='Licence Inp'!U$153 -> 0
E281: =Index!E$16 -> RPI index (Base year 1993/94) | F281: =Index!F$16 -> 0 | G281: =Index!G$16 -> RPIt | H281: =Index!H$16 -> 0 | I281: =Index!I$16 -> index | J281: =Index!J$16 -> 0 | K281: =Index!K$16 -> 0 | L281: =Index!L$16 -> 0 | M281: =Index!M$16 -> 238 | N281: =Index!N$16 -> 245.6 | O281: =Index!O$16 -> 251.9 | P281: =Index!P$16 -> 257.7 | Q281: =Index!Q$16 -> 259.5 | R281: =Index!R$16 -> 264.8 | S281: =Index!S$16 -> 273.5384 | T281: =Index!T$16 -> 273.5384 | U281: =Index!U$16 -> 273.5384
E282: Allowed capex for changes of law - DN | F282: 4.45: | G282: ACCOL_DNt | I282: GBP m | K282: =SUM(M282:U282) -> 0 | M282: =M280 * M281 / $H279 -> 0 | N282: =N280 * N281 / $H279 -> 0 | O282: 0 | P282: 0 | Q282: 0 | R282: 0 | S282: 0 | T282: 0 | U282: 0
A285: 4. REGULATORY ASSET BASES - ENDURING SOLUTION - RAB_ES
C287: 4.3 The opening regulatory asset base - ORAB_ESt
C290: 4.4 ORAB_ESt | F290: ORAB_ESt = OE_ESt + OADD_ESt
E292: =E$301 -> Existing RAB - BEG bal. - ES | F292: 4.5: | G292: OE_ESt | H292: 0 | I292: GBP m | J292: 0 | K292: 0 | L292: 0 | M292: 0 | N292: 24.11882963 | O292: 22.2636707 | P292: 20.24548944 | Q292: =Q$301 -> 17.83781856 | R292: =R$301 -> 15.60099113 | S292: 13.42884093 | T292: 0 | U292: 0
E293: =E$349 -> Additional RAB - BEG bal. - ES | F293: 4.13: | G293: OADD_ESt | H293: 0 | I293: GBP m | J293: 0 | K293: 0 | L293: 0 | M293: 0 | N293: 0 | O293: 6.551125452 | P293: 5.996495161 | Q293: =Q$349 -> 5.327982245 | R293: =R$349 -> 4.711893662 | S293: 4.118557514 | T293: 0 | U293: 0
E294: Enduring solution RAB - BEG bal. - ES | F294: 4.4: | G294: ORAB_ESt | I294: GBP m | M294: =SUM(M292:M293) -> 0 | N294: 24.11882963 | O294: 28.81479615 | P294: 26.2419846 | Q294: 23.1658008 | R294: =SUM(R292:R293) -> 20.31288479 | S294: 17.54739845 | T294: 0 | U294: 0
C297: 4.5 Opening value of existing assets - OE_ESt
E299: =E$310 -> Existing RAB - BEG bal. - 2013 - ES | F299: 4.6: | G299: OE_ES2013 | H299: 0 | I299: GBP m | J299: 0 | K299: 0 | L299: 0 | M299: 0 | N299: 24.11882963 | O299: 0 | P299: 0 | Q299: 0 | R299: =R$310 -> 0 | S299: 0 | T299: 0 | U299: 0
E300: =E$318 -> Existing RAB - BEG bal. - (Except 2013) - ES | F300: 4.7: | G300: OE_ESt | H300: 0 | I300: GBP m | J300: 0 | K300: 0 | L300: 0 | M300: 0 | N300: 0 | O300: 22.2636707 | P300: 20.24548944 | Q300: 17.83781856 | R300: =R$318 -> 15.60099113 | S300: 13.42884093 | T300: 0 | U300: 0
E301: Existing RAB - BEG bal. - ES | F301: 4.5: | G301: OE_ESt | I301: GBP m | M301: =SUM(M299:M300) -> 0 | N301: 24.11882963 | O301: 22.2636707 | P301: 20.24548944 | Q301: 17.83781856 | R301: =SUM(R299:R300) -> 15.60099113 | S301: 13.42884093 | T301: 0 | U301: 0
C304: 4.6 Opening balance of existing assets - 2013 | F304: OE_ES2013 = OE_2010_ES2013 * RPI2013 / RPI2010
E306: ='Licence Inp'!E$34 -> RAB_ES - base year 2010 | F306: ='Licence Inp'!F$34 -> Table 2 | G306: ='Licence Inp'!G$34 -> OE_2010_ES2013 | H306: ='Licence Inp'!H$34 -> 21.212 | I306: ='Licence Inp'!I$34 -> GBP m
E307: ='Actuals Inp'!E$10 -> RPI as on 2009/10 - (Base year 1993/94) | F307: ='Actuals Inp'!F$10 -> 0 | G307: ='Actuals Inp'!G$10 -> RPI2010 | H307: ='Actuals Inp'!H$10 -> 216 | I307: ='Actuals Inp'!I$10 -> index
E308: =Index!E$16 -> RPI index (Base year 1993/94) | F308: =Index!F$16 -> 0 | G308: =Index!G$16 -> RPIt | H308: =Index!H$16 -> 0 | I308: =Index!I$16 -> index | J308: =Index!J$16 -> 0 | K308: =Index!K$16 -> 0 | L308: =Index!L$16 -> 0 | M308: =Index!M$16 -> 238 | N308: =Index!N$16 -> 245.6 | O308: =Index!O$16 -> 251.9 | P308: =Index!P$16 -> 257.7 | Q308: =Index!Q$16 -> 259.5 | R308: =Index!R$16 -> 264.8 | S308: =Index!S$16 -> 273.5384 | T308: =Index!T$16 -> 273.5384 | U308: =Index!U$16 -> 273.5384
E309: =Time!E$70 -> RP5 start period flag | F309: =Time!F$70 -> 0 | G309: =Time!G$70 -> 0 | H309: =Time!H$70 -> 0 | I309: =Time!I$70 -> flag | J309: =Time!J$70 -> 0 | K309: =Time!K$70 -> 1 | L309: =Time!L$70 -> 0 | M309: =Time!M$70 -> 0 | N309: =Time!N$70 -> 1 | O309: =Time!O$70 -> 0 | P309: =Time!P$70 -> 0 | Q309: =Time!Q$70 -> 0 | R309: =Time!R$70 -> 0 | S309: =Time!S$70 -> 0 | T309: =Time!T$70 -> 0 | U309: =Time!U$70 -> 0
E310: Existing RAB - BEG bal. - 2013 - ES | F310: 4.6: | G310: OE_ES2013 | I310: GBP m | M310: =$H306 * M308 / $H307 * M309 -> 0 | N310: =$H306 * N308 / $H307 * N309 -> 24.11882963 | O310: 0 | P310: 0 | Q310: 0 | R310: =$H306 * R308 / $H307 * R309 -> 0 | S310: 0 | T310: 0 | U310: 0
C313: 4.7 Opening balance of existing assets - t | F313: OE_ESt = (CE_ESt-1) * RPIt / RPIt-1
E315: =E$328 -> Closing balance of existing RAB - ES | F315: 4.9: | G315: CE_ESt | H315: 0 | I315: GBP m | J315: 0 | K315: 0 | L315: 0 | M315: 0 | N315: 21.70685798 | O315: 19.78982844 | P315: 17.71408802 | Q315: 15.28873564 | R315: =R$328 -> 12.99984601 | S315: 12.08566735 | T315: 0 | U315: 0
E316: =Index!E$16 -> RPI index (Base year 1993/94) | F316: =Index!F$16 -> 0 | G316: =Index!G$16 -> RPIt | H316: =Index!H$16 -> 0 | I316: =Index!I$16 -> index | J316: =Index!J$16 -> 0 | K316: =Index!K$16 -> 0 | L316: =Index!L$16 -> 0 | M316: =Index!M$16 -> 238 | N316: =Index!N$16 -> 245.6 | O316: =Index!O$16 -> 251.9 | P316: =Index!P$16 -> 257.7 | Q316: =Index!Q$16 -> 259.5 | R316: =Index!R$16 -> 264.8 | S316: =Index!S$16 -> 273.5384 | T316: =Index!T$16 -> 273.5384 | U316: =Index!U$16 -> 273.5384
E317: =Time!E$91 -> RP5 period flag | F317: =Time!F$91 -> 0 | G317: =Time!G$91 -> 0 | H317: =Time!H$91 -> 0 | I317: =Time!I$91 -> flag | J317: =Time!J$91 -> 0 | K317: =Time!K$91 -> 6 | L317: =Time!L$91 -> 0 | M317: =Time!M$91 -> 0 | N317: =Time!N$91 -> 1 | O317: =Time!O$91 -> 1 | P317: =Time!P$91 -> 1 | Q317: =Time!Q$91 -> 1 | R317: =Time!R$91 -> 1 | S317: =Time!S$91 -> 1 | T317: =Time!T$91 -> 0 | U317: =Time!U$91 -> 0
E318: Existing RAB - BEG bal. - (Except 2013) - ES | F318: 4.7: | G318: OE_ESt | I318: GBP m | M318: =IF( L316 = 0, 0, L315 * M316 / L316) * M317 -> 0 | N318: 0 | O318: 22.2636707 | P318: 20.24548944 | Q318: 17.83781856 | R318: =IF( Q316 = 0, 0, Q315 * R316 / Q316) * R317 -> 15.60099113 | S318: 13.42884093 | T318: 0 | U318: 0
C321: 4.8 Closing balance of existing RAB - CE_ESt
C324: 4.9 CE_ESt | F324: CE_ESt = OE_ESt - FDEP_ESt
E326: =E$301 -> Existing RAB - BEG bal. - ES | F326: 4.5: | G326: OE_ESt | H326: 0 | I326: GBP m | J326: 0 | K326: 0 | L326: 0 | M326: 0 | N326: 24.11882963 | O326: 22.2636707 | P326: 20.24548944 | Q326: 17.83781856 | R326: =R$301 -> 15.60099113 | S326: 13.42884093 | T326: 0 | U326: 0
... 1068 more rows

Sheet DL - C4 A
A1: =RIGHT(CELL("filename", $A$1), LEN(CELL("filename", $A$1)) - SEARCH("]", CELL("filename", $A$1))) -> DL - C4 A
E2: ='DL - C4 A'!E$22 -> Model period ending - RP1 | H2: =Check!$H$9 -> 0 | I2: Error chks | M2: ='DL - C4 A'!M$22 -> 1994-03-31 | N2: ='DL - C4 A'!N$22 -> 1995-03-31 | O2: ='DL - C4 A'!O$22 -> 1996-03-31 | P2: ='DL - C4 A'!P$22 -> 1997-03-31 | Q2: ='DL - C4 A'!Q$22 -> 1998-03-31 | R2: ='DL - C4 A'!R$22 -> 1999-03-31 | S2: ='DL - C4 A'!S$22 -> 2000-03-31 | T2: ='DL - C4 A'!T$22 -> 2001-03-31 | U2: ='DL - C4 A'!U$22 -> 2002-03-31 | V2: ='DL - C4 A'!V$22 -> 2003-03-31 | W2: ='DL - C4 A'!W$22 -> 2004-03-31 | X2: ='DL - C4 A'!X$22 -> 2005-03-31 | Y2: ='DL - C4 A'!Y$22 -> 2006-03-31 | Z2: ='DL - C4 A'!Z$22 -> 2007-03-31 | AA2: ='DL - C4 A'!AA$22 -> 2008-03-31 | AB2: ='DL - C4 A'!AB$22 -> 2009-03-31 | AC2: ='DL - C4 A'!AC$22 -> 2010-03-31 | AD2: ='DL - C4 A'!AD$22 -> 2011-03-31 | AE2: ='DL - C4 A'!AE$22 -> 2012-03-31 | AF2: ='DL - C4 A'!AF$22 -> 2013-03-31 | AG2: ='DL - C4 A'!AG$22 -> 2014-03-31 | AH2: ='DL - C4 A'!AH$22 -> 2015-03-31 | AI2: ='DL - C4 A'!AI$22 -> 2016-03-31 | AJ2: ='DL - C4 A'!AJ$22 -> 2017-03-31 | AK2: ='DL - C4 A'!AK$22 -> 2018-03-31 | AL2: ='DL - C4 A'!AL$22 -> 2019-03-31 | AM2: ='DL - C4 A'!AM$22 -> 2020-03-31 | AN2: ='DL - C4 A'!AN$22 -> 2021-03-31 | AO2: ='DL - C4 A'!AO$22 -> 2022-03-31 | AP2: ='DL - C4 A'!AP$22 -> 2023-03-31 | AQ2: ='DL - C4 A'!AQ$22 -> 2024-03-31 | AR2: ='DL - C4 A'!AR$22 -> 2025-03-31 | AS2: ='DL - C4 A'!AS$22 -> 2026-03-31 | AT2: ='DL - C4 A'!AT$22 -> 2027-03-31 | AU2: ='DL - C4 A'!AU$22 -> 2028-03-31 | AV2: ='DL - C4 A'!AV$22 -> 2029-03-31 | AW2: ='DL - C4 A'!AW$22 -> 2030-03-31 | AX2: ='DL - C4 A'!AX$22 -> 2031-03-31 | AY2: ='DL - C4 A'!AY$22 -> 2032-03-31 | AZ2: ='DL - C4 A'!AZ$22 -> 2033-03-31 | BA2: ='DL - C4 A'!BA$22 -> 2034-03-31 | BB2: ='DL - C4 A'!BB$22 -> 2035-03-31 | BC2: ='DL - C4 A'!BC$22 -> 2036-03-31 | BD2: ='DL - C4 A'!BD$22 -> 2037-03-31 | BE2: ='DL - C4 A'!BE$22 -> 2038-03-31 | BF2: ='DL - C4 A'!BF$22 -> 2039-03-31 | BG2: ='DL - C4 A'!BG$22 -> 2040-03-31 | BH2: ='DL - C4 A'!BH$22 -> 2041-03-31 | BI2: ='DL - C4 A'!BI$22 -> 2042-03-31 | BJ2: ='DL - C4 A'!BJ$22 -> 2043-03-31 | BK2: ='DL - C4 A'!BK$22 -> 2044-03-31 | BL2: ='DL - C4 A'!BL$22 -> 2045-03-31 | BM2: ='DL - C4 A'!BM$22 -> 2046-03-31 | BN2: ='DL - C4 A'!BN$22 -> 2047-03-31 | BO2: ='DL - C4 A'!BO$22 -> 2048-03-31 | BP2: ='DL - C4 A'!BP$22 -> 2049-03-31 | BQ2: ='DL - C4 A'!BQ$22 -> 2050-03-31 | BR2: ='DL - C4 A'!BR$22 -> 2051-03-31 | BS2: ='DL - C4 A'!BS$22 -> 2052-03-31 | BT2: ='DL - C4 A'!BT$22 -> 2053-03-31 | BU2: ='DL - C4 A'!BU$22 -> 2054-03-31 | BV2: ='DL - C4 A'!BV$22 -> 2055-03-31 | BW2: ='DL - C4 A'!BW$22 -> 2056-03-31 | BX2: ='DL - C4 A'!BX$22 -> 2057-03-31 | BY2: ='DL - C4 A'!BY$22 -> 2058-03-31 | BZ2: ='DL - C4 A'!BZ$22 -> 2059-03-31 | CA2: ='DL - C4 A'!CA$22 -> 2060-03-31
E3: Timeline label - RP1 | H3: =Track!$M$2 -> 0 | I3: Track chgs | M3: RP1 | N3: RP1 | O3: RP1 | P3: RP1 | Q3: RP2 | R3: RP2 | S3: RP2 | T3: RP2 | U3: RP2 | V3: RP3 | W3: RP3 | X3: RP3 | Y3: RP3 | Z3: RP3 | AA3: RP4 | AB3: RP4 | AC3: RP4 | AD3: RP4 | AE3: RP4 | AF3: RP5 | AG3: RP5 | AH3: RP5 | AI3: RP5 | AJ3: RP5 | AK3: RP5 / RP6 | AL3: RP6 | AM3: RP6 | AN3: RP6 | AO3: RP6 | AP3: RP6 | AQ3: RP6 | AR3: Post RP6 | AS3: Post RP6 | AT3: Post RP6 | AU3: Post RP6 | AV3: Post RP6 | AW3: Post RP6 | AX3: Post RP6 | AY3: Post RP6 | AZ3: Post RP6 | BA3: Post RP6 | BB3: Post RP6 | BC3: Post RP6 | BD3: Post RP6 | BE3: Post RP6 | BF3: Post RP6 | BG3: Post RP6 | BH3: Post RP6 | BI3: Post RP6 | BJ3: Post RP6 | BK3: Post RP6 | BL3: Post RP6 | BM3: Post RP6 | BN3: Post RP6 | BO3: Post RP6 | BP3: Post RP6 | BQ3: Post RP6 | BR3: Post RP6 | BS3: Post RP6 | BT3: Post RP6 | BU3: Post RP6 | BV3: Post RP6 | BW3: Post RP6 | BX3: Post RP6 | BY3: Post RP6 | BZ3: Post RP6 | CA3: Post RP6
E4: ='DL - C4 A'!E$29 -> Financial year ending - RP1 | H4: =Check!$H$38 -> 0 | I4: Alerts | M4: ='DL - C4 A'!M$29 -> 1994 | N4: ='DL - C4 A'!N$29 -> 1995 | O4: ='DL - C4 A'!O$29 -> 1996 | P4: ='DL - C4 A'!P$29 -> 1997 | Q4: ='DL - C4 A'!Q$29 -> 1998 | R4: ='DL - C4 A'!R$29 -> 1999 | S4: ='DL - C4 A'!S$29 -> 2000 | T4: ='DL - C4 A'!T$29 -> 2001 | U4: ='DL - C4 A'!U$29 -> 2002 | V4: ='DL - C4 A'!V$29 -> 2003 | W4: ='DL - C4 A'!W$29 -> 2004 | X4: ='DL - C4 A'!X$29 -> 2005 | Y4: ='DL - C4 A'!Y$29 -> 2006 | Z4: ='DL - C4 A'!Z$29 -> 2007 | AA4: ='DL - C4 A'!AA$29 -> 2008 | AB4: ='DL - C4 A'!AB$29 -> 2009 | AC4: ='DL - C4 A'!AC$29 -> 2010 | AD4: ='DL - C4 A'!AD$29 -> 2011 | AE4: ='DL - C4 A'!AE$29 -> 2012 | AF4: ='DL - C4 A'!AF$29 -> 2013 | AG4: ='DL - C4 A'!AG$29 -> 2014 | AH4: ='DL - C4 A'!AH$29 -> 2015 | AI4: ='DL - C4 A'!AI$29 -> 2016 | AJ4: ='DL - C4 A'!AJ$29 -> 2017 | AK4: ='DL - C4 A'!AK$29 -> 2018 | AL4: ='DL - C4 A'!AL$29 -> 2019 | AM4: ='DL - C4 A'!AM$29 -> 2020 | AN4: ='DL - C4 A'!AN$29 -> 2021 | AO4: ='DL - C4 A'!AO$29 -> 2022 | AP4: ='DL - C4 A'!AP$29 -> 2023 | AQ4: ='DL - C4 A'!AQ$29 -> 2024 | AR4: ='DL - C4 A'!AR$29 -> 2025 | AS4: ='DL - C4 A'!AS$29 -> 2026 | AT4: ='DL - C4 A'!AT$29 -> 2027 | AU4: ='DL - C4 A'!AU$29 -> 2028 | AV4: ='DL - C4 A'!AV$29 -> 2029 | AW4: ='DL - C4 A'!AW$29 -> 2030 | AX4: ='DL - C4 A'!AX$29 -> 2031 | AY4: ='DL - C4 A'!AY$29 -> 2032 | AZ4: ='DL - C4 A'!AZ$29 -> 2033 | BA4: ='DL - C4 A'!BA$29 -> 2034 | BB4: ='DL - C4 A'!BB$29 -> 2035 | BC4: ='DL - C4 A'!BC$29 -> 2036 | BD4: ='DL - C4 A'!BD$29 -> 2037 | BE4: ='DL - C4 A'!BE$29 -> 2038 | BF4: ='DL - C4 A'!BF$29 -> 2039 | BG4: ='DL - C4 A'!BG$29 -> 2040 | BH4: ='DL - C4 A'!BH$29 -> 2041 | BI4: ='DL - C4 A'!BI$29 -> 2042 | BJ4: ='DL - C4 A'!BJ$29 -> 2043 | BK4: ='DL - C4 A'!BK$29 -> 2044 | BL4: ='DL - C4 A'!BL$29 -> 2045 | BM4: ='DL - C4 A'!BM$29 -> 2046 | BN4: ='DL - C4 A'!BN$29 -> 2047 | BO4: ='DL - C4 A'!BO$29 -> 2048 | BP4: ='DL - C4 A'!BP$29 -> 2049 | BQ4: ='DL - C4 A'!BQ$29 -> 2050 | BR4: ='DL - C4 A'!BR$29 -> 2051 | BS4: ='DL - C4 A'!BS$29 -> 2052 | BT4: ='DL - C4 A'!BT$29 -> 2053 | BU4: ='DL - C4 A'!BU$29 -> 2054 | BV4: ='DL - C4 A'!BV$29 -> 2055 | BW4: ='DL - C4 A'!BW$29 -> 2056 | BX4: ='DL - C4 A'!BX$29 -> 2057 | BY4: ='DL - C4 A'!BY$29 -> 2058 | BZ4: ='DL - C4 A'!BZ$29 -> 2059 | CA4: ='DL - C4 A'!CA$29 -> 2060
E5: ='DL - C4 A'!E$10 -> Model column counter - RP1 | F5: Para references | G5: Defined Term | H5: Constant | I5: Unit | K5: Total | M5: ='DL - C4 A'!M$10 -> 1 | N5: ='DL - C4 A'!N$10 -> 2 | O5: ='DL - C4 A'!O$10 -> 3 | P5: ='DL - C4 A'!P$10 -> 4 | Q5: ='DL - C4 A'!Q$10 -> 5 | R5: ='DL - C4 A'!R$10 -> 6 | S5: ='DL - C4 A'!S$10 -> 7 | T5: ='DL - C4 A'!T$10 -> 8 | U5: ='DL - C4 A'!U$10 -> 9 | V5: ='DL - C4 A'!V$10 -> 10 | W5: ='DL - C4 A'!W$10 -> 11 | X5: ='DL - C4 A'!X$10 -> 12 | Y5: ='DL - C4 A'!Y$10 -> 13 | Z5: ='DL - C4 A'!Z$10 -> 14 | AA5: ='DL - C4 A'!AA$10 -> 15 | AB5: ='DL - C4 A'!AB$10 -> 16 | AC5: ='DL - C4 A'!AC$10 -> 17 | AD5: ='DL - C4 A'!AD$10 -> 18 | AE5: ='DL - C4 A'!AE$10 -> 19 | AF5: ='DL - C4 A'!AF$10 -> 20 | AG5: ='DL - C4 A'!AG$10 -> 21 | AH5: ='DL - C4 A'!AH$10 -> 22 | AI5: ='DL - C4 A'!AI$10 -> 23 | AJ5: ='DL - C4 A'!AJ$10 -> 24 | AK5: ='DL - C4 A'!AK$10 -> 25 | AL5: ='DL - C4 A'!AL$10 -> 26 | AM5: ='DL - C4 A'!AM$10 -> 27 | AN5: ='DL - C4 A'!AN$10 -> 28 | AO5: ='DL - C4 A'!AO$10 -> 29 | AP5: ='DL - C4 A'!AP$10 -> 30 | AQ5: ='DL - C4 A'!AQ$10 -> 31 | AR5: ='DL - C4 A'!AR$10 -> 32 | AS5: ='DL - C4 A'!AS$10 -> 33 | AT5: ='DL - C4 A'!AT$10 -> 34 | AU5: ='DL - C4 A'!AU$10 -> 35 | AV5: ='DL - C4 A'!AV$10 -> 36 | AW5: ='DL - C4 A'!AW$10 -> 37 | AX5: ='DL - C4 A'!AX$10 -> 38 | AY5: ='DL - C4 A'!AY$10 -> 39 | AZ5: ='DL - C4 A'!AZ$10 -> 40 | BA5: ='DL - C4 A'!BA$10 -> 41 | BB5: ='DL - C4 A'!BB$10 -> 42 | BC5: ='DL - C4 A'!BC$10 -> 43 | BD5: ='DL - C4 A'!BD$10 -> 44 | BE5: ='DL - C4 A'!BE$10 -> 45 | BF5: ='DL - C4 A'!BF$10 -> 46 | BG5: ='DL - C4 A'!BG$10 -> 47 | BH5: ='DL - C4 A'!BH$10 -> 48 | BI5: ='DL - C4 A'!BI$10 -> 49 | BJ5: ='DL - C4 A'!BJ$10 -> 50 | BK5: ='DL - C4 A'!BK$10 -> 51 | BL5: ='DL - C4 A'!BL$10 -> 52 | BM5: ='DL - C4 A'!BM$10 -> 53 | BN5: ='DL - C4 A'!BN$10 -> 54 | BO5: ='DL - C4 A'!BO$10 -> 55 | BP5: ='DL - C4 A'!BP$10 -> 56 | BQ5: ='DL - C4 A'!BQ$10 -> 57 | BR5: ='DL - C4 A'!BR$10 -> 58 | BS5: ='DL - C4 A'!BS$10 -> 59 | BT5: ='DL - C4 A'!BT$10 -> 60 | BU5: ='DL - C4 A'!BU$10 -> 61 | BV5: ='DL - C4 A'!BV$10 -> 62 | BW5: ='DL - C4 A'!BW$10 -> 63 | BX5: ='DL - C4 A'!BX$10 -> 64 | BY5: ='DL - C4 A'!BY$10 -> 65 | BZ5: ='DL - C4 A'!BZ$10 -> 66 | CA5: ='DL - C4 A'!CA$10 -> 67
A7: TIME
B9: Model column counter
E10: Model column counter - RP1 | I10: counter | M10: =L10 + 1 -> 1 | N10: 2 | O10: 3 | P10: 4 | Q10: 5 | R10: 6 | S10: 7 | T10: 8 | U10: 9 | V10: 10 | W10: 11 | X10: 12 | Y10: 13 | Z10: 14 | AA10: 15 | AB10: 16 | AC10: 17 | AD10: 18 | AE10: 19 | AF10: 20 | AG10: 21 | AH10: 22 | AI10: 23 | AJ10: 24 | AK10: 25 | AL10: 26 | AM10: 27 | AN10: 28 | AO10: 29 | AP10: 30 | AQ10: 31 | AR10: 32 | AS10: =AR10 + 1 -> 33 | AT10: 34 | AU10: 35 | AV10: 36 | AW10: 37 | AX10: 38 | AY10: 39 | AZ10: 40 | BA10: 41 | BB10: 42 | BC10: 43 | BD10: 44 | BE10: 45 | BF10: 46 | BG10: 47 | BH10: 48 | BI10: 49 | BJ10: 50 | BK10: 51 | BL10: 52 | BM10: 53 | BN10: 54 | BO10: 55 | BP10: 56 | BQ10: 57 | BR10: 58 | BS10: 59 | BT10: 60 | BU10: 61 | BV10: 62 | BW10: 63 | BX10: 64 | BY10: 65 | BZ10: 66 | CA10: 67
E12: =E$10 -> Model column counter - RP1 | F12: 0 | G12: 0 | H12: 0 | I12: counter | J12: 0 | K12: 0 | L12: 0 | M12: 1 | N12: 2 | O12: 3 | P12: 4 | Q12: 5 | R12: 6 | S12: 7 | T12: 8 | U12: 9 | V12: 10 | W12: 11 | X12: 12 | Y12: 13 | Z12: 14 | AA12: 15 | AB12: 16 | AC12: 17 | AD12: 18 | AE12: 19 | AF12: 20 | AG12: 21 | AH12: 22 | AI12: 23 | AJ12: 24 | AK12: =AK$10 -> 25 | AL12: 26 | AM12: 27 | AN12: 28 | AO12: 29 | AP12: 30 | AQ12: 31 | AR12: 32 | AS12: 33 | AT12: 34 | AU12: 35 | AV12: 36 | AW12: 37 | AX12: 38 | AY12: 39 | AZ12: 40 | BA12: 41 | BB12: 42 | BC12: 43 | BD12: 44 | BE12: 45 | BF12: 46 | BG12: 47 | BH12: 48 | BI12: 49 | BJ12: 50 | BK12: 51 | BL12: 52 | BM12: 53 | BN12: 54 | BO12: 55 | BP12: 56 | BQ12: =BQ$10 -> 57 | BR12: 58 | BS12: 59 | BT12: 60 | BU12: 61 | BV12: 62 | BW12: 63 | BX12: 64 | BY12: 65 | BZ12: 66 | CA12: 67
E13: 1st Model column flag - RP1 | I13: flag | K13: =SUM(M13:CA13) -> 1 | M13: =IF(M12 = 1, 1, 0) -> 1 | N13: 0 | O13: 0 | P13: 0 | Q13: 0 | R13: 0 | S13: 0 | T13: 0 | U13: 0 | V13: 0 | W13: 0 | X13: 0 | Y13: 0 | Z13: 0 | AA13: 0 | AB13: 0 | AC13: 0 | AD13: 0 | AE13: 0 | AF13: 0 | AG13: 0 | AH13: 0 | AI13: 0 | AJ13: 0 | AK13: 0 | AL13: 0 | AM13: 0 | AN13: 0 | AO13: 0 | AP13: 0 | AQ13: 0 | AR13: 0 | AS13: =IF(AS12 = 1, 1, 0) -> 0 | AT13: 0 | AU13: 0 | AV13: 0 | AW13: 0 | AX13: 0 | AY13: 0 | AZ13: 0 | BA13: 0 | BB13: 0 | BC13: 0 | BD13: 0 | BE13: 0 | BF13: 0 | BG13: 0 | BH13: 0 | BI13: 0 | BJ13: 0 | BK13: 0 | BL13: 0 | BM13: 0 | BN13: 0 | BO13: 0 | BP13: 0 | BQ13: 0 | BR13: 0 | BS13: 0 | BT13: 0 | BU13: 0 | BV13: 0 | BW13: 0 | BX13: 0 | BY13: =IF(BY12 = 1, 1, 0) -> 0 | BZ13: 0 | CA13: 0
E15: =Inp_Depreciation!E$9 -> 1st model column start date - RP1 | F15: =Inp_Depreciation!F$9 -> 00:00:00 | G15: =Inp_Depreciation!G$9 -> 00:00:00 | H15: =Inp_Depreciation!H$9 -> 1993-04-01 | I15: =Inp_Depreciation!I$9 -> date
E16: ='Set Up'!E$14 -> Months per model period | F16: ='Set Up'!F$14 -> 0 | G16: ='Set Up'!G$14 -> 0 | H16: ='Set Up'!H$14 -> 12 | I16: ='Set Up'!I$14 -> months
E17: =E$13 -> 1st Model column flag - RP1 | F17: 0 | G17: 0 | H17: 0 | I17: flag | J17: 0 | K17: 1 | L17: 0 | M17: 1 | N17: 0 | O17: 0 | P17: 0 | Q17: 0 | R17: 0 | S17: 0 | T17: 0 | U17: 0 | V17: 0 | W17: 0 | X17: 0 | Y17: 0 | Z17: 0 | AA17: 0 | AB17: 0 | AC17: 0 | AD17: 0 | AE17: 0 | AF17: 0 | AG17: 0 | AH17: 0 | AI17: 0 | AJ17: 0 | AK17: =AK$13 -> 0 | AL17: 0 | AM17: 0 | AN17: 0 | AO17: 0 | AP17: 0 | AQ17: 0 | AR17: 0 | AS17: 0 | AT17: 0 | AU17: 0 | AV17: 0 | AW17: 0 | AX17: 0 | AY17: 0 | AZ17: 0 | BA17: 0 | BB17: 0 | BC17: 0 | BD17: 0 | BE17: 0 | BF17: 0 | BG17: 0 | BH17: 0 | BI17: 0 | BJ17: 0 | BK17: 0 | BL17: 0 | BM17: 0 | BN17: 0 | BO17: 0 | BP17: 0 | BQ17: =BQ$13 -> 0 | BR17: 0 | BS17: 0 | BT17: 0 | BU17: 0 | BV17: 0 | BW17: 0 | BX17: 0 | BY17: 0 | BZ17: 0 | CA17: 0
E18: Model period beginning - RP1 | I18: date | M18: =IF(M17 = 1, $H15, DATE(YEAR(L18), MONTH(L18) + $H16, DAY(1))) -> 34060 | N18: 34425 | O18: 34790 | P18: 35156 | Q18: 35521 | R18: 35886 | S18: 36251 | T18: 36617 | U18: 36982 | V18: 37347 | W18: 37712 | X18: 38078 | Y18: 38443 | Z18: 38808 | AA18: 39173 | AB18: 39539 | AC18: 39904 | AD18: 40269 | AE18: 40634 | AF18: 41000 | AG18: 41365 | AH18: 41730 | AI18: 42095 | AJ18: 42461 | AK18: 42826 | AL18: 43191 | AM18: 43556 | AN18: 43922 | AO18: 44287 | AP18: 44652 | AQ18: 45017 | AR18: 45383 | AS18: =IF(AS17 = 1, $H15, DATE(YEAR(AR18), MONTH(AR18) + $H16, DAY(1))) -> 45748 | AT18: 46113 | AU18: 46478 | AV18: 46844 | AW18: 47209 | AX18: 47574 | AY18: 47939 | AZ18: 48305 | BA18: 48670 | BB18: 49035 | BC18: 49400 | BD18: 49766 | BE18: 50131 | BF18: 50496 | BG18: 50861 | BH18: 51227 | BI18: 51592 | BJ18: 51957 | BK18: 52322 | BL18: 52688 | BM18: 53053 | BN18: 53418 | BO18: 53783 | BP18: 54149 | BQ18: 54514 | BR18: 54879 | BS18: 55244 | BT18: 55610 | BU18: 55975 | BV18: 56340 | BW18: 56705 | BX18: 57071 | BY18: =IF(BY17 = 1, $H15, DATE(YEAR(BX18), MONTH(BX18) + $H16, DAY(1))) -> 57436 | BZ18: 57801 | CA18: 58166
E20: ='Set Up'!E$14 -> Months per model period | F20: ='Set Up'!F$14 -> 0 | G20: ='Set Up'!G$14 -> 0 | H20: ='Set Up'!H$14 -> 12 | I20: ='Set Up'!I$14 -> months
E21: =E$18 -> Model period beginning - RP1 | F21: 00:00:00 | G21: 00:00:00 | H21: 00:00:00 | I21: date | J21: 00:00:00 | K21: 00:00:00 | L21: 00:00:00 | M21: 1993-04-01 | N21: 1994-04-01 | O21: 1995-04-01 | P21: 1996-04-01 | Q21: 1997-04-01 | R21: 1998-04-01 | S21: 1999-04-01 | T21: 2000-04-01 | U21: 2001-04-01 | V21: 2002-04-01 | W21: 2003-04-01 | X21: 2004-04-01 | Y21: 2005-04-01 | Z21: 2006-04-01 | AA21: 2007-04-01 | AB21: 2008-04-01 | AC21: 2009-04-01 | AD21: 2010-04-01 | AE21: 2011-04-01 | AF21: 2012-04-01 | AG21: 2013-04-01 | AH21: 2014-04-01 | AI21: 2015-04-01 | AJ21: 2016-04-01 | AK21: =AK$18 -> 2017-04-01 | AL21: 2018-04-01 | AM21: 2019-04-01 | AN21: 2020-04-01 | AO21: 2021-04-01 | AP21: 2022-04-01 | AQ21: 2023-04-01 | AR21: 2024-04-01 | AS21: 2025-04-01 | AT21: 2026-04-01 | AU21: 2027-04-01 | AV21: 2028-04-01 | AW21: 2029-04-01 | AX21: 2030-04-01 | AY21: 2031-04-01 | AZ21: 2032-04-01 | BA21: 2033-04-01 | BB21: 2034-04-01 | BC21: 2035-04-01 | BD21: 2036-04-01 | BE21: 2037-04-01 | BF21: 2038-04-01 | BG21: 2039-04-01 | BH21: 2040-04-01 | BI21: 2041-04-01 | BJ21: 2042-04-01 | BK21: 2043-04-01 | BL21: 2044-04-01 | BM21: 2045-04-01 | BN21: 2046-04-01 | BO21: 2047-04-01 | BP21: 2048-04-01 | BQ21: =BQ$18 -> 2049-04-01 | BR21: 2050-04-01 | BS21: 2051-04-01 | BT21: 2052-04-01 | BU21: 2053-04-01 | BV21: 2054-04-01 | BW21: 2055-04-01 | BX21: 2056-04-01 | BY21: 2057-04-01 | BZ21: 2058-04-01 | CA21: 2059-04-01
E22: Model period ending - RP1 | I22: date | M22: =DATE(YEAR(M21), MONTH(M21) + $H20, DAY(M21) -1) -> 34424 | N22: 34789 | O22: 35155 | P22: 35520 | Q22: 35885 | R22: 36250 | S22: 36616 | T22: 36981 | U22: 37346 | V22: 37711 | W22: 38077 | X22: 38442 | Y22: 38807 | Z22: 39172 | AA22: 39538 | AB22: 39903 | AC22: 40268 | AD22: 40633 | AE22: 40999 | AF22: 41364 | AG22: 41729 | AH22: 42094 | AI22: 42460 | AJ22: 42825 | AK22: 43190 | AL22: 43555 | AM22: 43921 | AN22: 44286 | AO22: 44651 | AP22: 45016 | AQ22: 45382 | AR22: 45747 | AS22: =DATE(YEAR(AS21), MONTH(AS21) + $H20, DAY(AS21) -1) -> 46112 | AT22: 46477 | AU22: 46843 | AV22: 47208 | AW22: 47573 | AX22: 47938 | AY22: 48304 | AZ22: 48669 | BA22: 49034 | BB22: 49399 | BC22: 49765 | BD22: 50130 | BE22: 50495 | BF22: 50860 | BG22: 51226 | BH22: 51591 | BI22: 51956 | BJ22: 52321 | BK22: 52687 | BL22: 53052 | BM22: 53417 | BN22: 53782 | BO22: 54148 | BP22: 54513 | BQ22: 54878 | BR22: 55243 | BS22: 55609 | BT22: 55974 | BU22: 56339 | BV22: 56704 | BW22: 57070 | BX22: 57435 | BY22: =DATE(YEAR(BY21), MONTH(BY21) + $H20, DAY(BY21) -1) -> 57800 | BZ22: 58165 | CA22: 58531
E23: Last model column period date - RP1 | H23: =MAX(M22:CA22) -> 58531 | I23: date
E25: =Inp_Depreciation!E$11 -> First modelling column financial year number - RP1 | F25: =Inp_Depreciation!F$11 -> 0 | G25: =Inp_Depreciation!G$11 -> 0 | H25: =Inp_Depreciation!H$11 -> 1994 | I25: =Inp_Depreciation!I$11 -> year #
E26: ='Set Up'!E$17 -> Financial year end month number | F26: ='Set Up'!F$17 -> 0 | G26: ='Set Up'!G$17 -> 0 | H26: ='Set Up'!H$17 -> 3 | I26: ='Set Up'!I$17 -> month #
E27: =E$22 -> Model period ending - RP1 | F27: 00:00:00 | G27: 00:00:00 | H27: 00:00:00 | I27: date | J27: 00:00:00 | K27: 00:00:00 | L27: 00:00:00 | M27: 1994-03-31 | N27: 1995-03-31 | O27: 1996-03-31 | P27: 1997-03-31 | Q27: 1998-03-31 | R27: 1999-03-31 | S27: 2000-03-31 | T27: 2001-03-31 | U27: 2002-03-31 | V27: 2003-03-31 | W27: 2004-03-31 | X27: 2005-03-31 | Y27: 2006-03-31 | Z27: 2007-03-31 | AA27: 2008-03-31 | AB27: 2009-03-31 | AC27: 2010-03-31 | AD27: 2011-03-31 | AE27: 2012-03-31 | AF27: 2013-03-31 | AG27: 2014-03-31 | AH27: 2015-03-31 | AI27: 2016-03-31 | AJ27: 2017-03-31 | AK27: =AK$22 -> 2018-03-31 | AL27: 2019-03-31 | AM27: 2020-03-31 | AN27: 2021-03-31 | AO27: 2022-03-31 | AP27: 2023-03-31 | AQ27: 2024-03-31 | AR27: 2025-03-31 | AS27: 2026-03-31 | AT27: 2027-03-31 | AU27: 2028-03-31 | AV27: 2029-03-31 | AW27: 2030-03-31 | AX27: 2031-03-31 | AY27: 2032-03-31 | AZ27: 2033-03-31 | BA27: 2034-03-31 | BB27: 2035-03-31 | BC27: 2036-03-31 | BD27: 2037-03-31 | BE27: 2038-03-31 | BF27: 2039-03-31 | BG27: 2040-03-31 | BH27: 2041-03-31 | BI27: 2042-03-31 | BJ27: 2043-03-31 | BK27: 2044-03-31 | BL27: 2045-03-31 | BM27: 2046-03-31 | BN27: 2047-03-31 | BO27: 2048-03-31 | BP27: 2049-03-31 | BQ27: =BQ$22 -> 2050-03-31 | BR27: 2051-03-31 | BS27: 2052-03-31 | BT27: 2053-03-31 | BU27: 2054-03-31 | BV27: 2055-03-31 | BW27: 2056-03-31 | BX27: 2057-03-31 | BY27: 2058-03-31 | BZ27: 2059-03-31 | CA27: 2060-03-31
E28: =E$13 -> 1st Model column flag - RP1 | F28: 0 | G28: 0 | H28: 0 | I28: flag | J28: 0 | K28: 1 | L28: 0 | M28: 1 | N28: 0 | O28: 0 | P28: 0 | Q28: 0 | R28: 0 | S28: 0 | T28: 0 | U28: 0 | V28: 0 | W28: 0 | X28: 0 | Y28: 0 | Z28: 0 | AA28: 0 | AB28: 0 | AC28: 0 | AD28: 0 | AE28: 0 | AF28: 0 | AG28: 0 | AH28: 0 | AI28: 0 | AJ28: 0 | AK28: =AK$13 -> 0 | AL28: 0 | AM28: 0 | AN28: 0 | AO28: 0 | AP28: 0 | AQ28: 0 | AR28: 0 | AS28: 0 | AT28: 0 | AU28: 0 | AV28: 0 | AW28: 0 | AX28: 0 | AY28: 0 | AZ28: 0 | BA28: 0 | BB28: 0 | BC28: 0 | BD28: 0 | BE28: 0 | BF28: 0 | BG28: 0 | BH28: 0 | BI28: 0 | BJ28: 0 | BK28: 0 | BL28: 0 | BM28: 0 | BN28: 0 | BO28: 0 | BP28: 0 | BQ28: =BQ$13 -> 0 | BR28: 0 | BS28: 0 | BT28: 0 | BU28: 0 | BV28: 0 | BW28: 0 | BX28: 0 | BY28: 0 | BZ28: 0 | CA28: 0
E29: Financial year ending - RP1 | I29: year # | M29: =IF(M28 = 1, $H25, IF(M27 > (DATE(L29, $H26 + 1, 1) - 1), L29 + 1, L29)) -> 1994 | N29: 1995 | O29: 1996 | P29: 1997 | Q29: 1998 | R29: 1999 | S29: 2000 | T29: 2001 | U29: 2002 | V29: 2003 | W29: 2004 | X29: 2005 | Y29: 2006 | Z29: 2007 | AA29: 2008 | AB29: 2009 | AC29: 2010 | AD29: 2011 | AE29: 2012 | AF29: 2013 | AG29: 2014 | AH29: 2015 | AI29: 2016 | AJ29: 2017 | AK29: 2018 | AL29: 2019 | AM29: 2020 | AN29: 2021 | AO29: 2022 | AP29: 2023 | AQ29: 2024 | AR29: 2025 | AS29: =IF(AS28 = 1, $H25, IF(AS27 > (DATE(AR29, $H26 + 1, 1) - 1), AR29 + 1, AR29)) -> 2026 | AT29: 2027 | AU29: 2028 | AV29: 2029 | AW29: 2030 | AX29: 2031 | AY29: 2032 | AZ29: 2033 | BA29: 2034 | BB29: 2035 | BC29: 2036 | BD29: 2037 | BE29: 2038 | BF29: 2039 | BG29: 2040 | BH29: 2041 | BI29: 2042 | BJ29: 2043 | BK29: 2044 | BL29: 2045 | BM29: 2046 | BN29: 2047 | BO29: 2048 | BP29: 2049 | BQ29: 2050 | BR29: 2051 | BS29: 2052 | BT29: 2053 | BU29: 2054 | BV29: 2055 | BW29: 2056 | BX29: 2057 | BY29: =IF(BY28 = 1, $H25, IF(BY27 > (DATE(BX29, $H26 + 1, 1) - 1), BX29 + 1, BX29)) -> 2058 | BZ29: 2059 | CA29: 2060
E31: =Inp_Depreciation!E$16 -> Actuals override period end date | F31: =Inp_Depreciation!F$16 -> 00:00:00 | G31: =Inp_Depreciation!G$16 -> 00:00:00 | H31: =Inp_Depreciation!H$16 -> 2018-03-31 | I31: =Inp_Depreciation!I$16 -> date
E32: =E$22 -> Model period ending - RP1 | F32: 00:00:00 | G32: 00:00:00 | H32: 00:00:00 | I32: date | J32: 00:00:00 | K32: 00:00:00 | L32: 00:00:00 | M32: 1994-03-31 | N32: 1995-03-31 | O32: 1996-03-31 | P32: 1997-03-31 | Q32: 1998-03-31 | R32: 1999-03-31 | S32: 2000-03-31 | T32: 2001-03-31 | U32: 2002-03-31 | V32: 2003-03-31 | W32: 2004-03-31 | X32: 2005-03-31 | Y32: 2006-03-31 | Z32: 2007-03-31 | AA32: 2008-03-31 | AB32: 2009-03-31 | AC32: 2010-03-31 | AD32: 2011-03-31 | AE32: 2012-03-31 | AF32: 2013-03-31 | AG32: 2014-03-31 | AH32: 2015-03-31 | AI32: 2016-03-31 | AJ32: 2017-03-31 | AK32: =AK$22 -> 2018-03-31 | AL32: 2019-03-31 | AM32: 2020-03-31 | AN32: 2021-03-31 | AO32: 2022-03-31 | AP32: 2023-03-31 | AQ32: 2024-03-31 | AR32: 2025-03-31 | AS32: 2026-03-31 | AT32: 2027-03-31 | AU32: 2028-03-31 | AV32: 2029-03-31 | AW32: 2030-03-31 | AX32: 2031-03-31 | AY32: 2032-03-31 | AZ32: 2033-03-31 | BA32: 2034-03-31 | BB32: 2035-03-31 | BC32: 2036-03-31 | BD32: 2037-03-31 | BE32: 2038-03-31 | BF32: 2039-03-31 | BG32: 2040-03-31 | BH32: 2041-03-31 | BI32: 2042-03-31 | BJ32: 2043-03-31 | BK32: 2044-03-31 | BL32: 2045-03-31 | BM32: 2046-03-31 | BN32: 2047-03-31 | BO32: 2048-03-31 | BP32: 2049-03-31 | BQ32: =BQ$22 -> 2050-03-31 | BR32: 2051-03-31 | BS32: 2052-03-31 | BT32: 2053-03-31 | BU32: 2054-03-31 | BV32: 2055-03-31 | BW32: 2056-03-31 | BX32: 2057-03-31 | BY32: 2058-03-31 | BZ32: 2059-03-31 | CA32: 2060-03-31
E33: Actuals override end period flag - RP1 | I33: flag | K33: =SUM(M33:CA33) -> 1 | M33: =IF(AND(L32 < $H31, M32 >= $H31), 1, 0) -> 0 | N33: 0 | O33: 0 | P33: 0 | Q33: 0 | R33: 0 | S33: 0 | T33: 0 | U33: 0 | V33: 0 | W33: 0 | X33: 0 | Y33: 0 | Z33: 0 | AA33: 0 | AB33: 0 | AC33: 0 | AD33: 0 | AE33: 0 | AF33: 0 | AG33: 0 | AH33: 0 | AI33: 0 | AJ33: 0 | AK33: 1 | AL33: 0 | AM33: 0 | AN33: 0 | AO33: 0 | AP33: 0 | AQ33: 0 | AR33: 0 | AS33: =IF(AND(AR32 < $H31, AS32 >= $H31), 1, 0) -> 0 | AT33: 0 | AU33: 0 | AV33: 0 | AW33: 0 | AX33: 0 | AY33: 0 | AZ33: 0 | BA33: 0 | BB33: 0 | BC33: 0 | BD33: 0 | BE33: 0 | BF33: 0 | BG33: 0 | BH33: 0 | BI33: 0 | BJ33: 0 | BK33: 0 | BL33: 0 | BM33: 0 | BN33: 0 | BO33: 0 | BP33: 0 | BQ33: 0 | BR33: 0 | BS33: 0 | BT33: 0 | BU33: 0 | BV33: 0 | BW33: 0 | BX33: 0 | BY33: =IF(AND(BX32 < $H31, BY32 >= $H31), 1, 0) -> 0 | BZ33: 0 | CA33: 0
E35: =E$13 -> 1st Model column flag - RP1 | F35: 0 | G35: 0 | H35: 0 | I35: flag | J35: 0 | K35: 1 | L35: 0 | M35: 1 | N35: 0 | O35: 0 | P35: 0 | Q35: 0 | R35: 0 | S35: 0 | T35: 0 | U35: 0 | V35: 0 | W35: 0 | X35: 0 | Y35: 0 | Z35: 0 | AA35: 0 | AB35: 0 | AC35: 0 | AD35: 0 | AE35: 0 | AF35: 0 | AG35: 0 | AH35: 0 | AI35: 0 | AJ35: 0 | AK35: =AK$13 -> 0 | AL35: 0 | AM35: 0 | AN35: 0 | AO35: 0 | AP35: 0 | AQ35: 0 | AR35: 0 | AS35: 0 | AT35: 0 | AU35: 0 | AV35: 0 | AW35: 0 | AX35: 0 | AY35: 0 | AZ35: 0 | BA35: 0 | BB35: 0 | BC35: 0 | BD35: 0 | BE35: 0 | BF35: 0 | BG35: 0 | BH35: 0 | BI35: 0 | BJ35: 0 | BK35: 0 | BL35: 0 | BM35: 0 | BN35: 0 | BO35: 0 | BP35: 0 | BQ35: =BQ$13 -> 0 | BR35: 0 | BS35: 0 | BT35: 0 | BU35: 0 | BV35: 0 | BW35: 0 | BX35: 0 | BY35: 0 | BZ35: 0 | CA35: 0
E36: =E$33 -> Actuals override end period flag - RP1 | F36: 0 | G36: 0 | H36: 0 | I36: flag | J36: 0 | K36: 1 | L36: 0 | M36: 0 | N36: 0 | O36: 0 | P36: 0 | Q36: 0 | R36: 0 | S36: 0 | T36: 0 | U36: 0 | V36: 0 | W36: 0 | X36: 0 | Y36: 0 | Z36: 0 | AA36: 0 | AB36: 0 | AC36: 0 | AD36: 0 | AE36: 0 | AF36: 0 | AG36: 0 | AH36: 0 | AI36: 0 | AJ36: 0 | AK36: =AK$33 -> 1 | AL36: 0 | AM36: 0 | AN36: 0 | AO36: 0 | AP36: 0 | AQ36: 0 | AR36: 0 | AS36: 0 | AT36: 0 | AU36: 0 | AV36: 0 | AW36: 0 | AX36: 0 | AY36: 0 | AZ36: 0 | BA36: 0 | BB36: 0 | BC36: 0 | BD36: 0 | BE36: 0 | BF36: 0 | BG36: 0 | BH36: 0 | BI36: 0 | BJ36: 0 | BK36: 0 | BL36: 0 | BM36: 0 | BN36: 0 | BO36: 0 | BP36: 0 | BQ36: =BQ$33 -> 0 | BR36: 0 | BS36: 0 | BT36: 0 | BU36: 0 | BV36: 0 | BW36: 0 | BX36: 0 | BY36: 0 | BZ36: 0 | CA36: 0
E37: Actuals period flag - RP1 | I37: flag | K37: =SUM(M37:CA37) -> 25 | M37: =M35 + L37 - L36 -> 1 | N37: 1 | O37: 1 | P37: 1 | Q37: 1 | R37: 1 | S37: 1 | T37: 1 | U37: 1 | V37: 1 | W37: 1 | X37: 1 | Y37: 1 | Z37: 1 | AA37: 1 | AB37: 1 | AC37: 1 | AD37: 1 | AE37: 1 | AF37: 1 | AG37: 1 | AH37: 1 | AI37: 1 | AJ37: 1 | AK37: 1 | AL37: 0 | AM37: 0 | AN37: 0 | AO37: 0 | AP37: 0 | AQ37: 0 | AR37: 0 | AS37: =AS35 + AR37 - AR36 -> 0 | AT37: 0 | AU37: 0 | AV37: 0 | AW37: 0 | AX37: 0 | AY37: 0 | AZ37: 0 | BA37: 0 | BB37: 0 | BC37: 0 | BD37: 0 | BE37: 0 | BF37: 0 | BG37: 0 | BH37: 0 | BI37: 0 | BJ37: 0 | BK37: 0 | BL37: 0 | BM37: 0 | BN37: 0 | BO37: 0 | BP37: 0 | BQ37: 0 | BR37: 0 | BS37: 0 | BT37: 0 | BU37: 0 | BV37: 0 | BW37: 0 | BX37: 0 | BY37: 0 | BZ37: 0 | CA37: 0
B39: =$E$50 -> Days in RP5 periods - RP1
E40: =Inp_Depreciation!E$9 -> 1st model column start date - RP1 | F40: =Inp_Depreciation!F$9 -> 00:00:00 | G40: =Inp_Depreciation!G$9 -> 00:00:00 | H40: =Inp_Depreciation!H$9 -> 1993-04-01 | I40: =Inp_Depreciation!I$9 -> date
E41: =E$18 -> Model period beginning - RP1 | F41: 00:00:00 | G41: 00:00:00 | H41: 00:00:00 | I41: date | J41: 00:00:00 | K41: 00:00:00 | L41: 00:00:00 | M41: 1993-04-01 | N41: 1994-04-01 | O41: 1995-04-01 | P41: 1996-04-01 | Q41: 1997-04-01 | R41: 1998-04-01 | S41: 1999-04-01 | T41: 2000-04-01 | U41: 2001-04-01 | V41: 2002-04-01 | W41: 2003-04-01 | X41: 2004-04-01 | Y41: 2005-04-01 | Z41: 2006-04-01 | AA41: 2007-04-01 | AB41: 2008-04-01 | AC41: 2009-04-01 | AD41: 2010-04-01 | AE41: 2011-04-01 | AF41: 2012-04-01 | AG41: 2013-04-01 | AH41: 2014-04-01 | AI41: 2015-04-01 | AJ41: 2016-04-01 | AK41: =AK$18 -> 2017-04-01 | AL41: 2018-04-01 | AM41: 2019-04-01 | AN41: 2020-04-01 | AO41: 2021-04-01 | AP41: 2022-04-01 | AQ41: 2023-04-01 | AR41: 2024-04-01 | AS41: 2025-04-01 | AT41: 2026-04-01 | AU41: 2027-04-01 | AV41: 2028-04-01 | AW41: 2029-04-01 | AX41: 2030-04-01 | AY41: 2031-04-01 | AZ41: 2032-04-01 | BA41: 2033-04-01 | BB41: 2034-04-01 | BC41: 2035-04-01 | BD41: 2036-04-01 | BE41: 2037-04-01 | BF41: 2038-04-01 | BG41: 2039-04-01 | BH41: 2040-04-01 | BI41: 2041-04-01 | BJ41: 2042-04-01 | BK41: 2043-04-01 | BL41: 2044-04-01 | BM41: 2045-04-01 | BN41: 2046-04-01 | BO41: 2047-04-01 | BP41: 2048-04-01 | BQ41: =BQ$18 -> 2049-04-01 | BR41: 2050-04-01 | BS41: 2051-04-01 | BT41: 2052-04-01 | BU41: 2053-04-01 | BV41: 2054-04-01 | BW41: 2055-04-01 | BX41: 2056-04-01 | BY41: 2057-04-01 | BZ41: 2058-04-01 | CA41: 2059-04-01
E42: =E$22 -> Model period ending - RP1 | F42: 00:00:00 | G42: 00:00:00 | H42: 00:00:00 | I42: date | J42: 00:00:00 | K42: 00:00:00 | L42: 00:00:00 | M42: 1994-03-31 | N42: 1995-03-31 | O42: 1996-03-31 | P42: 1997-03-31 | Q42: 1998-03-31 | R42: 1999-03-31 | S42: 2000-03-31 | T42: 2001-03-31 | U42: 2002-03-31 | V42: 2003-03-31 | W42: 2004-03-31 | X42: 2005-03-31 | Y42: 2006-03-31 | Z42: 2007-03-31 | AA42: 2008-03-31 | AB42: 2009-03-31 | AC42: 2010-03-31 | AD42: 2011-03-31 | AE42: 2012-03-31 | AF42: 2013-03-31 | AG42: 2014-03-31 | AH42: 2015-03-31 | AI42: 2016-03-31 | AJ42: 2017-03-31 | AK42: =AK$22 -> 2018-03-31 | AL42: 2019-03-31 | AM42: 2020-03-31 | AN42: 2021-03-31 | AO42: 2022-03-31 | AP42: 2023-03-31 | AQ42: 2024-03-31 | AR42: 2025-03-31 | AS42: 2026-03-31 | AT42: 2027-03-31 | AU42: 2028-03-31 | AV42: 2029-03-31 | AW42: 2030-03-31 | AX42: 2031-03-31 | AY42: 2032-03-31 | AZ42: 2033-03-31 | BA42: 2034-03-31 | BB42: 2035-03-31 | BC42: 2036-03-31 | BD42: 2037-03-31 | BE42: 2038-03-31 | BF42: 2039-03-31 | BG42: 2040-03-31 | BH42: 2041-03-31 | BI42: 2042-03-31 | BJ42: 2043-03-31 | BK42: 2044-03-31 | BL42: 2045-03-31 | BM42: 2046-03-31 | BN42: 2047-03-31 | BO42: 2048-03-31 | BP42: 2049-03-31 | BQ42: =BQ$22 -> 2050-03-31 | BR42: 2051-03-31 | BS42: 2052-03-31 | BT42: 2053-03-31 | BU42: 2054-03-31 | BV42: 2055-03-31 | BW42: 2056-03-31 | BX42: 2057-03-31 | BY42: 2058-03-31 | BZ42: 2059-03-31 | CA42: 2060-03-31
E43: Days in model period - RP1 | I43: days | K43: =SUM(M43:CA43) -> 24472 | M43: =MAX(0, M42 - MAX($H40, M41) + 1) -> 365 | N43: 365 | O43: 366 | P43: 365 | Q43: 365 | R43: 365 | S43: 366 | T43: 365 | U43: 365 | V43: 365 | W43: 366 | X43: 365 | Y43: 365 | Z43: 365 | AA43: 366 | AB43: 365 | AC43: 365 | AD43: 365 | AE43: 366 | AF43: 365 | AG43: 365 | AH43: 365 | AI43: 366 | AJ43: 365 | AK43: 365 | AL43: 365 | AM43: 366 | AN43: 365 | AO43: 365 | AP43: 365 | AQ43: 366 | AR43: 365 | AS43: =MAX(0, AS42 - MAX($H40, AS41) + 1) -> 365 | AT43: 365 | AU43: 366 | AV43: 365 | AW43: 365 | AX43: 365 | AY43: 366 | AZ43: 365 | BA43: 365 | BB43: 365 | BC43: 366 | BD43: 365 | BE43: 365 | BF43: 365 | BG43: 366 | BH43: 365 | BI43: 365 | BJ43: 365 | BK43: 366 | BL43: 365 | BM43: 365 | BN43: 365 | BO43: 366 | BP43: 365 | BQ43: 365 | BR43: 365 | BS43: 366 | BT43: 365 | BU43: 365 | BV43: 365 | BW43: 366 | BX43: 365 | BY43: =MAX(0, BY42 - MAX($H40, BY41) + 1) -> 365 | BZ43: 365 | CA43: 366
B45: =$E$50 -> Days in RP5 periods - RP1
E46: ='Set Up'!E$25 -> RP5 period start date | F46: ='Set Up'!F$25 -> 0 | G46: ='Set Up'!G$25 -> 0 | H46: ='Set Up'!H$25 -> 41000 | I46: ='Set Up'!I$25 -> date
E47: =Time!E$66 -> RP5 end period date | F47: =Time!F$66 -> 0 | G47: =Time!G$66 -> 0 | H47: =Time!H$66 -> 2017-09-30 | I47: =Time!I$66 -> date
E48: =E$18 -> Model period beginning - RP1 | F48: 00:00:00 | G48: 00:00:00 | H48: 00:00:00 | I48: date | J48: 00:00:00 | K48: 00:00:00 | L48: 00:00:00 | M48: 1993-04-01 | N48: 1994-04-01 | O48: 1995-04-01 | P48: 1996-04-01 | Q48: 1997-04-01 | R48: 1998-04-01 | S48: 1999-04-01 | T48: 2000-04-01 | U48: 2001-04-01 | V48: 2002-04-01 | W48: 2003-04-01 | X48: 2004-04-01 | Y48: 2005-04-01 | Z48: 2006-04-01 | AA48: 2007-04-01 | AB48: 2008-04-01 | AC48: 2009-04-01 | AD48: 2010-04-01 | AE48: 2011-04-01 | AF48: 2012-04-01 | AG48: 2013-04-01 | AH48: 2014-04-01 | AI48: 2015-04-01 | AJ48: 2016-04-01 | AK48: =AK$18 -> 2017-04-01 | AL48: 2018-04-01 | AM48: 2019-04-01 | AN48: 2020-04-01 | AO48: 2021-04-01 | AP48: 2022-04-01 | AQ48: 2023-04-01 | AR48: 2024-04-01 | AS48: 2025-04-01 | AT48: 2026-04-01 | AU48: 2027-04-01 | AV48: 2028-04-01 | AW48: 2029-04-01 | AX48: 2030-04-01 | AY48: 2031-04-01 | AZ48: 2032-04-01 | BA48: 2033-04-01 | BB48: 2034-04-01 | BC48: 2035-04-01 | BD48: 2036-04-01 | BE48: 2037-04-01 | BF48: 2038-04-01 | BG48: 2039-04-01 | BH48: 2040-04-01 | BI48: 2041-04-01 | BJ48: 2042-04-01 | BK48: 2043-04-01 | BL48: 2044-04-01 | BM48: 2045-04-01 | BN48: 2046-04-01 | BO48: 2047-04-01 | BP48: 2048-04-01 | BQ48: =BQ$18 -> 2049-04-01 | BR48: 2050-04-01 | BS48: 2051-04-01 | BT48: 2052-04-01 | BU48: 2053-04-01 | BV48: 2054-04-01 | BW48: 2055-04-01 | BX48: 2056-04-01 | BY48: 2057-04-01 | BZ48: 2058-04-01 | CA48: 2059-04-01
E49: =E$22 -> Model period ending - RP1 | F49: 00:00:00 | G49: 00:00:00 | H49: 00:00:00 | I49: date | J49: 00:00:00 | K49: 00:00:00 | L49: 00:00:00 | M49: 1994-03-31 | N49: 1995-03-31 | O49: 1996-03-31 | P49: 1997-03-31 | Q49: 1998-03-31 | R49: 1999-03-31 | S49: 2000-03-31 | T49: 2001-03-31 | U49: 2002-03-31 | V49: 2003-03-31 | W49: 2004-03-31 | X49: 2005-03-31 | Y49: 2006-03-31 | Z49: 2007-03-31 | AA49: 2008-03-31 | AB49: 2009-03-31 | AC49: 2010-03-31 | AD49: 2011-03-31 | AE49: 2012-03-31 | AF49: 2013-03-31 | AG49: 2014-03-31 | AH49: 2015-03-31 | AI49: 2016-03-31 | AJ49: 2017-03-31 | AK49: =AK$22 -> 2018-03-31 | AL49: 2019-03-31 | AM49: 2020-03-31 | AN49: 2021-03-31 | AO49: 2022-03-31 | AP49: 2023-03-31 | AQ49: 2024-03-31 | AR49: 2025-03-31 | AS49: 2026-03-31 | AT49: 2027-03-31 | AU49: 2028-03-31 | AV49: 2029-03-31 | AW49: 2030-03-31 | AX49: 2031-03-31 | AY49: 2032-03-31 | AZ49: 2033-03-31 | BA49: 2034-03-31 | BB49: 2035-03-31 | BC49: 2036-03-31 | BD49: 2037-03-31 | BE49: 2038-03-31 | BF49: 2039-03-31 | BG49: 2040-03-31 | BH49: 2041-03-31 | BI49: 2042-03-31 | BJ49: 2043-03-31 | BK49: 2044-03-31 | BL49: 2045-03-31 | BM49: 2046-03-31 | BN49: 2047-03-31 | BO49: 2048-03-31 | BP49: 2049-03-31 | BQ49: =BQ$22 -> 2050-03-31 | BR49: 2051-03-31 | BS49: 2052-03-31 | BT49: 2053-03-31 | BU49: 2054-03-31 | BV49: 2055-03-31 | BW49: 2056-03-31 | BX49: 2057-03-31 | BY49: 2058-03-31 | BZ49: 2059-03-31 | CA49: 2060-03-31
E50: ="Days in " & ACTIVE_CASE & " periods - RP1" -> Days in RP5 periods - RP1 | I50: days | K50: =SUM(M50:CA50) -> 2009 | M50: =MAX(0, (MIN($H47, M49) - MAX($H46, M48) + 1)) -> 0 | N50: 0 | O50: 0 | P50: 0 | Q50: 0 | R50: 0 | S50: 0 | T50: 0 | U50: 0 | V50: 0 | W50: 0 | X50: 0 | Y50: 0 | Z50: 0 | AA50: 0 | AB50: 0 | AC50: 0 | AD50: 0 | AE50: 0 | AF50: 365 | AG50: 365 | AH50: 365 | AI50: 366 | AJ50: 365 | AK50: 183 | AL50: 0 | AM50: 0 | AN50: 0 | AO50: 0 | AP50: 0 | AQ50: 0 | AR50: 0 | AS50: =MAX(0, (MIN($H47, AS49) - MAX($H46, AS48) + 1)) -> 0 | AT50: 0 | AU50: 0 | AV50: 0 | AW50: 0 | AX50: 0 | AY50: 0 | AZ50: 0 | BA50: 0 | BB50: 0 | BC50: 0 | BD50: 0 | BE50: 0 | BF50: 0 | BG50: 0 | BH50: 0 | BI50: 0 | BJ50: 0 | BK50: 0 | BL50: 0 | BM50: 0 | BN50: 0 | BO50: 0 | BP50: 0 | BQ50: 0 | BR50: 0 | BS50: 0 | BT50: 0 | BU50: 0 | BV50: 0 | BW50: 0 | BX50: 0 | BY50: =MAX(0, (MIN($H47, BY49) - MAX($H46, BY48) + 1)) -> 0 | BZ50: 0 | CA50: 0
B52: =$E$55 -> RP5 PPF- actual / actual - RP1
E53: =E$50 -> Days in RP5 periods - RP1 | F53: 0 | G53: 0 | H53: 0 | I53: days | J53: 0 | K53: 2009 | L53: 0 | M53: 0 | N53: 0 | O53: 0 | P53: 0 | Q53: 0 | R53: 0 | S53: 0 | T53: 0 | U53: 0 | V53: 0 | W53: 0 | X53: 0 | Y53: 0 | Z53: 0 | AA53: 0 | AB53: 0 | AC53: 0 | AD53: 0 | AE53: 0 | AF53: 365 | AG53: 365 | AH53: 365 | AI53: 366 | AJ53: 365 | AK53: =AK$50 -> 183 | AL53: 0 | AM53: 0 | AN53: 0 | AO53: 0 | AP53: 0 | AQ53: 0 | AR53: 0 | AS53: 0 | AT53: 0 | AU53: 0 | AV53: 0 | AW53: 0 | AX53: 0 | AY53: 0 | AZ53: 0 | BA53: 0 | BB53: 0 | BC53: 0 | BD53: 0 | BE53: 0 | BF53: 0 | BG53: 0 | BH53: 0 | BI53: 0 | BJ53: 0 | BK53: 0 | BL53: 0 | BM53: 0 | BN53: 0 | BO53: 0 | BP53: 0 | BQ53: =BQ$50 -> 0 | BR53: 0 | BS53: 0 | BT53: 0 | BU53: 0 | BV53: 0 | BW53: 0 | BX53: 0 | BY53: 0 | BZ53: 0 | CA53: 0
E54: =E$43 -> Days in model period - RP1 | F54: 0 | G54: 0 | H54: 0 | I54: days | J54: 0 | K54: 24472 | L54: 0 | M54: 365 | N54: 365 | O54: 366 | P54: 365 | Q54: 365 | R54: 365 | S54: 366 | T54: 365 | U54: 365 | V54: 365 | W54: 366 | X54: 365 | Y54: 365 | Z54: 365 | AA54: 366 | AB54: 365 | AC54: 365 | AD54: 365 | AE54: 366 | AF54: 365 | AG54: 365 | AH54: 365 | AI54: 366 | AJ54: 365 | AK54: =AK$43 -> 365 | AL54: 365 | AM54: 366 | AN54: 365 | AO54: 365 | AP54: 365 | AQ54: 366 | AR54: 365 | AS54: 365 | AT54: 365 | AU54: 366 | AV54: 365 | AW54: 365 | AX54: 365 | AY54: 366 | AZ54: 365 | BA54: 365 | BB54: 365 | BC54: 366 | BD54: 365 | BE54: 365 | BF54: 365 | BG54: 366 | BH54: 365 | BI54: 365 | BJ54: 365 | BK54: 366 | BL54: 365 | BM54: 365 | BN54: 365 | BO54: 366 | BP54: 365 | BQ54: =BQ$43 -> 365 | BR54: 365 | BS54: 366 | BT54: 365 | BU54: 365 | BV54: 365 | BW54: 366 | BX54: 365 | BY54: 365 | BZ54: 365 | CA54: 366
E55: =ACTIVE_CASE & " PPF- actual / actual - RP1" -> RP5 PPF- actual / actual - RP1 | I55: factor | K55: =SUM(M55:CA55) -> 5.5 | M55: =ROUND(M53 / M54, 2) -> 0 | N55: 0 | O55: 0 | P55: 0 | Q55: 0 | R55: 0 | S55: 0 | T55: 0 | U55: 0 | V55: 0 | W55: 0 | X55: 0 | Y55: 0 | Z55: 0 | AA55: 0 | AB55: 0 | AC55: 0 | AD55: 0 | AE55: 0 | AF55: 1 | AG55: 1 | AH55: 1 | AI55: 1 | AJ55: 1 | AK55: 0.5 | AL55: 0 | AM55: 0 | AN55: 0 | AO55: 0 | AP55: 0 | AQ55: 0 | AR55: 0 | AS55: =ROUND(AS53 / AS54, 2) -> 0 | AT55: 0 | AU55: 0 | AV55: 0 | AW55: 0 | AX55: 0 | AY55: 0 | AZ55: 0 | BA55: 0 | BB55: 0 | BC55: 0 | BD55: 0 | BE55: 0 | BF55: 0 | BG55: 0 | BH55: 0 | BI55: 0 | BJ55: 0 | BK55: 0 | BL55: 0 | BM55: 0 | BN55: 0 | BO55: 0 | BP55: 0 | BQ55: 0 | BR55: 0 | BS55: 0 | BT55: 0 | BU55: 0 | BV55: 0 | BW55: 0 | BX55: 0 | BY55: =ROUND(BY53 / BY54, 2) -> 0 | BZ55: 0 | CA55: 0
B57: =$E$60 -> Pre - RP5 period flag - RP1
E58: =Time!E$43 -> Pre RP5 period end date | F58: =Time!F$43 -> 00:00:00 | G58: =Time!G$43 -> 00:00:00 | H58: =Time!H$43 -> 2012-03-31 | I58: =Time!I$43 -> date
E59: =E$22 -> Model period ending - RP1 | F59: 00:00:00 | G59: 00:00:00 | H59: 00:00:00 | I59: date | J59: 00:00:00 | K59: 00:00:00 | L59: 00:00:00 | M59: 1994-03-31 | N59: 1995-03-31 | O59: 1996-03-31 | P59: 1997-03-31 | Q59: 1998-03-31 | R59: 1999-03-31 | S59: 2000-03-31 | T59: 2001-03-31 | U59: 2002-03-31 | V59: 2003-03-31 | W59: 2004-03-31 | X59: 2005-03-31 | Y59: 2006-03-31 | Z59: 2007-03-31 | AA59: 2008-03-31 | AB59: 2009-03-31 | AC59: 2010-03-31 | AD59: 2011-03-31 | AE59: 2012-03-31 | AF59: 2013-03-31 | AG59: 2014-03-31 | AH59: 2015-03-31 | AI59: 2016-03-31 | AJ59: 2017-03-31 | AK59: =AK$22 -> 2018-03-31 | AL59: 2019-03-31 | AM59: 2020-03-31 | AN59: 2021-03-31 | AO59: 2022-03-31 | AP59: 2023-03-31 | AQ59: 2024-03-31 | AR59: 2025-03-31 | AS59: 2026-03-31 | AT59: 2027-03-31 | AU59: 2028-03-31 | AV59: 2029-03-31 | AW59: 2030-03-31 | AX59: 2031-03-31 | AY59: 2032-03-31 | AZ59: 2033-03-31 | BA59: 2034-03-31 | BB59: 2035-03-31 | BC59: 2036-03-31 | BD59: 2037-03-31 | BE59: 2038-03-31 | BF59: 2039-03-31 | BG59: 2040-03-31 | BH59: 2041-03-31 | BI59: 2042-03-31 | BJ59: 2043-03-31 | BK59: 2044-03-31 | BL59: 2045-03-31 | BM59: 2046-03-31 | BN59: 2047-03-31 | BO59: 2048-03-31 | BP59: 2049-03-31 | BQ59: =BQ$22 -> 2050-03-31 | BR59: 2051-03-31 | BS59: 2052-03-31 | BT59: 2053-03-31 | BU59: 2054-03-31 | BV59: 2055-03-31 | BW59: 2056-03-31 | BX59: 2057-03-31 | BY59: 2058-03-31 | BZ59: 2059-03-31 | CA59: 2060-03-31
E60: ="Pre - " & ACTIVE_CASE & " period flag - RP1" -> Pre - RP5 period flag - RP1 | I60: flag | K60: =SUM(M60:CA60) -> 19 | M60: =IF($H58 > L59, 1, 0 ) -> 1 | N60: 1 | O60: 1 | P60: 1 | Q60: 1 | R60: 1 | S60: 1 | T60: 1 | U60: 1 | V60: 1 | W60: 1 | X60: 1 | Y60: 1 | Z60: 1 | AA60: 1 | AB60: 1 | AC60: 1 | AD60: 1 | AE60: 1 | AF60: 0 | AG60: 0 | AH60: 0 | AI60: 0 | AJ60: 0 | AK60: 0 | AL60: 0 | AM60: 0 | AN60: 0 | AO60: 0 | AP60: 0 | AQ60: 0 | AR60: 0 | AS60: =IF($H58 > AR59, 1, 0 ) -> 0 | AT60: 0 | AU60: 0 | AV60: 0 | AW60: 0 | AX60: 0 | AY60: 0 | AZ60: 0 | BA60: 0 | BB60: 0 | BC60: 0 | BD60: 0 | BE60: 0 | BF60: 0 | BG60: 0 | BH60: 0 | BI60: 0 | BJ60: 0 | BK60: 0 | BL60: 0 | BM60: 0 | BN60: 0 | BO60: 0 | BP60: 0 | BQ60: 0 | BR60: 0 | BS60: 0 | BT60: 0 | BU60: 0 | BV60: 0 | BW60: 0 | BX60: 0 | BY60: 0 | BZ60: 0 | CA60: 0
B62: =$E$73 -> RP5 period flag - RP1
E63: ='Set Up'!E$25 -> RP5 period start date | F63: ='Set Up'!F$25 -> 0 | G63: ='Set Up'!G$25 -> 0 | H63: ='Set Up'!H$25 -> 41000 | I63: ='Set Up'!I$25 -> date
E64: =E$22 -> Model period ending - RP1 | F64: 00:00:00 | G64: 00:00:00 | H64: 00:00:00 | I64: date | J64: 00:00:00 | K64: 00:00:00 | L64: 00:00:00 | M64: 1994-03-31 | N64: 1995-03-31 | O64: 1996-03-31 | P64: 1997-03-31 | Q64: 1998-03-31 | R64: 1999-03-31 | S64: 2000-03-31 | T64: 2001-03-31 | U64: 2002-03-31 | V64: 2003-03-31 | W64: 2004-03-31 | X64: 2005-03-31 | Y64: 2006-03-31 | Z64: 2007-03-31 | AA64: 2008-03-31 | AB64: 2009-03-31 | AC64: 2010-03-31 | AD64: 2011-03-31 | AE64: 2012-03-31 | AF64: 2013-03-31 | AG64: 2014-03-31 | AH64: 2015-03-31 | AI64: 2016-03-31 | AJ64: 2017-03-31 | AK64: =AK$22 -> 2018-03-31 | AL64: 2019-03-31 | AM64: 2020-03-31 | AN64: 2021-03-31 | AO64: 2022-03-31 | AP64: 2023-03-31 | AQ64: 2024-03-31 | AR64: 2025-03-31 | AS64: 2026-03-31 | AT64: 2027-03-31 | AU64: 2028-03-31 | AV64: 2029-03-31 | AW64: 2030-03-31 | AX64: 2031-03-31 | AY64: 2032-03-31 | AZ64: 2033-03-31 | BA64: 2034-03-31 | BB64: 2035-03-31 | BC64: 2036-03-31 | BD64: 2037-03-31 | BE64: 2038-03-31 | BF64: 2039-03-31 | BG64: 2040-03-31 | BH64: 2041-03-31 | BI64: 2042-03-31 | BJ64: 2043-03-31 | BK64: 2044-03-31 | BL64: 2045-03-31 | BM64: 2046-03-31 | BN64: 2047-03-31 | BO64: 2048-03-31 | BP64: 2049-03-31 | BQ64: =BQ$22 -> 2050-03-31 | BR64: 2051-03-31 | BS64: 2052-03-31 | BT64: 2053-03-31 | BU64: 2054-03-31 | BV64: 2055-03-31 | BW64: 2056-03-31 | BX64: 2057-03-31 | BY64: 2058-03-31 | BZ64: 2059-03-31 | CA64: 2060-03-31
E65: =E63 & " flag - RP1" -> RP5 period start date flag - RP1 | I65: flag | K65: =SUM(M65:CA65) -> 1 | M65: =IF(AND(L64 < $H63, M64 >= $H63), 1, 0) -> 0 | N65: 0 | O65: 0 | P65: 0 | Q65: 0 | R65: 0 | S65: 0 | T65: 0 | U65: 0 | V65: 0 | W65: 0 | X65: 0 | Y65: 0 | Z65: 0 | AA65: 0 | AB65: 0 | AC65: 0 | AD65: 0 | AE65: 0 | AF65: 1 | AG65: 0 | AH65: 0 | AI65: 0 | AJ65: 0 | AK65: 0 | AL65: 0 | AM65: 0 | AN65: 0 | AO65: 0 | AP65: 0 | AQ65: 0 | AR65: 0 | AS65: =IF(AND(AR64 < $H63, AS64 >= $H63), 1, 0) -> 0 | AT65: 0 | AU65: 0 | AV65: 0 | AW65: 0 | AX65: 0 | AY65: 0 | AZ65: 0 | BA65: 0 | BB65: 0 | BC65: 0 | BD65: 0 | BE65: 0 | BF65: 0 | BG65: 0 | BH65: 0 | BI65: 0 | BJ65: 0 | BK65: 0 | BL65: 0 | BM65: 0 | BN65: 0 | BO65: 0 | BP65: 0 | BQ65: 0 | BR65: 0 | BS65: 0 | BT65: 0 | BU65: 0 | BV65: 0 | BW65: 0 | BX65: 0 | BY65: =IF(AND(BX64 < $H63, BY64 >= $H63), 1, 0) -> 0 | BZ65: 0 | CA65: 0
E67: =Time!E$66 -> RP5 end period date | F67: =Time!F$66 -> 0 | G67: =Time!G$66 -> 0 | H67: =Time!H$66 -> 2017-09-30 | I67: =Time!I$66 -> date
E68: =E$22 -> Model period ending - RP1 | F68: 00:00:00 | G68: 00:00:00 | H68: 00:00:00 | I68: date | J68: 00:00:00 | K68: 00:00:00 | L68: 00:00:00 | M68: 1994-03-31 | N68: 1995-03-31 | O68: 1996-03-31 | P68: 1997-03-31 | Q68: 1998-03-31 | R68: 1999-03-31 | S68: 2000-03-31 | T68: 2001-03-31 | U68: 2002-03-31 | V68: 2003-03-31 | W68: 2004-03-31 | X68: 2005-03-31 | Y68: 2006-03-31 | Z68: 2007-03-31 | AA68: 2008-03-31 | AB68: 2009-03-31 | AC68: 2010-03-31 | AD68: 2011-03-31 | AE68: 2012-03-31 | AF68: 2013-03-31 | AG68: 2014-03-31 | AH68: 2015-03-31 | AI68: 2016-03-31 | AJ68: 2017-03-31 | AK68: =AK$22 -> 2018-03-31 | AL68: 2019-03-31 | AM68: 2020-03-31 | AN68: 2021-03-31 | AO68: 2022-03-31 | AP68: 2023-03-31 | AQ68: 2024-03-31 | AR68: 2025-03-31 | AS68: 2026-03-31 | AT68: 2027-03-31 | AU68: 2028-03-31 | AV68: 2029-03-31 | AW68: 2030-03-31 | AX68: 2031-03-31 | AY68: 2032-03-31 | AZ68: 2033-03-31 | BA68: 2034-03-31 | BB68: 2035-03-31 | BC68: 2036-03-31 | BD68: 2037-03-31 | BE68: 2038-03-31 | BF68: 2039-03-31 | BG68: 2040-03-31 | BH68: 2041-03-31 | BI68: 2042-03-31 | BJ68: 2043-03-31 | BK68: 2044-03-31 | BL68: 2045-03-31 | BM68: 2046-03-31 | BN68: 2047-03-31 | BO68: 2048-03-31 | BP68: 2049-03-31 | BQ68: =BQ$22 -> 2050-03-31 | BR68: 2051-03-31 | BS68: 2052-03-31 | BT68: 2053-03-31 | BU68: 2054-03-31 | BV68: 2055-03-31 | BW68: 2056-03-31 | BX68: 2057-03-31 | BY68: 2058-03-31 | BZ68: 2059-03-31 | CA68: 2060-03-31
E69: =E67 & " flag - RP1" -> RP5 end period date flag - RP1 | I69: flag | K69: =SUM(M69:CA69) -> 1 | M69: =IF(AND(L68 < $H67, M68 >= $H67), 1, 0) -> 0 | N69: 0 | O69: 0 | P69: 0 | Q69: 0 | R69: 0 | S69: 0 | T69: 0 | U69: 0 | V69: 0 | W69: 0 | X69: 0 | Y69: 0 | Z69: 0 | AA69: 0 | AB69: 0 | AC69: 0 | AD69: 0 | AE69: 0 | AF69: 0 | AG69: 0 | AH69: 0 | AI69: 0 | AJ69: 0 | AK69: 1 | AL69: 0 | AM69: 0 | AN69: 0 | AO69: 0 | AP69: 0 | AQ69: 0 | AR69: 0 | AS69: =IF(AND(AR68 < $H67, AS68 >= $H67), 1, 0) -> 0 | AT69: 0 | AU69: 0 | AV69: 0 | AW69: 0 | AX69: 0 | AY69: 0 | AZ69: 0 | BA69: 0 | BB69: 0 | BC69: 0 | BD69: 0 | BE69: 0 | BF69: 0 | BG69: 0 | BH69: 0 | BI69: 0 | BJ69: 0 | BK69: 0 | BL69: 0 | BM69: 0 | BN69: 0 | BO69: 0 | BP69: 0 | BQ69: 0 | BR69: 0 | BS69: 0 | BT69: 0 | BU69: 0 | BV69: 0 | BW69: 0 | BX69: 0 | BY69: =IF(AND(BX68 < $H67, BY68 >= $H67), 1, 0) -> 0 | BZ69: 0 | CA69: 0
E71: =E$65 -> RP5 period start date flag - RP1 | F71: 0 | G71: 0 | H71: 0 | I71: flag | J71: 0 | K71: 1 | L71: 0 | M71: 0 | N71: 0 | O71: 0 | P71: 0 | Q71: 0 | R71: 0 | S71: 0 | T71: 0 | U71: 0 | V71: 0 | W71: 0 | X71: 0 | Y71: 0 | Z71: 0 | AA71: 0 | AB71: 0 | AC71: 0 | AD71: 0 | AE71: 0 | AF71: 1 | AG71: 0 | AH71: 0 | AI71: 0 | AJ71: 0 | AK71: =AK$65 -> 0 | AL71: 0 | AM71: 0 | AN71: 0 | AO71: 0 | AP71: 0 | AQ71: 0 | AR71: 0 | AS71: 0 | AT71: 0 | AU71: 0 | AV71: 0 | AW71: 0 | AX71: 0 | AY71: 0 | AZ71: 0 | BA71: 0 | BB71: 0 | BC71: 0 | BD71: 0 | BE71: 0 | BF71: 0 | BG71: 0 | BH71: 0 | BI71: 0 | BJ71: 0 | BK71: 0 | BL71: 0 | BM71: 0 | BN71: 0 | BO71: 0 | BP71: 0 | BQ71: =BQ$65 -> 0 | BR71: 0 | BS71: 0 | BT71: 0 | BU71: 0 | BV71: 0 | BW71: 0 | BX71: 0 | BY71: 0 | BZ71: 0 | CA71: 0
E72: =E$69 -> RP5 end period date flag - RP1 | F72: 0 | G72: 0 | H72: 0 | I72: flag | J72: 0 | K72: 1 | L72: 0 | M72: 0 | N72: 0 | O72: 0 | P72: 0 | Q72: 0 | R72: 0 | S72: 0 | T72: 0 | U72: 0 | V72: 0 | W72: 0 | X72: 0 | Y72: 0 | Z72: 0 | AA72: 0 | AB72: 0 | AC72: 0 | AD72: 0 | AE72: 0 | AF72: 0 | AG72: 0 | AH72: 0 | AI72: 0 | AJ72: 0 | AK72: =AK$69 -> 1 | AL72: 0 | AM72: 0 | AN72: 0 | AO72: 0 | AP72: 0 | AQ72: 0 | AR72: 0 | AS72: 0 | AT72: 0 | AU72: 0 | AV72: 0 | AW72: 0 | AX72: 0 | AY72: 0 | AZ72: 0 | BA72: 0 | BB72: 0 | BC72: 0 | BD72: 0 | BE72: 0 | BF72: 0 | BG72: 0 | BH72: 0 | BI72: 0 | BJ72: 0 | BK72: 0 | BL72: 0 | BM72: 0 | BN72: 0 | BO72: 0 | BP72: 0 | BQ72: =BQ$69 -> 0 | BR72: 0 | BS72: 0 | BT72: 0 | BU72: 0 | BV72: 0 | BW72: 0 | BX72: 0 | BY72: 0 | BZ72: 0 | CA72: 0
E73: =ACTIVE_CASE &" period flag - RP1" -> RP5 period flag - RP1 | I73: flag | K73: =SUM(M73:CA73) -> 6 | M73: =M71 + L73 - L72 -> 0 | N73: 0 | O73: 0 | P73: 0 | Q73: 0 | R73: 0 | S73: 0 | T73: 0 | U73: 0 | V73: 0 | W73: 0 | X73: 0 | Y73: 0 | Z73: 0 | AA73: 0 | AB73: 0 | AC73: 0 | AD73: 0 | AE73: 0 | AF73: 1 | AG73: 1 | AH73: 1 | AI73: 1 | AJ73: 1 | AK73: 1 | AL73: 0 | AM73: 0 | AN73: 0 | AO73: 0 | AP73: 0 | AQ73: 0 | AR73: 0 | AS73: =AS71 + AR73 - AR72 -> 0 | AT73: 0 | AU73: 0 | AV73: 0 | AW73: 0 | AX73: 0 | AY73: 0 | AZ73: 0 | BA73: 0 | BB73: 0 | BC73: 0 | BD73: 0 | BE73: 0 | BF73: 0 | BG73: 0 | BH73: 0 | BI73: 0 | BJ73: 0 | BK73: 0 | BL73: 0 | BM73: 0 | BN73: 0 | BO73: 0 | BP73: 0 | BQ73: 0 | BR73: 0 | BS73: 0 | BT73: 0 | BU73: 0 | BV73: 0 | BW73: 0 | BX73: 0 | BY73: 0 | BZ73: 0 | CA73: 0
E75: =Time!E$104 -> Post RP5 start period date | F75: =Time!F$104 -> 0 | G75: =Time!G$104 -> 0 | H75: =Time!H$104 -> 2017-10-01 | I75: =Time!I$104 -> date
E76: =E$22 -> Model period ending - RP1 | F76: 00:00:00 | G76: 00:00:00 | H76: 00:00:00 | I76: date | J76: 00:00:00 | K76: 00:00:00 | L76: 00:00:00 | M76: 1994-03-31 | N76: 1995-03-31 | O76: 1996-03-31 | P76: 1997-03-31 | Q76: 1998-03-31 | R76: 1999-03-31 | S76: 2000-03-31 | T76: 2001-03-31 | U76: 2002-03-31 | V76: 2003-03-31 | W76: 2004-03-31 | X76: 2005-03-31 | Y76: 2006-03-31 | Z76: 2007-03-31 | AA76: 2008-03-31 | AB76: 2009-03-31 | AC76: 2010-03-31 | AD76: 2011-03-31 | AE76: 2012-03-31 | AF76: 2013-03-31 | AG76: 2014-03-31 | AH76: 2015-03-31 | AI76: 2016-03-31 | AJ76: 2017-03-31 | AK76: =AK$22 -> 2018-03-31 | AL76: 2019-03-31 | AM76: 2020-03-31 | AN76: 2021-03-31 | AO76: 2022-03-31 | AP76: 2023-03-31 | AQ76: 2024-03-31 | AR76: 2025-03-31 | AS76: 2026-03-31 | AT76: 2027-03-31 | AU76: 2028-03-31 | AV76: 2029-03-31 | AW76: 2030-03-31 | AX76: 2031-03-31 | AY76: 2032-03-31 | AZ76: 2033-03-31 | BA76: 2034-03-31 | BB76: 2035-03-31 | BC76: 2036-03-31 | BD76: 2037-03-31 | BE76: 2038-03-31 | BF76: 2039-03-31 | BG76: 2040-03-31 | BH76: 2041-03-31 | BI76: 2042-03-31 | BJ76: 2043-03-31 | BK76: 2044-03-31 | BL76: 2045-03-31 | BM76: 2046-03-31 | BN76: 2047-03-31 | BO76: 2048-03-31 | BP76: 2049-03-31 | BQ76: =BQ$22 -> 2050-03-31 | BR76: 2051-03-31 | BS76: 2052-03-31 | BT76: 2053-03-31 | BU76: 2054-03-31 | BV76: 2055-03-31 | BW76: 2056-03-31 | BX76: 2057-03-31 | BY76: 2058-03-31 | BZ76: 2059-03-31 | CA76: 2060-03-31
E77: =E75 & " flag - RP1" -> Post RP5 start period date flag - RP1 | I77: flag | K77: =SUM(M77:CA77) -> 1 | M77: =IF(AND(L76 < $H75, M76 >= $H75), 1, 0) -> 0 | N77: 0 | O77: 0 | P77: 0 | Q77: 0 | R77: 0 | S77: 0 | T77: 0 | U77: 0 | V77: 0 | W77: 0 | X77: 0 | Y77: 0 | Z77: 0 | AA77: 0 | AB77: 0 | AC77: 0 | AD77: 0 | AE77: 0 | AF77: 0 | AG77: 0 | AH77: 0 | AI77: 0 | AJ77: 0 | AK77: 1 | AL77: 0 | AM77: 0 | AN77: 0 | AO77: 0 | AP77: 0 | AQ77: 0 | AR77: 0 | AS77: =IF(AND(AR76 < $H75, AS76 >= $H75), 1, 0) -> 0 | AT77: 0 | AU77: 0 | AV77: 0 | AW77: 0 | AX77: 0 | AY77: 0 | AZ77: 0 | BA77: 0 | BB77: 0 | BC77: 0 | BD77: 0 | BE77: 0 | BF77: 0 | BG77: 0 | BH77: 0 | BI77: 0 | BJ77: 0 | BK77: 0 | BL77: 0 | BM77: 0 | BN77: 0 | BO77: 0 | BP77: 0 | BQ77: 0 | BR77: 0 | BS77: 0 | BT77: 0 | BU77: 0 | BV77: 0 | BW77: 0 | BX77: 0 | BY77: =IF(AND(BX76 < $H75, BY76 >= $H75), 1, 0) -> 0 | BZ77: 0 | CA77: 0
E79: =E$77 -> Post RP5 start period date flag - RP1 | F79: 0 | G79: 0 | H79: 0 | I79: flag | J79: 0 | K79: 1 | L79: 0 | M79: 0 | N79: 0 | O79: 0 | P79: 0 | Q79: 0 | R79: 0 | S79: 0 | T79: 0 | U79: 0 | V79: 0 | W79: 0 | X79: 0 | Y79: 0 | Z79: 0 | AA79: 0 | AB79: 0 | AC79: 0 | AD79: 0 | AE79: 0 | AF79: 0 | AG79: 0 | AH79: 0 | AI79: 0 | AJ79: 0 | AK79: =AK$77 -> 1 | AL79: 0 | AM79: 0 | AN79: 0 | AO79: 0 | AP79: 0 | AQ79: 0 | AR79: 0 | AS79: 0 | AT79: 0 | AU79: 0 | AV79: 0 | AW79: 0 | AX79: 0 | AY79: 0 | AZ79: 0 | BA79: 0 | BB79: 0 | BC79: 0 | BD79: 0 | BE79: 0 | BF79: 0 | BG79: 0 | BH79: 0 | BI79: 0 | BJ79: 0 | BK79: 0 | BL79: 0 | BM79: 0 | BN79: 0 | BO79: 0 | BP79: 0 | BQ79: =BQ$77 -> 0 | BR79: 0 | BS79: 0 | BT79: 0 | BU79: 0 | BV79: 0 | BW79: 0 | BX79: 0 | BY79: 0 | BZ79: 0 | CA79: 0
E80: ="Post " & ACTIVE_CASE & " period flag" -> Post RP5 period flag | I80: flag | K80: =SUM(M80:CA80) -> 43 | M80: =L80 + M79 -> 0 | N80: 0 | O80: 0 | P80: 0 | Q80: 0 | R80: 0 | S80: 0 | T80: 0 | U80: 0 | V80: 0 | W80: 0 | X80: 0 | Y80: 0 | Z80: 0 | AA80: 0 | AB80: 0 | AC80: 0 | AD80: 0 | AE80: 0 | AF80: 0 | AG80: 0 | AH80: 0 | AI80: 0 | AJ80: 0 | AK80: 1 | AL80: 1 | AM80: 1 | AN80: 1 | AO80: 1 | AP80: 1 | AQ80: 1 | AR80: 1 | AS80: =AR80 + AS79 -> 1 | AT80: 1 | AU80: 1 | AV80: 1 | AW80: 1 | AX80: 1 | AY80: 1 | AZ80: 1 | BA80: 1 | BB80: 1 | BC80: 1 | BD80: 1 | BE80: 1 | BF80: 1 | BG80: 1 | BH80: 1 | BI80: 1 | BJ80: 1 | BK80: 1 | BL80: 1 | BM80: 1 | BN80: 1 | BO80: 1 | BP80: 1 | BQ80: 1 | BR80: 1 | BS80: 1 | BT80: 1 | BU80: 1 | BV80: 1 | BW80: 1 | BX80: 1 | BY80: =BX80 + BY79 -> 1 | BZ80: 1 | CA80: 1
E82: =E$60 -> Pre - RP5 period flag - RP1 | F82: 0 | G82: 0 | H82: 0 | I82: flag | J82: 0 | K82: 19 | L82: 0 | M82: 1 | N82: 1 | O82: 1 | P82: 1 | Q82: 1 | R82: 1 | S82: 1 | T82: 1 | U82: 1 | V82: 1 | W82: 1 | X82: 1 | Y82: 1 | Z82: 1 | AA82: 1 | AB82: 1 | AC82: 1 | AD82: 1 | AE82: 1 | AF82: 0 | AG82: 0 | AH82: 0 | AI82: 0 | AJ82: 0 | AK82: =AK$60 -> 0 | AL82: 0 | AM82: 0 | AN82: 0 | AO82: 0 | AP82: 0 | AQ82: 0 | AR82: 0 | AS82: 0 | AT82: 0 | AU82: 0 | AV82: 0 | AW82: 0 | AX82: 0 | AY82: 0 | AZ82: 0 | BA82: 0 | BB82: 0 | BC82: 0 | BD82: 0 | BE82: 0 | BF82: 0 | BG82: 0 | BH82: 0 | BI82: 0 | BJ82: 0 | BK82: 0 | BL82: 0 | BM82: 0 | BN82: 0 | BO82: 0 | BP82: 0 | BQ82: =BQ$60 -> 0 | BR82: 0 | BS82: 0 | BT82: 0 | BU82: 0 | BV82: 0 | BW82: 0 | BX82: 0 | BY82: 0 | BZ82: 0 | CA82: 0
E83: =E$73 -> RP5 period flag - RP1 | F83: 0 | G83: 0 | H83: 0 | I83: flag | J83: 0 | K83: 6 | L83: 0 | M83: 0 | N83: 0 | O83: 0 | P83: 0 | Q83: 0 | R83: 0 | S83: 0 | T83: 0 | U83: 0 | V83: 0 | W83: 0 | X83: 0 | Y83: 0 | Z83: 0 | AA83: 0 | AB83: 0 | AC83: 0 | AD83: 0 | AE83: 0 | AF83: 1 | AG83: 1 | AH83: 1 | AI83: 1 | AJ83: 1 | AK83: =AK$73 -> 1 | AL83: 0 | AM83: 0 | AN83: 0 | AO83: 0 | AP83: 0 | AQ83: 0 | AR83: 0 | AS83: 0 | AT83: 0 | AU83: 0 | AV83: 0 | AW83: 0 | AX83: 0 | AY83: 0 | AZ83: 0 | BA83: 0 | BB83: 0 | BC83: 0 | BD83: 0 | BE83: 0 | BF83: 0 | BG83: 0 | BH83: 0 | BI83: 0 | BJ83: 0 | BK83: 0 | BL83: 0 | BM83: 0 | BN83: 0 | BO83: 0 | BP83: 0 | BQ83: =BQ$73 -> 0 | BR83: 0 | BS83: 0 | BT83: 0 | BU83: 0 | BV83: 0 | BW83: 0 | BX83: 0 | BY83: 0 | BZ83: 0 | CA83: 0
E84: =E$80 -> Post RP5 period flag | F84: 0 | G84: 0 | H84: 0 | I84: flag | J84: 0 | K84: 43 | L84: 0 | M84: 0 | N84: 0 | O84: 0 | P84: 0 | Q84: 0 | R84: 0 | S84: 0 | T84: 0 | U84: 0 | V84: 0 | W84: 0 | X84: 0 | Y84: 0 | Z84: 0 | AA84: 0 | AB84: 0 | AC84: 0 | AD84: 0 | AE84: 0 | AF84: 0 | AG84: 0 | AH84: 0 | AI84: 0 | AJ84: 0 | AK84: =AK$80 -> 1 | AL84: 1 | AM84: 1 | AN84: 1 | AO84: 1 | AP84: 1 | AQ84: 1 | AR84: 1 | AS84: 1 | AT84: 1 | AU84: 1 | AV84: 1 | AW84: 1 | AX84: 1 | AY84: 1 | AZ84: 1 | BA84: 1 | BB84: 1 | BC84: 1 | BD84: 1 | BE84: 1 | BF84: 1 | BG84: 1 | BH84: 1 | BI84: 1 | BJ84: 1 | BK84: 1 | BL84: 1 | BM84: 1 | BN84: 1 | BO84: 1 | BP84: 1 | BQ84: =BQ$80 -> 1 | BR84: 1 | BS84: 1 | BT84: 1 | BU84: 1 | BV84: 1 | BW84: 1 | BX84: 1 | BY84: 1 | BZ84: 1 | CA84: 1
E85: Regulatory part period flag - RP1 | I85: flag | K85: =SUM(M85:CA85) -> 1 | M85: =SUM(M82:M84) - 1 -> 0 | N85: 0 | O85: 0 | P85: 0 | Q85: 0 | R85: 0 | S85: 0 | T85: 0 | U85: 0 | V85: 0 | W85: 0 | X85: 0 | Y85: 0 | Z85: 0 | AA85: 0 | AB85: 0 | AC85: 0 | AD85: 0 | AE85: 0 | AF85: 0 | AG85: 0 | AH85: 0 | AI85: 0 | AJ85: 0 | AK85: 1 | AL85: 0 | AM85: 0 | AN85: 0 | AO85: 0 | AP85: 0 | AQ85: 0 | AR85: 0 | AS85: =SUM(AS82:AS84) - 1 -> 0 | AT85: 0 | AU85: 0 | AV85: 0 | AW85: 0 | AX85: 0 | AY85: 0 | AZ85: 0 | BA85: 0 | BB85: 0 | BC85: 0 | BD85: 0 | BE85: 0 | BF85: 0 | BG85: 0 | BH85: 0 | BI85: 0 | BJ85: 0 | BK85: 0 | BL85: 0 | BM85: 0 | BN85: 0 | BO85: 0 | BP85: 0 | BQ85: 0 | BR85: 0 | BS85: 0 | BT85: 0 | BU85: 0 | BV85: 0 | BW85: 0 | BX85: 0 | BY85: =SUM(BY82:BY84) - 1 -> 0 | BZ85: 0 | CA85: 0
A88: CAPEX PPF
C90: First term rate - DN
E92: ='Set Up'!E$34 -> Capex addition date during year 1993 - 1994 | F92: ='Set Up'!F$34 -> 00:00:00 | G92: ='Set Up'!G$34 -> 00:00:00 | H92: ='Set Up'!H$34 -> 1993-04-01 | I92: ='Set Up'!I$34 -> date
E93: ='Set Up'!E$35 -> Capex addition date during year 1994 - 1995 | F93: ='Set Up'!F$35 -> 00:00:00 | G93: ='Set Up'!G$35 -> 00:00:00 | H93: ='Set Up'!H$35 -> 1994-04-01 | I93: ='Set Up'!I$35 -> date
E94: ='Set Up'!E$36 -> Capex addition date during year 1995 - 1996 | F94: ='Set Up'!F$36 -> 00:00:00 | G94: ='Set Up'!G$36 -> 00:00:00 | H94: ='Set Up'!H$36 -> 1995-04-01 | I94: ='Set Up'!I$36 -> date
E95: ='Set Up'!E$37 -> Capex addition date during year 1996 - 1997 | F95: ='Set Up'!F$37 -> 00:00:00 | G95: ='Set Up'!G$37 -> 00:00:00 | H95: ='Set Up'!H$37 -> 1996-04-01 | I95: ='Set Up'!I$37 -> date
E96: ='Set Up'!E$38 -> Capex addition date during year 1997 - 1998 | F96: ='Set Up'!F$38 -> 00:00:00 | G96: ='Set Up'!G$38 -> 00:00:00 | H96: ='Set Up'!H$38 -> 1997-04-01 | I96: ='Set Up'!I$38 -> date
E97: ='Set Up'!E$39 -> Capex addition date during year 1998 - 1999 | F97: ='Set Up'!F$39 -> 00:00:00 | G97: ='Set Up'!G$39 -> 00:00:00 | H97: ='Set Up'!H$39 -> 1998-04-01 | I97: ='Set Up'!I$39 -> date
E98: ='Set Up'!E$40 -> Capex addition date during year 1999 - 2000 | F98: ='Set Up'!F$40 -> 00:00:00 | G98: ='Set Up'!G$40 -> 00:00:00 | H98: ='Set Up'!H$40 -> 1999-04-01 | I98: ='Set Up'!I$40 -> date
E99: ='Set Up'!E$41 -> Capex addition date during year 2000 - 2001 | F99: ='Set Up'!F$41 -> 00:00:00 | G99: ='Set Up'!G$41 -> 00:00:00 | H99: ='Set Up'!H$41 -> 2000-04-01 | I99: ='Set Up'!I$41 -> date
E100: ='Set Up'!E$42 -> Capex addition date during year 2001 - 2002 | F100: ='Set Up'!F$42 -> 00:00:00 | G100: ='Set Up'!G$42 -> 00:00:00 | H100: ='Set Up'!H$42 -> 2001-04-01 | I100: ='Set Up'!I$42 -> date
E101: ='Set Up'!E$43 -> Capex addition date during year 2002 - 2003 | F101: ='Set Up'!F$43 -> 00:00:00 | G101: ='Set Up'!G$43 -> 00:00:00 | H101: ='Set Up'!H$43 -> 2002-04-01 | I101: ='Set Up'!I$43 -> date
E102: ='Set Up'!E$44 -> Capex addition date during year 2003 - 2004 | F102: ='Set Up'!F$44 -> 00:00:00 | G102: ='Set Up'!G$44 -> 00:00:00 | H102: ='Set Up'!H$44 -> 2003-04-01 | I102: ='Set Up'!I$44 -> date
E103: ='Set Up'!E$45 -> Capex addition date during year 2004 - 2005 | F103: ='Set Up'!F$45 -> 00:00:00 | G103: ='Set Up'!G$45 -> 00:00:00 | H103: ='Set Up'!H$45 -> 2004-04-01 | I103: ='Set Up'!I$45 -> date
E104: ='Set Up'!E$46 -> Capex addition date during year 2005 - 2006 | F104: ='Set Up'!F$46 -> 00:00:00 | G104: ='Set Up'!G$46 -> 00:00:00 | H104: ='Set Up'!H$46 -> 2005-04-01 | I104: ='Set Up'!I$46 -> date
E105: ='Set Up'!E$47 -> Capex addition date during year 2006 - 2007 | F105: ='Set Up'!F$47 -> 00:00:00 | G105: ='Set Up'!G$47 -> 00:00:00 | H105: ='Set Up'!H$47 -> 2006-04-01 | I105: ='Set Up'!I$47 -> date
E106: ='Set Up'!E$48 -> Capex addition date during year 2007 - 2008 | F106: ='Set Up'!F$48 -> 00:00:00 | G106: ='Set Up'!G$48 -> 00:00:00 | H106: ='Set Up'!H$48 -> 2007-04-01 | I106: ='Set Up'!I$48 -> date
E107: ='Set Up'!E$49 -> Capex addition date during year 2008 - 2009 | F107: ='Set Up'!F$49 -> 00:00:00 | G107: ='Set Up'!G$49 -> 00:00:00 | H107: ='Set Up'!H$49 -> 2008-04-01 | I107: ='Set Up'!I$49 -> date
E108: ='Set Up'!E$50 -> Capex addition date during year 2009 - 2010 | F108: ='Set Up'!F$50 -> 00:00:00 | G108: ='Set Up'!G$50 -> 00:00:00 | H108: ='Set Up'!H$50 -> 2009-04-01 | I108: ='Set Up'!I$50 -> date
E109: ='Set Up'!E$51 -> Capex addition date during year 2010 - 2011 | F109: ='Set Up'!F$51 -> 00:00:00 | G109: ='Set Up'!G$51 -> 00:00:00 | H109: ='Set Up'!H$51 -> 2010-04-01 | I109: ='Set Up'!I$51 -> date
E110: ='Set Up'!E$52 -> Capex addition date during year 2011 - 2012 | F110: ='Set Up'!F$52 -> 00:00:00 | G110: ='Set Up'!G$52 -> 00:00:00 | H110: ='Set Up'!H$52 -> 2011-04-01 | I110: ='Set Up'!I$52 -> date
E111: ='Set Up'!E$53 -> Capex addition date during year 2012 - 2013 | F111: ='Set Up'!F$53 -> 00:00:00 | G111: ='Set Up'!G$53 -> 00:00:00 | H111: ='Set Up'!H$53 -> 2012-10-01 | I111: ='Set Up'!I$53 -> date
E112: ='Set Up'!E$54 -> Capex addition date during year 2013 - 2014 | F112: ='Set Up'!F$54 -> 00:00:00 | G112: ='Set Up'!G$54 -> 00:00:00 | H112: ='Set Up'!H$54 -> 2013-10-01 | I112: ='Set Up'!I$54 -> date
E113: ='Set Up'!E$55 -> Capex addition date during year 2014 - 2015 | F113: ='Set Up'!F$55 -> 00:00:00 | G113: ='Set Up'!G$55 -> 00:00:00 | H113: ='Set Up'!H$55 -> 2014-10-01 | I113: ='Set Up'!I$55 -> date
E114: ='Set Up'!E$56 -> Capex addition date during year 2015 - 2016 | F114: ='Set Up'!F$56 -> 00:00:00 | G114: ='Set Up'!G$56 -> 00:00:00 | H114: ='Set Up'!H$56 -> 2015-10-01 | I114: ='Set Up'!I$56 -> date
E115: ='Set Up'!E$57 -> Capex addition date during year 2016 - 2017 | F115: ='Set Up'!F$57 -> 00:00:00 | G115: ='Set Up'!G$57 -> 00:00:00 | H115: ='Set Up'!H$57 -> 2016-10-01 | I115: ='Set Up'!I$57 -> date
E116: ='Set Up'!E$58 -> Capex addition date during year 2017 - 2018 | F116: ='Set Up'!F$58 -> 0 | G116: ='Set Up'!G$58 -> 0 | H116: ='Set Up'!H$58 -> 2017-10-01 | I116: ='Set Up'!I$58 -> date
E118: =Inp_Depreciation!E$25 -> Depreciation term for first rate - DN | F118: =Inp_Depreciation!F$25 -> 0 | G118: =Inp_Depreciation!G$25 -> 0 | H118: =Inp_Depreciation!H$25 -> 20 | I118: =Inp_Depreciation!I$25 -> years
E119: ='Set Up'!E$69 -> Months in a year | F119: ='Set Up'!F$69 -> 0 | G119: ='Set Up'!G$69 -> 0 | H119: ='Set Up'!H$69 -> 12 | I119: ='Set Up'!I$69 -> months
E120: =Inp_Depreciation!E$23 -> Depreciation rate - first 20 years - DN | F120: =Inp_Depreciation!F$23 -> 0 | G120: =Inp_Depreciation!G$23 -> 0 | H120: =Inp_Depreciation!H$23 -> 0.03 | I120: =Inp_Depreciation!I$23 -> %
E122: =E$18 -> Model period beginning - RP1 | F122: 00:00:00 | G122: 00:00:00 | H122: 00:00:00 | I122: date | J122: 00:00:00 | K122: 00:00:00 | L122: 00:00:00 | M122: 1993-04-01 | N122: 1994-04-01 | O122: 1995-04-01 | P122: 1996-04-01 | Q122: 1997-04-01 | R122: 1998-04-01 | S122: 1999-04-01 | T122: 2000-04-01 | U122: 2001-04-01 | V122: 2002-04-01 | W122: 2003-04-01 | X122: 2004-04-01 | Y122: 2005-04-01 | Z122: 2006-04-01 | AA122: 2007-04-01 | AB122: 2008-04-01 | AC122: 2009-04-01 | AD122: 2010-04-01 | AE122: 2011-04-01 | AF122: 2012-04-01 | AG122: 2013-04-01 | AH122: 2014-04-01 | AI122: 2015-04-01 | AJ122: 2016-04-01 | AK122: =AK$18 -> 2017-04-01 | AL122: 2018-04-01 | AM122: 2019-04-01 | AN122: 2020-04-01 | AO122: 2021-04-01 | AP122: 2022-04-01 | AQ122: 2023-04-01 | AR122: 2024-04-01 | AS122: 2025-04-01 | AT122: 2026-04-01 | AU122: 2027-04-01 | AV122: 2028-04-01 | AW122: 2029-04-01 | AX122: 2030-04-01 | AY122: 2031-04-01 | AZ122: 2032-04-01 | BA122: 2033-04-01 | BB122: 2034-04-01 | BC122: 2035-04-01 | BD122: 2036-04-01 | BE122: 2037-04-01 | BF122: 2038-04-01 | BG122: 2039-04-01 | BH122: 2040-04-01 | BI122: 2041-04-01 | BJ122: 2042-04-01 | BK122: 2043-04-01 | BL122: 2044-04-01 | BM122: 2045-04-01 | BN122: 2046-04-01 | BO122: 2047-04-01 | BP122: 2048-04-01 | BQ122: =BQ$18 -> 2049-04-01 | BR122: 2050-04-01 | BS122: 2051-04-01 | BT122: 2052-04-01 | BU122: 2053-04-01 | BV122: 2054-04-01 | BW122: 2055-04-01 | BX122: 2056-04-01 | BY122: 2057-04-01 | BZ122: 2058-04-01 | CA122: 2059-04-01
E123: =E$22 -> Model period ending - RP1 | F123: 00:00:00 | G123: 00:00:00 | H123: 00:00:00 | I123: date | J123: 00:00:00 | K123: 00:00:00 | L123: 00:00:00 | M123: 1994-03-31 | N123: 1995-03-31 | O123: 1996-03-31 | P123: 1997-03-31 | Q123: 1998-03-31 | R123: 1999-03-31 | S123: 2000-03-31 | T123: 2001-03-31 | U123: 2002-03-31 | V123: 2003-03-31 | W123: 2004-03-31 | X123: 2005-03-31 | Y123: 2006-03-31 | Z123: 2007-03-31 | AA123: 2008-03-31 | AB123: 2009-03-31 | AC123: 2010-03-31 | AD123: 2011-03-31 | AE123: 2012-03-31 | AF123: 2013-03-31 | AG123: 2014-03-31 | AH123: 2015-03-31 | AI123: 2016-03-31 | AJ123: 2017-03-31 | AK123: =AK$22 -> 2018-03-31 | AL123: 2019-03-31 | AM123: 2020-03-31 | AN123: 2021-03-31 | AO123: 2022-03-31 | AP123: 2023-03-31 | AQ123: 2024-03-31 | AR123: 2025-03-31 | AS123: 2026-03-31 | AT123: 2027-03-31 | AU123: 2028-03-31 | AV123: 2029-03-31 | AW123: 2030-03-31 | AX123: 2031-03-31 | AY123: 2032-03-31 | AZ123: 2033-03-31 | BA123: 2034-03-31 | BB123: 2035-03-31 | BC123: 2036-03-31 | BD123: 2037-03-31 | BE123: 2038-03-31 | BF123: 2039-03-31 | BG123: 2040-03-31 | BH123: 2041-03-31 | BI123: 2042-03-31 | BJ123: 2043-03-31 | BK123: 2044-03-31 | BL123: 2045-03-31 | BM123: 2046-03-31 | BN123: 2047-03-31 | BO123: 2048-03-31 | BP123: 2049-03-31 | BQ123: =BQ$22 -> 2050-03-31 | BR123: 2051-03-31 | BS123: 2052-03-31 | BT123: 2053-03-31 | BU123: 2054-03-31 | BV123: 2055-03-31 | BW123: 2056-03-31 | BX123: 2057-03-31 | BY123: 2058-03-31 | BZ123: 2059-03-31 | CA123: 2060-03-31
E124: =E$43 -> Days in model period - RP1 | F124: 0 | G124: 0 | H124: 0 | I124: days | J124: 0 | K124: 24472 | L124: 0 | M124: 365 | N124: 365 | O124: 366 | P124: 365 | Q124: 365 | R124: 365 | S124: 366 | T124: 365 | U124: 365 | V124: 365 | W124: 366 | X124: 365 | Y124: 365 | Z124: 365 | AA124: 366 | AB124: 365 | AC124: 365 | AD124: 365 | AE124: 366 | AF124: 365 | AG124: 365 | AH124: 365 | AI124: 366 | AJ124: 365 | AK124: =AK$43 -> 365 | AL124: 365 | AM124: 366 | AN124: 365 | AO124: 365 | AP124: 365 | AQ124: 366 | AR124: 365 | AS124: 365 | AT124: 365 | AU124: 366 | AV124: 365 | AW124: 365 | AX124: 365 | AY124: 366 | AZ124: 365 | BA124: 365 | BB124: 365 | BC124: 366 | BD124: 365 | BE124: 365 | BF124: 365 | BG124: 366 | BH124: 365 | BI124: 365 | BJ124: 365 | BK124: 366 | BL124: 365 | BM124: 365 | BN124: 365 | BO124: 366 | BP124: 365 | BQ124: =BQ$43 -> 365 | BR124: 365 | BS124: 366 | BT124: 365 | BU124: 365 | BV124: 365 | BW124: 366 | BX124: 365 | BY124: 365 | BZ124: 365 | CA124: 366
E126: ="Capex add - " & TEXT('Set Up'!H$34, "dd mmm yy") & " - first term - rate - DN" -> Capex add - 01 Apr 93 - first term - rate - DN | I126: % | K126: =SUM(M126:CA126) -> 0.6 | M126: =ROUND(IF(M$124 > 0, MAX(0, (MIN(EOMONTH($H92, $H$118 * $H$119 - 1), M$123) - MAX($H92 + 1, M$122) + 1)) / M$124, 0), 1) * $H$120 -> 0.03 | N126: 0.03 | O126: 0.03 | P126: 0.03 | Q126: 0.03 | R126: 0.03 | S126: 0.03 | T126: 0.03 | U126: 0.03 | V126: 0.03 | W126: 0.03 | X126: 0.03 | Y126: 0.03 | Z126: 0.03 | AA126: 0.03 | AB126: 0.03 | AC126: 0.03 | AD126: 0.03 | AE126: 0.03 | AF126: =ROUND(IF(AF$124 > 0, MAX(0, (MIN(EOMONTH($H92, $H$118 * $H$119 - 1), AF$123) - MAX($H92 + 1, AF$122) + 1)) / AF$124, 0), 1) * $H$120 -> 0.03 | AG126: 0 | AH126: 0 | AI126: 0 | AJ126: 0 | AK126: 0 | AL126: 0 | AM126: 0 | AN126: 0 | AO126: 0 | AP126: 0 | AQ126: 0 | AR126: 0 | AS126: 0 | AT126: 0 | AU126: 0 | AV126: 0 | AW126: 0 | AX126: 0 | AY126: 0 | AZ126: 0 | BA126: 0 | BB126: 0 | BC126: 0 | BD126: 0 | BE126: 0 | BF126: 0 | BG126: 0 | BH126: 0 | BI126: 0 | BJ126: 0 | BK126: 0 | BL126: 0 | BM126: 0 | BN126: 0 | BO126: 0 | BP126: 0 | BQ126: 0 | BR126: 0 | BS126: 0 | BT126: 0 | BU126: 0 | BV126: 0 | BW126: 0 | BX126: 0 | BY126: 0 | BZ126: 0 | CA126: 0
E127: ="Capex add - " & TEXT('Set Up'!H$35, "dd mmm yy") & " - first term - rate - DN" -> Capex add - 01 Apr 94 - first term - rate - DN | I127: % | K127: 0.6 | M127: =ROUND(IF(M$124 > 0, MAX(0, (MIN(EOMONTH($H93, $H$118 * $H$119 - 1), M$123) - MAX($H93 + 1, M$122) + 1)) / M$124, 0), 1) * $H$120 -> 0 | N127: 0.03 | O127: 0.03 | P127: 0.03 | Q127: 0.03 | R127: 0.03 | S127: 0.03 | T127: 0.03 | U127: 0.03 | V127: 0.03 | W127: 0.03 | X127: 0.03 | Y127: 0.03 | Z127: 0.03 | AA127: 0.03 | AB127: 0.03 | AC127: 0.03 | AD127: 0.03 | AE127: 0.03 | AF127: =ROUND(IF(AF$124 > 0, MAX(0, (MIN(EOMONTH($H93, $H$118 * $H$119 - 1), AF$123) - MAX($H93 + 1, AF$122) + 1)) / AF$124, 0), 1) * $H$120 -> 0.03 | AG127: 0.03 | AH127: 0 | AI127: 0 | AJ127: 0 | AK127: 0 | AL127: 0 | AM127: 0 | AN127: 0 | AO127: 0 | AP127: 0 | AQ127: 0 | AR127: 0 | AS127: 0 | AT127: 0 | AU127: 0 | AV127: 0 | AW127: 0 | AX127: 0 | AY127: 0 | AZ127: 0 | BA127: 0 | BB127: 0 | BC127: 0 | BD127: 0 | BE127: 0 | BF127: 0 | BG127: 0 | BH127: 0 | BI127: 0 | BJ127: 0 | BK127: 0 | BL127: 0 | BM127: 0 | BN127: 0 | BO127: 0 | BP127: 0 | BQ127: 0 | BR127: 0 | BS127: 0 | BT127: 0 | BU127: 0 | BV127: 0 | BW127: 0 | BX127: 0 | BY127: 0 | BZ127: 0 | CA127: 0
E128: ="Capex add - " & TEXT('Set Up'!H$36, "dd mmm yy") & " - first term - rate - DN" -> Capex add - 01 Apr 95 - first term - rate - DN | I128: % | K128: 0.6 | M128: =ROUND(IF(M$124 > 0, MAX(0, (MIN(EOMONTH($H94, $H$118 * $H$119 - 1), M$123) - MAX($H94 + 1, M$122) + 1)) / M$124, 0), 1) * $H$120 -> 0 | N128: 0 | O128: 0.03 | P128: 0.03 | Q128: 0.03 | R128: 0.03 | S128: 0.03 | T128: 0.03 | U128: 0.03 | V128: 0.03 | W128: 0.03 | X128: 0.03 | Y128: 0.03 | Z128: 0.03 | AA128: 0.03 | AB128: 0.03 | AC128: 0.03 | AD128: 0.03 | AE128: 0.03 | AF128: =ROUND(IF(AF$124 > 0, MAX(0, (MIN(EOMONTH($H94, $H$118 * $H$119 - 1), AF$123) - MAX($H94 + 1, AF$122) + 1)) / AF$124, 0), 1) * $H$120 -> 0.03 | AG128: 0.03 | AH128: 0.03 | AI128: 0 | AJ128: 0 | AK128: 0 | AL128: 0 | AM128: 0 | AN128: 0 | AO128: 0 | AP128: 0 | AQ128: 0 | AR128: 0 | AS128: 0 | AT128: 0 | AU128: 0 | AV128: 0 | AW128: 0 | AX128: 0 | AY128: 0 | AZ128: 0 | BA128: 0 | BB128: 0 | BC128: 0 | BD128: 0 | BE128: 0 | BF128: 0 | BG128: 0 | BH128: 0 | BI128: 0 | BJ128: 0 | BK128: 0 | BL128: 0 | BM128: 0 | BN128: 0 | BO128: 0 | BP128: 0 | BQ128: 0 | BR128: 0 | BS128: 0 | BT128: 0 | BU128: 0 | BV128: 0 | BW128: 0 | BX128: 0 | BY128: 0 | BZ128: 0 | CA128: 0
E129: ="Capex add - " & TEXT('Set Up'!H$37, "dd mmm yy") & " - first term - rate - DN" -> Capex add - 01 Apr 96 - first term - rate - DN | I129: % | K129: 0.6 | M129: =ROUND(IF(M$124 > 0, MAX(0, (MIN(EOMONTH($H95, $H$118 * $H$119 - 1), M$123) - MAX($H95 + 1, M$122) + 1)) / M$124, 0), 1) * $H$120 -> 0 | N129: 0 | O129: 0 | P129: 0.03 | Q129: 0.03 | R129: 0.03 | S129: 0.03 | T129: 0.03 | U129: 0.03 | V129: 0.03 | W129: 0.03 | X129: 0.03 | Y129: 0.03 | Z129: 0.03 | AA129: 0.03 | AB129: 0.03 | AC129: 0.03 | AD129: 0.03 | AE129: 0.03 | AF129: =ROUND(IF(AF$124 > 0, MAX(0, (MIN(EOMONTH($H95, $H$118 * $H$119 - 1), AF$123) - MAX($H95 + 1, AF$122) + 1)) / AF$124, 0), 1) * $H$120 -> 0.03 | AG129: 0.03 | AH129: 0.03 | AI129: 0.03 | AJ129: 0 | AK129: 0 | AL129: 0 | AM129: 0 | AN129: 0 | AO129: 0 | AP129: 0 | AQ129: 0 | AR129: 0 | AS129: 0 | AT129: 0 | AU129: 0 | AV129: 0 | AW129: 0 | AX129: 0 | AY129: 0 | AZ129: 0 | BA129: 0 | BB129: 0 | BC129: 0 | BD129: 0 | BE129: 0 | BF129: 0 | BG129: 0 | BH129: 0 | BI129: 0 | BJ129: 0 | BK129: 0 | BL129: 0 | BM129: 0 | BN129: 0 | BO129: 0 | BP129: 0 | BQ129: 0 | BR129: 0 | BS129: 0 | BT129: 0 | BU129: 0 | BV129: 0 | BW129: 0 | BX129: 0 | BY129: 0 | BZ129: 0 | CA129: 0
E130: ="Capex add - " & TEXT('Set Up'!H$38, "dd mmm yy") & " - first term - rate - DN" -> Capex add - 01 Apr 97 - first term - rate - DN | I130: % | K130: 0.6 | M130: =ROUND(IF(M$124 > 0, MAX(0, (MIN(EOMONTH($H96, $H$118 * $H$119 - 1), M$123) - MAX($H96 + 1, M$122) + 1)) / M$124, 0), 1) * $H$120 -> 0 | N130: 0 | O130: 0 | P130: 0 | Q130: 0.03 | R130: 0.03 | S130: 0.03 | T130: 0.03 | U130: 0.03 | V130: 0.03 | W130: 0.03 | X130: 0.03 | Y130: 0.03 | Z130: 0.03 | AA130: 0.03 | AB130: 0.03 | AC130: 0.03 | AD130: 0.03 | AE130: 0.03 | AF130: =ROUND(IF(AF$124 > 0, MAX(0, (MIN(EOMONTH($H96, $H$118 * $H$119 - 1), AF$123) - MAX($H96 + 1, AF$122) + 1)) / AF$124, 0), 1) * $H$120 -> 0.03 | AG130: 0.03 | AH130: 0.03 | AI130: 0.03 | AJ130: 0.03 | AK130: 0 | AL130: 0 | AM130: 0 | AN130: 0 | AO130: 0 | AP130: 0 | AQ130: 0 | AR130: 0 | AS130: 0 | AT130: 0 | AU130: 0 | AV130: 0 | AW130: 0 | AX130: 0 | AY130: 0 | AZ130: 0 | BA130: 0 | BB130: 0 | BC130: 0 | BD130: 0 | BE130: 0 | BF130: 0 | BG130: 0 | BH130: 0 | BI130: 0 | BJ130: 0 | BK130: 0 | BL130: 0 | BM130: 0 | BN130: 0 | BO130: 0 | BP130: 0 | BQ130: 0 | BR130: 0 | BS130: 0 | BT130: 0 | BU130: 0 | BV130: 0 | BW130: 0 | BX130: 0 | BY130: 0 | BZ130: 0 | CA130: 0
E131: ="Capex add - " & TEXT('Set Up'!H$39, "dd mmm yy") & " - first term - rate - DN" -> Capex add - 01 Apr 98 - first term - rate - DN | I131: % | K131: 0.6 | M131: =ROUND(IF(M$124 > 0, MAX(0, (MIN(EOMONTH($H97, $H$118 * $H$119 - 1), M$123) - MAX($H97 + 1, M$122) + 1)) / M$124, 0), 1) * $H$120 -> 0 | N131: 0 | O131: 0 | P131: 0 | Q131: 0 | R131: 0.03 | S131: 0.03 | T131: 0.03 | U131: 0.03 | V131: 0.03 | W131: 0.03 | X131: 0.03 | Y131: 0.03 | Z131: 0.03 | AA131: 0.03 | AB131: 0.03 | AC131: 0.03 | AD131: 0.03 | AE131: 0.03 | AF131: =ROUND(IF(AF$124 > 0, MAX(0, (MIN(EOMONTH($H97, $H$118 * $H$119 - 1), AF$123) - MAX($H97 + 1, AF$122) + 1)) / AF$124, 0), 1) * $H$120 -> 0.03 | AG131: 0.03 | AH131: 0.03 | AI131: 0.03 | AJ131: 0.03 | AK131: 0.03 | AL131: 0 | AM131: 0 | AN131: 0 | AO131: 0 | AP131: 0 | AQ131: 0 | AR131: 0 | AS131: 0 | AT131: 0 | AU131: 0 | AV131: 0 | AW131: 0 | AX131: 0 | AY131: 0 | AZ131: 0 | BA131: 0 | BB131: 0 | BC131: 0 | BD131: 0 | BE131: 0 | BF131: 0 | BG131: 0 | BH131: 0 | BI131: 0 | BJ131: 0 | BK131: 0 | BL131: 0 | BM131: 0 | BN131: 0 | BO131: 0 | BP131: 0 | BQ131: 0 | BR131: 0 | BS131: 0 | BT131: 0 | BU131: 0 | BV131: 0 | BW131: 0 | BX131: 0 | BY131: 0 | BZ131: 0 | CA131: 0
